Workbook

Sheet Growth Rates
A1: growth indices | B1: 2003-04 | C1: 2004-05 | D1: 2005-06 | E1: 2006-07 | F1: 2007-08 | G1: 2008-09 | H1: 2009-10 | I1: 2010-11 | J1: 2011-12 | K1: 2012-13 | L1: 2013-14 | M1: 2014-15 | N1: 2015-16 | O1: 2016-17 | P1: 2017-18 | Q1: 2018-19 | R1: 2019-20 | S1: 2020-21 | T1: 2021-22 | U1: 2022-23 | V1: 24 | W1: 25 | X1: 26 | Y1: 27
A2: CB | M2: 1.069515201 | N2: 1.017363245 | O2: 1.008760006 | P2: 0.9920646803 | Q2: 1.001811047 | R2: 1.015366074 | S2: 1.024480712 | T2: 1.021288921 | U2: 1.022972206 | V2: 1.021026978 | W2: 1.022442205 | X2: 1.021932578 | Y2: 1.022093492 | Z2: 1.016922502
A3: CH | M3: 1.043786982 | N3: 1.051830256 | O3: 1.050508161 | P3: 1.014365289 | Q3: 1.016763006 | R3: 1.010517339 | S3: 1.044725738 | T3: 1.023828756 | U3: 1.000657462 | V3: 1.019932324 | W3: 1.02228607 | X3: 1.016676153 | Y3: 1.014888002 | Z3: 1.002964308
A4: CD | M4: 1.007153552 | N4: 1.03567889 | O4: 1.049601276 | P4: 1.005470293 | Q4: 1.025086897 | R4: 1.005749668 | S4: 1.043682205 | T4: 1.020786517 | U4: 0.9924325812 | V4: 1.015662743 | W4: 1.018141011 | X4: 1.011755713 | Y4: 1.009498012 | Z4: 0.9928084659
A5: CM | M5: 1.025322824 | N5: 1.043833824 | O5: 1.050062676 | P5: 1.009997762 | Q5: 1.020831794 | R5: 1.008177147 | S5: 1.044214757 | T5: 1.022339841 | U5: 0.9966382035 | V5: 1.017842487 | W5: 1.020258822 | X5: 1.014269838 | Y5: 1.012252338 | Z5: 1.002964308
A6: CL | M6: 0.9725182277 | N6: 0.9720299885 | O6: 1 | P6: 0.997626817 | Q6: 1.008325899 | R6: 0.9976408139 | S6: 1.005320721 | T6: 1.009408997 | U6: 1.022720652 | V6: 1.008772796 | W6: 1.011555792 | X6: 1.013114559 | Y6: 1.01404095 | Z6: 1
A7: CN | M7: 0.9725182277 | N7: 0.9720299885 | O7: 1 | P7: 0.997626817 | Q7: 1.008325899 | R7: 0.9976408139 | S7: 1.005320721 | T7: 1.009408997 | U7: 1.022720652 | V7: 1.008772796 | W7: 1.011555792 | X7: 1.013114559 | Y7: 1.01404095 | Z7: 1
A8: CS | M8: 1.003874896 | N8: 1.015991177 | O8: 1.014518318 | P8: 0.9846194998 | Q8: 0.9979625102 | R8: 0.9944194909 | S8: 1.022721051 | T8: 1.008297645 | U8: 0.9926997611 | V8: 1.004534487 | W8: 1.007063236 | X8: 1.003148782 | Y8: 1.001861567 | Z8: 0.9939377742
A9: CR | M9: 0.9725182277 | N9: 0.9720299885 | O9: 1 | P9: 0.997626817 | Q9: 1.008325899 | R9: 0.9976408139 | S9: 1.005320721 | T9: 1.009408997 | U9: 1.022720652 | V9: 1.008772796 | W9: 1.011555792 | X9: 1.013114559 | Y9: 1.01404095 | Z9: 1.048146562
A11: CB | N11: =N2*$M$19 -> 1.214038222 | O11: =O2*$M$19 -> 1.203771819 | P11: 1.183848981 | Q11: 1.195479499 | R11: 1.211654961 | S11: 1.222531626 | T11: 1.218722803 | U11: 1.220731498 | V11: 1.218410222 | W11: 1.220099037 | X11: 1.21949089 | Y11: 1.219682912
A12: CH | N12: =$M$20*N3 -> 1.167478755 | O12: =$M$20*O3 -> 1.166011296 | P12: 1.125894523 | Q12: 1.128555868 | R12: 1.121623492 | S12: 1.159593097 | T12: 1.136398496 | U12: 1.110679524 | V12: 1.132073652 | W12: 1.134686192 | X12: 1.128459466 | Y12: 1.126474709
A13: CD | N13: 1 | O13: =$M$24*#REF! ->  | P13: =$M$24*O4 -> 1.220448784 | Q13: 1.169134437 | R13: 1.191944109 | S13: 1.169459287 | T13: 1.213566244 | U13: 1.18694374 | V13: 1.153974528 | W13: 1.18098595 | X13: 1.183867615 | Y13: 1.176442958 | Z13: 1.173817763
A14: CM | N14: 1 | O14: =$M$25*#REF! ->  | P14: =$M$25*O5 -> 1.354037845 | Q14: 1.302374823 | R14: 1.316345123 | S14: 1.300027172 | T14: 1.346497054 | U14: 1.318289723 | V14: 1.285147902 | W14: 1.312490463 | X14: 1.315606285 | Y14: 1.307883593 | Z14: 1.305282061
A15: CL
A16: CN
A17: CS
A18: CR
L19: CB | M19: 1.193318343
L20: CH | M20: 1.109949774
L21: CL | M21: 1.159722353
L22: CR | M22: 1.194645371
L23: CS | M23: 1.027804896
L24: CD | M24: 1.162773724
L25: CM | M25: 1.289482881
L26: CN | M26: 0.8905654802
A32: EDPR
A33: CB | M33: 1.069515201 | N33: 1.017363245 | O33: 1.008760006 | P33: 0.9920646803 | Q33: 1.001811047 | R33: 1.015366074 | S33: 1.024480712 | T33: 1.021288921 | U33: 1.022972206 | V33: 1.021026978 | W33: 1.022442205 | X33: 1.021932578 | Y33: 1.022093492
A34: CH | M34: 1.043786982 | N34: 1.051830256 | O34: 1.050508161 | P34: 1.014365289 | Q34: 1.016763006 | R34: 1.010517339 | S34: 1.044725738 | T34: 1.023828756 | U34: 1.000657462 | V34: 1.019932324 | W34: 1.02228607 | X34: 1.016676153 | Y34: 1.014888002
A35: CD | M35: 1.007153552 | N35: 1.03567889 | O35: 1.049601276 | P35: 1.005470293 | Q35: 1.025086897 | R35: 1.005749668 | S35: 1.043682205 | T35: 1.020786517 | U35: 0.9924325812 | V35: 1.015662743 | W35: 1.018141011 | X35: 1.011755713 | Y35: 1.009498012
A36: CM | M36: 1.025322824 | N36: 1.043833824 | O36: 1.050062676 | P36: 1.009997762 | Q36: 1.020831794 | R36: 1.008177147 | S36: 1.044214757 | T36: 1.022339841 | U36: 0.9966382035 | V36: 1.017842487 | W36: 1.020258822 | X36: 1.014269838 | Y36: 1.012252338
A37: CL | M37: 0.9725182277 | N37: 0.9720299885 | O37: 1 | P37: 0.997626817 | Q37: 1.008325899 | R37: 0.9976408139 | S37: 1.005320721 | T37: 1.009408997 | U37: 1.022720652 | V37: 1.008772796 | W37: 1.011555792 | X37: 1.013114559 | Y37: 1.01404095
A38: CN | M38: 0.9725182277 | N38: 0.9720299885 | O38: 1 | P38: 0.997626817 | Q38: 1.008325899 | R38: 0.9976408139 | S38: 1.005320721 | T38: 1.009408997 | U38: 1.022720652 | V38: 1.008772796 | W38: 1.011555792 | X38: 1.013114559 | Y38: 1.01404095
A39: CS | M39: 1.003874896 | N39: 1.015991177 | O39: 1.014518318 | P39: 0.9846194998 | Q39: 0.9979625102 | R39: 0.9944194909 | S39: 1.022721051 | T39: 1.008297645 | U39: 0.9926997611 | V39: 1.004534487 | W39: 1.007063236 | X39: 1.003148782 | Y39: 1.001861567
A40: CR | M40: 0.9725182277 | N40: 0.9720299885 | O40: 1 | P40: 0.997626817 | Q40: 1.008325899 | R40: 0.9976408139 | S40: 1.005320721 | T40: 1.009408997 | U40: 1.022720652 | V40: 1.008772796 | W40: 1.011555792 | X40: 1.013114559 | Y40: 1.01404095

Sheet Vol
I1: R01 | J1: R02
A2: CB | D2: 2015 | I2: EDPR(2015) | J2: Resubmission(2015)
A3: CBE | B3: Bus Sup Proj>10kVA-LV Extens'n | D3: =IFERROR(VLOOKUP(A3,H:J,3,FALSE),"") -> 96 | H3: CBE | I3: 73.79654889 | J3: 96
A4: CBG | B4: Bus Sup Proj>10kVA-Ground Subs | D4: =IFERROR(VLOOKUP(A4,H:J,3,FALSE),"") -> 4 | H4: CBG | I4: 7.486606409 | J4: 4
A5: CBH | B5: Bus Sup Proj>10kVA-HVCustomers | D5: 8 | H5: CBH | I5: 5.347576007 | J5: 8
A6: CBI | B6: Bus Sup Proj>10kVA-Indoor Subs | D6: 42 | H6: CBI | I6: 39.57206245 | J6: 42
A7: CBK | B7: Bus Sup Proj>10kVA-Kiosk Subst | D7: 130 | H7: CBK | I7: 139.0369762 | J7: 130
A8: CBL | B8: Bus Sup Proj>10kVA-LineofMains | D8: 116 | H8: CBL | I8: 108.0210353 | J8: 116
A9: CBP | B9: Bus Sup Proj>10kVA-Pole Subst. | D9: 143 | H9: CBP | I9: 104.8124897 | J9: 143
A10: CBS | B10: Bus Sup Proj>10kVA-Sub Modific | D10: 0 | H10: CBS | I10: 0 | J10: 0
H11: CHH | I11: 26.09467456 | J11: 26
A12: CH | H12: CHL | I12: 102.2911243 | J12: 102
A13: CHH | B13: MedDensHousing- HV Extension | D13: 26 | H13: CRA | I13: 241.1845205 | J13: 157
A14: CHL | B14: MedDensHousing-LV Ext. Only | D14: 102 | H14: CRP | I14: 41.81828379 | J14: 71
H15: CRR | I15: 0 | J15: 0
A16: CL | H16: CRS | I16: 2.917554683 | J16: 4
A17: CLA | B17: Pb.Light CapProj-MajorInterscn | H17: CRU | I17: 13.61525519 | J17: 11
A18: CLI | B18: Pb.Light CapProj-MinorInterscn | H18: CRV | I18: 0 | J18: 0
A19: CLJ | B19: Pb.Light CapProj-Major Scheme | H19: CSO | I19: 23.08912261 | J19: 23
A20: CLM | B20: Single Light-Minor Road | H20: CSU | I20: 11.04262386 | J20: 12
A21: CLN | B21: Pb.Light CapProj-Minor Scheme | H21: CDA | I21: 3033 | J21: 4836
A22: CLP | B22: Project | H22: CDP | I22: 0 | J22: 0
A23: CLS | B23: Pb.Light CapProj-Single Lights
A25: CR
A26: CRA | B26: Special Capital / R'cvble Wrks | D26: 157
A27: CRP | B27: Cap/RecWorks-Inline Pole/Stays | D27: 71
A28: CRR | B28: Cap/RecWorks-Intersec Re-Align | D28: 0
A29: CRS | B29: Cap/RecWorks-Sub Modification | D29: 4
A30: CRU | B30: Cap/RecWorks-Undergd of Assets | D30: 11
A31: CRV | B31: Cap/RecWorks-MajVicRoads Reloc | D31: 0
A33: CS
A34: CSO | B34: LD/Smal.Bus Dev<10kVA-O/H Ext. | D34: 23
A35: CSU | B35: LD/Smal.Bus Dev<10kVA-U/G Ext. | D35: 12
A37: CD
A38: CDA | B38: DUAL & MULTIPLE OCCPY SUPPLIES | D38: 4836
A39: CDP | B39: PIT AT BASE OF REPL P/L POLE | D39: 0
A41: CM
A42: CMU | B42: NEW U/G SERVICE CONNECTION
A43: CMZ | B43: NEW OVERHEAD SERVICE
A45: CN
A46: CNG | B46: NEW SUSTAINABLE LIGHT - MINOR RD
A47: CNJ | B47: NEW SINGLE LIGHT - MAJOR ROADS
A48: CNM | B48: NEW SINGLE LIGHT - MINOR ROAD
A49: CNW | B49: NEW WATCHMAN LIGHTS

Sheet Forecast-Volume
A1: Projects Initiated in each year
C2: 2013 | D2: 2014 | E2: 2015 | F2: 2016 | G2: 2017 | H2: 2018 | I2: 2019 | J2: 2020 | K2: =J2+1 -> 2021 | L2: =K2+1 -> 2022 | M2: =L2+1 -> 2023 | N2: =M2+1 -> 2024 | O2: =N2+1 -> 2025 | P2: 2026 | Q2: 2027
A3: CB
A4: CBE | B4: Bus Sup Proj>10kVA-LV Extens'n | C4: 8 | D4: =VLOOKUP(A4,'[1]PVT vol2'!$A:$H,8,FALSE) -> 69 | E4: =IFERROR(VLOOKUP(A4,Vol!A:D,4,FALSE),0) -> 96 | F4: =E4*'Growth Rates'!N$2 -> 97.66687154 | G4: =F4*'Growth Rates'!O$2 -> 98.52243393 | H4: =G4*'Growth Rates'!P$2 -> 97.74062692 | I4: =H4*'Growth Rates'!Q$2 -> 97.91763983 | J4: =I4*'Growth Rates'!R$2 -> 99.42224954 | K4: =J4*'Growth Rates'!S$2 -> 101.856177 | L4: =K4*'Growth Rates'!T$2 -> 104.0245851 | M4: =L4*'Growth Rates'!U$2 -> 106.4142594 | N4: =M4*'Growth Rates'!V$2 -> 108.6518297 | O4: =N4*'Growth Rates'!W$2 -> 111.0902163 | P4: =O4*'Growth Rates'!X$2 -> 113.5267111 | Q4: =P4*'Growth Rates'!Y$2 -> 116.0349125
A5: CBG | B5: Bus Sup Proj>10kVA-Ground Subs | C5: 0 | D5: =VLOOKUP(A5,'[1]PVT vol2'!$A:$H,8,FALSE) -> 7 | E5: =IFERROR(VLOOKUP(A5,Vol!A:D,4,FALSE),0) -> 4 | F5: =E5*'Growth Rates'!N$2 -> 4.069452981 | G5: =F5*'Growth Rates'!O$2 -> 4.105101414 | H5: =G5*'Growth Rates'!P$2 -> 4.072526122 | I5: =H5*'Growth Rates'!Q$2 -> 4.079901659 | J5: =I5*'Growth Rates'!R$2 -> 4.142593731 | K5: =J5*'Growth Rates'!S$2 -> 4.244007376 | L5: =K5*'Growth Rates'!T$2 -> 4.334357714 | M5: =L5*'Growth Rates'!U$2 -> 4.433927474 | N5: =M5*'Growth Rates'!V$2 -> 4.527159571 | O5: =N5*'Growth Rates'!W$2 -> 4.628759012 | P5: =O5*'Growth Rates'!X$2 -> 4.730279629 | Q5: =P5*'Growth Rates'!Y$2 -> 4.834788023
A6: CBH | B6: Bus Sup Proj>10kVA-HVCustomers | C6: 1 | D6: =VLOOKUP(A6,'[1]PVT vol2'!$A:$H,8,FALSE) -> 5 | E6: =IFERROR(VLOOKUP(A6,Vol!A:D,4,FALSE),0) -> 8 | F6: =E6*'Growth Rates'!N$2 -> 8.138905962 | G6: =F6*'Growth Rates'!O$2 -> 8.210202827 | H6: =G6*'Growth Rates'!P$2 -> 8.145052243 | I6: =H6*'Growth Rates'!Q$2 -> 8.159803319 | J6: =I6*'Growth Rates'!R$2 -> 8.285187462 | K6: =J6*'Growth Rates'!S$2 -> 8.488014751 | L6: =K6*'Growth Rates'!T$2 -> 8.668715427 | M6: =L6*'Growth Rates'!U$2 -> 8.867854948 | N6: =M6*'Growth Rates'!V$2 -> 9.054319143 | O6: =N6*'Growth Rates'!W$2 -> 9.257518025 | P6: =O6*'Growth Rates'!X$2 -> 9.460559258 | Q6: =P6*'Growth Rates'!Y$2 -> 9.669576046
A7: CBI | B7: Bus Sup Proj>10kVA-Indoor Subs | C7: 18 | D7: =VLOOKUP(A7,'[1]PVT vol2'!$A:$H,8,FALSE) -> 37 | E7: =IFERROR(VLOOKUP(A7,Vol!A:D,4,FALSE),0) -> 42 | F7: =E7*'Growth Rates'!N$2 -> 42.7292563 | G7: =F7*'Growth Rates'!O$2 -> 43.10356484 | H7: =G7*'Growth Rates'!P$2 -> 42.76152428 | I7: =H7*'Growth Rates'!Q$2 -> 42.83896742 | J7: =I7*'Growth Rates'!R$2 -> 43.49723417 | K7: =J7*'Growth Rates'!S$2 -> 44.56207744 | L7: =K7*'Growth Rates'!T$2 -> 45.51075599 | M7: =L7*'Growth Rates'!U$2 -> 46.55623848 | N7: =M7*'Growth Rates'!V$2 -> 47.5351755 | O7: =N7*'Growth Rates'!W$2 -> 48.60196963 | P7: =O7*'Growth Rates'!X$2 -> 49.6679361 | Q7: =P7*'Growth Rates'!Y$2 -> 50.76527424
A8: CBK | B8: Bus Sup Proj>10kVA-Kiosk Subst | C8: 26 | D8: =VLOOKUP(A8,'[1]PVT vol2'!$A:$H,8,FALSE) -> 130 | E8: =IFERROR(VLOOKUP(A8,Vol!A:D,4,FALSE),0) -> 130 | F8: =E8*'Growth Rates'!N$2 -> 132.2572219 | G8: =F8*'Growth Rates'!O$2 -> 133.4157959 | H8: =G8*'Growth Rates'!P$2 -> 132.357099 | I8: =H8*'Growth Rates'!Q$2 -> 132.5968039 | J8: =I8*'Growth Rates'!R$2 -> 134.6342963 | K8: =J8*'Growth Rates'!S$2 -> 137.9302397 | L8: =K8*'Growth Rates'!T$2 -> 140.8666257 | M8: =L8*'Growth Rates'!U$2 -> 144.1026429 | N8: =M8*'Growth Rates'!V$2 -> 147.1326861 | O8: =N8*'Growth Rates'!W$2 -> 150.4346679 | P8: =O8*'Growth Rates'!X$2 -> 153.7340879 | Q8: =P8*'Growth Rates'!Y$2 -> 157.1306107
A9: CBL | B9: Bus Sup Proj>10kVA-LineofMains | C9: 14 | D9: =VLOOKUP(A9,'[1]PVT vol2'!$A:$H,8,FALSE) -> 101 | E9: =IFERROR(VLOOKUP(A9,Vol!A:D,4,FALSE),0) -> 116 | F9: =E9*'Growth Rates'!N$2 -> 118.0141364 | G9: =F9*'Growth Rates'!O$2 -> 119.047941 | H9: =G9*'Growth Rates'!P$2 -> 118.1032575 | I9: =H9*'Growth Rates'!Q$2 -> 118.3171481 | J9: =I9*'Growth Rates'!R$2 -> 120.1352182 | K9: =J9*'Growth Rates'!S$2 -> 123.0762139 | L9: =K9*'Growth Rates'!T$2 -> 125.6963737 | M9: =L9*'Growth Rates'!U$2 -> 128.5838967 | N9: =M9*'Growth Rates'!V$2 -> 131.2876276 | O9: =N9*'Growth Rates'!W$2 -> 134.2340114 | P9: =O9*'Growth Rates'!X$2 -> 137.1781092 | Q9: =P9*'Growth Rates'!Y$2 -> 140.2088527
A10: CBP | B10: Bus Sup Proj>10kVA-Pole Subst. | C10: 19 | D10: =VLOOKUP(A10,'[1]PVT vol2'!$A:$H,8,FALSE) -> 98 | E10: =IFERROR(VLOOKUP(A10,Vol!A:D,4,FALSE),0) -> 143 | F10: =E10*'Growth Rates'!N$2 -> 145.4829441 | G10: =F10*'Growth Rates'!O$2 -> 146.7573755 | H10: =G10*'Growth Rates'!P$2 -> 145.5928089 | I10: =H10*'Growth Rates'!Q$2 -> 145.8564843 | J10: =I10*'Growth Rates'!R$2 -> 148.0977259 | K10: =J10*'Growth Rates'!S$2 -> 151.7232637 | L10: =K10*'Growth Rates'!T$2 -> 154.9532883 | M10: =L10*'Growth Rates'!U$2 -> 158.5129072 | N10: =M10*'Growth Rates'!V$2 -> 161.8459547 | O10: =N10*'Growth Rates'!W$2 -> 165.4781347 | P10: =O10*'Growth Rates'!X$2 -> 169.1074967 | Q10: =P10*'Growth Rates'!Y$2 -> 172.8436718
A11: CBS | B11: Bus Sup Proj>10kVA-Sub Modific | C11: 1 | D11: =VLOOKUP(A11,'[1]PVT vol2'!$A:$H,8,FALSE) ->  | E11: =IFERROR(VLOOKUP(A11,Vol!A:D,4,FALSE),0) -> 0 | F11: =E11*'Growth Rates'!N$2 -> 0 | G11: =F11*'Growth Rates'!O$2 -> 0 | H11: =G11*'Growth Rates'!P$2 -> 0 | I11: =H11*'Growth Rates'!Q$2 -> 0 | J11: =I11*'Growth Rates'!R$2 -> 0 | K11: =J11*'Growth Rates'!S$2 -> 0 | L11: =K11*'Growth Rates'!T$2 -> 0 | M11: =L11*'Growth Rates'!U$2 -> 0 | N11: =M11*'Growth Rates'!V$2 -> 0 | O11: =N11*'Growth Rates'!W$2 -> 0 | P11: =O11*'Growth Rates'!X$2 -> 0 | Q11: =P11*'Growth Rates'!Y$2 -> 0
D12: =VLOOKUP(A12,'[1]PVT vol2'!$A:$H,8,FALSE) -> 
D13: =VLOOKUP(A13,'[1]PVT vol2'!$A:$H,8,FALSE) -> 
A14: CH | D14: =VLOOKUP(A14,'[1]PVT vol2'!$A:$H,8,FALSE) -> 
A15: CHH | B15: MedDensHousing- HV Extension | C15: 2 | D15: =VLOOKUP(A15,'[1]PVT vol2'!$A:$H,8,FALSE) -> 25 | E15: =IFERROR(VLOOKUP(A15,Vol!A:D,4,FALSE),0) -> 26 | F15: =E15*'Growth Rates'!N$3 -> 27.34758665 | G15: =F15*'Growth Rates'!O$3 -> 28.72886297 | H15: =G15*'Growth Rates'!P$3 -> 29.14156139 | I15: =H15*'Growth Rates'!Q$3 -> 29.63006155 | J15: =I15*'Growth Rates'!R$3 -> 29.94169096 | K15: =J15*'Growth Rates'!S$3 -> 31.2808552 | L15: =K15*'Growth Rates'!T$3 -> 32.02623907 | M15: =L15*'Growth Rates'!U$3 -> 32.04729511 | N15: =M15*'Growth Rates'!V$3 -> 32.68607218 | O15: =N15*'Growth Rates'!W$3 -> 33.41451628 | P15: =O15*'Growth Rates'!X$3 -> 33.97174187 | Q15: =P15*'Growth Rates'!Y$3 -> 34.47751324
A16: CHL | B16: MedDensHousing-LV Ext. Only | C16: 2 | D16: =VLOOKUP(A16,'[1]PVT vol2'!$A:$H,8,FALSE) -> 98 | E16: =IFERROR(VLOOKUP(A16,Vol!A:D,4,FALSE),0) -> 102 | F16: =E16*'Growth Rates'!N$3 -> 107.2866861 | G16: =F16*'Growth Rates'!O$3 -> 112.7055394 | H16: =G16*'Growth Rates'!P$3 -> 114.324587 | I16: =H16*'Growth Rates'!Q$3 -> 116.2410107 | J16: =I16*'Growth Rates'!R$3 -> 117.4635569 | K16: =J16*'Growth Rates'!S$3 -> 122.7172012 | L16: =K16*'Growth Rates'!T$3 -> 125.6413994 | M16: =L16*'Growth Rates'!U$3 -> 125.7240039 | N16: =M16*'Growth Rates'!V$3 -> 128.2299755 | O16: =N16*'Growth Rates'!W$3 -> 131.0877177 | P16: =O16*'Growth Rates'!X$3 -> 133.2737566 | Q16: =P16*'Growth Rates'!Y$3 -> 135.2579366
D17: =VLOOKUP(A17,'[1]PVT vol2'!$A:$H,8,FALSE) -> 
A18: CL | D18: =VLOOKUP(A18,'[1]PVT vol2'!$A:$H,8,FALSE) -> 
A19: CLA | B19: Pb.Light CapProj-MajorInterscn | C19: 2 | D19: =VLOOKUP(A19,'[1]PVT vol2'!$A:$H,8,FALSE) -> 
A20: CLC | B20: Project Shared Cost | C20: 0 | D20: =VLOOKUP(A20,'[1]PVT vol2'!$A:$H,8,FALSE) -> 
A21: CLI | B21: Pb.Light CapProj-MinorInterscn | C21: 1 | D21: =VLOOKUP(A21,'[1]PVT vol2'!$A:$H,8,FALSE) -> 
A22: CLJ | B22: Pb.Light CapProj-Major Scheme | C22: 0 | D22: =VLOOKUP(A22,'[1]PVT vol2'!$A:$H,8,FALSE) -> 18
A23: CLM | B23: Single Light-Minor Road | C23: 7 | D23: =VLOOKUP(A23,'[1]PVT vol2'!$A:$H,8,FALSE) -> 
A24: CLN | B24: Pb.Light CapProj-Minor Scheme | C24: 1 | D24: =VLOOKUP(A24,'[1]PVT vol2'!$A:$H,8,FALSE) -> 20
A25: CLP | B25: Project | C25: 1 | D25: =VLOOKUP(A25,'[1]PVT vol2'!$A:$H,8,FALSE) -> 
A26: CLS | B26: Pb.Light CapProj-Single Lights | D26: =VLOOKUP(A26,'[1]PVT vol2'!$A:$H,8,FALSE) -> 
D27: =VLOOKUP(A27,'[1]PVT vol2'!$A:$H,8,FALSE) -> 
D28: =VLOOKUP(A28,'[1]PVT vol2'!$A:$H,8,FALSE) -> 
D29: =VLOOKUP(A29,'[1]PVT vol2'!$A:$H,8,FALSE) -> 
A30: CR | D30: =VLOOKUP(A30,'[1]PVT vol2'!$A:$H,8,FALSE) -> 
A31: CRA | B31: Special Capital / R'cvble Wrks | C31: 52 | D31: =VLOOKUP(A31,'[1]PVT vol2'!$A:$H,8,FALSE) -> 248 | E31: =IFERROR(VLOOKUP(A31,Vol!A:D,4,FALSE),0) -> 157 | F31: =E31*'Growth Rates'!N$9 -> 152.6087082 | G31: =F31*'Growth Rates'!O$9 -> 152.6087082 | H31: =G31*'Growth Rates'!P$9 -> 152.2465398 | I31: =H31*'Growth Rates'!Q$9 -> 153.5141292 | J31: =I31*'Growth Rates'!R$9 -> 153.1519608 | K31: =J31*'Growth Rates'!S$9 -> 153.9668397 | L31: =K31*'Growth Rates'!T$9 -> 155.4155133 | M31: =L31*'Growth Rates'!U$9 -> 158.9466551 | N31: =M31*'Growth Rates'!V$9 -> 160.3410618 | O31: =N31*'Growth Rates'!W$9 -> 162.1939297 | P31: =O31*'Growth Rates'!X$9 -> 164.3210316 | Q31: =P31*'Growth Rates'!Y$9 -> 166.628255
A32: CRP | B32: Cap/RecWorks-Inline Pole/Stays | C32: 3 | D32: =VLOOKUP(A32,'[1]PVT vol2'!$A:$H,8,FALSE) -> 43 | E32: =IFERROR(VLOOKUP(A32,Vol!A:D,4,FALSE),0) -> 71 | F32: =E32*'Growth Rates'!N$9 -> 69.01412918 | G32: =F32*'Growth Rates'!O$9 -> 69.01412918 | H32: =G32*'Growth Rates'!P$9 -> 68.85034602 | I32: =H32*'Growth Rates'!Q$9 -> 69.42358708 | J32: =I32*'Growth Rates'!R$9 -> 69.25980392 | K32: =J32*'Growth Rates'!S$9 -> 69.62831603 | L32: =K32*'Growth Rates'!T$9 -> 70.28344867 | M32: =L32*'Growth Rates'!U$9 -> 71.88033449 | N32: =M32*'Growth Rates'!V$9 -> 72.51092602 | O32: =N32*'Growth Rates'!W$9 -> 73.34884718 | P32: =O32*'Growth Rates'!X$9 -> 74.310785 | Q32: =P32*'Growth Rates'!Y$9 -> 75.35417902
A33: CRR | B33: Cap/RecWorks-Intersec Re-Align | C33: 0 | D33: =VLOOKUP(A33,'[1]PVT vol2'!$A:$H,8,FALSE) ->  | E33: =IFERROR(VLOOKUP(A33,Vol!A:D,4,FALSE),0) -> 0 | F33: =E33*'Growth Rates'!N$9 -> 0 | G33: =F33*'Growth Rates'!O$9 -> 0 | H33: =G33*'Growth Rates'!P$9 -> 0 | I33: =H33*'Growth Rates'!Q$9 -> 0 | J33: =I33*'Growth Rates'!R$9 -> 0 | K33: =J33*'Growth Rates'!S$9 -> 0 | L33: =K33*'Growth Rates'!T$9 -> 0 | M33: =L33*'Growth Rates'!U$9 -> 0 | N33: =M33*'Growth Rates'!V$9 -> 0 | O33: =N33*'Growth Rates'!W$9 -> 0 | P33: =O33*'Growth Rates'!X$9 -> 0 | Q33: =P33*'Growth Rates'!Y$9 -> 0
A34: CRS | B34: Cap/RecWorks-Sub Modification | C34: 0 | D34: =VLOOKUP(A34,'[1]PVT vol2'!$A:$H,8,FALSE) -> 3 | E34: =IFERROR(VLOOKUP(A34,Vol!A:D,4,FALSE),0) -> 4 | F34: =E34*'Growth Rates'!N$9 -> 3.888119954 | G34: =F34*'Growth Rates'!O$9 -> 3.888119954 | H34: =G34*'Growth Rates'!P$9 -> 3.878892734 | I34: =H34*'Growth Rates'!Q$9 -> 3.911188005 | J34: =I34*'Growth Rates'!R$9 -> 3.901960784 | K34: =J34*'Growth Rates'!S$9 -> 3.92272203 | L34: =K34*'Growth Rates'!T$9 -> 3.959630911 | M34: =L34*'Growth Rates'!U$9 -> 4.049596309 | N34: =M34*'Growth Rates'!V$9 -> 4.085122592 | O34: =N34*'Growth Rates'!W$9 -> 4.132329419 | P34: =O34*'Growth Rates'!X$9 -> 4.186523099 | Q34: =P34*'Growth Rates'!Y$9 -> 4.24530586
A35: CRU | B35: Cap/RecWorks-Undergd of Assets | C35: 2 | D35: =VLOOKUP(A35,'[1]PVT vol2'!$A:$H,8,FALSE) -> 14 | E35: =IFERROR(VLOOKUP(A35,Vol!A:D,4,FALSE),0) -> 11 | F35: =E35*'Growth Rates'!N$9 -> 10.69232987 | G35: =F35*'Growth Rates'!O$9 -> 10.69232987 | H35: =G35*'Growth Rates'!P$9 -> 10.66695502 | I35: =H35*'Growth Rates'!Q$9 -> 10.75576701 | J35: =I35*'Growth Rates'!R$9 -> 10.73039216 | K35: =J35*'Growth Rates'!S$9 -> 10.78748558 | L35: =K35*'Growth Rates'!T$9 -> 10.88898501 | M35: =L35*'Growth Rates'!U$9 -> 11.13638985 | N35: =M35*'Growth Rates'!V$9 -> 11.23408713 | O35: =N35*'Growth Rates'!W$9 -> 11.3639059 | P35: =O35*'Growth Rates'!X$9 -> 11.51293852 | Q35: =P35*'Growth Rates'!Y$9 -> 11.67459112
A36: CRV | B36: Cap/RecWorks-MajVicRoads Reloc - Large | D36: =VLOOKUP(A36,'[1]PVT vol2'!$A:$H,8,FALSE) -> 1 | E36: =IFERROR(VLOOKUP(A36,Vol!A:D,4,FALSE),0) -> 0 | F36: =E36*'Growth Rates'!N$9 -> 0 | G36: =F36*'Growth Rates'!O$9 -> 0 | H36: =G36*'Growth Rates'!P$9 -> 0 | I36: =H36*'Growth Rates'!Q$9 -> 0 | J36: =I36*'Growth Rates'!R$9 -> 0 | K36: =J36*'Growth Rates'!S$9 -> 0 | L36: =K36*'Growth Rates'!T$9 -> 0 | M36: =L36*'Growth Rates'!U$9 -> 0 | N36: =M36*'Growth Rates'!V$9 -> 0 | O36: =N36*'Growth Rates'!W$9 -> 0 | P36: =O36*'Growth Rates'!X$9 -> 0 | Q36: =P36*'Growth Rates'!Y$9 -> 0
D37: =VLOOKUP(A37,'[1]PVT vol2'!$A:$H,8,FALSE) -> 
A38: CS | D38: =VLOOKUP(A38,'[1]PVT vol2'!$A:$H,8,FALSE) -> 
A39: CSO | B39: LD/Smal.Bus Dev<10kVA-O/H Ext. | C39: 0 | D39: =VLOOKUP(A39,'[1]PVT vol2'!$A:$H,8,FALSE) -> 23 | E39: =IFERROR(VLOOKUP(A39,Vol!A:D,4,FALSE),0) -> 23 | F39: =E39*'Growth Rates'!N$8 -> 23.36779708 | G39: =F39*'Growth Rates'!O$8 -> 23.70705817 | H39: =G39*'Growth Rates'!P$8 -> 23.34243176 | I39: =H39*'Growth Rates'!Q$8 -> 23.29487179 | J39: =I39*'Growth Rates'!R$8 -> 23.16487455 | K39: =J39*'Growth Rates'!S$8 -> 23.69120485 | L39: =K39*'Growth Rates'!T$8 -> 23.88778605 | M39: =L39*'Growth Rates'!U$8 -> 23.7133995 | N39: =M39*'Growth Rates'!V$8 -> 23.8209276 | O39: =N39*'Growth Rates'!W$8 -> 23.98918044 | P39: =O39*'Growth Rates'!X$8 -> 24.06471714 | Q39: =P39*'Growth Rates'!Y$8 -> 24.10951521
A40: CSU | B40: LD/Smal.Bus Dev<10kVA-U/G Ext. | C40: 0 | D40: =VLOOKUP(A40,'[1]PVT vol2'!$A:$H,8,FALSE) -> 11 | E40: =IFERROR(VLOOKUP(A40,Vol!A:D,4,FALSE),0) -> 12 | F40: =E40*'Growth Rates'!N$8 -> 12.19189413 | G40: =F40*'Growth Rates'!O$8 -> 12.36889992 | H40: =G40*'Growth Rates'!P$8 -> 12.17866005 | I40: =H40*'Growth Rates'!Q$8 -> 12.15384615 | J40: =I40*'Growth Rates'!R$8 -> 12.08602151 | K40: =J40*'Growth Rates'!S$8 -> 12.36062862 | L40: =K40*'Growth Rates'!T$8 -> 12.46319272 | M40: =L40*'Growth Rates'!U$8 -> 12.37220844 | N40: =M40*'Growth Rates'!V$8 -> 12.42831005 | O40: =N40*'Growth Rates'!W$8 -> 12.51609414 | P40: =O40*'Growth Rates'!X$8 -> 12.55550459 | Q40: =P40*'Growth Rates'!Y$8 -> 12.5788775
A43: CD
A44: CDA | B44: DUAL & MULTIPLE OCCPY SUPPLIES | D44: 2807 | E44: =IFERROR(VLOOKUP(A44,Vol!A:D,4,FALSE),0) -> 4836 | F44: =E44*'Growth Rates'!N$4 -> 5008.543112 | G44: =F44*'Growth Rates'!O$4 -> 5256.973241 | H44: =G44*'Growth Rates'!P$4 -> 5285.730426 | I44: =H44*'Growth Rates'!Q$4 -> 5418.333003 | J44: =I44*'Growth Rates'!R$4 -> 5449.48662 | K44: =J44*'Growth Rates'!S$4 -> 5687.53221 | L44: =K44*'Growth Rates'!T$4 -> 5805.756194 | M44: =L44*'Growth Rates'!U$4 -> 5761.821606 | N44: =M44*'Growth Rates'!V$4 -> 5852.067535 | O44: =N44*'Growth Rates'!W$4 -> 5958.229959 | P44: =O44*'Growth Rates'!X$4 -> 6028.2732 | Q44: =P44*'Growth Rates'!Y$4 -> 6085.529812
A45: CDP | B45: PIT AT BASE OF REPL P/L POLE | E45: =IFERROR(VLOOKUP(A45,Vol!A:D,4,FALSE),0) -> 0 | F45: =E45*'Growth Rates'!N$4 -> 0 | G45: =F45*'Growth Rates'!O$4 -> 0 | H45: =G45*'Growth Rates'!P$4 -> 0 | I45: =H45*'Growth Rates'!Q$4 -> 0 | J45: =I45*'Growth Rates'!R$4 -> 0 | K45: =J45*'Growth Rates'!S$4 -> 0 | L45: =K45*'Growth Rates'!T$4 -> 0 | M45: =L45*'Growth Rates'!U$4 -> 0 | N45: =M45*'Growth Rates'!V$4 -> 0 | O45: =N45*'Growth Rates'!W$4 -> 0 | P45: =O45*'Growth Rates'!X$4 -> 0 | Q45: =P45*'Growth Rates'!Y$4 -> 0
A47: CM
A48: CMU | B48: NEW U/G SERVICE CONNECTION | E48: =IFERROR(VLOOKUP(A48,Vol!A:D,4,FALSE),0) -> 0 | F48: =E48*'Growth Rates'!N$5 -> 0 | G48: =F48*'Growth Rates'!O$5 -> 0 | H48: =G48*'Growth Rates'!P$5 -> 0 | I48: =H48*'Growth Rates'!Q$5 -> 0 | J48: =I48*'Growth Rates'!R$5 -> 0 | K48: =J48*'Growth Rates'!S$5 -> 0 | L48: =K48*'Growth Rates'!T$5 -> 0 | M48: =L48*'Growth Rates'!U$5 -> 0 | N48: =M48*'Growth Rates'!V$5 -> 0 | O48: =N48*'Growth Rates'!W$5 -> 0 | P48: =O48*'Growth Rates'!X$5 -> 0 | Q48: =P48*'Growth Rates'!Y$5 -> 0
A49: CMZ | B49: NEW OVERHEAD SERVICE | E49: =IFERROR(VLOOKUP(A49,Vol!A:D,4,FALSE),0) -> 0 | F49: =E49*'Growth Rates'!N$5 -> 0 | G49: =F49*'Growth Rates'!O$5 -> 0 | H49: =G49*'Growth Rates'!P$5 -> 0 | I49: =H49*'Growth Rates'!Q$5 -> 0 | J49: =I49*'Growth Rates'!R$5 -> 0 | K49: =J49*'Growth Rates'!S$5 -> 0 | L49: =K49*'Growth Rates'!T$5 -> 0 | M49: =L49*'Growth Rates'!U$5 -> 0 | N49: =M49*'Growth Rates'!V$5 -> 0 | O49: =N49*'Growth Rates'!W$5 -> 0 | P49: =O49*'Growth Rates'!X$5 -> 0 | Q49: =P49*'Growth Rates'!Y$5 -> 0
A51: CN
A52: CNG | B52: NEW SUSTAINABLE LIGHT - MINOR RD | E52: =IFERROR(VLOOKUP(A52,Vol!A:D,4,FALSE),0) -> 0 | F52: =E52*'Growth Rates'!N$7 -> 0 | G52: =F52*'Growth Rates'!O$7 -> 0 | H52: =G52*'Growth Rates'!P$7 -> 0 | I52: =H52*'Growth Rates'!Q$7 -> 0 | J52: =I52*'Growth Rates'!R$7 -> 0 | K52: =J52*'Growth Rates'!S$7 -> 0 | L52: =K52*'Growth Rates'!T$7 -> 0 | M52: =L52*'Growth Rates'!U$7 -> 0 | N52: =M52*'Growth Rates'!V$7 -> 0 | O52: =N52*'Growth Rates'!W$7 -> 0 | P52: =O52*'Growth Rates'!X$7 -> 0 | Q52: =P52*'Growth Rates'!Y$7 -> 0
A53: CNJ | B53: NEW SINGLE LIGHT - MAJOR ROADS | E53: =IFERROR(VLOOKUP(A53,Vol!A:D,4,FALSE),0) -> 0 | F53: =E53*'Growth Rates'!N$7 -> 0 | G53: =F53*'Growth Rates'!O$7 -> 0 | H53: =G53*'Growth Rates'!P$7 -> 0 | I53: =H53*'Growth Rates'!Q$7 -> 0 | J53: =I53*'Growth Rates'!R$7 -> 0 | K53: =J53*'Growth Rates'!S$7 -> 0 | L53: =K53*'Growth Rates'!T$7 -> 0 | M53: =L53*'Growth Rates'!U$7 -> 0 | N53: =M53*'Growth Rates'!V$7 -> 0 | O53: =N53*'Growth Rates'!W$7 -> 0 | P53: =O53*'Growth Rates'!X$7 -> 0 | Q53: =P53*'Growth Rates'!Y$7 -> 0
A54: CNM | B54: NEW SINGLE LIGHT - MINOR ROAD | E54: =IFERROR(VLOOKUP(A54,Vol!A:D,4,FALSE),0) -> 0 | F54: =E54*'Growth Rates'!N$7 -> 0 | G54: =F54*'Growth Rates'!O$7 -> 0 | H54: =G54*'Growth Rates'!P$7 -> 0 | I54: =H54*'Growth Rates'!Q$7 -> 0 | J54: =I54*'Growth Rates'!R$7 -> 0 | K54: =J54*'Growth Rates'!S$7 -> 0 | L54: =K54*'Growth Rates'!T$7 -> 0 | M54: =L54*'Growth Rates'!U$7 -> 0 | N54: =M54*'Growth Rates'!V$7 -> 0 | O54: =N54*'Growth Rates'!W$7 -> 0 | P54: =O54*'Growth Rates'!X$7 -> 0 | Q54: =P54*'Growth Rates'!Y$7 -> 0
A55: CNW | B55: NEW WATCHMAN LIGHTS | E55: =IFERROR(VLOOKUP(A55,Vol!A:D,4,FALSE),0) -> 0 | F55: =E55*'Growth Rates'!N$7 -> 0 | G55: =F55*'Growth Rates'!O$7 -> 0 | H55: =G55*'Growth Rates'!P$7 -> 0 | I55: =H55*'Growth Rates'!Q$7 -> 0 | J55: =I55*'Growth Rates'!R$7 -> 0 | K55: =J55*'Growth Rates'!S$7 -> 0 | L55: =K55*'Growth Rates'!T$7 -> 0 | M55: =L55*'Growth Rates'!U$7 -> 0 | N55: =M55*'Growth Rates'!V$7 -> 0 | O55: =N55*'Growth Rates'!W$7 -> 0 | P55: =O55*'Growth Rates'!X$7 -> 0 | Q55: =P55*'Growth Rates'!Y$7 -> 0

Sheet Unit rate
P1: 2015 | Q1: 2015
A2: CB | P2: EDPR (draft) | Q2: re-submission
A3: CBE | B3: Bus Sup Proj>10kVA-LV Extens'n | C3: =IFERROR(VLOOKUP(A3,O:Q,3,FALSE),"") -> 25273.95951 | O3: CBE | P3: 23312.78593 | Q3: 25273.95951
A4: CBG | B4: Bus Sup Proj>10kVA-Ground Subs | C4: =IFERROR(VLOOKUP(A4,O:Q,3,FALSE),"") -> 2306.7352 | O4: CBG | P4: 6201.88976 | Q4: 2306.7352
A5: CBH | B5: Bus Sup Proj>10kVA-HVCustomers | C5: 56400.8698 | O5: CBH | P5: 43923.65076 | Q5: 56400.8698
A6: CBI | B6: Bus Sup Proj>10kVA-Indoor Subs | C6: 143926.7523 | O6: CBI | P6: 128980.4971 | Q6: 143926.7523
A7: CBK | B7: Bus Sup Proj>10kVA-Kiosk Subst | C7: 103024.0728 | O7: CBK | P7: 79003.57209 | Q7: 103024.0728
A8: CBL | B8: Bus Sup Proj>10kVA-LineofMains | C8: 19676.61716 | O8: CBL | P8: 27196.88057 | Q8: 19676.61716
A9: CBP | B9: Bus Sup Proj>10kVA-Pole Subst. | C9: 60539.36631 | O9: CBP | P9: 54427.28519 | Q9: 60539.36631
A10: CBS | B10: Bus Sup Proj>10kVA-Sub Modific | C10: 0 | O10: CBS | P10: 0 | Q10: 0
O11: CHH | P11: 114944.5719 | Q11: 143370.5885
A12: CH | O12: CHL | P12: 26818.88357 | Q12: 18708.36147
A13: CHH | B13: MedDensHousing- HV Extension | C13: 143370.5885 | O13: CRA | P13: 20397.27022 | Q13: 44340.12024
A14: CHL | B14: MedDensHousing-LV Ext. Only | C14: 18708.36147 | O14: CRP | P14: 23262.99822 | Q14: 26382.6172
O15: CRR | P15: 0 | Q15: 0
A16: CL | O16: CRS | P16: 7999.27689 | Q16: 55125.35013
A17: CLA | B17: Pb.Light CapProj-MajorInterscn | C17: 0 | O17: CRU | P17: 73000.35589 | Q17: 163843.471
A18: CLI | B18: Pb.Light CapProj-MinorInterscn | C18: 0 | O18: CRV | P18: 53550.15237 | Q18: 0
A19: CLJ | B19: Pb.Light CapProj-Major Scheme | C19: 0 | O19: CSO | P19: 25951.3338 | Q19: 46816.34027
A20: CLM | B20: Single Light-Minor Road | C20: 0 | O20: CSU | P20: 38675.34818 | Q20: 9512.041
A21: CLN | B21: Pb.Light CapProj-Minor Scheme | C21: 0 | O21: CDA | P21: 3160 | Q21: 3237
A22: CLP | B22: Project | C22: 0 | O22: CDP | P22: 0 | Q22: 0
A23: CLS | B23: Pb.Light CapProj-Single Lights | C23: 0 | O23: CLA | P23: 0 | Q23: 0
O24: CLI | P24: 0 | Q24: 0
A25: CR | O25: CLJ | P25: 0 | Q25: 0
A26: CRA | B26: Special Capital / R'cvble Wrks | C26: 44340.12024 | O26: CLM | P26: 0 | Q26: 0
A27: CRP | B27: Cap/RecWorks-Inline Pole/Stays | C27: 26382.6172 | O27: CLN | P27: 0 | Q27: 0
A28: CRR | B28: Cap/RecWorks-Intersec Re-Align | C28: 0 | O28: CLP | P28: 0 | Q28: 0
A29: CRS | B29: Cap/RecWorks-Sub Modification | C29: 55125.35013 | O29: CLS | P29: 0 | Q29: 0
A30: CRU | B30: Cap/RecWorks-Undergd of Assets | C30: 163843.471
A31: CRV | B31: Cap/RecWorks-MajVicRoads Reloc | C31: 0
A33: CS
A34: CSO | B34: LD/Smal.Bus Dev<10kVA-O/H Ext. | C34: 46816.34027
A35: CSU | B35: LD/Smal.Bus Dev<10kVA-U/G Ext. | C35: 9512.041
A37: CD
A38: CDA | B38: DUAL & MULTIPLE OCCPY SUPPLIES | C38: 3237
A39: CDP | B39: PIT AT BASE OF REPL P/L POLE | C39: 0
A41: CM
A42: CMU | B42: NEW U/G SERVICE CONNECTION
A43: CMZ | B43: NEW OVERHEAD SERVICE
A45: CN
A46: CNG | B46: NEW SUSTAINABLE LIGHT - MINOR RD
A47: CNJ | B47: NEW SINGLE LIGHT - MAJOR ROADS
A48: CNM | B48: NEW SINGLE LIGHT - MINOR ROAD
A49: CNW | B49: NEW WATCHMAN LIGHTS

Sheet Forecast - Unit Rate
A1: Average cost per project initiated in that year (Entire Project Cost) | I1: Escalation | J1: 0
C2: 2013 | D2: 2014 | E2: 2015 | F2: 2016 | G2: 2017 | H2: 2018 | I2: 2019 | J2: 2020 | K2: 2021 | L2: =K2+1 -> 2022 | M2: =L2+1 -> 2023 | N2: =M2+1 -> 2024 | O2: =N2+1 -> 2025 | P2: 2026 | Q2: =P2+1 -> 2027 | R2: =Q2+1 -> 2028
A3: CB
A4: CBE | B4: Bus Sup Proj>10kVA-LV Extens'n | C4: 0 | D4: 22788.64705 | E4: =VLOOKUP(A4,'Unit rate'!A:C,3,FALSE) -> 25273.95951 | F4: =E4*(1+$J$1) -> 25273.95951 | G4: =F4*(1+$J$1) -> 25273.95951 | H4: 25273.95951 | I4: 25273.95951 | J4: 25273.95951 | K4: 25273.95951 | L4: 25273.95951 | M4: 25273.95951 | N4: 25273.95951 | O4: 25273.95951 | P4: 25273.95951 | Q4: 25273.95951 | R4: =Q4*(1+$J$1) -> 25273.95951
A5: CBG | B5: Bus Sup Proj>10kVA-Ground Subs | C5: 0 | D5: 6062.453333 | E5: =VLOOKUP(A5,'Unit rate'!A:C,3,FALSE) -> 2306.7352 | F5: =E5*(1+$J$1) -> 2306.7352 | G5: =F5*(1+$J$1) -> 2306.7352 | H5: 2306.7352 | I5: 2306.7352 | J5: 2306.7352 | K5: 2306.7352 | L5: 2306.7352 | M5: 2306.7352 | N5: 2306.7352 | O5: 2306.7352 | P5: 2306.7352 | Q5: 2306.7352 | R5: 2306.7352
A6: CBH | B6: Bus Sup Proj>10kVA-HVCustomers | C6: 0 | D6: 42936.12 | E6: =VLOOKUP(A6,'Unit rate'!A:C,3,FALSE) -> 56400.8698 | F6: 56400.8698 | G6: =F6*(1+$J$1) -> 56400.8698 | H6: 56400.8698 | I6: 56400.8698 | J6: 56400.8698 | K6: 56400.8698 | L6: 56400.8698 | M6: 56400.8698 | N6: 56400.8698 | O6: 56400.8698 | P6: 56400.8698 | Q6: 56400.8698 | R6: 56400.8698
A7: CBI | B7: Bus Sup Proj>10kVA-Indoor Subs | C7: 57567.04986 | D7: 126080.6423 | E7: =VLOOKUP(A7,'Unit rate'!A:C,3,FALSE) -> 143926.7523 | F7: 143926.7523 | G7: =F7*(1+$J$1) -> 143926.7523 | H7: 143926.7523 | I7: 143926.7523 | J7: 143926.7523 | K7: 143926.7523 | L7: 143926.7523 | M7: 143926.7523 | N7: 143926.7523 | O7: 143926.7523 | P7: 143926.7523 | Q7: 143926.7523 | R7: 143926.7523
A8: CBK | B8: Bus Sup Proj>10kVA-Kiosk Subst | C8: 43927.77283 | D8: 77227.3432 | E8: =VLOOKUP(A8,'Unit rate'!A:C,3,FALSE) -> 103024.0728 | F8: 103024.0728 | G8: =F8*(1+$J$1) -> 103024.0728 | H8: 103024.0728 | I8: 103024.0728 | J8: 103024.0728 | K8: 103024.0728 | L8: 103024.0728 | M8: 103024.0728 | N8: 103024.0728 | O8: 103024.0728 | P8: 103024.0728 | Q8: 103024.0728 | R8: 103024.0728
A9: CBL | B9: Bus Sup Proj>10kVA-LineofMains | C9: 35255.34288 | D9: 26585.416 | E9: =VLOOKUP(A9,'Unit rate'!A:C,3,FALSE) -> 19676.61716 | F9: 19676.61716 | G9: =F9*(1+$J$1) -> 19676.61716 | H9: 19676.61716 | I9: 19676.61716 | J9: 19676.61716 | K9: 19676.61716 | L9: 19676.61716 | M9: 19676.61716 | N9: 19676.61716 | O9: 19676.61716 | P9: 19676.61716 | Q9: 19676.61716 | R9: 19676.61716
A10: CBP | B10: Bus Sup Proj>10kVA-Pole Subst. | C10: 43795.78671 | D10: 53203.60234 | E10: =VLOOKUP(A10,'Unit rate'!A:C,3,FALSE) -> 60539.36631 | F10: 60539.36631 | G10: =F10*(1+$J$1) -> 60539.36631 | H10: 60539.36631 | I10: 60539.36631 | J10: 60539.36631 | K10: 60539.36631 | L10: 60539.36631 | M10: 60539.36631 | N10: 60539.36631 | O10: 60539.36631 | P10: 60539.36631 | Q10: 60539.36631 | R10: 60539.36631
A11: CBS | B11: Bus Sup Proj>10kVA-Sub Modific | C11: 0 | E11: =VLOOKUP(A11,'Unit rate'!A:C,3,FALSE) -> 0 | F11: 0 | G11: =F11*(1+$J$1) -> 0 | H11: 0 | I11: 0 | J11: 0 | K11: 0 | L11: 0 | M11: 0 | N11: 0 | O11: 0 | P11: 0 | Q11: 0 | R11: 0
R12: 0
R13: 0
A14: CH | E14: =VLOOKUP(A14,'Unit rate'!A:C,3,FALSE) ->  | R14: 0
A15: CHH | B15: MedDensHousing- HV Extension | C15: 65512.91825 | D15: 112360.2853 | E15: =VLOOKUP(A15,'Unit rate'!A:C,3,FALSE) -> 143370.5885 | F15: =E15*(1+$J$1) -> 143370.5885 | G15: 143370.5885 | H15: 143370.5885 | I15: 143370.5885 | J15: 143370.5885 | K15: 143370.5885 | L15: =K15*(1+$J$1) -> 143370.5885 | M15: 143370.5885 | N15: 143370.5885 | O15: 143370.5885 | P15: 143370.5885 | Q15: 143370.5885 | R15: 143370.5885
A16: CHL | B16: MedDensHousing-LV Ext. Only | C16: 23623.143 | D16: 26215.91747 | E16: =VLOOKUP(A16,'Unit rate'!A:C,3,FALSE) -> 18708.36147 | F16: 18708.36147 | G16: 18708.36147 | H16: 18708.36147 | I16: 18708.36147 | J16: 18708.36147 | K16: 18708.36147 | L16: 18708.36147 | M16: 18708.36147 | N16: 18708.36147 | O16: 18708.36147 | P16: =O16*(1+$J$1) -> 18708.36147 | Q16: =P16*(1+$J$1) -> 18708.36147 | R16: 18708.36147
R17: 0
A18: CL | E18: =VLOOKUP(A18,'Unit rate'!A:C,3,FALSE) ->  | R18: 0
A19: CLA | B19: Pb.Light CapProj-MajorInterscn | C19: 0 | E19: =VLOOKUP(A19,'Unit rate'!A:C,3,FALSE) -> 0 | F19: =E19*(1+$J$1) -> 0 | G19: 0 | H19: 0 | I19: 0 | J19: 0 | K19: 0 | L19: 0 | M19: 0 | N19: 0 | O19: 0 | P19: 0 | Q19: 0 | R19: 0
A20: CLI | B20: Pb.Light CapProj-MinorInterscn | C20: 0 | E20: =VLOOKUP(A20,'Unit rate'!A:C,3,FALSE) -> 0 | F20: =E20*(1+$J$1) -> 0 | G20: 0 | H20: 0 | I20: 0 | J20: 0 | K20: 0 | L20: 0 | M20: 0 | N20: 0 | O20: 0 | P20: =O20*(1+$J$1) -> 0 | Q20: =P20*(1+$J$1) -> 0 | R20: 0
A21: CLJ | B21: Pb.Light CapProj-Major Scheme | C21: 0 | E21: =VLOOKUP(A21,'Unit rate'!A:C,3,FALSE) -> 0 | F21: =E21*(1+$J$1) -> 0 | G21: 0 | H21: 0 | I21: 0 | J21: 0 | K21: 0 | L21: 0 | M21: 0 | N21: 0 | O21: 0 | P21: 0 | Q21: 0 | R21: =Q21*(1+$J$1) -> 0
A22: CLM | B22: Single Light-Minor Road | C22: 0 | E22: =VLOOKUP(A22,'Unit rate'!A:C,3,FALSE) -> 0 | F22: =E22*(1+$J$1) -> 0 | G22: 0 | H22: 0 | I22: 0 | J22: 0 | K22: 0 | L22: 0 | M22: 0 | N22: 0 | O22: 0 | P22: 0 | Q22: 0 | R22: 0
A23: CLN | B23: Pb.Light CapProj-Minor Scheme | C23: 32672.63913 | E23: =VLOOKUP(A23,'Unit rate'!A:C,3,FALSE) -> 0 | F23: =E23*(1+$J$1) -> 0 | G23: 0 | H23: 0 | I23: 0 | J23: 0 | K23: 0 | L23: 0 | M23: 0 | N23: 0 | O23: 0 | P23: 0 | Q23: 0 | R23: 0
A24: CLP | B24: Project | C24: 0 | E24: =VLOOKUP(A24,'Unit rate'!A:C,3,FALSE) -> 0 | F24: =E24*(1+$J$1) -> 0 | G24: 0 | H24: 0 | I24: 0 | J24: 0 | K24: 0 | L24: 0 | M24: 0 | N24: 0 | O24: 0 | P24: 0 | Q24: 0 | R24: 0
A25: CLS | B25: Pb.Light CapProj-Single Lights | C25: 0 | E25: =VLOOKUP(A25,'Unit rate'!A:C,3,FALSE) -> 0 | F25: =E25*(1+$J$1) -> 0 | G25: 0 | H25: 0 | I25: 0 | J25: 0 | K25: 0 | L25: 0 | M25: 0 | N25: 0 | O25: 0 | P25: 0 | Q25: 0 | R25: 0
R26: 0
R27: 0
R28: 0
A29: CR | E29: =VLOOKUP(A29,'Unit rate'!A:C,3,FALSE) ->  | R29: 0
A30: CRA | B30: Special Capital / R'cvble Wrks | C30: 44512.35531 | D30: 19938.68057 | E30: =VLOOKUP(A30,'Unit rate'!A:C,3,FALSE) -> 44340.12024 | F30: =E30*(1+$J$1) -> 44340.12024 | G30: 44340.12024 | H30: 44340.12024 | I30: 44340.12024 | J30: 44340.12024 | K30: 44340.12024 | L30: 44340.12024 | M30: 44340.12024 | N30: 44340.12024 | O30: 44340.12024 | P30: 44340.12024 | Q30: 44340.12024 | R30: 44340.12024
A31: CRP | B31: Cap/RecWorks-Inline Pole/Stays | C31: 45386.59325 | D31: 22739.97871 | E31: =VLOOKUP(A31,'Unit rate'!A:C,3,FALSE) -> 26382.6172 | F31: =E31*(1+$J$1) -> 26382.6172 | G31: 26382.6172 | H31: 26382.6172 | I31: 26382.6172 | J31: 26382.6172 | K31: 26382.6172 | L31: 26382.6172 | M31: 26382.6172 | N31: 26382.6172 | O31: 26382.6172 | P31: =O31*(1+$J$1) -> 26382.6172 | Q31: =P31*(1+$J$1) -> 26382.6172 | R31: 26382.6172
A32: CRR | B32: Cap/RecWorks-Intersec Re-Align | C32: 0 | E32: =VLOOKUP(A32,'Unit rate'!A:C,3,FALSE) -> 0 | F32: =E32*(1+$J$1) -> 0 | G32: 0 | H32: 0 | I32: 0 | J32: 0 | K32: 0 | L32: 0 | M32: 0 | N32: 0 | O32: 0 | P32: 0 | Q32: 0 | R32: 0
A33: CRS | B33: Cap/RecWorks-Sub Modification | C33: 0 | D33: 7819.43 | E33: =VLOOKUP(A33,'Unit rate'!A:C,3,FALSE) -> 55125.35013 | F33: =E33*(1+$J$1) -> 55125.35013 | G33: 55125.35013 | H33: 55125.35013 | I33: 55125.35013 | J33: 55125.35013 | K33: 55125.35013 | L33: 55125.35013 | M33: 55125.35013 | N33: 55125.35013 | O33: 55125.35013 | P33: 55125.35013 | Q33: 55125.35013 | R33: 55125.35013
A34: CRU | B34: Cap/RecWorks-Undergd of Assets | C34: 119882.9359 | D34: 71359.09667 | E34: =VLOOKUP(A34,'Unit rate'!A:C,3,FALSE) -> 163843.471 | F34: =E34*(1+$J$1) -> 163843.471 | G34: 163843.471 | H34: 163843.471 | I34: 163843.471 | J34: 163843.471 | K34: 163843.471 | L34: 163843.471 | M34: 163843.471 | N34: 163843.471 | O34: 163843.471 | P34: 163843.471 | Q34: 163843.471 | R34: 163843.471
A35: CRV | B35: Cap/RecWorks-MajVicRoads Reloc | C35: 0 | D35: 52346.19 | E35: =VLOOKUP(A35,'Unit rate'!A:C,3,FALSE) -> 0 | F35: =E35*(1+$J$1) -> 0 | G35: 0 | H35: 0 | I35: 0 | J35: 0 | K35: 0 | L35: 0 | M35: 0 | N35: 0 | O35: 0 | P35: 0 | Q35: 0 | R35: 0
R36: 0
A37: CS | E37: =VLOOKUP(A37,'Unit rate'!A:C,3,FALSE) ->  | R37: 0
A38: CSO | B38: LD/Smal.Bus Dev<10kVA-O/H Ext. | C38: 0 | D38: 25367.87273 | E38: =VLOOKUP(A38,'Unit rate'!A:C,3,FALSE) -> 46816.34027 | F38: =E38*(1+$J$1) -> 46816.34027 | G38: 46816.34027 | H38: 46816.34027 | I38: 46816.34027 | J38: 46816.34027 | K38: 46816.34027 | L38: 46816.34027 | M38: 46816.34027 | N38: 46816.34027 | O38: 46816.34027 | P38: 46816.34027 | Q38: 46816.34027 | R38: 46816.34027
A39: CSU | B39: LD/Smal.Bus Dev<10kVA-U/G Ext. | D39: 37805.81444 | E39: =VLOOKUP(A39,'Unit rate'!A:C,3,FALSE) -> 9512.041 | F39: 9512.041 | G39: 9512.041 | H39: 9512.041 | I39: 9512.041 | J39: 9512.041 | K39: 9512.041 | L39: 9512.041 | M39: 9512.041 | N39: 9512.041 | O39: 9512.041 | P39: =O39*(1+$J$1) -> 9512.041 | Q39: =P39*(1+$J$1) -> 9512.041 | R39: 9512.041
R40: 0
A41: CD | E41: =VLOOKUP(A41,'Unit rate'!A:C,3,FALSE) ->  | R41: 0
A42: CDA | B42: DUAL & MULTIPLE OCCPY SUPPLIES | D42: 3033 | E42: =VLOOKUP(A42,'Unit rate'!A:C,3,FALSE) -> 3237 | F42: =E42*(1+$J$1) -> 3237 | G42: =F42*(1+$J$1) -> 3237 | H42: =G42*(1+$J$1) -> 3237 | I42: =H42*(1+$J$1) -> 3237 | J42: =I42*(1+$J$1) -> 3237 | K42: =J42*(1+$J$1) -> 3237 | L42: =K42*(1+$J$1) -> 3237 | M42: =L42*(1+$J$1) -> 3237 | N42: =M42*(1+$J$1) -> 3237 | O42: =N42*(1+$J$1) -> 3237 | P42: =O42*(1+$J$1) -> 3237 | Q42: =P42*(1+$J$1) -> 3237 | R42: 3237
A43: CDP | B43: PIT AT BASE OF REPL P/L POLE | D43: 0 | E43: =IFERROR(VLOOKUP(A43,'Unit rate'!A:E,4,FALSE),0) -> 0 | F43: =E43*(1+$J$1) -> 0 | G43: =F43*(1+$J$1) -> 0 | H43: =G43*(1+$J$1) -> 0 | I43: =H43*(1+$J$1) -> 0 | J43: =I43*(1+$J$1) -> 0 | K43: =J43*(1+$J$1) -> 0 | L43: =K43*(1+$J$1) -> 0 | M43: =L43*(1+$J$1) -> 0 | N43: =M43*(1+$J$1) -> 0 | O43: =N43*(1+$J$1) -> 0 | P43: =O43*(1+$J$1) -> 0 | Q43: =P43*(1+$J$1) -> 0 | R43: 0
R44: 0
A45: CM | R45: 0
A46: CMU | B46: NEW U/G SERVICE CONNECTION | E46: =IFERROR(VLOOKUP(A46,'Unit rate'!A:E,4,FALSE),0) -> 0 | F46: 0 | G46: =F46*(1+$J$1) -> 0 | H46: =G46*(1+$J$1) -> 0 | I46: =H46*(1+$J$1) -> 0 | J46: =I46*(1+$J$1) -> 0 | K46: =J46*(1+$J$1) -> 0 | L46: =K46*(1+$J$1) -> 0 | M46: =L46*(1+$J$1) -> 0 | N46: =M46*(1+$J$1) -> 0 | O46: =N46*(1+$J$1) -> 0 | P46: =O46*(1+$J$1) -> 0 | Q46: =P46*(1+$J$1) -> 0 | R46: 0
A47: CMZ | B47: NEW OVERHEAD SERVICE | E47: =IFERROR(VLOOKUP(A47,'Unit rate'!A:E,4,FALSE),0) -> 0 | F47: =E47*(1+$J$1) -> 0 | G47: =F47*(1+$J$1) -> 0 | H47: =G47*(1+$J$1) -> 0 | I47: =H47*(1+$J$1) -> 0 | J47: =I47*(1+$J$1) -> 0 | K47: =J47*(1+$J$1) -> 0 | L47: =K47*(1+$J$1) -> 0 | M47: =L47*(1+$J$1) -> 0 | N47: =M47*(1+$J$1) -> 0 | O47: =N47*(1+$J$1) -> 0 | P47: =O47*(1+$J$1) -> 0 | Q47: =P47*(1+$J$1) -> 0 | R47: 0
R48: 0
A49: CN | R49: 0
A50: CNG | B50: NEW SUSTAINABLE LIGHT - MINOR RD | E50: =IFERROR(VLOOKUP(A50,'Unit rate'!A:E,4,FALSE),0) -> 0 | F50: 0 | G50: =F50*(1+$J$1) -> 0 | H50: =G50*(1+$J$1) -> 0 | I50: =H50*(1+$J$1) -> 0 | J50: =I50*(1+$J$1) -> 0 | K50: =J50*(1+$J$1) -> 0 | L50: =K50*(1+$J$1) -> 0 | M50: =L50*(1+$J$1) -> 0 | N50: =M50*(1+$J$1) -> 0 | O50: =N50*(1+$J$1) -> 0 | P50: =O50*(1+$J$1) -> 0 | Q50: =P50*(1+$J$1) -> 0 | R50: 0
A51: CNJ | B51: NEW SINGLE LIGHT - MAJOR ROADS | E51: =IFERROR(VLOOKUP(A51,'Unit rate'!A:E,4,FALSE),0) -> 0 | F51: =E51*(1+$J$1) -> 0 | G51: =F51*(1+$J$1) -> 0 | H51: =G51*(1+$J$1) -> 0 | I51: =H51*(1+$J$1) -> 0 | J51: =I51*(1+$J$1) -> 0 | K51: =J51*(1+$J$1) -> 0 | L51: =K51*(1+$J$1) -> 0 | M51: =L51*(1+$J$1) -> 0 | N51: =M51*(1+$J$1) -> 0 | O51: =N51*(1+$J$1) -> 0 | P51: =O51*(1+$J$1) -> 0 | Q51: =P51*(1+$J$1) -> 0 | R51: 0
A52: CNM | B52: NEW SINGLE LIGHT - MINOR ROAD | E52: =IFERROR(VLOOKUP(A52,'Unit rate'!A:E,4,FALSE),0) -> 0 | F52: 0 | G52: 0 | H52: 0 | I52: 0 | J52: 0 | K52: 0 | L52: 0 | M52: 0 | N52: 0 | O52: 0 | P52: 0 | Q52: 0 | R52: 0
A53: CNW | B53: NEW WATCHMAN LIGHTS | E53: =IFERROR(VLOOKUP(A53,'Unit rate'!A:E,4,FALSE),0) -> 0 | F53: 0 | G53: 0 | H53: 0 | I53: 0 | J53: 0 | K53: 0 | L53: 0 | M53: 0 | N53: 0 | O53: 0 | P53: 0 | Q53: 0 | R53: 0

Sheet Corrected Profiles
A1: estimate
C2: 0 | D2: 1 | E2: 2 | F2: 3 | G2: 4 | H2: 5 | I2: 6 | J2: 7 | K2: 8 | L2: 9 | M2: 10 | N2: 11 | O2: 12 | P2: 13 | Q2: 14 | R2: 15 | S2: 16 | T2: 17 | U2: 18 | V2: 19 | W2: 20 | X2: 21 | Y2: 22 | Z2: 23 | AA2: 24 | AB2: 25 | AC2: 26 | AD2: 27 | AE2: 28 | AF2: 29 | AG2: 30 | AH2: 31 | AI2: 32 | AJ2: 33 | AK2: 34 | AL2: 35 | AM2: 36 | AN2: 37 | AO2: 38 | AP2: 39 | AQ2: 40 | AR2: 41 | AS2: 42 | AT2: 43 | AU2: 44 | AV2: 45 | AW2: 46 | AX2: 47 | AY2: 48 | AZ2: 49 | BA2: 50 | BB2: 51 | BC2: 52 | BD2: 53 | BE2: 54 | BF2: 55 | BG2: 56 | BH2: 57 | BI2: 58 | BJ2: 59 | BK2: 60 | BL2: 61 | BM2: 62 | BN2: 63 | BO2: 64 | BP2: 65 | BQ2: 66 | BR2: 67 | BS2: 68 | BT2: 69 | BU2: 70 | BV2: 71 | BW2: 72 | BX2: 73 | BY2: 74 | BZ2: 75 | CA2: 76 | CB2: 77 | CC2: 78 | CD2: 79 | CE2: 80 | CF2: 81 | CG2: 82 | CH2: 83 | CI2: 84 | CJ2: 85 | CK2: 86 | CL2: 87 | CM2: 88 | CN2: 89 | CO2: 90 | CP2: 91 | CQ2: 92 | CR2: 93 | CS2: 94 | CT2: 95 | CU2: 96 | CV2: 97 | CW2: 98 | CX2: 99 | CY2: 100 | CZ2: 101 | DA2: 102 | DB2: 103 | DC2: 104 | DD2: 105 | DE2: 106 | DF2: 107 | DG2: 108 | DH2: 109 | DI2: 110 | DJ2: 111 | DK2: 112 | DL2: 113 | DM2: 114 | DN2: 115 | DO2: 116 | DP2: 117 | DQ2: 118 | DR2: 119 | DS2: 120 | DT2: 121 | DU2: 122 | DV2: 123 | DW2: 124 | DX2: 125 | DY2: 126 | DZ2: 127 | EA2: 128 | EB2: 129 | EC2: 130 | ED2: 131 | EE2: 132 | EF2: 133 | EG2: 134 | EH2: 135 | EI2: 136 | EJ2: 137 | EK2: 138 | EL2: 139 | EM2: 140 | EN2: 141 | EO2: 142 | EP2: 143 | EQ2: 144 | ER2: 145 | ES2: 146 | ET2: 147 | EU2: 148 | EV2: 149 | EW2: 150 | EX2: 151 | EY2: 152 | EZ2: 153 | FA2: 154 | FB2: 155 | FC2: 156 | FD2: 157 | FE2: 158 | FF2: 159 | FG2: 160 | FH2: 161 | FI2: 162 | FJ2: 163 | FK2: 164 | FL2: 165 | FM2: 166 | FN2: 167 | FO2: 168 | FP2: 169 | FQ2: 170 | FR2: 171 | FS2: 172 | FT2: 173 | FU2: 174 | FV2: 175 | FW2: 176
A3: CB | B3: CBE | C3: 0.174554027 | D3: 0.03626770563 | E3: 0.08206672898 | F3: 0.127503297 | G3: 0.1807036896 | H3: 0.1098539541 | I3: 0.02608265262 | J3: 0.08072840103 | K3: 0.0232189358 | L3: 0 | M3: 0.005210098268 | N3: 0.03496914179 | O3: 0.02286346565 | P3: 0.006723090264 | Q3: 0.03974364855 | R3: 0.002455551378 | S3: 0.01989712292 | T3: 0.02715848942 | U3: 0 | V3: 0.0001468017181 | W3: 0 | X3: 0 | Y3: 0 | Z3: 0 | AA3: 0 | AB3: 0 | AC3: 0 | AD3: 0 | AE3: 0 | AF3: 0 | AG3: 0 | AH3: 0 | AI3: 0 | AJ3: 0 | AK3: 0 | AL3: 0 | AM3: 0 | AN3: 0 | AO3: 0 | AP3: 0 | AQ3: 0 | AR3: 0 | AS3: 0 | AT3: 0 | AU3: 0 | AV3: 0 | AW3: 0 | AX3: 0 | AY3: 0 | AZ3: 0 | BA3: 0 | BB3: 0 | BC3: 0 | BD3: 0 | BE3: 0 | BF3: 0 | BG3: 0 | BH3: 0 | BI3: 0 | BJ3: 0 | BK3: 0 | BL3: 0 | BM3: 0 | BN3: 0 | BO3: 0 | BP3: 0 | BQ3: 0 | BR3: 0 | BS3: 0 | BT3: 0 | BU3: 0 | BV3: 0 | BW3: 0 | BX3: 0 | BY3: 0 | BZ3: 0 | CA3: 0 | CB3: 0 | CC3: 0 | CD3: 0 | CE3: 0 | CF3: 0 | CG3: 0 | CH3: 0 | CI3: 0 | CJ3: 0 | CK3: 0 | CL3: 0 | CM3: 0 | CN3: 0 | CO3: 0 | CP3: 0 | CQ3: 0 | CR3: 0 | CS3: 0 | CT3: 0 | CU3: 0 | CV3: 0 | CW3: 0 | CX3: 0 | CY3: 0 | CZ3: 0 | DA3: 0 | DB3: 0 | DC3: 0 | DD3: 0 | DE3: 0 | DF3: 0 | DG3: 0 | DH3: 0 | DI3: 0 | DJ3: 0 | DK3: 0 | DL3: 0 | DM3: 0 | DN3: 0 | DO3: 0 | DP3: 0 | DQ3: 0 | DR3: 0 | DS3: 0 | DT3: 0 | DU3: 0 | DV3: 0 | DW3: 0 | DX3: 0 | DY3: 0 | DZ3: 0 | EA3: 0 | EB3: 0 | EC3: 0 | ED3: 0 | EE3: 0 | EF3: 0 | EG3: 0 | EH3: 0 | EI3: 0 | EJ3: 0 | EK3: 0 | EL3: 0 | EM3: 0 | EN3: 0 | EO3: 0 | EP3: 0 | EQ3: 0 | ER3: 0 | ES3: 0 | ET3: 0 | EU3: 0 | EV3: 0 | EW3: 0 | EX3: 0 | EY3: 0 | EZ3: 0 | FA3: 0 | FB3: 0 | FC3: 0 | FD3: 0 | FE3: 0 | FF3: 0 | FG3: 0 | FH3: 0 | FI3: 0 | FJ3: 0 | FK3: 0 | FL3: 0 | FM3: 0 | FN3: 0 | FO3: 0 | FP3: 0 | FQ3: 0 | FR3: 0 | FS3: 0 | FT3: 0 | FU3: 0 | FV3: 0 | FW3: 0
B4: CBG | C4: 0.05554426638 | D4: 0.04602179555 | E4: 0.08786915204 | F4: 0.4007430743 | G4: 0.2888274164 | H4: 0.03854894181 | I4: 0 | J4: 0.01289864176 | K4: 0.001770893767 | L4: 0 | M4: 0.02811853171 | N4: 0.03965728629 | O4: 0 | P4: 0 | Q4: 0 | R4: 0 | S4: 0 | T4: 0 | U4: 0 | V4: 0 | W4: 0 | X4: 0 | Y4: 0 | Z4: 0 | AA4: 0 | AB4: 0 | AC4: 0 | AD4: 0 | AE4: 0 | AF4: 0 | AG4: 0 | AH4: 0 | AI4: 0 | AJ4: 0 | AK4: 0 | AL4: 0 | AM4: 0 | AN4: 0 | AO4: 0 | AP4: 0 | AQ4: 0 | AR4: 0 | AS4: 0 | AT4: 0 | AU4: 0 | AV4: 0 | AW4: 0 | AX4: 0 | AY4: 0 | AZ4: 0 | BA4: 0 | BB4: 0 | BC4: 0 | BD4: 0 | BE4: 0 | BF4: 0 | BG4: 0 | BH4: 0 | BI4: 0 | BJ4: 0 | BK4: 0 | BL4: 0 | BM4: 0 | BN4: 0 | BO4: 0 | BP4: 0 | BQ4: 0 | BR4: 0 | BS4: 0 | BT4: 0 | BU4: 0 | BV4: 0 | BW4: 0 | BX4: 0 | BY4: 0 | BZ4: 0 | CA4: 0 | CB4: 0 | CC4: 0 | CD4: 0 | CE4: 0 | CF4: 0 | CG4: 0 | CH4: 0 | CI4: 0 | CJ4: 0 | CK4: 0 | CL4: 0 | CM4: 0 | CN4: 0 | CO4: 0 | CP4: 0 | CQ4: 0 | CR4: 0 | CS4: 0 | CT4: 0 | CU4: 0 | CV4: 0 | CW4: 0 | CX4: 0 | CY4: 0 | CZ4: 0 | DA4: 0 | DB4: 0 | DC4: 0 | DD4: 0 | DE4: 0 | DF4: 0 | DG4: 0 | DH4: 0 | DI4: 0 | DJ4: 0 | DK4: 0 | DL4: 0 | DM4: 0 | DN4: 0 | DO4: 0 | DP4: 0 | DQ4: 0 | DR4: 0 | DS4: 0 | DT4: 0 | DU4: 0 | DV4: 0 | DW4: 0 | DX4: 0 | DY4: 0 | DZ4: 0 | EA4: 0 | EB4: 0 | EC4: 0 | ED4: 0 | EE4: 0 | EF4: 0 | EG4: 0 | EH4: 0 | EI4: 0 | EJ4: 0 | EK4: 0 | EL4: 0 | EM4: 0 | EN4: 0 | EO4: 0 | EP4: 0 | EQ4: 0 | ER4: 0 | ES4: 0 | ET4: 0 | EU4: 0 | EV4: 0 | EW4: 0 | EX4: 0 | EY4: 0 | EZ4: 0 | FA4: 0 | FB4: 0 | FC4: 0 | FD4: 0 | FE4: 0 | FF4: 0 | FG4: 0 | FH4: 0 | FI4: 0 | FJ4: 0 | FK4: 0 | FL4: 0 | FM4: 0 | FN4: 0 | FO4: 0 | FP4: 0 | FQ4: 0 | FR4: 0 | FS4: 0 | FT4: 0 | FU4: 0 | FV4: 0 | FW4: 0
B5: CBH | C5: 0 | D5: 0.007120846186 | E5: 0 | F5: 0.1562204304 | G5: 0.02869622002 | H5: 0.01555689505 | I5: 0.007778214179 | J5: 0 | K5: 1.414848917e-18 | L5: 0 | M5: 0.03889107089 | N5: 0.2722374963 | O5: 0.03889107089 | P5: 0.1944553545 | Q5: 0 | R5: 0.2333464331 | S5: 0 | T5: 0 | U5: 0 | V5: 0 | W5: 0 | X5: 0 | Y5: 0 | Z5: 0 | AA5: 0 | AB5: 0 | AC5: 0 | AD5: 0 | AE5: 0 | AF5: 0 | AG5: 0 | AH5: 0 | AI5: 0 | AJ5: 0 | AK5: 0 | AL5: 0 | AM5: 0 | AN5: 0 | AO5: 0 | AP5: 0 | AQ5: 0 | AR5: 0 | AS5: 0 | AT5: 0 | AU5: 0 | AV5: 0 | AW5: 0 | AX5: 0 | AY5: 0 | AZ5: 0 | BA5: 0 | BB5: 0 | BC5: 0 | BD5: 0 | BE5: 0 | BF5: 0 | BG5: 0 | BH5: 0 | BI5: 0 | BJ5: 0 | BK5: 0 | BL5: 0 | BM5: 0 | BN5: 0 | BO5: 0 | BP5: 0 | BQ5: 0 | BR5: 0 | BS5: 0 | BT5: 0 | BU5: 0 | BV5: 0 | BW5: 0 | BX5: 0 | BY5: 0 | BZ5: 0 | CA5: 0 | CB5: 0 | CC5: 0 | CD5: 0 | CE5: 0 | CF5: 0 | CG5: 0 | CH5: 0 | CI5: 0 | CJ5: 0 | CK5: 0 | CL5: 0 | CM5: 0 | CN5: 0 | CO5: 0 | CP5: 0 | CQ5: 0 | CR5: 0 | CS5: 0 | CT5: 0 | CU5: 0 | CV5: 0 | CW5: 0 | CX5: 0 | CY5: 0 | CZ5: 0 | DA5: 0 | DB5: 0 | DC5: 0 | DD5: 0 | DE5: 0 | DF5: 0 | DG5: 0 | DH5: 0 | DI5: 0 | DJ5: 0 | DK5: 0 | DL5: 0 | DM5: 0 | DN5: 0 | DO5: 0 | DP5: 0 | DQ5: 0 | DR5: 0 | DS5: 0 | DT5: 0 | DU5: 0 | DV5: 0 | DW5: 0 | DX5: 0 | DY5: 0 | DZ5: 0 | EA5: 0 | EB5: 0 | EC5: 0 | ED5: 0 | EE5: 0 | EF5: 0 | EG5: 0 | EH5: 0 | EI5: 0 | EJ5: 0 | EK5: 0 | EL5: 0 | EM5: 0 | EN5: 0 | EO5: 0 | EP5: 0 | EQ5: 0 | ER5: 0 | ES5: 0 | ET5: 0 | EU5: 0 | EV5: 0 | EW5: 0 | EX5: 0 | EY5: 0 | EZ5: 0 | FA5: 0 | FB5: 0 | FC5: 0 | FD5: 0 | FE5: 0 | FF5: 0 | FG5: 0 | FH5: 0 | FI5: 0 | FJ5: 0 | FK5: 0 | FL5: 0 | FM5: 0 | FN5: 0 | FO5: 0 | FP5: 0 | FQ5: 0 | FR5: 0 | FS5: 0 | FT5: 0 | FU5: 0 | FV5: 0 | FW5: 0
B6: CBI | C6: 0.0004620934099 | D6: 0.0001199741645 | E6: 0 | F6: 0 | G6: 0.05991309899 | H6: 0.055156243 | I6: 0.06510604504 | J6: 0.1733401117 | K6: 0.2279893251 | L6: 0.02744479897 | M6: 0.0003279163617 | N6: 0.2415717319 | O6: 0.04895678354 | P6: 0.0001418009661 | Q6: 0.09842067807 | R6: 0 | S6: 0 | T6: 0 | U6: 0 | V6: 0 | W6: 0 | X6: 0 | Y6: 0 | Z6: 0 | AA6: 0 | AB6: 0 | AC6: 0 | AD6: 0 | AE6: 0 | AF6: 0 | AG6: 0 | AH6: 0 | AI6: 0 | AJ6: 0 | AK6: 0 | AL6: 0 | AM6: 0 | AN6: 0 | AO6: 0 | AP6: 0 | AQ6: 0 | AR6: 0 | AS6: 0 | AT6: 0 | AU6: 0 | AV6: 0 | AW6: 0 | AX6: 0 | AY6: 0 | AZ6: 0 | BA6: 0 | BB6: 0 | BC6: 0 | BD6: 0 | BE6: 0 | BF6: 0 | BG6: 0 | BH6: 0 | BI6: 0 | BJ6: 0 | BK6: 0 | BL6: 0 | BM6: 0 | BN6: 0 | BO6: 0 | BP6: 0 | BQ6: 0 | BR6: 0 | BS6: 0 | BT6: 0 | BU6: 0 | BV6: 0 | BW6: 0 | BX6: 0 | BY6: 0 | BZ6: 0 | CA6: 0 | CB6: 0 | CC6: 0 | CD6: 0 | CE6: 0 | CF6: 0 | CG6: 0 | CH6: 0 | CI6: 0 | CJ6: 0 | CK6: 0 | CL6: 0 | CM6: 0 | CN6: 0 | CO6: 0 | CP6: 0 | CQ6: 0 | CR6: 0 | CS6: 0 | CT6: 0 | CU6: 0 | CV6: 0 | CW6: 0 | CX6: 0 | CY6: 0 | CZ6: 0 | DA6: 0 | DB6: 0 | DC6: 0 | DD6: 0 | DE6: 0 | DF6: 0 | DG6: 0 | DH6: 0 | DI6: 0 | DJ6: 0 | DK6: 0 | DL6: 0 | DM6: 0 | DN6: 0 | DO6: 0 | DP6: 0 | DQ6: 0 | DR6: 0 | DS6: 0 | DT6: 0 | DU6: 0 | DV6: 0 | DW6: 0 | DX6: 0 | DY6: 0 | DZ6: 0 | EA6: 0 | EB6: 0 | EC6: 0 | ED6: 0 | EE6: 0 | EF6: 0 | EG6: 0 | EH6: 0 | EI6: 0 | EJ6: 0 | EK6: 0 | EL6: 0 | EM6: 0 | EN6: 0 | EO6: 0 | EP6: 0 | EQ6: 0 | ER6: 0 | ES6: 0 | ET6: 0 | EU6: 0 | EV6: 0 | EW6: 0 | EX6: 0 | EY6: 0 | EZ6: 0 | FA6: 0 | FB6: 0 | FC6: 0 | FD6: 0 | FE6: 0 | FF6: 0 | FG6: 0 | FH6: 0 | FI6: 0 | FJ6: 0 | FK6: 0 | FL6: 0 | FM6: 0 | FN6: 0 | FO6: 0 | FP6: 0 | FQ6: 0 | FR6: 0 | FS6: 0 | FT6: 0 | FU6: 0 | FV6: 0 | FW6: 0
B7: CBK | C7: 0.0009809756417 | D7: 0.00552490105 | E7: 0.01245887092 | F7: 0.003283122212 | G7: 0.1288597588 | H7: 0.1359475541 | I7: 0.127727758 | J7: 0 | K7: 0 | L7: 0.1157523662 | M7: 0.05183719985 | N7: 0.007798320851 | O7: 0.1090971249 | P7: 0.2429412022 | Q7: 0 | R7: 0.03467541725 | S7: 0.02247778981 | T7: 0 | U7: 0 | V7: 0 | W7: 0 | X7: 0 | Y7: 0 | Z7: 0 | AA7: 0 | AB7: 0 | AC7: 0 | AD7: 0 | AE7: 0 | AF7: 0 | AG7: 0 | AH7: 0 | AI7: 0 | AJ7: 0 | AK7: 0 | AL7: 0 | AM7: 0 | AN7: 0 | AO7: 0 | AP7: 0 | AQ7: 0 | AR7: 0 | AS7: 0 | AT7: 0 | AU7: 0 | AV7: 0 | AW7: 0 | AX7: 0 | AY7: 0 | AZ7: 0 | BA7: 0 | BB7: 0 | BC7: 0 | BD7: 0 | BE7: 0 | BF7: 0 | BG7: 0 | BH7: 0 | BI7: 0 | BJ7: 0 | BK7: 0 | BL7: 0 | BM7: 0 | BN7: 0 | BO7: 0 | BP7: 0 | BQ7: 0 | BR7: 0 | BS7: 0 | BT7: 0 | BU7: 0 | BV7: 0 | BW7: 0 | BX7: 0 | BY7: 0 | BZ7: 0 | CA7: 0 | CB7: 0 | CC7: 0 | CD7: 0 | CE7: 0 | CF7: 0 | CG7: 0 | CH7: 0 | CI7: 0 | CJ7: 0 | CK7: 0 | CL7: 0 | CM7: 0 | CN7: 0 | CO7: 0 | CP7: 0 | CQ7: 0 | CR7: 0 | CS7: 0 | CT7: 0 | CU7: 0 | CV7: 0 | CW7: 0 | CX7: 0 | CY7: 0 | CZ7: 0 | DA7: 0 | DB7: 0 | DC7: 0 | DD7: 0 | DE7: 0 | DF7: 0 | DG7: 0 | DH7: 0 | DI7: 0 | DJ7: 0 | DK7: 0 | DL7: 0 | DM7: 0 | DN7: 0 | DO7: 0 | DP7: 0 | DQ7: 0 | DR7: 0 | DS7: 0 | DT7: 0 | DU7: 0 | DV7: 0 | DW7: 0 | DX7: 0 | DY7: 0 | DZ7: 0 | EA7: 0 | EB7: 0 | EC7: 0 | ED7: 0 | EE7: 0 | EF7: 0 | EG7: 0 | EH7: 0 | EI7: 0 | EJ7: 0 | EK7: 0 | EL7: 0 | EM7: 0 | EN7: 0 | EO7: 0 | EP7: 0 | EQ7: 0 | ER7: 0 | ES7: 0 | ET7: 0 | EU7: 0 | EV7: 0 | EW7: 0 | EX7: 0 | EY7: 0 | EZ7: 0 | FA7: 0 | FB7: 0 | FC7: 0 | FD7: 0 | FE7: 0 | FF7: 0 | FG7: 0 | FH7: 0 | FI7: 0 | FJ7: 0 | FK7: 0 | FL7: 0 | FM7: 0 | FN7: 0 | FO7: 0 | FP7: 0 | FQ7: 0 | FR7: 0 | FS7: 0 | FT7: 0 | FU7: 0 | FV7: 0 | FW7: 0
B8: CBL | C8: 0.02099871143 | D8: 0.03094078479 | E8: 0.06837226926 | F8: 0.07774610261 | G8: 0.06930845489 | H8: 0.094631472 | I8: 0.07046416052 | J8: 0.119243903 | K8: 0.07392340889 | L8: 0.05439900923 | M8: 0.04321670598 | N8: 0.05437427779 | O8: 0 | P8: 0.03418739156 | Q8: 0.05416228394 | R8: 0.006783248058 | S8: 0.04186014767 | T8: 0.02885832281 | U8: 0.001319643145 | V8: 0.05520970242 | W8: 0 | X8: 0 | Y8: 0 | Z8: 0 | AA8: 0 | AB8: 0 | AC8: 0 | AD8: 0 | AE8: 0 | AF8: 0 | AG8: 0 | AH8: 0 | AI8: 0 | AJ8: 0 | AK8: 0 | AL8: 0 | AM8: 0 | AN8: 0 | AO8: 0 | AP8: 0 | AQ8: 0 | AR8: 0 | AS8: 0 | AT8: 0 | AU8: 0 | AV8: 0 | AW8: 0 | AX8: 0 | AY8: 0 | AZ8: 0 | BA8: 0 | BB8: 0 | BC8: 0 | BD8: 0 | BE8: 0 | BF8: 0 | BG8: 0 | BH8: 0 | BI8: 0 | BJ8: 0 | BK8: 0 | BL8: 0 | BM8: 0 | BN8: 0 | BO8: 0 | BP8: 0 | BQ8: 0 | BR8: 0 | BS8: 0 | BT8: 0 | BU8: 0 | BV8: 0 | BW8: 0 | BX8: 0 | BY8: 0 | BZ8: 0 | CA8: 0 | CB8: 0 | CC8: 0 | CD8: 0 | CE8: 0 | CF8: 0 | CG8: 0 | CH8: 0 | CI8: 0 | CJ8: 0 | CK8: 0 | CL8: 0 | CM8: 0 | CN8: 0 | CO8: 0 | CP8: 0 | CQ8: 0 | CR8: 0 | CS8: 0 | CT8: 0 | CU8: 0 | CV8: 0 | CW8: 0 | CX8: 0 | CY8: 0 | CZ8: 0 | DA8: 0 | DB8: 0 | DC8: 0 | DD8: 0 | DE8: 0 | DF8: 0 | DG8: 0 | DH8: 0 | DI8: 0 | DJ8: 0 | DK8: 0 | DL8: 0 | DM8: 0 | DN8: 0 | DO8: 0 | DP8: 0 | DQ8: 0 | DR8: 0 | DS8: 0 | DT8: 0 | DU8: 0 | DV8: 0 | DW8: 0 | DX8: 0 | DY8: 0 | DZ8: 0 | EA8: 0 | EB8: 0 | EC8: 0 | ED8: 0 | EE8: 0 | EF8: 0 | EG8: 0 | EH8: 0 | EI8: 0 | EJ8: 0 | EK8: 0 | EL8: 0 | EM8: 0 | EN8: 0 | EO8: 0 | EP8: 0 | EQ8: 0 | ER8: 0 | ES8: 0 | ET8: 0 | EU8: 0 | EV8: 0 | EW8: 0 | EX8: 0 | EY8: 0 | EZ8: 0 | FA8: 0 | FB8: 0 | FC8: 0 | FD8: 0 | FE8: 0 | FF8: 0 | FG8: 0 | FH8: 0 | FI8: 0 | FJ8: 0 | FK8: 0 | FL8: 0 | FM8: 0 | FN8: 0 | FO8: 0 | FP8: 0 | FQ8: 0 | FR8: 0 | FS8: 0 | FT8: 0 | FU8: 0 | FV8: 0 | FW8: 0
B9: CBP | C9: 0.02795721036 | D9: 0.03103812571 | E9: 0.03890141856 | F9: 0.1032552255 | G9: 0.1174596838 | H9: 0.1167002406 | I9: 0.08353620286 | J9: 0.0609799835 | K9: 0.0404433027 | L9: 0.03424274575 | M9: 0.05437531078 | N9: 0.04634912773 | O9: 0.1152392767 | P9: 0.03100325333 | Q9: 0.01947780079 | R9: 0.01476032256 | S9: 0.005212872504 | T9: 0.0184050723 | U9: 0.03 | V9: 0.01 | W9: 0 | X9: 0 | Y9: 0 | Z9: 0 | AA9: 0 | AB9: 0 | AC9: 0 | AD9: 0 | AE9: 0 | AF9: 0 | AG9: 0 | AH9: 0 | AI9: 0 | AJ9: 0 | AK9: 0 | AL9: 0 | AM9: 0 | AN9: 0 | AO9: 0 | AP9: 0 | AQ9: 0 | AR9: 0 | AS9: 0 | AT9: 0 | AU9: 0 | AV9: 0 | AW9: 0 | AX9: 0 | AY9: 0 | AZ9: 0 | BA9: 0 | BB9: 0 | BC9: 0 | BD9: 0 | BE9: 0 | BF9: 0 | BG9: 0 | BH9: 0 | BI9: 0 | BJ9: 0 | BK9: 0 | BL9: 0 | BM9: 0 | BN9: 0 | BO9: 0 | BP9: 0 | BQ9: 0 | BR9: 0 | BS9: 0 | BT9: 0 | BU9: 0 | BV9: 0 | BW9: 0 | BX9: 0 | BY9: 0 | BZ9: 0 | CA9: 0 | CB9: 0 | CC9: 0 | CD9: 0 | CE9: 0 | CF9: 0 | CG9: 0 | CH9: 0 | CI9: 0 | CJ9: 0 | CK9: 0 | CL9: 0 | CM9: 0 | CN9: 0 | CO9: 0 | CP9: 0 | CQ9: 0 | CR9: 0 | CS9: 0 | CT9: 0 | CU9: 0 | CV9: 0 | CW9: 0 | CX9: 0 | CY9: 0 | CZ9: 0 | DA9: 0 | DB9: 0 | DC9: 0 | DD9: 0 | DE9: 0 | DF9: 0 | DG9: 0 | DH9: 0 | DI9: 0 | DJ9: 0 | DK9: 0 | DL9: 0 | DM9: 0 | DN9: 0 | DO9: 0 | DP9: 0 | DQ9: 0 | DR9: 0 | DS9: 0 | DT9: 0 | DU9: 0 | DV9: 0 | DW9: 0 | DX9: 0 | DY9: 0 | DZ9: 0 | EA9: 0 | EB9: 0 | EC9: 0 | ED9: 0 | EE9: 0 | EF9: 0 | EG9: 0 | EH9: 0 | EI9: 0 | EJ9: 0 | EK9: 0 | EL9: 0 | EM9: 0 | EN9: 0 | EO9: 0 | EP9: 0 | EQ9: 0 | ER9: 0 | ES9: 0 | ET9: 0 | EU9: 0 | EV9: 0 | EW9: 0 | EX9: 0 | EY9: 0 | EZ9: 0 | FA9: 0 | FB9: 0 | FC9: 0 | FD9: 0 | FE9: 0 | FF9: 0 | FG9: 0 | FH9: 0 | FI9: 0 | FJ9: 0 | FK9: 0 | FL9: 0 | FM9: 0 | FN9: 0 | FO9: 0 | FP9: 0 | FQ9: 0 | FR9: 0 | FS9: 0 | FT9: 0 | FU9: 0 | FV9: 0 | FW9: 0
B10: CBS | C10: 0.01214233792 | D10: 0.05745498904 | E10: 0.02537365566 | F10: 0.1742095624 | G10: 0.05304849859 | H10: 0.06254889065 | I10: 0.07208102241 | J10: 0.03890877053 | K10: 0.08411999683 | L10: 0.06577879072 | M10: 0.1621017017 | N10: 0.0138613675 | O10: 0.024907458 | P10: 0.01989002201 | Q10: 0.0008580924486 | R10: 0.07127554696 | S10: 0.002538923325 | T10: 0.04390135447 | U10: 0 | V10: 0.005410051695 | W10: 0.009588967083 | X10: 0 | Y10: 0 | Z10: 0 | AA10: 0 | AB10: 0 | AC10: 0 | AD10: 0 | AE10: 0 | AF10: 0 | AG10: 0 | AH10: 0 | AI10: 0 | AJ10: 0 | AK10: 0 | AL10: 0 | AM10: 0 | AN10: 0 | AO10: 0 | AP10: 0 | AQ10: 0 | AR10: 0 | AS10: 0 | AT10: 0 | AU10: 0 | AV10: 0 | AW10: 0 | AX10: 0 | AY10: 0 | AZ10: 0 | BA10: 0 | BB10: 0 | BC10: 0 | BD10: 0 | BE10: 0 | BF10: 0 | BG10: 0 | BH10: 0 | BI10: 0 | BJ10: 0 | BK10: 0 | BL10: 0 | BM10: 0 | BN10: 0 | BO10: 0 | BP10: 0 | BQ10: 0 | BR10: 0 | BS10: 0 | BT10: 0 | BU10: 0 | BV10: 0 | BW10: 0 | BX10: 0 | BY10: 0 | BZ10: 0 | CA10: 0 | CB10: 0 | CC10: 0 | CD10: 0 | CE10: 0 | CF10: 0 | CG10: 0 | CH10: 0 | CI10: 0 | CJ10: 0 | CK10: 0 | CL10: 0 | CM10: 0 | CN10: 0 | CO10: 0 | CP10: 0 | CQ10: 0 | CR10: 0 | CS10: 0 | CT10: 0 | CU10: 0 | CV10: 0 | CW10: 0 | CX10: 0 | CY10: 0 | CZ10: 0 | DA10: 0 | DB10: 0 | DC10: 0 | DD10: 0 | DE10: 0 | DF10: 0 | DG10: 0 | DH10: 0 | DI10: 0 | DJ10: 0 | DK10: 0 | DL10: 0 | DM10: 0 | DN10: 0 | DO10: 0 | DP10: 0 | DQ10: 0 | DR10: 0 | DS10: 0 | DT10: 0 | DU10: 0 | DV10: 0 | DW10: 0 | DX10: 0 | DY10: 0 | DZ10: 0 | EA10: 0 | EB10: 0 | EC10: 0 | ED10: 0 | EE10: 0 | EF10: 0 | EG10: 0 | EH10: 0 | EI10: 0 | EJ10: 0 | EK10: 0 | EL10: 0 | EM10: 0 | EN10: 0 | EO10: 0 | EP10: 0 | EQ10: 0 | ER10: 0 | ES10: 0 | ET10: 0 | EU10: 0 | EV10: 0 | EW10: 0 | EX10: 0 | EY10: 0 | EZ10: 0 | FA10: 0 | FB10: 0 | FC10: 0 | FD10: 0 | FE10: 0 | FF10: 0 | FG10: 0 | FH10: 0 | FI10: 0 | FJ10: 0 | FK10: 0 | FL10: 0 | FM10: 0 | FN10: 0 | FO10: 0 | FP10: 0 | FQ10: 0 | FR10: 0 | FS10: 0 | FT10: 0 | FU10: 0 | FV10: 0 | FW10: 0
A11: CH | B11: CHH | C11: 0.001127259993 | D11: 0.007378028093 | E11: 0.005170755774 | F11: 0.0005240229598 | G11: 0.002762280206 | H11: 0.0005411802112 | I11: 0.4610767439 | J11: 0.2070034186 | K11: 0.2939233215 | L11: 0.02 | M11: 0 | N11: 0 | O11: 0 | P11: 0 | Q11: 0 | R11: 0 | S11: 0 | T11: 0 | U11: 0 | V11: 0 | W11: 0 | X11: 0 | Y11: 0 | Z11: 0 | AA11: 0 | AB11: 0 | AC11: 0 | AD11: 0 | AE11: 0 | AF11: 0 | AG11: 0 | AH11: 0 | AI11: 0 | AJ11: 0 | AK11: 0 | AL11: 0 | AM11: 0 | AN11: 0 | AO11: 0 | AP11: 0 | AQ11: 0 | AR11: 0 | AS11: 0 | AT11: 0 | AU11: 0 | AV11: 0 | AW11: 0 | AX11: 0 | AY11: 0 | AZ11: 0 | BA11: 0 | BB11: 0 | BC11: 0 | BD11: 0 | BE11: 0 | BF11: 0 | BG11: 0 | BH11: 0 | BI11: 0 | BJ11: 0 | BK11: 0 | BL11: 0 | BM11: 0 | BN11: 0 | BO11: 0 | BP11: 0 | BQ11: 0 | BR11: 0 | BS11: 0 | BT11: 0 | BU11: 0 | BV11: 0 | BW11: 0 | BX11: 0 | BY11: 0 | BZ11: 0 | CA11: 0 | CB11: 0 | CC11: 0 | CD11: 0 | CE11: 0 | CF11: 0 | CG11: 0 | CH11: 0 | CI11: 0 | CJ11: 0 | CK11: 0 | CL11: 0 | CM11: 0 | CN11: 0 | CO11: 0 | CP11: 0 | CQ11: 0 | CR11: 0 | CS11: 0 | CT11: 0 | CU11: 0 | CV11: 0 | CW11: 0 | CX11: 0 | CY11: 0 | CZ11: 0 | DA11: 0 | DB11: 0 | DC11: 0 | DD11: 0 | DE11: 0 | DF11: 0 | DG11: 0 | DH11: 0 | DI11: 0 | DJ11: 0 | DK11: 0 | DL11: 0 | DM11: 0 | DN11: 0 | DO11: 0 | DP11: 0 | DQ11: 0 | DR11: 0 | DS11: 0 | DT11: 0 | DU11: 0 | DV11: 0 | DW11: 0 | DX11: 0 | DY11: 0 | DZ11: 0 | EA11: 0 | EB11: 0 | EC11: 0 | ED11: 0 | EE11: 0 | EF11: 0 | EG11: 0 | EH11: 0 | EI11: 0 | EJ11: 0 | EK11: 0 | EL11: 0 | EM11: 0 | EN11: 0 | EO11: 0 | EP11: 0 | EQ11: 0 | ER11: 0 | ES11: 0 | ET11: 0 | EU11: 0 | EV11: 0 | EW11: 0 | EX11: 0 | EY11: 0 | EZ11: 0 | FA11: 0 | FB11: 0 | FC11: 0 | FD11: 0 | FE11: 0 | FF11: 0 | FG11: 0 | FH11: 0 | FI11: 0 | FJ11: 0 | FK11: 0 | FL11: 0 | FM11: 0 | FN11: 0 | FO11: 0 | FP11: 0 | FQ11: 0 | FR11: 0 | FS11: 0 | FT11: 0 | FU11: 0 | FV11: 0 | FW11: 0
B12: CHL | C12: 0.005653836032 | D12: 0.03636162452 | E12: 0.02610943893 | F12: 0.03028183021 | G12: 0.05403577992 | H12: 0.01550753109 | I12: 0.06422821834 | J12: 0.06032196075 | K12: 0.02026983037 | L12: 0.06031460238 | M12: 0.051439436 | N12: 0.07351436219 | O12: 0.1199099913 | P12: 0.1095795159 | Q12: 0.1156388957 | R12: 0.05505093617 | S12: 0.0553471547 | T12: 0.002367201592 | U12: 0.04406785404 | V12: 0 | W12: 0 | X12: 0 | Y12: 0 | Z12: 0 | AA12: 0 | AB12: 0 | AC12: 0 | AD12: 0 | AE12: 0 | AF12: 0 | AG12: 0 | AH12: 0 | AI12: 0 | AJ12: 0 | AK12: 0 | AL12: 0 | AM12: 0 | AN12: 0 | AO12: 0 | AP12: 0 | AQ12: 0 | AR12: 0 | AS12: 0 | AT12: 0 | AU12: 0 | AV12: 0 | AW12: 0 | AX12: 0 | AY12: 0 | AZ12: 0 | BA12: 0 | BB12: 0 | BC12: 0 | BD12: 0 | BE12: 0 | BF12: 0 | BG12: 0 | BH12: 0 | BI12: 0 | BJ12: 0 | BK12: 0 | BL12: 0 | BM12: 0 | BN12: 0 | BO12: 0 | BP12: 0 | BQ12: 0 | BR12: 0 | BS12: 0 | BT12: 0 | BU12: 0 | BV12: 0 | BW12: 0 | BX12: 0 | BY12: 0 | BZ12: 0 | CA12: 0 | CB12: 0 | CC12: 0 | CD12: 0 | CE12: 0 | CF12: 0 | CG12: 0 | CH12: 0 | CI12: 0 | CJ12: 0 | CK12: 0 | CL12: 0 | CM12: 0 | CN12: 0 | CO12: 0 | CP12: 0 | CQ12: 0 | CR12: 0 | CS12: 0 | CT12: 0 | CU12: 0 | CV12: 0 | CW12: 0 | CX12: 0 | CY12: 0 | CZ12: 0 | DA12: 0 | DB12: 0 | DC12: 0 | DD12: 0 | DE12: 0 | DF12: 0 | DG12: 0 | DH12: 0 | DI12: 0 | DJ12: 0 | DK12: 0 | DL12: 0 | DM12: 0 | DN12: 0 | DO12: 0 | DP12: 0 | DQ12: 0 | DR12: 0 | DS12: 0 | DT12: 0 | DU12: 0 | DV12: 0 | DW12: 0 | DX12: 0 | DY12: 0 | DZ12: 0 | EA12: 0 | EB12: 0 | EC12: 0 | ED12: 0 | EE12: 0 | EF12: 0 | EG12: 0 | EH12: 0 | EI12: 0 | EJ12: 0 | EK12: 0 | EL12: 0 | EM12: 0 | EN12: 0 | EO12: 0 | EP12: 0 | EQ12: 0 | ER12: 0 | ES12: 0 | ET12: 0 | EU12: 0 | EV12: 0 | EW12: 0 | EX12: 0 | EY12: 0 | EZ12: 0 | FA12: 0 | FB12: 0 | FC12: 0 | FD12: 0 | FE12: 0 | FF12: 0 | FG12: 0 | FH12: 0 | FI12: 0 | FJ12: 0 | FK12: 0 | FL12: 0 | FM12: 0 | FN12: 0 | FO12: 0 | FP12: 0 | FQ12: 0 | FR12: 0 | FS12: 0 | FT12: 0 | FU12: 0 | FV12: 0 | FW12: 0
A13: CL | B13: CLA | C13: 0.006537788507 | D13: 0.04491101877 | E13: 0.004182428244 | F13: 0.1812776646 | G13: 0.4873118945 | H13: 0.2757792054 | I13: 0 | J13: 0 | K13: 0 | L13: 0 | M13: 0 | N13: 0 | O13: 0 | P13: 0 | Q13: 0 | R13: 0 | S13: 0 | T13: 0 | U13: 0 | V13: 0 | W13: 0 | X13: 0 | Y13: 0 | Z13: 0 | AA13: 0 | AB13: 0 | AC13: 0 | AD13: 0 | AE13: 0 | AF13: 0 | AG13: 0 | AH13: 0 | AI13: 0 | AJ13: 0 | AK13: 0 | AL13: 0 | AM13: 0 | AN13: 0 | AO13: 0 | AP13: 0 | AQ13: 0 | AR13: 0 | AS13: 0 | AT13: 0 | AU13: 0 | AV13: 0 | AW13: 0 | AX13: 0 | AY13: 0 | AZ13: 0 | BA13: 0 | BB13: 0 | BC13: 0 | BD13: 0 | BE13: 0 | BF13: 0 | BG13: 0 | BH13: 0 | BI13: 0 | BJ13: 0 | BK13: 0 | BL13: 0 | BM13: 0 | BN13: 0 | BO13: 0 | BP13: 0 | BQ13: 0 | BR13: 0 | BS13: 0 | BT13: 0 | BU13: 0 | BV13: 0 | BW13: 0 | BX13: 0 | BY13: 0 | BZ13: 0 | CA13: 0 | CB13: 0 | CC13: 0 | CD13: 0 | CE13: 0 | CF13: 0 | CG13: 0 | CH13: 0 | CI13: 0 | CJ13: 0 | CK13: 0 | CL13: 0 | CM13: 0 | CN13: 0 | CO13: 0 | CP13: 0 | CQ13: 0 | CR13: 0 | CS13: 0 | CT13: 0 | CU13: 0 | CV13: 0 | CW13: 0 | CX13: 0 | CY13: 0 | CZ13: 0 | DA13: 0 | DB13: 0 | DC13: 0 | DD13: 0 | DE13: 0 | DF13: 0 | DG13: 0 | DH13: 0 | DI13: 0 | DJ13: 0 | DK13: 0 | DL13: 0 | DM13: 0 | DN13: 0 | DO13: 0 | DP13: 0 | DQ13: 0 | DR13: 0 | DS13: 0 | DT13: 0 | DU13: 0 | DV13: 0 | DW13: 0 | DX13: 0 | DY13: 0 | DZ13: 0 | EA13: 0 | EB13: 0 | EC13: 0 | ED13: 0 | EE13: 0 | EF13: 0 | EG13: 0 | EH13: 0 | EI13: 0 | EJ13: 0 | EK13: 0 | EL13: 0 | EM13: 0 | EN13: 0 | EO13: 0 | EP13: 0 | EQ13: 0 | ER13: 0 | ES13: 0 | ET13: 0 | EU13: 0 | EV13: 0 | EW13: 0 | EX13: 0 | EY13: 0 | EZ13: 0 | FA13: 0 | FB13: 0 | FC13: 0 | FD13: 0 | FE13: 0 | FF13: 0 | FG13: 0 | FH13: 0 | FI13: 0 | FJ13: 0 | FK13: 0 | FL13: 0 | FM13: 0 | FN13: 0 | FO13: 0 | FP13: 0 | FQ13: 0 | FR13: 0 | FS13: 0 | FT13: 0 | FU13: 0 | FV13: 0 | FW13: 0
B14: CLC | C14: 0 | D14: 0 | E14: 0.02907639298 | F14: 0.03876852397 | G14: 0.1486574529 | H14: 0.04846065496 | I14: 0.4812885228 | J14: 0 | K14: 0.04361496261 | L14: 0 | M14: 0.12141396 | N14: 0.0458411601 | O14: 0.009692130993 | P14: 0 | Q14: 0 | R14: 0.006095736194 | S14: 0 | T14: 0.02709050243 | U14: 0 | V14: 0 | W14: 0 | X14: 0 | Y14: 0 | Z14: 0 | AA14: 0 | AB14: 0 | AC14: 0 | AD14: 0 | AE14: 0 | AF14: 0 | AG14: 0 | AH14: 0 | AI14: 0 | AJ14: 0 | AK14: 0 | AL14: 0 | AM14: 0 | AN14: 0 | AO14: 0 | AP14: 0 | AQ14: 0 | AR14: 0 | AS14: 0 | AT14: 0 | AU14: 0 | AV14: 0 | AW14: 0 | AX14: 0 | AY14: 0 | AZ14: 0 | BA14: 0 | BB14: 0 | BC14: 0 | BD14: 0 | BE14: 0 | BF14: 0 | BG14: 0 | BH14: 0 | BI14: 0 | BJ14: 0 | BK14: 0 | BL14: 0 | BM14: 0 | BN14: 0 | BO14: 0 | BP14: 0 | BQ14: 0 | BR14: 0 | BS14: 0 | BT14: 0 | BU14: 0 | BV14: 0 | BW14: 0 | BX14: 0 | BY14: 0 | BZ14: 0 | CA14: 0 | CB14: 0 | CC14: 0 | CD14: 0 | CE14: 0 | CF14: 0 | CG14: 0 | CH14: 0 | CI14: 0 | CJ14: 0 | CK14: 0 | CL14: 0 | CM14: 0 | CN14: 0 | CO14: 0 | CP14: 0 | CQ14: 0 | CR14: 0 | CS14: 0 | CT14: 0 | CU14: 0 | CV14: 0 | CW14: 0 | CX14: 0 | CY14: 0 | CZ14: 0 | DA14: 0 | DB14: 0 | DC14: 0 | DD14: 0 | DE14: 0 | DF14: 0 | DG14: 0 | DH14: 0 | DI14: 0 | DJ14: 0 | DK14: 0 | DL14: 0 | DM14: 0 | DN14: 0 | DO14: 0 | DP14: 0 | DQ14: 0 | DR14: 0 | DS14: 0 | DT14: 0 | DU14: 0 | DV14: 0 | DW14: 0 | DX14: 0 | DY14: 0 | DZ14: 0 | EA14: 0 | EB14: 0 | EC14: 0 | ED14: 0 | EE14: 0 | EF14: 0 | EG14: 0 | EH14: 0 | EI14: 0 | EJ14: 0 | EK14: 0 | EL14: 0 | EM14: 0 | EN14: 0 | EO14: 0 | EP14: 0 | EQ14: 0 | ER14: 0 | ES14: 0 | ET14: 0 | EU14: 0 | EV14: 0 | EW14: 0 | EX14: 0 | EY14: 0 | EZ14: 0 | FA14: 0 | FB14: 0 | FC14: 0 | FD14: 0 | FE14: 0 | FF14: 0 | FG14: 0 | FH14: 0 | FI14: 0 | FJ14: 0 | FK14: 0 | FL14: 0 | FM14: 0 | FN14: 0 | FO14: 0 | FP14: 0 | FQ14: 0 | FR14: 0 | FS14: 0 | FT14: 0 | FU14: 0 | FV14: 0 | FW14: 0
B15: CLI | C15: 0.1060503104 | D15: 0.03029912633 | E15: 0.04525775607 | F15: 0.06636689059 | G15: 0.02426468311 | H15: 0.08411914084 | I15: 0.01396845425 | J15: 0.1165980871 | K15: 0.03841526472 | L15: 0.08213024081 | M15: 0.01429321017 | N15: 0.3079214445 | O15: 0.03720587087 | P15: 0 | Q15: 0.03310952031 | R15: 0 | S15: 0 | T15: 0 | U15: 0 | V15: 0 | W15: 0 | X15: 0 | Y15: 0 | Z15: 0 | AA15: 0 | AB15: 0 | AC15: 0 | AD15: 0 | AE15: 0 | AF15: 0 | AG15: 0 | AH15: 0 | AI15: 0 | AJ15: 0 | AK15: 0 | AL15: 0 | AM15: 0 | AN15: 0 | AO15: 0 | AP15: 0 | AQ15: 0 | AR15: 0 | AS15: 0 | AT15: 0 | AU15: 0 | AV15: 0 | AW15: 0 | AX15: 0 | AY15: 0 | AZ15: 0 | BA15: 0 | BB15: 0 | BC15: 0 | BD15: 0 | BE15: 0 | BF15: 0 | BG15: 0 | BH15: 0 | BI15: 0 | BJ15: 0 | BK15: 0 | BL15: 0 | BM15: 0 | BN15: 0 | BO15: 0 | BP15: 0 | BQ15: 0 | BR15: 0 | BS15: 0 | BT15: 0 | BU15: 0 | BV15: 0 | BW15: 0 | BX15: 0 | BY15: 0 | BZ15: 0 | CA15: 0 | CB15: 0 | CC15: 0 | CD15: 0 | CE15: 0 | CF15: 0 | CG15: 0 | CH15: 0 | CI15: 0 | CJ15: 0 | CK15: 0 | CL15: 0 | CM15: 0 | CN15: 0 | CO15: 0 | CP15: 0 | CQ15: 0 | CR15: 0 | CS15: 0 | CT15: 0 | CU15: 0 | CV15: 0 | CW15: 0 | CX15: 0 | CY15: 0 | CZ15: 0 | DA15: 0 | DB15: 0 | DC15: 0 | DD15: 0 | DE15: 0 | DF15: 0 | DG15: 0 | DH15: 0 | DI15: 0 | DJ15: 0 | DK15: 0 | DL15: 0 | DM15: 0 | DN15: 0 | DO15: 0 | DP15: 0 | DQ15: 0 | DR15: 0 | DS15: 0 | DT15: 0 | DU15: 0 | DV15: 0 | DW15: 0 | DX15: 0 | DY15: 0 | DZ15: 0 | EA15: 0 | EB15: 0 | EC15: 0 | ED15: 0 | EE15: 0 | EF15: 0 | EG15: 0 | EH15: 0 | EI15: 0 | EJ15: 0 | EK15: 0 | EL15: 0 | EM15: 0 | EN15: 0 | EO15: 0 | EP15: 0 | EQ15: 0 | ER15: 0 | ES15: 0 | ET15: 0 | EU15: 0 | EV15: 0 | EW15: 0 | EX15: 0 | EY15: 0 | EZ15: 0 | FA15: 0 | FB15: 0 | FC15: 0 | FD15: 0 | FE15: 0 | FF15: 0 | FG15: 0 | FH15: 0 | FI15: 0 | FJ15: 0 | FK15: 0 | FL15: 0 | FM15: 0 | FN15: 0 | FO15: 0 | FP15: 0 | FQ15: 0 | FR15: 0 | FS15: 0 | FT15: 0 | FU15: 0 | FV15: 0 | FW15: 0
B16: CLJ | C16: 0.03663081774 | D16: 0 | E16: 0.1340476932 | F16: 0 | G16: 0.1826878562 | H16: 0.2680874366 | I16: 0.06111059671 | J16: 0 | K16: 0 | L16: 0 | M16: 0 | N16: 0 | O16: 0.2240721879 | P16: 0 | Q16: 0.09336341164 | R16: 0 | S16: 0 | T16: 0 | U16: 0 | V16: 0 | W16: 0 | X16: 0 | Y16: 0 | Z16: 0 | AA16: 0 | AB16: 0 | AC16: 0 | AD16: 0 | AE16: 0 | AF16: 0 | AG16: 0 | AH16: 0 | AI16: 0 | AJ16: 0 | AK16: 0 | AL16: 0 | AM16: 0 | AN16: 0 | AO16: 0 | AP16: 0 | AQ16: 0 | AR16: 0 | AS16: 0 | AT16: 0 | AU16: 0 | AV16: 0 | AW16: 0 | AX16: 0 | AY16: 0 | AZ16: 0 | BA16: 0 | BB16: 0 | BC16: 0 | BD16: 0 | BE16: 0 | BF16: 0 | BG16: 0 | BH16: 0 | BI16: 0 | BJ16: 0 | BK16: 0 | BL16: 0 | BM16: 0 | BN16: 0 | BO16: 0 | BP16: 0 | BQ16: 0 | BR16: 0 | BS16: 0 | BT16: 0 | BU16: 0 | BV16: 0 | BW16: 0 | BX16: 0 | BY16: 0 | BZ16: 0 | CA16: 0 | CB16: 0 | CC16: 0 | CD16: 0 | CE16: 0 | CF16: 0 | CG16: 0 | CH16: 0 | CI16: 0 | CJ16: 0 | CK16: 0 | CL16: 0 | CM16: 0 | CN16: 0 | CO16: 0 | CP16: 0 | CQ16: 0 | CR16: 0 | CS16: 0 | CT16: 0 | CU16: 0 | CV16: 0 | CW16: 0 | CX16: 0 | CY16: 0 | CZ16: 0 | DA16: 0 | DB16: 0 | DC16: 0 | DD16: 0 | DE16: 0 | DF16: 0 | DG16: 0 | DH16: 0 | DI16: 0 | DJ16: 0 | DK16: 0 | DL16: 0 | DM16: 0 | DN16: 0 | DO16: 0 | DP16: 0 | DQ16: 0 | DR16: 0 | DS16: 0 | DT16: 0 | DU16: 0 | DV16: 0 | DW16: 0 | DX16: 0 | DY16: 0 | DZ16: 0 | EA16: 0 | EB16: 0 | EC16: 0 | ED16: 0 | EE16: 0 | EF16: 0 | EG16: 0 | EH16: 0 | EI16: 0 | EJ16: 0 | EK16: 0 | EL16: 0 | EM16: 0 | EN16: 0 | EO16: 0 | EP16: 0 | EQ16: 0 | ER16: 0 | ES16: 0 | ET16: 0 | EU16: 0 | EV16: 0 | EW16: 0 | EX16: 0 | EY16: 0 | EZ16: 0 | FA16: 0 | FB16: 0 | FC16: 0 | FD16: 0 | FE16: 0 | FF16: 0 | FG16: 0 | FH16: 0 | FI16: 0 | FJ16: 0 | FK16: 0 | FL16: 0 | FM16: 0 | FN16: 0 | FO16: 0 | FP16: 0 | FQ16: 0 | FR16: 0 | FS16: 0 | FT16: 0 | FU16: 0 | FV16: 0 | FW16: 0
B17: CLM | C17: 0.08902019506 | D17: 0.008131324941 | E17: 0.2602175355 | F17: 0.02541628275 | G17: 0.02603412907 | H17: 0.001747842484 | I17: 0.1673801842 | J17: 0.337874298 | K17: 0 | L17: 0 | M17: 0 | N17: 0.005994556632 | O17: 0 | P17: 0 | Q17: 0 | R17: 0 | S17: 0 | T17: 0.07818365133 | U17: 0 | V17: 0 | W17: 0 | X17: 0 | Y17: 0 | Z17: 0 | AA17: 0 | AB17: 0 | AC17: 0 | AD17: 0 | AE17: 0 | AF17: 0 | AG17: 0 | AH17: 0 | AI17: 0 | AJ17: 0 | AK17: 0 | AL17: 0 | AM17: 0 | AN17: 0 | AO17: 0 | AP17: 0 | AQ17: 0 | AR17: 0 | AS17: 0 | AT17: 0 | AU17: 0 | AV17: 0 | AW17: 0 | AX17: 0 | AY17: 0 | AZ17: 0 | BA17: 0 | BB17: 0 | BC17: 0 | BD17: 0 | BE17: 0 | BF17: 0 | BG17: 0 | BH17: 0 | BI17: 0 | BJ17: 0 | BK17: 0 | BL17: 0 | BM17: 0 | BN17: 0 | BO17: 0 | BP17: 0 | BQ17: 0 | BR17: 0 | BS17: 0 | BT17: 0 | BU17: 0 | BV17: 0 | BW17: 0 | BX17: 0 | BY17: 0 | BZ17: 0 | CA17: 0 | CB17: 0 | CC17: 0 | CD17: 0 | CE17: 0 | CF17: 0 | CG17: 0 | CH17: 0 | CI17: 0 | CJ17: 0 | CK17: 0 | CL17: 0 | CM17: 0 | CN17: 0 | CO17: 0 | CP17: 0 | CQ17: 0 | CR17: 0 | CS17: 0 | CT17: 0 | CU17: 0 | CV17: 0 | CW17: 0 | CX17: 0 | CY17: 0 | CZ17: 0 | DA17: 0 | DB17: 0 | DC17: 0 | DD17: 0 | DE17: 0 | DF17: 0 | DG17: 0 | DH17: 0 | DI17: 0 | DJ17: 0 | DK17: 0 | DL17: 0 | DM17: 0 | DN17: 0 | DO17: 0 | DP17: 0 | DQ17: 0 | DR17: 0 | DS17: 0 | DT17: 0 | DU17: 0 | DV17: 0 | DW17: 0 | DX17: 0 | DY17: 0 | DZ17: 0 | EA17: 0 | EB17: 0 | EC17: 0 | ED17: 0 | EE17: 0 | EF17: 0 | EG17: 0 | EH17: 0 | EI17: 0 | EJ17: 0 | EK17: 0 | EL17: 0 | EM17: 0 | EN17: 0 | EO17: 0 | EP17: 0 | EQ17: 0 | ER17: 0 | ES17: 0 | ET17: 0 | EU17: 0 | EV17: 0 | EW17: 0 | EX17: 0 | EY17: 0 | EZ17: 0 | FA17: 0 | FB17: 0 | FC17: 0 | FD17: 0 | FE17: 0 | FF17: 0 | FG17: 0 | FH17: 0 | FI17: 0 | FJ17: 0 | FK17: 0 | FL17: 0 | FM17: 0 | FN17: 0 | FO17: 0 | FP17: 0 | FQ17: 0 | FR17: 0 | FS17: 0 | FT17: 0 | FU17: 0 | FV17: 0 | FW17: 0
B18: CLN | C18: 0.03001657807 | D18: 0.03522603224 | E18: 0.1655614308 | F18: 0.1372150289 | G18: 0.2897653793 | H18: 0.03877907417 | I18: 0.02762082063 | J18: 0 | K18: 0.1509355088 | L18: 0 | M18: 0 | N18: 0 | O18: 0.1172093708 | P18: 0 | Q18: 0 | R18: 0 | S18: 0 | T18: 0.007670776186 | U18: 0 | V18: 0 | W18: 0 | X18: 0 | Y18: 0 | Z18: 0 | AA18: 0 | AB18: 0 | AC18: 0 | AD18: 0 | AE18: 0 | AF18: 0 | AG18: 0 | AH18: 0 | AI18: 0 | AJ18: 0 | AK18: 0 | AL18: 0 | AM18: 0 | AN18: 0 | AO18: 0 | AP18: 0 | AQ18: 0 | AR18: 0 | AS18: 0 | AT18: 0 | AU18: 0 | AV18: 0 | AW18: 0 | AX18: 0 | AY18: 0 | AZ18: 0 | BA18: 0 | BB18: 0 | BC18: 0 | BD18: 0 | BE18: 0 | BF18: 0 | BG18: 0 | BH18: 0 | BI18: 0 | BJ18: 0 | BK18: 0 | BL18: 0 | BM18: 0 | BN18: 0 | BO18: 0 | BP18: 0 | BQ18: 0 | BR18: 0 | BS18: 0 | BT18: 0 | BU18: 0 | BV18: 0 | BW18: 0 | BX18: 0 | BY18: 0 | BZ18: 0 | CA18: 0 | CB18: 0 | CC18: 0 | CD18: 0 | CE18: 0 | CF18: 0 | CG18: 0 | CH18: 0 | CI18: 0 | CJ18: 0 | CK18: 0 | CL18: 0 | CM18: 0 | CN18: 0 | CO18: 0 | CP18: 0 | CQ18: 0 | CR18: 0 | CS18: 0 | CT18: 0 | CU18: 0 | CV18: 0 | CW18: 0 | CX18: 0 | CY18: 0 | CZ18: 0 | DA18: 0 | DB18: 0 | DC18: 0 | DD18: 0 | DE18: 0 | DF18: 0 | DG18: 0 | DH18: 0 | DI18: 0 | DJ18: 0 | DK18: 0 | DL18: 0 | DM18: 0 | DN18: 0 | DO18: 0 | DP18: 0 | DQ18: 0 | DR18: 0 | DS18: 0 | DT18: 0 | DU18: 0 | DV18: 0 | DW18: 0 | DX18: 0 | DY18: 0 | DZ18: 0 | EA18: 0 | EB18: 0 | EC18: 0 | ED18: 0 | EE18: 0 | EF18: 0 | EG18: 0 | EH18: 0 | EI18: 0 | EJ18: 0 | EK18: 0 | EL18: 0 | EM18: 0 | EN18: 0 | EO18: 0 | EP18: 0 | EQ18: 0 | ER18: 0 | ES18: 0 | ET18: 0 | EU18: 0 | EV18: 0 | EW18: 0 | EX18: 0 | EY18: 0 | EZ18: 0 | FA18: 0 | FB18: 0 | FC18: 0 | FD18: 0 | FE18: 0 | FF18: 0 | FG18: 0 | FH18: 0 | FI18: 0 | FJ18: 0 | FK18: 0 | FL18: 0 | FM18: 0 | FN18: 0 | FO18: 0 | FP18: 0 | FQ18: 0 | FR18: 0 | FS18: 0 | FT18: 0 | FU18: 0 | FV18: 0 | FW18: 0
B19: CLP | C19: 0.0337965142 | D19: 0.02228655766 | E19: 0.1192691125 | F19: 0.3548558428 | G19: 0.1898698797 | H19: 0.1709230728 | I19: 0.09945683089 | J19: 0.009542189593 | K19: 0 | L19: 0 | M19: 0 | N19: 0 | O19: 0 | P19: 0 | Q19: 0 | R19: 0 | S19: 0 | T19: 0 | U19: 0 | V19: 0 | W19: 0 | X19: 0 | Y19: 0 | Z19: 0 | AA19: 0 | AB19: 0 | AC19: 0 | AD19: 0 | AE19: 0 | AF19: 0 | AG19: 0 | AH19: 0 | AI19: 0 | AJ19: 0 | AK19: 0 | AL19: 0 | AM19: 0 | AN19: 0 | AO19: 0 | AP19: 0 | AQ19: 0 | AR19: 0 | AS19: 0 | AT19: 0 | AU19: 0 | AV19: 0 | AW19: 0 | AX19: 0 | AY19: 0 | AZ19: 0 | BA19: 0 | BB19: 0 | BC19: 0 | BD19: 0 | BE19: 0 | BF19: 0 | BG19: 0 | BH19: 0 | BI19: 0 | BJ19: 0 | BK19: 0 | BL19: 0 | BM19: 0 | BN19: 0 | BO19: 0 | BP19: 0 | BQ19: 0 | BR19: 0 | BS19: 0 | BT19: 0 | BU19: 0 | BV19: 0 | BW19: 0 | BX19: 0 | BY19: 0 | BZ19: 0 | CA19: 0 | CB19: 0 | CC19: 0 | CD19: 0 | CE19: 0 | CF19: 0 | CG19: 0 | CH19: 0 | CI19: 0 | CJ19: 0 | CK19: 0 | CL19: 0 | CM19: 0 | CN19: 0 | CO19: 0 | CP19: 0 | CQ19: 0 | CR19: 0 | CS19: 0 | CT19: 0 | CU19: 0 | CV19: 0 | CW19: 0 | CX19: 0 | CY19: 0 | CZ19: 0 | DA19: 0 | DB19: 0 | DC19: 0 | DD19: 0 | DE19: 0 | DF19: 0 | DG19: 0 | DH19: 0 | DI19: 0 | DJ19: 0 | DK19: 0 | DL19: 0 | DM19: 0 | DN19: 0 | DO19: 0 | DP19: 0 | DQ19: 0 | DR19: 0 | DS19: 0 | DT19: 0 | DU19: 0 | DV19: 0 | DW19: 0 | DX19: 0 | DY19: 0 | DZ19: 0 | EA19: 0 | EB19: 0 | EC19: 0 | ED19: 0 | EE19: 0 | EF19: 0 | EG19: 0 | EH19: 0 | EI19: 0 | EJ19: 0 | EK19: 0 | EL19: 0 | EM19: 0 | EN19: 0 | EO19: 0 | EP19: 0 | EQ19: 0 | ER19: 0 | ES19: 0 | ET19: 0 | EU19: 0 | EV19: 0 | EW19: 0 | EX19: 0 | EY19: 0 | EZ19: 0 | FA19: 0 | FB19: 0 | FC19: 0 | FD19: 0 | FE19: 0 | FF19: 0 | FG19: 0 | FH19: 0 | FI19: 0 | FJ19: 0 | FK19: 0 | FL19: 0 | FM19: 0 | FN19: 0 | FO19: 0 | FP19: 0 | FQ19: 0 | FR19: 0 | FS19: 0 | FT19: 0 | FU19: 0 | FV19: 0 | FW19: 0
B20: CLS | C20: 0.01275484969 | D20: 0.02327210474 | E20: 0.0942952745 | F20: 0.1445095108 | G20: 0.2627693325 | H20: 0.09516806895 | I20: 0.009879191476 | J20: 0.006474364054 | K20: 0.06373052676 | L20: 0.1744636577 | M20: 0.01306049171 | N20: 0.09962262707 | O20: 0 | P20: 0 | Q20: 0 | R20: 0 | S20: 0 | T20: 0 | U20: 0 | V20: 0 | W20: 0 | X20: 0 | Y20: 0 | Z20: 0 | AA20: 0 | AB20: 0 | AC20: 0 | AD20: 0 | AE20: 0 | AF20: 0 | AG20: 0 | AH20: 0 | AI20: 0 | AJ20: 0 | AK20: 0 | AL20: 0 | AM20: 0 | AN20: 0 | AO20: 0 | AP20: 0 | AQ20: 0 | AR20: 0 | AS20: 0 | AT20: 0 | AU20: 0 | AV20: 0 | AW20: 0 | AX20: 0 | AY20: 0 | AZ20: 0 | BA20: 0 | BB20: 0 | BC20: 0 | BD20: 0 | BE20: 0 | BF20: 0 | BG20: 0 | BH20: 0 | BI20: 0 | BJ20: 0 | BK20: 0 | BL20: 0 | BM20: 0 | BN20: 0 | BO20: 0 | BP20: 0 | BQ20: 0 | BR20: 0 | BS20: 0 | BT20: 0 | BU20: 0 | BV20: 0 | BW20: 0 | BX20: 0 | BY20: 0 | BZ20: 0 | CA20: 0 | CB20: 0 | CC20: 0 | CD20: 0 | CE20: 0 | CF20: 0 | CG20: 0 | CH20: 0 | CI20: 0 | CJ20: 0 | CK20: 0 | CL20: 0 | CM20: 0 | CN20: 0 | CO20: 0 | CP20: 0 | CQ20: 0 | CR20: 0 | CS20: 0 | CT20: 0 | CU20: 0 | CV20: 0 | CW20: 0 | CX20: 0 | CY20: 0 | CZ20: 0 | DA20: 0 | DB20: 0 | DC20: 0 | DD20: 0 | DE20: 0 | DF20: 0 | DG20: 0 | DH20: 0 | DI20: 0 | DJ20: 0 | DK20: 0 | DL20: 0 | DM20: 0 | DN20: 0 | DO20: 0 | DP20: 0 | DQ20: 0 | DR20: 0 | DS20: 0 | DT20: 0 | DU20: 0 | DV20: 0 | DW20: 0 | DX20: 0 | DY20: 0 | DZ20: 0 | EA20: 0 | EB20: 0 | EC20: 0 | ED20: 0 | EE20: 0 | EF20: 0 | EG20: 0 | EH20: 0 | EI20: 0 | EJ20: 0 | EK20: 0 | EL20: 0 | EM20: 0 | EN20: 0 | EO20: 0 | EP20: 0 | EQ20: 0 | ER20: 0 | ES20: 0 | ET20: 0 | EU20: 0 | EV20: 0 | EW20: 0 | EX20: 0 | EY20: 0 | EZ20: 0 | FA20: 0 | FB20: 0 | FC20: 0 | FD20: 0 | FE20: 0 | FF20: 0 | FG20: 0 | FH20: 0 | FI20: 0 | FJ20: 0 | FK20: 0 | FL20: 0 | FM20: 0 | FN20: 0 | FO20: 0 | FP20: 0 | FQ20: 0 | FR20: 0 | FS20: 0 | FT20: 0 | FU20: 0 | FV20: 0 | FW20: 0
A21: CR | B21: CRA | C21: 0.03392949454 | D21: 3.759463909e-05 | E21: 0.08164175448 | F21: 0 | G21: 0.03729241363 | H21: 0.2341349448 | I21: 0.1102691695 | J21: 0.01479450543 | K21: 0.0279839968 | L21: 0.000987601768 | M21: 0.01761057184 | N21: 0.01084017999 | O21: 0.05468182267 | P21: 0.2424749981 | Q21: 0.1333209518 | R21: 0 | S21: 0 | T21: 0 | U21: 0 | V21: 0 | W21: 0 | X21: 0 | Y21: 0 | Z21: 0 | AA21: 0 | AB21: 0 | AC21: 0 | AD21: 0 | AE21: 0 | AF21: 0 | AG21: 0 | AH21: 0 | AI21: 0 | AJ21: 0 | AK21: 0 | AL21: 0 | AM21: 0 | AN21: 0 | AO21: 0 | AP21: 0 | AQ21: 0 | AR21: 0 | AS21: 0 | AT21: 0 | AU21: 0 | AV21: 0 | AW21: 0 | AX21: 0 | AY21: 0 | AZ21: 0 | BA21: 0 | BB21: 0 | BC21: 0 | BD21: 0 | BE21: 0 | BF21: 0 | BG21: 0 | BH21: 0 | BI21: 0 | BJ21: 0 | BK21: 0 | BL21: 0 | BM21: 0 | BN21: 0 | BO21: 0 | BP21: 0 | BQ21: 0 | BR21: 0 | BS21: 0 | BT21: 0 | BU21: 0 | BV21: 0 | BW21: 0 | BX21: 0 | BY21: 0 | BZ21: 0 | CA21: 0 | CB21: 0 | CC21: 0 | CD21: 0 | CE21: 0 | CF21: 0 | CG21: 0 | CH21: 0 | CI21: 0 | CJ21: 0 | CK21: 0 | CL21: 0 | CM21: 0 | CN21: 0 | CO21: 0 | CP21: 0 | CQ21: 0 | CR21: 0 | CS21: 0 | CT21: 0 | CU21: 0 | CV21: 0 | CW21: 0 | CX21: 0 | CY21: 0 | CZ21: 0 | DA21: 0 | DB21: 0 | DC21: 0 | DD21: 0 | DE21: 0 | DF21: 0 | DG21: 0 | DH21: 0 | DI21: 0 | DJ21: 0 | DK21: 0 | DL21: 0 | DM21: 0 | DN21: 0 | DO21: 0 | DP21: 0 | DQ21: 0 | DR21: 0 | DS21: 0 | DT21: 0 | DU21: 0 | DV21: 0 | DW21: 0 | DX21: 0 | DY21: 0 | DZ21: 0 | EA21: 0 | EB21: 0 | EC21: 0 | ED21: 0 | EE21: 0 | EF21: 0 | EG21: 0 | EH21: 0 | EI21: 0 | EJ21: 0 | EK21: 0 | EL21: 0 | EM21: 0 | EN21: 0 | EO21: 0 | EP21: 0 | EQ21: 0 | ER21: 0 | ES21: 0 | ET21: 0 | EU21: 0 | EV21: 0 | EW21: 0 | EX21: 0 | EY21: 0 | EZ21: 0 | FA21: 0 | FB21: 0 | FC21: 0 | FD21: 0 | FE21: 0 | FF21: 0 | FG21: 0 | FH21: 0 | FI21: 0 | FJ21: 0 | FK21: 0 | FL21: 0 | FM21: 0 | FN21: 0 | FO21: 0 | FP21: 0 | FQ21: 0 | FR21: 0 | FS21: 0 | FT21: 0 | FU21: 0 | FV21: 0 | FW21: 0
B22: CRB | C22: 0 | D22: 0.02374277203 | E22: 0.03105319577 | F22: 0.08927761572 | G22: 0.0931595873 | H22: 0.05434373679 | I22: 0.1579974026 | J22: 0 | K22: 0 | L22: 0.1095958008 | M22: 0 | N22: 0 | O22: 0 | P22: 0.440829889 | Q22: 0 | R22: 0 | S22: 0 | T22: 0 | U22: 0 | V22: 0 | W22: 0 | X22: 0 | Y22: 0 | Z22: 0 | AA22: 0 | AB22: 0 | AC22: 0 | AD22: 0 | AE22: 0 | AF22: 0 | AG22: 0 | AH22: 0 | AI22: 0 | AJ22: 0 | AK22: 0 | AL22: 0 | AM22: 0 | AN22: 0 | AO22: 0 | AP22: 0 | AQ22: 0 | AR22: 0 | AS22: 0 | AT22: 0 | AU22: 0 | AV22: 0 | AW22: 0 | AX22: 0 | AY22: 0 | AZ22: 0 | BA22: 0 | BB22: 0 | BC22: 0 | BD22: 0 | BE22: 0 | BF22: 0 | BG22: 0 | BH22: 0 | BI22: 0 | BJ22: 0 | BK22: 0 | BL22: 0 | BM22: 0 | BN22: 0 | BO22: 0 | BP22: 0 | BQ22: 0 | BR22: 0 | BS22: 0 | BT22: 0 | BU22: 0 | BV22: 0 | BW22: 0 | BX22: 0 | BY22: 0 | BZ22: 0 | CA22: 0 | CB22: 0 | CC22: 0 | CD22: 0 | CE22: 0 | CF22: 0 | CG22: 0 | CH22: 0 | CI22: 0 | CJ22: 0 | CK22: 0 | CL22: 0 | CM22: 0 | CN22: 0 | CO22: 0 | CP22: 0 | CQ22: 0 | CR22: 0 | CS22: 0 | CT22: 0 | CU22: 0 | CV22: 0 | CW22: 0 | CX22: 0 | CY22: 0 | CZ22: 0 | DA22: 0 | DB22: 0 | DC22: 0 | DD22: 0 | DE22: 0 | DF22: 0 | DG22: 0 | DH22: 0 | DI22: 0 | DJ22: 0 | DK22: 0 | DL22: 0 | DM22: 0 | DN22: 0 | DO22: 0 | DP22: 0 | DQ22: 0 | DR22: 0 | DS22: 0 | DT22: 0 | DU22: 0 | DV22: 0 | DW22: 0 | DX22: 0 | DY22: 0 | DZ22: 0 | EA22: 0 | EB22: 0 | EC22: 0 | ED22: 0 | EE22: 0 | EF22: 0 | EG22: 0 | EH22: 0 | EI22: 0 | EJ22: 0 | EK22: 0 | EL22: 0 | EM22: 0 | EN22: 0 | EO22: 0 | EP22: 0 | EQ22: 0 | ER22: 0 | ES22: 0 | ET22: 0 | EU22: 0 | EV22: 0 | EW22: 0 | EX22: 0 | EY22: 0 | EZ22: 0 | FA22: 0 | FB22: 0 | FC22: 0 | FD22: 0 | FE22: 0 | FF22: 0 | FG22: 0 | FH22: 0 | FI22: 0 | FJ22: 0 | FK22: 0 | FL22: 0 | FM22: 0 | FN22: 0 | FO22: 0 | FP22: 0 | FQ22: 0 | FR22: 0 | FS22: 0 | FT22: 0 | FU22: 0 | FV22: 0 | FW22: 0
B23: CRE | C23: 0 | D23: 0.004142159951 | E23: 0 | F23: 0.009816363855 | G23: 0.001267681636 | H23: 0.2142614503 | I23: 0.28051618 | J23: 0.02380723408 | K23: 0.1136400451 | L23: 0.09672971722 | M23: 0.005655941334 | N23: 0.06026073727 | O23: 0 | P23: 0.1581596846 | Q23: 0.0002841338714 | R23: 0 | S23: 0 | T23: 0 | U23: 0.01279279529 | V23: 0 | W23: 0.01866587549 | X23: 0 | Y23: 0 | Z23: 0 | AA23: 0 | AB23: 0 | AC23: 0 | AD23: 0 | AE23: 0 | AF23: 0 | AG23: 0 | AH23: 0 | AI23: 0 | AJ23: 0 | AK23: 0 | AL23: 0 | AM23: 0 | AN23: 0 | AO23: 0 | AP23: 0 | AQ23: 0 | AR23: 0 | AS23: 0 | AT23: 0 | AU23: 0 | AV23: 0 | AW23: 0 | AX23: 0 | AY23: 0 | AZ23: 0 | BA23: 0 | BB23: 0 | BC23: 0 | BD23: 0 | BE23: 0 | BF23: 0 | BG23: 0 | BH23: 0 | BI23: 0 | BJ23: 0 | BK23: 0 | BL23: 0 | BM23: 0 | BN23: 0 | BO23: 0 | BP23: 0 | BQ23: 0 | BR23: 0 | BS23: 0 | BT23: 0 | BU23: 0 | BV23: 0 | BW23: 0 | BX23: 0 | BY23: 0 | BZ23: 0 | CA23: 0 | CB23: 0 | CC23: 0 | CD23: 0 | CE23: 0 | CF23: 0 | CG23: 0 | CH23: 0 | CI23: 0 | CJ23: 0 | CK23: 0 | CL23: 0 | CM23: 0 | CN23: 0 | CO23: 0 | CP23: 0 | CQ23: 0 | CR23: 0 | CS23: 0 | CT23: 0 | CU23: 0 | CV23: 0 | CW23: 0 | CX23: 0 | CY23: 0 | CZ23: 0 | DA23: 0 | DB23: 0 | DC23: 0 | DD23: 0 | DE23: 0 | DF23: 0 | DG23: 0 | DH23: 0 | DI23: 0 | DJ23: 0 | DK23: 0 | DL23: 0 | DM23: 0 | DN23: 0 | DO23: 0 | DP23: 0 | DQ23: 0 | DR23: 0 | DS23: 0 | DT23: 0 | DU23: 0 | DV23: 0 | DW23: 0 | DX23: 0 | DY23: 0 | DZ23: 0 | EA23: 0 | EB23: 0 | EC23: 0 | ED23: 0 | EE23: 0 | EF23: 0 | EG23: 0 | EH23: 0 | EI23: 0 | EJ23: 0 | EK23: 0 | EL23: 0 | EM23: 0 | EN23: 0 | EO23: 0 | EP23: 0 | EQ23: 0 | ER23: 0 | ES23: 0 | ET23: 0 | EU23: 0 | EV23: 0 | EW23: 0 | EX23: 0 | EY23: 0 | EZ23: 0 | FA23: 0 | FB23: 0 | FC23: 0 | FD23: 0 | FE23: 0 | FF23: 0 | FG23: 0 | FH23: 0 | FI23: 0 | FJ23: 0 | FK23: 0 | FL23: 0 | FM23: 0 | FN23: 0 | FO23: 0 | FP23: 0 | FQ23: 0 | FR23: 0 | FS23: 0 | FT23: 0 | FU23: 0 | FV23: 0 | FW23: 0
B24: CRP | C24: 0.0210449506 | D24: 0.05951247447 | E24: 0.09901650997 | F24: 0.1223061667 | G24: 0.180123558 | H24: 0.04275176653 | I24: 0.06296455156 | J24: 0.056148028 | K24: 0.06688034915 | L24: 0.03435871527 | M24: 0.0123631351 | N24: 0.05184206067 | O24: 0.03006791556 | P24: 0.05517305095 | Q24: 0.006466621213 | R24: 0.0002247999857 | S24: 0.0004625514108 | T24: 0.01433871759 | U24: 0 | V24: 0 | W24: 0.003039318578 | X24: 0 | Y24: 0 | Z24: 0 | AA24: 0.004448626316 | AB24: 0 | AC24: 0 | AD24: 0 | AE24: 0.002192097215 | AF24: 0.001985331651 | AG24: 0.03417782209 | AH24: 0 | AI24: 0.03811088148 | AJ24: 0 | AK24: 0 | AL24: 0 | AM24: 0 | AN24: 0 | AO24: 0 | AP24: 0 | AQ24: 0 | AR24: 0 | AS24: 0 | AT24: 0 | AU24: 0 | AV24: 0 | AW24: 0 | AX24: 0 | AY24: 0 | AZ24: 0 | BA24: 0 | BB24: 0 | BC24: 0 | BD24: 0 | BE24: 0 | BF24: 0 | BG24: 0 | BH24: 0 | BI24: 0 | BJ24: 0 | BK24: 0 | BL24: 0 | BM24: 0 | BN24: 0 | BO24: 0 | BP24: 0 | BQ24: 0 | BR24: 0 | BS24: 0 | BT24: 0 | BU24: 0 | BV24: 0 | BW24: 0 | BX24: 0 | BY24: 0 | BZ24: 0 | CA24: 0 | CB24: 0 | CC24: 0 | CD24: 0 | CE24: 0 | CF24: 0 | CG24: 0 | CH24: 0 | CI24: 0 | CJ24: 0 | CK24: 0 | CL24: 0 | CM24: 0 | CN24: 0 | CO24: 0 | CP24: 0 | CQ24: 0 | CR24: 0 | CS24: 0 | CT24: 0 | CU24: 0 | CV24: 0 | CW24: 0 | CX24: 0 | CY24: 0 | CZ24: 0 | DA24: 0 | DB24: 0 | DC24: 0 | DD24: 0 | DE24: 0 | DF24: 0 | DG24: 0 | DH24: 0 | DI24: 0 | DJ24: 0 | DK24: 0 | DL24: 0 | DM24: 0 | DN24: 0 | DO24: 0 | DP24: 0 | DQ24: 0 | DR24: 0 | DS24: 0 | DT24: 0 | DU24: 0 | DV24: 0 | DW24: 0 | DX24: 0 | DY24: 0 | DZ24: 0 | EA24: 0 | EB24: 0 | EC24: 0 | ED24: 0 | EE24: 0 | EF24: 0 | EG24: 0 | EH24: 0 | EI24: 0 | EJ24: 0 | EK24: 0 | EL24: 0 | EM24: 0 | EN24: 0 | EO24: 0 | EP24: 0 | EQ24: 0 | ER24: 0 | ES24: 0 | ET24: 0 | EU24: 0 | EV24: 0 | EW24: 0 | EX24: 0 | EY24: 0 | EZ24: 0 | FA24: 0 | FB24: 0 | FC24: 0 | FD24: 0 | FE24: 0 | FF24: 0 | FG24: 0 | FH24: 0 | FI24: 0 | FJ24: 0 | FK24: 0 | FL24: 0 | FM24: 0 | FN24: 0 | FO24: 0 | FP24: 0 | FQ24: 0 | FR24: 0 | FS24: 0 | FT24: 0 | FU24: 0 | FV24: 0 | FW24: 0
B25: CRR | C25: 0 | D25: 0.02763479077 | E25: 0.03442916427 | F25: 0.2436488018 | G25: 0.2833629738 | H25: 0.0001229959653 | I25: 0.09562657852 | J25: 0.003911685396 | K25: 0 | L25: 0 | M25: 0 | N25: 0.08726476226 | O25: 0 | P25: 0.1707734537 | Q25: 0.0532247935 | R25: 0 | S25: 0 | T25: 0 | U25: 0 | V25: 0 | W25: 0 | X25: 0 | Y25: 0 | Z25: 0 | AA25: 0 | AB25: 0 | AC25: 0 | AD25: 0 | AE25: 0 | AF25: 0 | AG25: 0 | AH25: 0 | AI25: 0 | AJ25: 0 | AK25: 0 | AL25: 0 | AM25: 0 | AN25: 0 | AO25: 0 | AP25: 0 | AQ25: 0 | AR25: 0 | AS25: 0 | AT25: 0 | AU25: 0 | AV25: 0 | AW25: 0 | AX25: 0 | AY25: 0 | AZ25: 0 | BA25: 0 | BB25: 0 | BC25: 0 | BD25: 0 | BE25: 0 | BF25: 0 | BG25: 0 | BH25: 0 | BI25: 0 | BJ25: 0 | BK25: 0 | BL25: 0 | BM25: 0 | BN25: 0 | BO25: 0 | BP25: 0 | BQ25: 0 | BR25: 0 | BS25: 0 | BT25: 0 | BU25: 0 | BV25: 0 | BW25: 0 | BX25: 0 | BY25: 0 | BZ25: 0 | CA25: 0 | CB25: 0 | CC25: 0 | CD25: 0 | CE25: 0 | CF25: 0 | CG25: 0 | CH25: 0 | CI25: 0 | CJ25: 0 | CK25: 0 | CL25: 0 | CM25: 0 | CN25: 0 | CO25: 0 | CP25: 0 | CQ25: 0 | CR25: 0 | CS25: 0 | CT25: 0 | CU25: 0 | CV25: 0 | CW25: 0 | CX25: 0 | CY25: 0 | CZ25: 0 | DA25: 0 | DB25: 0 | DC25: 0 | DD25: 0 | DE25: 0 | DF25: 0 | DG25: 0 | DH25: 0 | DI25: 0 | DJ25: 0 | DK25: 0 | DL25: 0 | DM25: 0 | DN25: 0 | DO25: 0 | DP25: 0 | DQ25: 0 | DR25: 0 | DS25: 0 | DT25: 0 | DU25: 0 | DV25: 0 | DW25: 0 | DX25: 0 | DY25: 0 | DZ25: 0 | EA25: 0 | EB25: 0 | EC25: 0 | ED25: 0 | EE25: 0 | EF25: 0 | EG25: 0 | EH25: 0 | EI25: 0 | EJ25: 0 | EK25: 0 | EL25: 0 | EM25: 0 | EN25: 0 | EO25: 0 | EP25: 0 | EQ25: 0 | ER25: 0 | ES25: 0 | ET25: 0 | EU25: 0 | EV25: 0 | EW25: 0 | EX25: 0 | EY25: 0 | EZ25: 0 | FA25: 0 | FB25: 0 | FC25: 0 | FD25: 0 | FE25: 0 | FF25: 0 | FG25: 0 | FH25: 0 | FI25: 0 | FJ25: 0 | FK25: 0 | FL25: 0 | FM25: 0 | FN25: 0 | FO25: 0 | FP25: 0 | FQ25: 0 | FR25: 0 | FS25: 0 | FT25: 0 | FU25: 0 | FV25: 0 | FW25: 0
B26: CRS | C26: 0.02339180234 | D26: 0.1377443857 | E26: 0.131776933 | F26: 0.1635233041 | G26: 0 | H26: 0.2171911068 | I26: 0.08362963175 | J26: 0.006146030651 | K26: 0.1334856329 | L26: 0.0412211313 | M26: 0.03894057686 | N26: 0.01762858346 | O26: 0.005320881111 | P26: 0 | Q26: 0 | R26: 0 | S26: 0 | T26: 0 | U26: 0 | V26: 0 | W26: 0 | X26: 0 | Y26: 0 | Z26: 0 | AA26: 0 | AB26: 0 | AC26: 0 | AD26: 0 | AE26: 0 | AF26: 0 | AG26: 0 | AH26: 0 | AI26: 0 | AJ26: 0 | AK26: 0 | AL26: 0 | AM26: 0 | AN26: 0 | AO26: 0 | AP26: 0 | AQ26: 0 | AR26: 0 | AS26: 0 | AT26: 0 | AU26: 0 | AV26: 0 | AW26: 0 | AX26: 0 | AY26: 0 | AZ26: 0 | BA26: 0 | BB26: 0 | BC26: 0 | BD26: 0 | BE26: 0 | BF26: 0 | BG26: 0 | BH26: 0 | BI26: 0 | BJ26: 0 | BK26: 0 | BL26: 0 | BM26: 0 | BN26: 0 | BO26: 0 | BP26: 0 | BQ26: 0 | BR26: 0 | BS26: 0 | BT26: 0 | BU26: 0 | BV26: 0 | BW26: 0 | BX26: 0 | BY26: 0 | BZ26: 0 | CA26: 0 | CB26: 0 | CC26: 0 | CD26: 0 | CE26: 0 | CF26: 0 | CG26: 0 | CH26: 0 | CI26: 0 | CJ26: 0 | CK26: 0 | CL26: 0 | CM26: 0 | CN26: 0 | CO26: 0 | CP26: 0 | CQ26: 0 | CR26: 0 | CS26: 0 | CT26: 0 | CU26: 0 | CV26: 0 | CW26: 0 | CX26: 0 | CY26: 0 | CZ26: 0 | DA26: 0 | DB26: 0 | DC26: 0 | DD26: 0 | DE26: 0 | DF26: 0 | DG26: 0 | DH26: 0 | DI26: 0 | DJ26: 0 | DK26: 0 | DL26: 0 | DM26: 0 | DN26: 0 | DO26: 0 | DP26: 0 | DQ26: 0 | DR26: 0 | DS26: 0 | DT26: 0 | DU26: 0 | DV26: 0 | DW26: 0 | DX26: 0 | DY26: 0 | DZ26: 0 | EA26: 0 | EB26: 0 | EC26: 0 | ED26: 0 | EE26: 0 | EF26: 0 | EG26: 0 | EH26: 0 | EI26: 0 | EJ26: 0 | EK26: 0 | EL26: 0 | EM26: 0 | EN26: 0 | EO26: 0 | EP26: 0 | EQ26: 0 | ER26: 0 | ES26: 0 | ET26: 0 | EU26: 0 | EV26: 0 | EW26: 0 | EX26: 0 | EY26: 0 | EZ26: 0 | FA26: 0 | FB26: 0 | FC26: 0 | FD26: 0 | FE26: 0 | FF26: 0 | FG26: 0 | FH26: 0 | FI26: 0 | FJ26: 0 | FK26: 0 | FL26: 0 | FM26: 0 | FN26: 0 | FO26: 0 | FP26: 0 | FQ26: 0 | FR26: 0 | FS26: 0 | FT26: 0 | FU26: 0 | FV26: 0 | FW26: 0
B27: CRU | C27: 0.02579932117 | D27: 0.009806194105 | E27: 0.0344273353 | F27: 0.03100833836 | G27: 0.0362965674 | H27: 0.06028278092 | I27: 0.2975581059 | J27: 0.03157979253 | K27: 0.1179850605 | L27: 0.07805683581 | M27: 0.02246218482 | N27: 0.06697105824 | O27: 0.006394430636 | P27: 0.01667714798 | Q27: 0.004786865411 | R27: 0 | S27: 0.0707418371 | T27: 0.001860226373 | U27: 0.002366116946 | V27: 0.05466362279 | W27: 0.03027617774 | X27: 0 | Y27: 0 | Z27: 0 | AA27: 0 | AB27: 0 | AC27: 0 | AD27: 0 | AE27: 0 | AF27: 0 | AG27: 0 | AH27: 0 | AI27: 0 | AJ27: 0 | AK27: 0 | AL27: 0 | AM27: 0 | AN27: 0 | AO27: 0 | AP27: 0 | AQ27: 0 | AR27: 0 | AS27: 0 | AT27: 0 | AU27: 0 | AV27: 0 | AW27: 0 | AX27: 0 | AY27: 0 | AZ27: 0 | BA27: 0 | BB27: 0 | BC27: 0 | BD27: 0 | BE27: 0 | BF27: 0 | BG27: 0 | BH27: 0 | BI27: 0 | BJ27: 0 | BK27: 0 | BL27: 0 | BM27: 0 | BN27: 0 | BO27: 0 | BP27: 0 | BQ27: 0 | BR27: 0 | BS27: 0 | BT27: 0 | BU27: 0 | BV27: 0 | BW27: 0 | BX27: 0 | BY27: 0 | BZ27: 0 | CA27: 0 | CB27: 0 | CC27: 0 | CD27: 0 | CE27: 0 | CF27: 0 | CG27: 0 | CH27: 0 | CI27: 0 | CJ27: 0 | CK27: 0 | CL27: 0 | CM27: 0 | CN27: 0 | CO27: 0 | CP27: 0 | CQ27: 0 | CR27: 0 | CS27: 0 | CT27: 0 | CU27: 0 | CV27: 0 | CW27: 0 | CX27: 0 | CY27: 0 | CZ27: 0 | DA27: 0 | DB27: 0 | DC27: 0 | DD27: 0 | DE27: 0 | DF27: 0 | DG27: 0 | DH27: 0 | DI27: 0 | DJ27: 0 | DK27: 0 | DL27: 0 | DM27: 0 | DN27: 0 | DO27: 0 | DP27: 0 | DQ27: 0 | DR27: 0 | DS27: 0 | DT27: 0 | DU27: 0 | DV27: 0 | DW27: 0 | DX27: 0 | DY27: 0 | DZ27: 0 | EA27: 0 | EB27: 0 | EC27: 0 | ED27: 0 | EE27: 0 | EF27: 0 | EG27: 0 | EH27: 0 | EI27: 0 | EJ27: 0 | EK27: 0 | EL27: 0 | EM27: 0 | EN27: 0 | EO27: 0 | EP27: 0 | EQ27: 0 | ER27: 0 | ES27: 0 | ET27: 0 | EU27: 0 | EV27: 0 | EW27: 0 | EX27: 0 | EY27: 0 | EZ27: 0 | FA27: 0 | FB27: 0 | FC27: 0 | FD27: 0 | FE27: 0 | FF27: 0 | FG27: 0 | FH27: 0 | FI27: 0 | FJ27: 0 | FK27: 0 | FL27: 0 | FM27: 0 | FN27: 0 | FO27: 0 | FP27: 0 | FQ27: 0 | FR27: 0 | FS27: 0 | FT27: 0 | FU27: 0 | FV27: 0 | FW27: 0
B28: CRV | C28: 0.0002741131116 | D28: 0.000201804581 | E28: 0.001020516637 | F28: 0.0003653794098 | G28: 0.003840808423 | H28: 0.004550597383 | I28: 0.00112934602 | J28: 0.1213354509 | K28: 0.00282448686 | L28: 0 | M28: 0.001001156451 | N28: 0.0002823378831 | O28: 0 | P28: 0.1562360559 | Q28: 0.2507756367 | R28: 0.06654816417 | S28: 0.01365367194 | T28: 0.1660193059 | U28: 0.01899277243 | V28: 0.04526834849 | W28: 0.03367663008 | X28: 0.03204423895 | Y28: 0.06088852912 | Z28: 0 | AA28: 0.01866587549 | AB28: 0 | AC28: 0 | AD28: 0 | AE28: 0 | AF28: 0 | AG28: 0 | AH28: 0 | AI28: 0 | AJ28: 0 | AK28: 0 | AL28: 0 | AM28: 0 | AN28: 0 | AO28: 0 | AP28: 0 | AQ28: 0 | AR28: 0 | AS28: 0 | AT28: 0 | AU28: 0 | AV28: 0 | AW28: 0 | AX28: 0 | AY28: 0 | AZ28: 0 | BA28: 0 | BB28: 0 | BC28: 0 | BD28: 0 | BE28: 0 | BF28: 0 | BG28: 0 | BH28: 0 | BI28: 0 | BJ28: 0 | BK28: 0 | BL28: 0 | BM28: 0 | BN28: 0 | BO28: 0 | BP28: 0 | BQ28: 0 | BR28: 0 | BS28: 0 | BT28: 0 | BU28: 0 | BV28: 0 | BW28: 0 | BX28: 0 | BY28: 0 | BZ28: 0 | CA28: 0 | CB28: 0 | CC28: 0 | CD28: 0 | CE28: 0 | CF28: 0 | CG28: 0 | CH28: 0 | CI28: 0 | CJ28: 0 | CK28: 0 | CL28: 0 | CM28: 0 | CN28: 0 | CO28: 0 | CP28: 0 | CQ28: 0 | CR28: 0 | CS28: 0 | CT28: 0 | CU28: 0 | CV28: 0 | CW28: 0 | CX28: 0 | CY28: 0 | CZ28: 0 | DA28: 0 | DB28: 0 | DC28: 0 | DD28: 0 | DE28: 0 | DF28: 0 | DG28: 0 | DH28: 0 | DI28: 0 | DJ28: 0 | DK28: 0 | DL28: 0 | DM28: 0 | DN28: 0 | DO28: 0 | DP28: 0 | DQ28: 0 | DR28: 0 | DS28: 0 | DT28: 0 | DU28: 0 | DV28: 0 | DW28: 0 | DX28: 0 | DY28: 0 | DZ28: 0 | EA28: 0 | EB28: 0 | EC28: 0 | ED28: 0 | EE28: 0 | EF28: 0 | EG28: 0 | EH28: 0 | EI28: 0 | EJ28: 0 | EK28: 0 | EL28: 0 | EM28: 0 | EN28: 0 | EO28: 0 | EP28: 0 | EQ28: 0 | ER28: 0 | ES28: 0 | ET28: 0 | EU28: 0 | EV28: 0 | EW28: 0 | EX28: 0 | EY28: 0 | EZ28: 0 | FA28: 0 | FB28: 0 | FC28: 0 | FD28: 0 | FE28: 0 | FF28: 0 | FG28: 0 | FH28: 0 | FI28: 0 | FJ28: 0 | FK28: 0 | FL28: 0 | FM28: 0 | FN28: 0 | FO28: 0 | FP28: 0 | FQ28: 0 | FR28: 0 | FS28: 0 | FT28: 0 | FU28: 0 | FV28: 0 | FW28: 0
A29: CS | B29: CSO | C29: 0.003400558503 | D29: 0.1639113601 | E29: 0.1236425388 | F29: 0.3271853542 | G29: 0.05403157807 | H29: 0.07054587647 | I29: 0.004840603149 | J29: 0.1030545866 | K29: 0.02936641207 | L29: 0.08223555928 | M29: 0.007918886288 | N29: 0.03 | O29: 0 | P29: 0 | Q29: 0 | R29: 0 | S29: 0 | T29: 0 | U29: 0 | V29: 0 | W29: 0 | X29: 0 | Y29: 0 | Z29: 0 | AA29: 0 | AB29: 0 | AC29: 0 | AD29: 0 | AE29: 0 | AF29: 0 | AG29: 0 | AH29: 0 | AI29: 0 | AJ29: 0 | AK29: 0 | AL29: 0 | AM29: 0 | AN29: 0 | AO29: 0 | AP29: 0 | AQ29: 0 | AR29: 0 | AS29: 0 | AT29: 0 | AU29: 0 | AV29: 0 | AW29: 0 | AX29: 0 | AY29: 0 | AZ29: 0 | BA29: 0 | BB29: 0 | BC29: 0 | BD29: 0 | BE29: 0 | BF29: 0 | BG29: 0 | BH29: 0 | BI29: 0 | BJ29: 0 | BK29: 0 | BL29: 0 | BM29: 0 | BN29: 0 | BO29: 0 | BP29: 0 | BQ29: 0 | BR29: 0 | BS29: 0 | BT29: 0 | BU29: 0 | BV29: 0 | BW29: 0 | BX29: 0 | BY29: 0 | BZ29: 0 | CA29: 0 | CB29: 0 | CC29: 0 | CD29: 0 | CE29: 0 | CF29: 0 | CG29: 0 | CH29: 0 | CI29: 0 | CJ29: 0 | CK29: 0 | CL29: 0 | CM29: 0 | CN29: 0 | CO29: 0 | CP29: 0 | CQ29: 0 | CR29: 0 | CS29: 0 | CT29: 0 | CU29: 0 | CV29: 0 | CW29: 0 | CX29: 0 | CY29: 0 | CZ29: 0 | DA29: 0 | DB29: 0 | DC29: 0 | DD29: 0 | DE29: 0 | DF29: 0 | DG29: 0 | DH29: 0 | DI29: 0 | DJ29: 0 | DK29: 0 | DL29: 0 | DM29: 0 | DN29: 0 | DO29: 0 | DP29: 0 | DQ29: 0 | DR29: 0 | DS29: 0 | DT29: 0 | DU29: 0 | DV29: 0 | DW29: 0 | DX29: 0 | DY29: 0 | DZ29: 0 | EA29: 0 | EB29: 0 | EC29: 0 | ED29: 0 | EE29: 0 | EF29: 0 | EG29: 0 | EH29: 0 | EI29: 0 | EJ29: 0 | EK29: 0 | EL29: 0 | EM29: 0 | EN29: 0 | EO29: 0 | EP29: 0 | EQ29: 0 | ER29: 0 | ES29: 0 | ET29: 0 | EU29: 0 | EV29: 0 | EW29: 0 | EX29: 0 | EY29: 0 | EZ29: 0 | FA29: 0 | FB29: 0 | FC29: 0 | FD29: 0 | FE29: 0 | FF29: 0 | FG29: 0 | FH29: 0 | FI29: 0 | FJ29: 0 | FK29: 0 | FL29: 0 | FM29: 0 | FN29: 0 | FO29: 0 | FP29: 0 | FQ29: 0 | FR29: 0 | FS29: 0 | FT29: 0 | FU29: 0 | FV29: 0 | FW29: 0
B30: CSU | C30: 0.0284437835 | D30: 0.798459856 | E30: 0.07488007755 | F30: 0.07518454388 | G30: 0 | H30: 0 | I30: 0.02303173906 | J30: 0 | K30: 0 | L30: 0 | M30: 0 | N30: 0 | O30: 0 | P30: 0 | Q30: 0 | R30: 0 | S30: 0 | T30: 0 | U30: 0 | V30: 0 | W30: 0 | X30: 0 | Y30: 0 | Z30: 0 | AA30: 0 | AB30: 0 | AC30: 0 | AD30: 0 | AE30: 0 | AF30: 0 | AG30: 0 | AH30: 0 | AI30: 0 | AJ30: 0 | AK30: 0 | AL30: 0 | AM30: 0 | AN30: 0 | AO30: 0 | AP30: 0 | AQ30: 0 | AR30: 0 | AS30: 0 | AT30: 0 | AU30: 0 | AV30: 0 | AW30: 0 | AX30: 0 | AY30: 0 | AZ30: 0 | BA30: 0 | BB30: 0 | BC30: 0 | BD30: 0 | BE30: 0 | BF30: 0 | BG30: 0 | BH30: 0 | BI30: 0 | BJ30: 0 | BK30: 0 | BL30: 0 | BM30: 0 | BN30: 0 | BO30: 0 | BP30: 0 | BQ30: 0 | BR30: 0 | BS30: 0 | BT30: 0 | BU30: 0 | BV30: 0 | BW30: 0 | BX30: 0 | BY30: 0 | BZ30: 0 | CA30: 0 | CB30: 0 | CC30: 0 | CD30: 0 | CE30: 0 | CF30: 0 | CG30: 0 | CH30: 0 | CI30: 0 | CJ30: 0 | CK30: 0 | CL30: 0 | CM30: 0 | CN30: 0 | CO30: 0 | CP30: 0 | CQ30: 0 | CR30: 0 | CS30: 0 | CT30: 0 | CU30: 0 | CV30: 0 | CW30: 0 | CX30: 0 | CY30: 0 | CZ30: 0 | DA30: 0 | DB30: 0 | DC30: 0 | DD30: 0 | DE30: 0 | DF30: 0 | DG30: 0 | DH30: 0 | DI30: 0 | DJ30: 0 | DK30: 0 | DL30: 0 | DM30: 0 | DN30: 0 | DO30: 0 | DP30: 0 | DQ30: 0 | DR30: 0 | DS30: 0 | DT30: 0 | DU30: 0 | DV30: 0 | DW30: 0 | DX30: 0 | DY30: 0 | DZ30: 0 | EA30: 0 | EB30: 0 | EC30: 0 | ED30: 0 | EE30: 0 | EF30: 0 | EG30: 0 | EH30: 0 | EI30: 0 | EJ30: 0 | EK30: 0 | EL30: 0 | EM30: 0 | EN30: 0 | EO30: 0 | EP30: 0 | EQ30: 0 | ER30: 0 | ES30: 0 | ET30: 0 | EU30: 0 | EV30: 0 | EW30: 0 | EX30: 0 | EY30: 0 | EZ30: 0 | FA30: 0 | FB30: 0 | FC30: 0 | FD30: 0 | FE30: 0 | FF30: 0 | FG30: 0 | FH30: 0 | FI30: 0 | FJ30: 0 | FK30: 0 | FL30: 0 | FM30: 0 | FN30: 0 | FO30: 0 | FP30: 0 | FQ30: 0 | FR30: 0 | FS30: 0 | FT30: 0 | FU30: 0 | FV30: 0 | FW30: 0
C33: 0.174554027 | D33: 0.03626770563 | E33: 0.08206672898 | F33: 0.127503297 | G33: 0.1807036896 | H33: 0.1098539541 | I33: 0.02608265262 | J33: 0.08072840103 | K33: 0.0232189358 | L33: 0 | M33: 0.005210098268 | N33: 0.03496914179 | O33: 0.02286346565 | P33: 0.006723090264 | Q33: 0.03974364855 | R33: 0.002455551378 | S33: 0.01989712292 | T33: 0.02715848942 | U33: 0 | V33: 0.0001468017181 | W33: 0 | X33: 0 | Y33: 0 | Z33: 0 | AA33: 0 | AB33: 0 | AC33: 0 | AD33: 0 | AE33: 0 | AF33: 0 | AG33: 0 | AH33: 0 | AI33: 0
C34: 0.05554426638 | D34: 0.04602179555 | E34: 0.08786915204 | F34: 0.4007430743 | G34: 0.2888274164 | H34: 0.03854894181 | I34: 0 | J34: 0.01289864176 | K34: 0.001770893767 | L34: 0 | M34: 0.02811853171 | N34: 0.03965728629 | O34: 0 | P34: 0 | Q34: 0 | R34: 0 | S34: 0 | T34: 0 | U34: 0 | V34: 0 | W34: 0 | X34: 0 | Y34: 0 | Z34: 0 | AA34: 0 | AB34: 0 | AC34: 0 | AD34: 0 | AE34: 0 | AF34: 0 | AG34: 0 | AH34: 0 | AI34: 0
C35: 0 | D35: 0.0003185178706 | E35: 0.0002343420368 | F35: 0.002443175965 | G35: 0 | H35: 0.007120846186 | I35: 0 | J35: 0.1562204304 | K35: 0.0003280772958 | L35: 0.002357032243 | M35: 0 | N35: 0.001124823109 | O35: 0 | P35: 0 | Q35: 0.02869622002 | R35: 0.01555689505 | S35: 0.007778214179 | T35: 0 | U35: 1.414848917e-18 | V35: 0 | W35: 0.03889107089 | X35: 0.2722374963 | Y35: 0.03889107089 | Z35: 0.1944553545 | AA35: 0 | AB35: 0.2333464331 | AC35: 0 | AD35: 0 | AE35: 0 | AF35: 0 | AG35: 0 | AH35: 0 | AI35: 0
C36: 0.0003726832783 | D36: 0.0005492183194 | E36: 0.000127497168 | F36: 0 | G36: 0.0004620934099 | H36: 0.0001199741645 | I36: 0 | J36: 0 | K36: 0.05991309899 | L36: 0.055156243 | M36: 0.06510604504 | N36: 0.1733401117 | O36: 0.2279893251 | P36: 0.02744479897 | Q36: 0.0003279163617 | R36: 0.2415717319 | S36: 0.04895678354 | T36: 0.0001418009661 | U36: 0.09842067807 | V36: 0 | W36: 0 | X36: 0 | Y36: 0 | Z36: 0 | AA36: 0 | AB36: 0 | AC36: 0 | AD36: 0 | AE36: 0 | AF36: 0 | AG36: 0 | AH36: 0 | AI36: 0
C37: 0.0002452479805 | D37: 0 | E37: 0 | F37: 0.0003923902567 | G37: 0.0009809756417 | H37: 0.00552490105 | I37: 0.01245887092 | J37: 0.003283122212 | K37: 0.1288597588 | L37: 0.1359475541 | M37: 0.127727758 | N37: 0 | O37: 0 | P37: 0.1157523662 | Q37: 0.05183719985 | R37: 0.007798320851 | S37: 0.1090971249 | T37: 0.2429412022 | U37: 0 | V37: 0.03467541725 | W37: 0.02247778981 | X37: 0 | Y37: 0 | Z37: 0 | AA37: 0 | AB37: 0 | AC37: 0 | AD37: 0 | AE37: 0 | AF37: 0 | AG37: 0 | AH37: 0 | AI37: 0
C38: 0.02099871143 | D38: 0.03094078479 | E38: 0.06837226926 | F38: 0.07774610261 | G38: 0.06930845489 | H38: 0.094631472 | I38: 0.07046416052 | J38: 0.119243903 | K38: 0.07392340889 | L38: 0.05439900923 | M38: 0.04321670598 | N38: 0.05437427779 | O38: 0 | P38: 0.03418739156 | Q38: 0.05416228394 | R38: 0.006783248058 | S38: 0.04186014767 | T38: 0.02885832281 | U38: 0.001319643145 | V38: 0.05520970242 | W38: 0 | X38: 0 | Y38: 0 | Z38: 0 | AA38: 0 | AB38: 0 | AC38: 0 | AD38: 0 | AE38: 0 | AF38: 0 | AG38: 0 | AH38: 0 | AI38: 0
C39: 0.02795721036 | D39: 0.03103812571 | E39: 0.03890141856 | F39: 0.1032552255 | G39: 0.1174596838 | H39: 0.1167002406 | I39: 0.08353620286 | J39: 0.0609799835 | K39: 0.0404433027 | L39: 0.03424274575 | M39: 0.05437531078 | N39: 0.04634912773 | O39: 0.1152392767 | P39: 0.03100325333 | Q39: 0.01947780079 | R39: 0.01476032256 | S39: 0.005212872504 | T39: 0.0184050723 | U39: 0.03 | V39: 0.003135195832 | W39: 0.002142617188 | X39: 0.01 | Y39: 0 | Z39: 0 | AA39: 0 | AB39: 0 | AC39: 0 | AD39: 0 | AE39: 0 | AF39: 0 | AG39: 0 | AH39: 0 | AI39: 0
C40: 0.01214233792 | D40: 0.05745498904 | E40: 0.02537365566 | F40: 0.1742095624 | G40: 0.05304849859 | H40: 0.06254889065 | I40: 0.07208102241 | J40: 0.03890877053 | K40: 0.08411999683 | L40: 0.06577879072 | M40: 0.1621017017 | N40: 0.0138613675 | O40: 0.024907458 | P40: 0.01989002201 | Q40: 0.0008580924486 | R40: 0.07127554696 | S40: 0.002538923325 | T40: 0.04390135447 | U40: 0 | V40: 0.005410051695 | W40: 0.009588967083 | X40: 0 | Y40: 0 | Z40: 0 | AA40: 0 | AB40: 0 | AC40: 0 | AD40: 0 | AE40: 0 | AF40: 0 | AG40: 0 | AH40: 0 | AI40: 0
C41: 0 | D41: 0 | E41: 0 | F41: 0 | G41: 0 | H41: 0 | I41: 0.001127259993 | J41: 0.007378028093 | K41: 0.005170755774 | L41: 0.0005240229598 | M41: 0 | N41: 0 | O41: 0.002762280206 | P41: 0.0005411802112 | Q41: 0.0002029425792 | R41: 0.001082372846 | S41: 0.001014712896 | T41: 0.0003720676071 | U41: 0.4610767439 | V41: 0.2070034186 | W41: 0.2939233215 | X41: 0.02 | Y41: 0 | Z41: 0 | AA41: 0 | AB41: 0 | AC41: 0 | AD41: 0 | AE41: 0 | AF41: 0 | AG41: 0 | AH41: 0 | AI41: 0
C42: 0.005653836032 | D42: 0.03636162452 | E42: 0.02610943893 | F42: 0.03028183021 | G42: 0.05403577992 | H42: 0.01550753109 | I42: 0.06422821834 | J42: 0.06032196075 | K42: 0.02026983037 | L42: 0.06031460238 | M42: 0.051439436 | N42: 0.07351436219 | O42: 0.1199099913 | P42: 0.1095795159 | Q42: 0.1156388957 | R42: 0.05505093617 | S42: 0.0553471547 | T42: 0.002367201592 | U42: 0.04406785404 | V42: 0 | W42: 0 | X42: 0 | Y42: 0 | Z42: 0 | AA42: 0 | AB42: 0 | AC42: 0 | AD42: 0 | AE42: 0 | AF42: 0 | AG42: 0 | AH42: 0 | AI42: 0
C43: 0.006537788507 | D43: 0.04491101877 | E43: 0.004182428244 | F43: 0.1812776646 | G43: 0.4873118945 | H43: 0.2757792054 | I43: 0 | J43: 0 | K43: 0 | L43: 0 | M43: 0 | N43: 0 | O43: 0 | P43: 0 | Q43: 0 | R43: 0 | S43: 0 | T43: 0 | U43: 0 | V43: 0 | W43: 0 | X43: 0 | Y43: 0 | Z43: 0 | AA43: 0 | AB43: 0 | AC43: 0 | AD43: 0 | AE43: 0 | AF43: 0 | AG43: 0 | AH43: 0 | AI43: 0
C44: 0 | D44: 0 | E44: 0.02907639298 | F44: 0.03876852397 | G44: 0.1486574529 | H44: 0.04846065496 | I44: 0.4812885228 | J44: 0 | K44: 0.04361496261 | L44: 0 | M44: 0.12141396 | N44: 0.0458411601 | O44: 0.009692130993 | P44: 0 | Q44: 0 | R44: 0.006095736194 | S44: 0 | T44: 0.02709050243 | U44: 0 | V44: 0 | W44: 0 | X44: 0 | Y44: 0 | Z44: 0 | AA44: 0 | AB44: 0 | AC44: 0 | AD44: 0 | AE44: 0 | AF44: 0 | AG44: 0 | AH44: 0 | AI44: 0
C45: 0.1060503104 | D45: 0.03029912633 | E45: 0.04525775607 | F45: 0.06636689059 | G45: 0.02426468311 | H45: 0.08411914084 | I45: 0.01396845425 | J45: 0.1165980871 | K45: 0.03841526472 | L45: 0.08213024081 | M45: 0.01429321017 | N45: 0.3079214445 | O45: 0.03720587087 | P45: 0 | Q45: 0.03310952031 | R45: 0 | S45: 0 | T45: 0 | U45: 0 | V45: 0 | W45: 0 | X45: 0 | Y45: 0 | Z45: 0 | AA45: 0 | AB45: 0 | AC45: 0 | AD45: 0 | AE45: 0 | AF45: 0 | AG45: 0 | AH45: 0 | AI45: 0
C46: 0.03663081774 | D46: 0 | E46: 0.1340476932 | F46: 0 | G46: 0.1826878562 | H46: 0.2680874366 | I46: 0.06111059671 | J46: 0 | K46: 0 | L46: 0 | M46: 0 | N46: 0 | O46: 0.2240721879 | P46: 0 | Q46: 0.09336341164 | R46: 0 | S46: 0 | T46: 0 | U46: 0 | V46: 0 | W46: 0 | X46: 0 | Y46: 0 | Z46: 0 | AA46: 0 | AB46: 0 | AC46: 0 | AD46: 0 | AE46: 0 | AF46: 0 | AG46: 0 | AH46: 0 | AI46: 0
C47: 0.08902019506 | D47: 0.008131324941 | E47: 0.2602175355 | F47: 0.02541628275 | G47: 0.02603412907 | H47: 0.001747842484 | I47: 0.1673801842 | J47: 0.337874298 | K47: 0 | L47: 0 | M47: 0 | N47: 0.005994556632 | O47: 0 | P47: 0 | Q47: 0 | R47: 0 | S47: 0 | T47: 0.07818365133 | U47: 0 | V47: 0 | W47: 0 | X47: 0 | Y47: 0 | Z47: 0 | AA47: 0 | AB47: 0 | AC47: 0 | AD47: 0 | AE47: 0 | AF47: 0 | AG47: 0 | AH47: 0 | AI47: 0
C48: 0.03001657807 | D48: 0.03522603224 | E48: 0.1655614308 | F48: 0.1372150289 | G48: 0.2897653793 | H48: 0.03877907417 | I48: 0.02762082063 | J48: 0 | K48: 0.1509355088 | L48: 0 | M48: 0 | N48: 0 | O48: 0.1172093708 | P48: 0 | Q48: 0 | R48: 0 | S48: 0 | T48: 0.007670776186 | U48: 0 | V48: 0 | W48: 0 | X48: 0 | Y48: 0 | Z48: 0 | AA48: 0 | AB48: 0 | AC48: 0 | AD48: 0 | AE48: 0 | AF48: 0 | AG48: 0 | AH48: 0 | AI48: 0
C49: 0.0337965142 | D49: 0.02228655766 | E49: 0.1192691125 | F49: 0.3548558428 | G49: 0.1898698797 | H49: 0.1709230728 | I49: 0.09945683089 | J49: 0.009542189593 | K49: 0 | L49: 0 | M49: 0 | N49: 0 | O49: 0 | P49: 0 | Q49: 0 | R49: 0 | S49: 0 | T49: 0 | U49: 0 | V49: 0 | W49: 0 | X49: 0 | Y49: 0 | Z49: 0 | AA49: 0 | AB49: 0 | AC49: 0 | AD49: 0 | AE49: 0 | AF49: 0 | AG49: 0 | AH49: 0 | AI49: 0
C50: 0.01275484969 | D50: 0.02327210474 | E50: 0.0942952745 | F50: 0.1445095108 | G50: 0.2627693325 | H50: 0.09516806895 | I50: 0.009879191476 | J50: 0.006474364054 | K50: 0.06373052676 | L50: 0.1744636577 | M50: 0.01306049171 | N50: 0.09962262707 | O50: 0 | P50: 0 | Q50: 0 | R50: 0 | S50: 0 | T50: 0 | U50: 0 | V50: 0 | W50: 0 | X50: 0 | Y50: 0 | Z50: 0 | AA50: 0 | AB50: 0 | AC50: 0 | AD50: 0 | AE50: 0 | AF50: 0 | AG50: 0 | AH50: 0 | AI50: 0
C51: 0.03392949454 | D51: 3.759463909e-05 | E51: 0.08164175448 | F51: 0 | G51: 0.03729241363 | H51: 0.2341349448 | I51: 0.1102691695 | J51: 0.01479450543 | K51: 0.0279839968 | L51: 0.000987601768 | M51: 0.01761057184 | N51: 0.01084017999 | O51: 0.05468182267 | P51: 0.2424749981 | Q51: 0.1333209518 | R51: 0 | S51: 0 | T51: 0 | U51: 0 | V51: 0 | W51: 0 | X51: 0 | Y51: 0 | Z51: 0 | AA51: 0 | AB51: 0 | AC51: 0 | AD51: 0 | AE51: 0 | AF51: 0 | AG51: 0 | AH51: 0 | AI51: 0
C52: 0 | D52: 0.02374277203 | E52: 0.03105319577 | F52: 0.08927761572 | G52: 0.0931595873 | H52: 0.05434373679 | I52: 0.1579974026 | J52: 0 | K52: 0 | L52: 0.1095958008 | M52: 0 | N52: 0 | O52: 0 | P52: 0.440829889 | Q52: 0 | R52: 0 | S52: 0 | T52: 0 | U52: 0 | V52: 0 | W52: 0 | X52: 0 | Y52: 0 | Z52: 0 | AA52: 0 | AB52: 0 | AC52: 0 | AD52: 0 | AE52: 0 | AF52: 0 | AG52: 0 | AH52: 0 | AI52: 0
C53: 0 | D53: 0.004142159951 | E53: 0 | F53: 0.009816363855 | G53: 0.001267681636 | H53: 0.2142614503 | I53: 0.28051618 | J53: 0.02380723408 | K53: 0.1136400451 | L53: 0.09672971722 | M53: 0.005655941334 | N53: 0.06026073727 | O53: 0 | P53: 0.1581596846 | Q53: 0.0002841338714 | R53: 0 | S53: 0 | T53: 0 | U53: 0.01279279529 | V53: 0 | W53: 0.01866587549 | X53: 0 | Y53: 0 | Z53: 0 | AA53: 0 | AB53: 0 | AC53: 0 | AD53: 0 | AE53: 0 | AF53: 0 | AG53: 0 | AH53: 0 | AI53: 0
C54: 0.0210449506 | D54: 0.05951247447 | E54: 0.09901650997 | F54: 0.1223061667 | G54: 0.180123558 | H54: 0.04275176653 | I54: 0.06296455156 | J54: 0.056148028 | K54: 0.06688034915 | L54: 0.03435871527 | M54: 0.0123631351 | N54: 0.05184206067 | O54: 0.03006791556 | P54: 0.05517305095 | Q54: 0.006466621213 | R54: 0.0002247999857 | S54: 0.0004625514108 | T54: 0.01433871759 | U54: 0 | V54: 0 | W54: 0.003039318578 | X54: 0 | Y54: 0 | Z54: 0 | AA54: 0.004448626316 | AB54: 0 | AC54: 0 | AD54: 0 | AE54: 0.002192097215 | AF54: 0.001985331651 | AG54: 0.03417782209 | AH54: 0 | AI54: 0.03811088148
C55: 0 | D55: 0.02763479077 | E55: 0.03442916427 | F55: 0.2436488018 | G55: 0.2833629738 | H55: 0.0001229959653 | I55: 0.09562657852 | J55: 0.003911685396 | K55: 0 | L55: 0 | M55: 0 | N55: 0.08726476226 | O55: 0 | P55: 0.1707734537 | Q55: 0.0532247935 | R55: 0 | S55: 0 | T55: 0 | U55: 0 | V55: 0 | W55: 0 | X55: 0 | Y55: 0 | Z55: 0 | AA55: 0 | AB55: 0 | AC55: 0 | AD55: 0 | AE55: 0 | AF55: 0 | AG55: 0 | AH55: 0 | AI55: 0
C56: 0.02339180234 | D56: 0.1377443857 | E56: 0.131776933 | F56: 0.1635233041 | G56: 0 | H56: 0.2171911068 | I56: 0.08362963175 | J56: 0.006146030651 | K56: 0.1334856329 | L56: 0.0412211313 | M56: 0.03894057686 | N56: 0.01762858346 | O56: 0.005320881111 | P56: 0 | Q56: 0 | R56: 0 | S56: 0 | T56: 0 | U56: 0 | V56: 0 | W56: 0 | X56: 0 | Y56: 0 | Z56: 0 | AA56: 0 | AB56: 0 | AC56: 0 | AD56: 0 | AE56: 0 | AF56: 0 | AG56: 0 | AH56: 0 | AI56: 0
C57: 0.02579932117 | D57: 0.009806194105 | E57: 0.0344273353 | F57: 0.03100833836 | G57: 0.0362965674 | H57: 0.06028278092 | I57: 0.2975581059 | J57: 0.03157979253 | K57: 0.1179850605 | L57: 0.07805683581 | M57: 0.02246218482 | N57: 0.06697105824 | O57: 0.006394430636 | P57: 0.01667714798 | Q57: 0.004786865411 | R57: 0 | S57: 0.0707418371 | T57: 0.001860226373 | U57: 0.002366116946 | V57: 0.05466362279 | W57: 0.03027617774 | X57: 0 | Y57: 0 | Z57: 0 | AA57: 0 | AB57: 0 | AC57: 0 | AD57: 0 | AE57: 0 | AF57: 0 | AG57: 0 | AH57: 0 | AI57: 0
C58: 0.0002741131116 | D58: 0.000201804581 | E58: 0.001020516637 | F58: 0.0003653794098 | G58: 0.003840808423 | H58: 0.004550597383 | I58: 0.00112934602 | J58: 0.1213354509 | K58: 0.00282448686 | L58: 0 | M58: 0.001001156451 | N58: 0.0002823378831 | O58: 0 | P58: 0.1562360559 | Q58: 0.2507756367 | R58: 0.06654816417 | S58: 0.01365367194 | T58: 0.1660193059 | U58: 0.01899277243 | V58: 0.04526834849 | W58: 0.03367663008 | X58: 0.03204423895 | Y58: 0.06088852912 | Z58: 0 | AA58: 0.01866587549 | AB58: 0 | AC58: 0 | AD58: 0 | AE58: 0 | AF58: 0 | AG58: 0 | AH58: 0 | AI58: 0
C59: 0.003400558503 | D59: 0.1639113601 | E59: 0.1236425388 | F59: 0.3271853542 | G59: 0.05403157807 | H59: 0.07054587647 | I59: 0.004910831863 | J59: 0.001192787789 | K59: 0 | L59: 0 | M59: 0.004840603149 | N59: 0.1030545866 | O59: 0.02936641207 | P59: 0.08223555928 | Q59: 0 | R59: 0 | S59: 0.007918886288 | T59: 0.02376306683 | U59: 0 | V59: 0 | W59: 0 | X59: 0 | Y59: 0 | Z59: 0 | AA59: 0 | AB59: 0 | AC59: 0 | AD59: 0 | AE59: 0 | AF59: 0 | AG59: 0 | AH59: 0 | AI59: 0
C60: 0.0284437835 | D60: 0.798459856 | E60: 0.07488007755 | F60: 0.07518454388 | G60: 0 | H60: 0 | I60: 0.02303173906 | J60: 0 | K60: 0 | L60: 0 | M60: 0 | N60: 0 | O60: 0 | P60: 0 | Q60: 0 | R60: 0 | S60: 0 | T60: 0 | U60: 0 | V60: 0 | W60: 0 | X60: 0 | Y60: 0 | Z60: 0 | AA60: 0 | AB60: 0 | AC60: 0 | AD60: 0 | AE60: 0 | AF60: 0 | AG60: 0 | AH60: 0 | AI60: 0

Sheet Months to Start - profile
A1: estimate | C1: Start Value | E1: 0.1
C2: Time To Start | D2: 0 | E2: 1 | F2: 2 | G2: 3 | H2: 4 | I2: 5 | J2: 6 | K2: 7 | L2: 8 | M2: 9 | N2: 10 | O2: 11 | P2: 12 | Q2: 13 | R2: 14 | S2: 15 | T2: 16 | U2: 17 | V2: 18 | W2: 19 | X2: 20
B3: CBE | C3: =MATCH(1,D3:X3,0) -> 1 | D3: =IF(SUM('Corrected Profiles'!$C3:C3)>$E$1,1,0) -> 1 | E3: =IF(AND(SUM('Corrected Profiles'!$C3:D3)>$E$1,SUM($D3:D3)=0),1,0) -> 0 | F3: =IF(AND(SUM('Corrected Profiles'!$C3:E3)>$E$1,SUM($D3:E3)=0),1,0) -> 0 | G3: =IF(AND(SUM('Corrected Profiles'!$C3:F3)>$E$1,SUM($D3:F3)=0),1,0) -> 0 | H3: =IF(AND(SUM('Corrected Profiles'!$C3:G3)>$E$1,SUM($D3:G3)=0),1,0) -> 0 | I3: =IF(AND(SUM('Corrected Profiles'!$C3:H3)>$E$1,SUM($D3:H3)=0),1,0) -> 0 | J3: =IF(AND(SUM('Corrected Profiles'!$C3:I3)>$E$1,SUM($D3:I3)=0),1,0) -> 0 | K3: =IF(AND(SUM('Corrected Profiles'!$C3:J3)>$E$1,SUM($D3:J3)=0),1,0) -> 0 | L3: =IF(AND(SUM('Corrected Profiles'!$C3:K3)>$E$1,SUM($D3:K3)=0),1,0) -> 0 | M3: =IF(AND(SUM('Corrected Profiles'!$C3:L3)>$E$1,SUM($D3:L3)=0),1,0) -> 0 | N3: =IF(AND(SUM('Corrected Profiles'!$C3:M3)>$E$1,SUM($D3:M3)=0),1,0) -> 0 | O3: =IF(AND(SUM('Corrected Profiles'!$C3:N3)>$E$1,SUM($D3:N3)=0),1,0) -> 0 | P3: =IF(AND(SUM('Corrected Profiles'!$C3:O3)>$E$1,SUM($D3:O3)=0),1,0) -> 0 | Q3: =IF(AND(SUM('Corrected Profiles'!$C3:P3)>$E$1,SUM($D3:P3)=0),1,0) -> 0 | R3: =IF(AND(SUM('Corrected Profiles'!$C3:Q3)>$E$1,SUM($D3:Q3)=0),1,0) -> 0 | S3: =IF(AND(SUM('Corrected Profiles'!$C3:R3)>$E$1,SUM($D3:R3)=0),1,0) -> 0 | T3: =IF(AND(SUM('Corrected Profiles'!$C3:S3)>$E$1,SUM($D3:S3)=0),1,0) -> 0 | U3: =IF(AND(SUM('Corrected Profiles'!$C3:T3)>$E$1,SUM($D3:T3)=0),1,0) -> 0 | V3: =IF(AND(SUM('Corrected Profiles'!$C3:U3)>$E$1,SUM($D3:U3)=0),1,0) -> 0 | W3: =IF(AND(SUM('Corrected Profiles'!$C3:V3)>$E$1,SUM($D3:V3)=0),1,0) -> 0 | X3: =IF(AND(SUM('Corrected Profiles'!$C3:W3)>$E$1,SUM($D3:W3)=0),1,0) -> 0
B4: CBG | C4: =MATCH(1,D4:X4,0) -> 2 | D4: =IF(SUM('Corrected Profiles'!$C4:C4)>$E$1,1,0) -> 0 | E4: =IF(AND(SUM('Corrected Profiles'!$C4:D4)>$E$1,SUM($D4:D4)=0),1,0) -> 1 | F4: =IF(AND(SUM('Corrected Profiles'!$C4:E4)>$E$1,SUM($D4:E4)=0),1,0) -> 0 | G4: =IF(AND(SUM('Corrected Profiles'!$C4:F4)>$E$1,SUM($D4:F4)=0),1,0) -> 0 | H4: =IF(AND(SUM('Corrected Profiles'!$C4:G4)>$E$1,SUM($D4:G4)=0),1,0) -> 0 | I4: =IF(AND(SUM('Corrected Profiles'!$C4:H4)>$E$1,SUM($D4:H4)=0),1,0) -> 0 | J4: =IF(AND(SUM('Corrected Profiles'!$C4:I4)>$E$1,SUM($D4:I4)=0),1,0) -> 0 | K4: =IF(AND(SUM('Corrected Profiles'!$C4:J4)>$E$1,SUM($D4:J4)=0),1,0) -> 0 | L4: =IF(AND(SUM('Corrected Profiles'!$C4:K4)>$E$1,SUM($D4:K4)=0),1,0) -> 0 | M4: =IF(AND(SUM('Corrected Profiles'!$C4:L4)>$E$1,SUM($D4:L4)=0),1,0) -> 0 | N4: =IF(AND(SUM('Corrected Profiles'!$C4:M4)>$E$1,SUM($D4:M4)=0),1,0) -> 0 | O4: =IF(AND(SUM('Corrected Profiles'!$C4:N4)>$E$1,SUM($D4:N4)=0),1,0) -> 0 | P4: =IF(AND(SUM('Corrected Profiles'!$C4:O4)>$E$1,SUM($D4:O4)=0),1,0) -> 0 | Q4: =IF(AND(SUM('Corrected Profiles'!$C4:P4)>$E$1,SUM($D4:P4)=0),1,0) -> 0 | R4: =IF(AND(SUM('Corrected Profiles'!$C4:Q4)>$E$1,SUM($D4:Q4)=0),1,0) -> 0 | S4: =IF(AND(SUM('Corrected Profiles'!$C4:R4)>$E$1,SUM($D4:R4)=0),1,0) -> 0 | T4: =IF(AND(SUM('Corrected Profiles'!$C4:S4)>$E$1,SUM($D4:S4)=0),1,0) -> 0 | U4: =IF(AND(SUM('Corrected Profiles'!$C4:T4)>$E$1,SUM($D4:T4)=0),1,0) -> 0 | V4: =IF(AND(SUM('Corrected Profiles'!$C4:U4)>$E$1,SUM($D4:U4)=0),1,0) -> 0 | W4: =IF(AND(SUM('Corrected Profiles'!$C4:V4)>$E$1,SUM($D4:V4)=0),1,0) -> 0 | X4: =IF(AND(SUM('Corrected Profiles'!$C4:W4)>$E$1,SUM($D4:W4)=0),1,0) -> 0
B5: CBH | C5: 4 | D5: =IF(SUM('Corrected Profiles'!$C5:C5)>$E$1,1,0) -> 0 | E5: =IF(AND(SUM('Corrected Profiles'!$C5:D5)>$E$1,SUM($D5:D5)=0),1,0) -> 0 | F5: =IF(AND(SUM('Corrected Profiles'!$C5:E5)>$E$1,SUM($D5:E5)=0),1,0) -> 0 | G5: =IF(AND(SUM('Corrected Profiles'!$C5:F5)>$E$1,SUM($D5:F5)=0),1,0) -> 1 | H5: =IF(AND(SUM('Corrected Profiles'!$C5:G5)>$E$1,SUM($D5:G5)=0),1,0) -> 0 | I5: =IF(AND(SUM('Corrected Profiles'!$C5:H5)>$E$1,SUM($D5:H5)=0),1,0) -> 0 | J5: =IF(AND(SUM('Corrected Profiles'!$C5:I5)>$E$1,SUM($D5:I5)=0),1,0) -> 0 | K5: =IF(AND(SUM('Corrected Profiles'!$C5:J5)>$E$1,SUM($D5:J5)=0),1,0) -> 0 | L5: =IF(AND(SUM('Corrected Profiles'!$C5:K5)>$E$1,SUM($D5:K5)=0),1,0) -> 0 | M5: =IF(AND(SUM('Corrected Profiles'!$C5:L5)>$E$1,SUM($D5:L5)=0),1,0) -> 0 | N5: =IF(AND(SUM('Corrected Profiles'!$C5:M5)>$E$1,SUM($D5:M5)=0),1,0) -> 0 | O5: =IF(AND(SUM('Corrected Profiles'!$C5:N5)>$E$1,SUM($D5:N5)=0),1,0) -> 0 | P5: =IF(AND(SUM('Corrected Profiles'!$C5:O5)>$E$1,SUM($D5:O5)=0),1,0) -> 0 | Q5: =IF(AND(SUM('Corrected Profiles'!$C5:P5)>$E$1,SUM($D5:P5)=0),1,0) -> 0 | R5: =IF(AND(SUM('Corrected Profiles'!$C5:Q5)>$E$1,SUM($D5:Q5)=0),1,0) -> 0 | S5: =IF(AND(SUM('Corrected Profiles'!$C5:R5)>$E$1,SUM($D5:R5)=0),1,0) -> 0 | T5: =IF(AND(SUM('Corrected Profiles'!$C5:S5)>$E$1,SUM($D5:S5)=0),1,0) -> 0 | U5: =IF(AND(SUM('Corrected Profiles'!$C5:T5)>$E$1,SUM($D5:T5)=0),1,0) -> 0 | V5: =IF(AND(SUM('Corrected Profiles'!$C5:U5)>$E$1,SUM($D5:U5)=0),1,0) -> 0 | W5: =IF(AND(SUM('Corrected Profiles'!$C5:V5)>$E$1,SUM($D5:V5)=0),1,0) -> 0 | X5: =IF(AND(SUM('Corrected Profiles'!$C5:W5)>$E$1,SUM($D5:W5)=0),1,0) -> 0
B6: CBI | C6: 6 | D6: =IF(SUM('Corrected Profiles'!$C6:C6)>$E$1,1,0) -> 0 | E6: =IF(AND(SUM('Corrected Profiles'!$C6:D6)>$E$1,SUM($D6:D6)=0),1,0) -> 0 | F6: =IF(AND(SUM('Corrected Profiles'!$C6:E6)>$E$1,SUM($D6:E6)=0),1,0) -> 0 | G6: =IF(AND(SUM('Corrected Profiles'!$C6:F6)>$E$1,SUM($D6:F6)=0),1,0) -> 0 | H6: =IF(AND(SUM('Corrected Profiles'!$C6:G6)>$E$1,SUM($D6:G6)=0),1,0) -> 0 | I6: =IF(AND(SUM('Corrected Profiles'!$C6:H6)>$E$1,SUM($D6:H6)=0),1,0) -> 1 | J6: =IF(AND(SUM('Corrected Profiles'!$C6:I6)>$E$1,SUM($D6:I6)=0),1,0) -> 0 | K6: =IF(AND(SUM('Corrected Profiles'!$C6:J6)>$E$1,SUM($D6:J6)=0),1,0) -> 0 | L6: =IF(AND(SUM('Corrected Profiles'!$C6:K6)>$E$1,SUM($D6:K6)=0),1,0) -> 0 | M6: =IF(AND(SUM('Corrected Profiles'!$C6:L6)>$E$1,SUM($D6:L6)=0),1,0) -> 0 | N6: =IF(AND(SUM('Corrected Profiles'!$C6:M6)>$E$1,SUM($D6:M6)=0),1,0) -> 0 | O6: =IF(AND(SUM('Corrected Profiles'!$C6:N6)>$E$1,SUM($D6:N6)=0),1,0) -> 0 | P6: =IF(AND(SUM('Corrected Profiles'!$C6:O6)>$E$1,SUM($D6:O6)=0),1,0) -> 0 | Q6: =IF(AND(SUM('Corrected Profiles'!$C6:P6)>$E$1,SUM($D6:P6)=0),1,0) -> 0 | R6: =IF(AND(SUM('Corrected Profiles'!$C6:Q6)>$E$1,SUM($D6:Q6)=0),1,0) -> 0 | S6: =IF(AND(SUM('Corrected Profiles'!$C6:R6)>$E$1,SUM($D6:R6)=0),1,0) -> 0 | T6: =IF(AND(SUM('Corrected Profiles'!$C6:S6)>$E$1,SUM($D6:S6)=0),1,0) -> 0 | U6: =IF(AND(SUM('Corrected Profiles'!$C6:T6)>$E$1,SUM($D6:T6)=0),1,0) -> 0 | V6: =IF(AND(SUM('Corrected Profiles'!$C6:U6)>$E$1,SUM($D6:U6)=0),1,0) -> 0 | W6: =IF(AND(SUM('Corrected Profiles'!$C6:V6)>$E$1,SUM($D6:V6)=0),1,0) -> 0 | X6: =IF(AND(SUM('Corrected Profiles'!$C6:W6)>$E$1,SUM($D6:W6)=0),1,0) -> 0
B7: CBK | C7: 5 | D7: =IF(SUM('Corrected Profiles'!$C7:C7)>$E$1,1,0) -> 0 | E7: =IF(AND(SUM('Corrected Profiles'!$C7:D7)>$E$1,SUM($D7:D7)=0),1,0) -> 0 | F7: =IF(AND(SUM('Corrected Profiles'!$C7:E7)>$E$1,SUM($D7:E7)=0),1,0) -> 0 | G7: =IF(AND(SUM('Corrected Profiles'!$C7:F7)>$E$1,SUM($D7:F7)=0),1,0) -> 0 | H7: =IF(AND(SUM('Corrected Profiles'!$C7:G7)>$E$1,SUM($D7:G7)=0),1,0) -> 1 | I7: =IF(AND(SUM('Corrected Profiles'!$C7:H7)>$E$1,SUM($D7:H7)=0),1,0) -> 0 | J7: =IF(AND(SUM('Corrected Profiles'!$C7:I7)>$E$1,SUM($D7:I7)=0),1,0) -> 0 | K7: =IF(AND(SUM('Corrected Profiles'!$C7:J7)>$E$1,SUM($D7:J7)=0),1,0) -> 0 | L7: =IF(AND(SUM('Corrected Profiles'!$C7:K7)>$E$1,SUM($D7:K7)=0),1,0) -> 0 | M7: =IF(AND(SUM('Corrected Profiles'!$C7:L7)>$E$1,SUM($D7:L7)=0),1,0) -> 0 | N7: =IF(AND(SUM('Corrected Profiles'!$C7:M7)>$E$1,SUM($D7:M7)=0),1,0) -> 0 | O7: =IF(AND(SUM('Corrected Profiles'!$C7:N7)>$E$1,SUM($D7:N7)=0),1,0) -> 0 | P7: =IF(AND(SUM('Corrected Profiles'!$C7:O7)>$E$1,SUM($D7:O7)=0),1,0) -> 0 | Q7: =IF(AND(SUM('Corrected Profiles'!$C7:P7)>$E$1,SUM($D7:P7)=0),1,0) -> 0 | R7: =IF(AND(SUM('Corrected Profiles'!$C7:Q7)>$E$1,SUM($D7:Q7)=0),1,0) -> 0 | S7: =IF(AND(SUM('Corrected Profiles'!$C7:R7)>$E$1,SUM($D7:R7)=0),1,0) -> 0 | T7: =IF(AND(SUM('Corrected Profiles'!$C7:S7)>$E$1,SUM($D7:S7)=0),1,0) -> 0 | U7: =IF(AND(SUM('Corrected Profiles'!$C7:T7)>$E$1,SUM($D7:T7)=0),1,0) -> 0 | V7: =IF(AND(SUM('Corrected Profiles'!$C7:U7)>$E$1,SUM($D7:U7)=0),1,0) -> 0 | W7: =IF(AND(SUM('Corrected Profiles'!$C7:V7)>$E$1,SUM($D7:V7)=0),1,0) -> 0 | X7: =IF(AND(SUM('Corrected Profiles'!$C7:W7)>$E$1,SUM($D7:W7)=0),1,0) -> 0
B8: CBL | C8: 3 | D8: =IF(SUM('Corrected Profiles'!$C8:C8)>$E$1,1,0) -> 0 | E8: =IF(AND(SUM('Corrected Profiles'!$C8:D8)>$E$1,SUM($D8:D8)=0),1,0) -> 0 | F8: =IF(AND(SUM('Corrected Profiles'!$C8:E8)>$E$1,SUM($D8:E8)=0),1,0) -> 1 | G8: =IF(AND(SUM('Corrected Profiles'!$C8:F8)>$E$1,SUM($D8:F8)=0),1,0) -> 0 | H8: =IF(AND(SUM('Corrected Profiles'!$C8:G8)>$E$1,SUM($D8:G8)=0),1,0) -> 0 | I8: =IF(AND(SUM('Corrected Profiles'!$C8:H8)>$E$1,SUM($D8:H8)=0),1,0) -> 0 | J8: =IF(AND(SUM('Corrected Profiles'!$C8:I8)>$E$1,SUM($D8:I8)=0),1,0) -> 0 | K8: =IF(AND(SUM('Corrected Profiles'!$C8:J8)>$E$1,SUM($D8:J8)=0),1,0) -> 0 | L8: =IF(AND(SUM('Corrected Profiles'!$C8:K8)>$E$1,SUM($D8:K8)=0),1,0) -> 0 | M8: =IF(AND(SUM('Corrected Profiles'!$C8:L8)>$E$1,SUM($D8:L8)=0),1,0) -> 0 | N8: =IF(AND(SUM('Corrected Profiles'!$C8:M8)>$E$1,SUM($D8:M8)=0),1,0) -> 0 | O8: =IF(AND(SUM('Corrected Profiles'!$C8:N8)>$E$1,SUM($D8:N8)=0),1,0) -> 0 | P8: =IF(AND(SUM('Corrected Profiles'!$C8:O8)>$E$1,SUM($D8:O8)=0),1,0) -> 0 | Q8: =IF(AND(SUM('Corrected Profiles'!$C8:P8)>$E$1,SUM($D8:P8)=0),1,0) -> 0 | R8: =IF(AND(SUM('Corrected Profiles'!$C8:Q8)>$E$1,SUM($D8:Q8)=0),1,0) -> 0 | S8: =IF(AND(SUM('Corrected Profiles'!$C8:R8)>$E$1,SUM($D8:R8)=0),1,0) -> 0 | T8: =IF(AND(SUM('Corrected Profiles'!$C8:S8)>$E$1,SUM($D8:S8)=0),1,0) -> 0 | U8: =IF(AND(SUM('Corrected Profiles'!$C8:T8)>$E$1,SUM($D8:T8)=0),1,0) -> 0 | V8: =IF(AND(SUM('Corrected Profiles'!$C8:U8)>$E$1,SUM($D8:U8)=0),1,0) -> 0 | W8: =IF(AND(SUM('Corrected Profiles'!$C8:V8)>$E$1,SUM($D8:V8)=0),1,0) -> 0 | X8: =IF(AND(SUM('Corrected Profiles'!$C8:W8)>$E$1,SUM($D8:W8)=0),1,0) -> 0
B9: CBP | C9: 4 | D9: =IF(SUM('Corrected Profiles'!$C9:C9)>$E$1,1,0) -> 0 | E9: =IF(AND(SUM('Corrected Profiles'!$C9:D9)>$E$1,SUM($D9:D9)=0),1,0) -> 0 | F9: =IF(AND(SUM('Corrected Profiles'!$C9:E9)>$E$1,SUM($D9:E9)=0),1,0) -> 0 | G9: =IF(AND(SUM('Corrected Profiles'!$C9:F9)>$E$1,SUM($D9:F9)=0),1,0) -> 1 | H9: =IF(AND(SUM('Corrected Profiles'!$C9:G9)>$E$1,SUM($D9:G9)=0),1,0) -> 0 | I9: =IF(AND(SUM('Corrected Profiles'!$C9:H9)>$E$1,SUM($D9:H9)=0),1,0) -> 0 | J9: =IF(AND(SUM('Corrected Profiles'!$C9:I9)>$E$1,SUM($D9:I9)=0),1,0) -> 0 | K9: =IF(AND(SUM('Corrected Profiles'!$C9:J9)>$E$1,SUM($D9:J9)=0),1,0) -> 0 | L9: =IF(AND(SUM('Corrected Profiles'!$C9:K9)>$E$1,SUM($D9:K9)=0),1,0) -> 0 | M9: =IF(AND(SUM('Corrected Profiles'!$C9:L9)>$E$1,SUM($D9:L9)=0),1,0) -> 0 | N9: =IF(AND(SUM('Corrected Profiles'!$C9:M9)>$E$1,SUM($D9:M9)=0),1,0) -> 0 | O9: =IF(AND(SUM('Corrected Profiles'!$C9:N9)>$E$1,SUM($D9:N9)=0),1,0) -> 0 | P9: =IF(AND(SUM('Corrected Profiles'!$C9:O9)>$E$1,SUM($D9:O9)=0),1,0) -> 0 | Q9: =IF(AND(SUM('Corrected Profiles'!$C9:P9)>$E$1,SUM($D9:P9)=0),1,0) -> 0 | R9: =IF(AND(SUM('Corrected Profiles'!$C9:Q9)>$E$1,SUM($D9:Q9)=0),1,0) -> 0 | S9: =IF(AND(SUM('Corrected Profiles'!$C9:R9)>$E$1,SUM($D9:R9)=0),1,0) -> 0 | T9: =IF(AND(SUM('Corrected Profiles'!$C9:S9)>$E$1,SUM($D9:S9)=0),1,0) -> 0 | U9: =IF(AND(SUM('Corrected Profiles'!$C9:T9)>$E$1,SUM($D9:T9)=0),1,0) -> 0 | V9: =IF(AND(SUM('Corrected Profiles'!$C9:U9)>$E$1,SUM($D9:U9)=0),1,0) -> 0 | W9: =IF(AND(SUM('Corrected Profiles'!$C9:V9)>$E$1,SUM($D9:V9)=0),1,0) -> 0 | X9: =IF(AND(SUM('Corrected Profiles'!$C9:W9)>$E$1,SUM($D9:W9)=0),1,0) -> 0
B10: CBS | C10: 4 | D10: =IF(SUM('Corrected Profiles'!$C10:C10)>$E$1,1,0) -> 0 | E10: =IF(AND(SUM('Corrected Profiles'!$C10:D10)>$E$1,SUM($D10:D10)=0),1,0) -> 0 | F10: =IF(AND(SUM('Corrected Profiles'!$C10:E10)>$E$1,SUM($D10:E10)=0),1,0) -> 0 | G10: =IF(AND(SUM('Corrected Profiles'!$C10:F10)>$E$1,SUM($D10:F10)=0),1,0) -> 1 | H10: =IF(AND(SUM('Corrected Profiles'!$C10:G10)>$E$1,SUM($D10:G10)=0),1,0) -> 0 | I10: =IF(AND(SUM('Corrected Profiles'!$C10:H10)>$E$1,SUM($D10:H10)=0),1,0) -> 0 | J10: =IF(AND(SUM('Corrected Profiles'!$C10:I10)>$E$1,SUM($D10:I10)=0),1,0) -> 0 | K10: =IF(AND(SUM('Corrected Profiles'!$C10:J10)>$E$1,SUM($D10:J10)=0),1,0) -> 0 | L10: =IF(AND(SUM('Corrected Profiles'!$C10:K10)>$E$1,SUM($D10:K10)=0),1,0) -> 0 | M10: =IF(AND(SUM('Corrected Profiles'!$C10:L10)>$E$1,SUM($D10:L10)=0),1,0) -> 0 | N10: =IF(AND(SUM('Corrected Profiles'!$C10:M10)>$E$1,SUM($D10:M10)=0),1,0) -> 0 | O10: =IF(AND(SUM('Corrected Profiles'!$C10:N10)>$E$1,SUM($D10:N10)=0),1,0) -> 0 | P10: =IF(AND(SUM('Corrected Profiles'!$C10:O10)>$E$1,SUM($D10:O10)=0),1,0) -> 0 | Q10: =IF(AND(SUM('Corrected Profiles'!$C10:P10)>$E$1,SUM($D10:P10)=0),1,0) -> 0 | R10: =IF(AND(SUM('Corrected Profiles'!$C10:Q10)>$E$1,SUM($D10:Q10)=0),1,0) -> 0 | S10: =IF(AND(SUM('Corrected Profiles'!$C10:R10)>$E$1,SUM($D10:R10)=0),1,0) -> 0 | T10: =IF(AND(SUM('Corrected Profiles'!$C10:S10)>$E$1,SUM($D10:S10)=0),1,0) -> 0 | U10: =IF(AND(SUM('Corrected Profiles'!$C10:T10)>$E$1,SUM($D10:T10)=0),1,0) -> 0 | V10: =IF(AND(SUM('Corrected Profiles'!$C10:U10)>$E$1,SUM($D10:U10)=0),1,0) -> 0 | W10: =IF(AND(SUM('Corrected Profiles'!$C10:V10)>$E$1,SUM($D10:V10)=0),1,0) -> 0 | X10: =IF(AND(SUM('Corrected Profiles'!$C10:W10)>$E$1,SUM($D10:W10)=0),1,0) -> 0
B11: CHH | C11: 7 | D11: =IF(SUM('Corrected Profiles'!$C11:C11)>$E$1,1,0) -> 0 | E11: =IF(AND(SUM('Corrected Profiles'!$C11:D11)>$E$1,SUM($D11:D11)=0),1,0) -> 0 | F11: =IF(AND(SUM('Corrected Profiles'!$C11:E11)>$E$1,SUM($D11:E11)=0),1,0) -> 0 | G11: =IF(AND(SUM('Corrected Profiles'!$C11:F11)>$E$1,SUM($D11:F11)=0),1,0) -> 0 | H11: =IF(AND(SUM('Corrected Profiles'!$C11:G11)>$E$1,SUM($D11:G11)=0),1,0) -> 0 | I11: =IF(AND(SUM('Corrected Profiles'!$C11:H11)>$E$1,SUM($D11:H11)=0),1,0) -> 0 | J11: =IF(AND(SUM('Corrected Profiles'!$C11:I11)>$E$1,SUM($D11:I11)=0),1,0) -> 1 | K11: =IF(AND(SUM('Corrected Profiles'!$C11:J11)>$E$1,SUM($D11:J11)=0),1,0) -> 0 | L11: =IF(AND(SUM('Corrected Profiles'!$C11:K11)>$E$1,SUM($D11:K11)=0),1,0) -> 0 | M11: =IF(AND(SUM('Corrected Profiles'!$C11:L11)>$E$1,SUM($D11:L11)=0),1,0) -> 0 | N11: =IF(AND(SUM('Corrected Profiles'!$C11:M11)>$E$1,SUM($D11:M11)=0),1,0) -> 0 | O11: =IF(AND(SUM('Corrected Profiles'!$C11:N11)>$E$1,SUM($D11:N11)=0),1,0) -> 0 | P11: =IF(AND(SUM('Corrected Profiles'!$C11:O11)>$E$1,SUM($D11:O11)=0),1,0) -> 0 | Q11: =IF(AND(SUM('Corrected Profiles'!$C11:P11)>$E$1,SUM($D11:P11)=0),1,0) -> 0 | R11: =IF(AND(SUM('Corrected Profiles'!$C11:Q11)>$E$1,SUM($D11:Q11)=0),1,0) -> 0 | S11: =IF(AND(SUM('Corrected Profiles'!$C11:R11)>$E$1,SUM($D11:R11)=0),1,0) -> 0 | T11: =IF(AND(SUM('Corrected Profiles'!$C11:S11)>$E$1,SUM($D11:S11)=0),1,0) -> 0 | U11: =IF(AND(SUM('Corrected Profiles'!$C11:T11)>$E$1,SUM($D11:T11)=0),1,0) -> 0 | V11: =IF(AND(SUM('Corrected Profiles'!$C11:U11)>$E$1,SUM($D11:U11)=0),1,0) -> 0 | W11: =IF(AND(SUM('Corrected Profiles'!$C11:V11)>$E$1,SUM($D11:V11)=0),1,0) -> 0 | X11: =IF(AND(SUM('Corrected Profiles'!$C11:W11)>$E$1,SUM($D11:W11)=0),1,0) -> 0
B12: CHL | C12: 5 | D12: =IF(SUM('Corrected Profiles'!$C12:C12)>$E$1,1,0) -> 0 | E12: =IF(AND(SUM('Corrected Profiles'!$C12:D12)>$E$1,SUM($D12:D12)=0),1,0) -> 0 | F12: =IF(AND(SUM('Corrected Profiles'!$C12:E12)>$E$1,SUM($D12:E12)=0),1,0) -> 0 | G12: =IF(AND(SUM('Corrected Profiles'!$C12:F12)>$E$1,SUM($D12:F12)=0),1,0) -> 0 | H12: =IF(AND(SUM('Corrected Profiles'!$C12:G12)>$E$1,SUM($D12:G12)=0),1,0) -> 1 | I12: =IF(AND(SUM('Corrected Profiles'!$C12:H12)>$E$1,SUM($D12:H12)=0),1,0) -> 0 | J12: =IF(AND(SUM('Corrected Profiles'!$C12:I12)>$E$1,SUM($D12:I12)=0),1,0) -> 0 | K12: =IF(AND(SUM('Corrected Profiles'!$C12:J12)>$E$1,SUM($D12:J12)=0),1,0) -> 0 | L12: =IF(AND(SUM('Corrected Profiles'!$C12:K12)>$E$1,SUM($D12:K12)=0),1,0) -> 0 | M12: =IF(AND(SUM('Corrected Profiles'!$C12:L12)>$E$1,SUM($D12:L12)=0),1,0) -> 0 | N12: =IF(AND(SUM('Corrected Profiles'!$C12:M12)>$E$1,SUM($D12:M12)=0),1,0) -> 0 | O12: =IF(AND(SUM('Corrected Profiles'!$C12:N12)>$E$1,SUM($D12:N12)=0),1,0) -> 0 | P12: =IF(AND(SUM('Corrected Profiles'!$C12:O12)>$E$1,SUM($D12:O12)=0),1,0) -> 0 | Q12: =IF(AND(SUM('Corrected Profiles'!$C12:P12)>$E$1,SUM($D12:P12)=0),1,0) -> 0 | R12: =IF(AND(SUM('Corrected Profiles'!$C12:Q12)>$E$1,SUM($D12:Q12)=0),1,0) -> 0 | S12: =IF(AND(SUM('Corrected Profiles'!$C12:R12)>$E$1,SUM($D12:R12)=0),1,0) -> 0 | T12: =IF(AND(SUM('Corrected Profiles'!$C12:S12)>$E$1,SUM($D12:S12)=0),1,0) -> 0 | U12: =IF(AND(SUM('Corrected Profiles'!$C12:T12)>$E$1,SUM($D12:T12)=0),1,0) -> 0 | V12: =IF(AND(SUM('Corrected Profiles'!$C12:U12)>$E$1,SUM($D12:U12)=0),1,0) -> 0 | W12: =IF(AND(SUM('Corrected Profiles'!$C12:V12)>$E$1,SUM($D12:V12)=0),1,0) -> 0 | X12: =IF(AND(SUM('Corrected Profiles'!$C12:W12)>$E$1,SUM($D12:W12)=0),1,0) -> 0
B13: CLA | C13: 4 | D13: =IF(SUM('Corrected Profiles'!$C13:C13)>$E$1,1,0) -> 0 | E13: =IF(AND(SUM('Corrected Profiles'!$C13:D13)>$E$1,SUM($D13:D13)=0),1,0) -> 0 | F13: =IF(AND(SUM('Corrected Profiles'!$C13:E13)>$E$1,SUM($D13:E13)=0),1,0) -> 0 | G13: =IF(AND(SUM('Corrected Profiles'!$C13:F13)>$E$1,SUM($D13:F13)=0),1,0) -> 1 | H13: =IF(AND(SUM('Corrected Profiles'!$C13:G13)>$E$1,SUM($D13:G13)=0),1,0) -> 0 | I13: =IF(AND(SUM('Corrected Profiles'!$C13:H13)>$E$1,SUM($D13:H13)=0),1,0) -> 0 | J13: =IF(AND(SUM('Corrected Profiles'!$C13:I13)>$E$1,SUM($D13:I13)=0),1,0) -> 0 | K13: =IF(AND(SUM('Corrected Profiles'!$C13:J13)>$E$1,SUM($D13:J13)=0),1,0) -> 0 | L13: =IF(AND(SUM('Corrected Profiles'!$C13:K13)>$E$1,SUM($D13:K13)=0),1,0) -> 0 | M13: =IF(AND(SUM('Corrected Profiles'!$C13:L13)>$E$1,SUM($D13:L13)=0),1,0) -> 0 | N13: =IF(AND(SUM('Corrected Profiles'!$C13:M13)>$E$1,SUM($D13:M13)=0),1,0) -> 0 | O13: =IF(AND(SUM('Corrected Profiles'!$C13:N13)>$E$1,SUM($D13:N13)=0),1,0) -> 0 | P13: =IF(AND(SUM('Corrected Profiles'!$C13:O13)>$E$1,SUM($D13:O13)=0),1,0) -> 0 | Q13: =IF(AND(SUM('Corrected Profiles'!$C13:P13)>$E$1,SUM($D13:P13)=0),1,0) -> 0 | R13: =IF(AND(SUM('Corrected Profiles'!$C13:Q13)>$E$1,SUM($D13:Q13)=0),1,0) -> 0 | S13: =IF(AND(SUM('Corrected Profiles'!$C13:R13)>$E$1,SUM($D13:R13)=0),1,0) -> 0 | T13: =IF(AND(SUM('Corrected Profiles'!$C13:S13)>$E$1,SUM($D13:S13)=0),1,0) -> 0 | U13: =IF(AND(SUM('Corrected Profiles'!$C13:T13)>$E$1,SUM($D13:T13)=0),1,0) -> 0 | V13: =IF(AND(SUM('Corrected Profiles'!$C13:U13)>$E$1,SUM($D13:U13)=0),1,0) -> 0 | W13: =IF(AND(SUM('Corrected Profiles'!$C13:V13)>$E$1,SUM($D13:V13)=0),1,0) -> 0 | X13: =IF(AND(SUM('Corrected Profiles'!$C13:W13)>$E$1,SUM($D13:W13)=0),1,0) -> 0
B14: CLC | C14: 5 | D14: =IF(SUM('Corrected Profiles'!$C14:C14)>$E$1,1,0) -> 0 | E14: =IF(AND(SUM('Corrected Profiles'!$C14:D14)>$E$1,SUM($D14:D14)=0),1,0) -> 0 | F14: =IF(AND(SUM('Corrected Profiles'!$C14:E14)>$E$1,SUM($D14:E14)=0),1,0) -> 0 | G14: =IF(AND(SUM('Corrected Profiles'!$C14:F14)>$E$1,SUM($D14:F14)=0),1,0) -> 0 | H14: =IF(AND(SUM('Corrected Profiles'!$C14:G14)>$E$1,SUM($D14:G14)=0),1,0) -> 1 | I14: =IF(AND(SUM('Corrected Profiles'!$C14:H14)>$E$1,SUM($D14:H14)=0),1,0) -> 0 | J14: =IF(AND(SUM('Corrected Profiles'!$C14:I14)>$E$1,SUM($D14:I14)=0),1,0) -> 0 | K14: =IF(AND(SUM('Corrected Profiles'!$C14:J14)>$E$1,SUM($D14:J14)=0),1,0) -> 0 | L14: =IF(AND(SUM('Corrected Profiles'!$C14:K14)>$E$1,SUM($D14:K14)=0),1,0) -> 0 | M14: =IF(AND(SUM('Corrected Profiles'!$C14:L14)>$E$1,SUM($D14:L14)=0),1,0) -> 0 | N14: =IF(AND(SUM('Corrected Profiles'!$C14:M14)>$E$1,SUM($D14:M14)=0),1,0) -> 0 | O14: =IF(AND(SUM('Corrected Profiles'!$C14:N14)>$E$1,SUM($D14:N14)=0),1,0) -> 0 | P14: =IF(AND(SUM('Corrected Profiles'!$C14:O14)>$E$1,SUM($D14:O14)=0),1,0) -> 0 | Q14: =IF(AND(SUM('Corrected Profiles'!$C14:P14)>$E$1,SUM($D14:P14)=0),1,0) -> 0 | R14: =IF(AND(SUM('Corrected Profiles'!$C14:Q14)>$E$1,SUM($D14:Q14)=0),1,0) -> 0 | S14: =IF(AND(SUM('Corrected Profiles'!$C14:R14)>$E$1,SUM($D14:R14)=0),1,0) -> 0 | T14: =IF(AND(SUM('Corrected Profiles'!$C14:S14)>$E$1,SUM($D14:S14)=0),1,0) -> 0 | U14: =IF(AND(SUM('Corrected Profiles'!$C14:T14)>$E$1,SUM($D14:T14)=0),1,0) -> 0 | V14: =IF(AND(SUM('Corrected Profiles'!$C14:U14)>$E$1,SUM($D14:U14)=0),1,0) -> 0 | W14: =IF(AND(SUM('Corrected Profiles'!$C14:V14)>$E$1,SUM($D14:V14)=0),1,0) -> 0 | X14: =IF(AND(SUM('Corrected Profiles'!$C14:W14)>$E$1,SUM($D14:W14)=0),1,0) -> 0
B15: CLI | C15: 1 | D15: =IF(SUM('Corrected Profiles'!$C15:C15)>$E$1,1,0) -> 1 | E15: =IF(AND(SUM('Corrected Profiles'!$C15:D15)>$E$1,SUM($D15:D15)=0),1,0) -> 0 | F15: =IF(AND(SUM('Corrected Profiles'!$C15:E15)>$E$1,SUM($D15:E15)=0),1,0) -> 0 | G15: =IF(AND(SUM('Corrected Profiles'!$C15:F15)>$E$1,SUM($D15:F15)=0),1,0) -> 0 | H15: =IF(AND(SUM('Corrected Profiles'!$C15:G15)>$E$1,SUM($D15:G15)=0),1,0) -> 0 | I15: =IF(AND(SUM('Corrected Profiles'!$C15:H15)>$E$1,SUM($D15:H15)=0),1,0) -> 0 | J15: =IF(AND(SUM('Corrected Profiles'!$C15:I15)>$E$1,SUM($D15:I15)=0),1,0) -> 0 | K15: =IF(AND(SUM('Corrected Profiles'!$C15:J15)>$E$1,SUM($D15:J15)=0),1,0) -> 0 | L15: =IF(AND(SUM('Corrected Profiles'!$C15:K15)>$E$1,SUM($D15:K15)=0),1,0) -> 0 | M15: =IF(AND(SUM('Corrected Profiles'!$C15:L15)>$E$1,SUM($D15:L15)=0),1,0) -> 0 | N15: =IF(AND(SUM('Corrected Profiles'!$C15:M15)>$E$1,SUM($D15:M15)=0),1,0) -> 0 | O15: =IF(AND(SUM('Corrected Profiles'!$C15:N15)>$E$1,SUM($D15:N15)=0),1,0) -> 0 | P15: =IF(AND(SUM('Corrected Profiles'!$C15:O15)>$E$1,SUM($D15:O15)=0),1,0) -> 0 | Q15: =IF(AND(SUM('Corrected Profiles'!$C15:P15)>$E$1,SUM($D15:P15)=0),1,0) -> 0 | R15: =IF(AND(SUM('Corrected Profiles'!$C15:Q15)>$E$1,SUM($D15:Q15)=0),1,0) -> 0 | S15: =IF(AND(SUM('Corrected Profiles'!$C15:R15)>$E$1,SUM($D15:R15)=0),1,0) -> 0 | T15: =IF(AND(SUM('Corrected Profiles'!$C15:S15)>$E$1,SUM($D15:S15)=0),1,0) -> 0 | U15: =IF(AND(SUM('Corrected Profiles'!$C15:T15)>$E$1,SUM($D15:T15)=0),1,0) -> 0 | V15: =IF(AND(SUM('Corrected Profiles'!$C15:U15)>$E$1,SUM($D15:U15)=0),1,0) -> 0 | W15: =IF(AND(SUM('Corrected Profiles'!$C15:V15)>$E$1,SUM($D15:V15)=0),1,0) -> 0 | X15: =IF(AND(SUM('Corrected Profiles'!$C15:W15)>$E$1,SUM($D15:W15)=0),1,0) -> 0
B16: CLJ | C16: 3 | D16: =IF(SUM('Corrected Profiles'!$C16:C16)>$E$1,1,0) -> 0 | E16: =IF(AND(SUM('Corrected Profiles'!$C16:D16)>$E$1,SUM($D16:D16)=0),1,0) -> 0 | F16: =IF(AND(SUM('Corrected Profiles'!$C16:E16)>$E$1,SUM($D16:E16)=0),1,0) -> 1 | G16: =IF(AND(SUM('Corrected Profiles'!$C16:F16)>$E$1,SUM($D16:F16)=0),1,0) -> 0 | H16: =IF(AND(SUM('Corrected Profiles'!$C16:G16)>$E$1,SUM($D16:G16)=0),1,0) -> 0 | I16: =IF(AND(SUM('Corrected Profiles'!$C16:H16)>$E$1,SUM($D16:H16)=0),1,0) -> 0 | J16: =IF(AND(SUM('Corrected Profiles'!$C16:I16)>$E$1,SUM($D16:I16)=0),1,0) -> 0 | K16: =IF(AND(SUM('Corrected Profiles'!$C16:J16)>$E$1,SUM($D16:J16)=0),1,0) -> 0 | L16: =IF(AND(SUM('Corrected Profiles'!$C16:K16)>$E$1,SUM($D16:K16)=0),1,0) -> 0 | M16: =IF(AND(SUM('Corrected Profiles'!$C16:L16)>$E$1,SUM($D16:L16)=0),1,0) -> 0 | N16: =IF(AND(SUM('Corrected Profiles'!$C16:M16)>$E$1,SUM($D16:M16)=0),1,0) -> 0 | O16: =IF(AND(SUM('Corrected Profiles'!$C16:N16)>$E$1,SUM($D16:N16)=0),1,0) -> 0 | P16: =IF(AND(SUM('Corrected Profiles'!$C16:O16)>$E$1,SUM($D16:O16)=0),1,0) -> 0 | Q16: =IF(AND(SUM('Corrected Profiles'!$C16:P16)>$E$1,SUM($D16:P16)=0),1,0) -> 0 | R16: =IF(AND(SUM('Corrected Profiles'!$C16:Q16)>$E$1,SUM($D16:Q16)=0),1,0) -> 0 | S16: =IF(AND(SUM('Corrected Profiles'!$C16:R16)>$E$1,SUM($D16:R16)=0),1,0) -> 0 | T16: =IF(AND(SUM('Corrected Profiles'!$C16:S16)>$E$1,SUM($D16:S16)=0),1,0) -> 0 | U16: =IF(AND(SUM('Corrected Profiles'!$C16:T16)>$E$1,SUM($D16:T16)=0),1,0) -> 0 | V16: =IF(AND(SUM('Corrected Profiles'!$C16:U16)>$E$1,SUM($D16:U16)=0),1,0) -> 0 | W16: =IF(AND(SUM('Corrected Profiles'!$C16:V16)>$E$1,SUM($D16:V16)=0),1,0) -> 0 | X16: =IF(AND(SUM('Corrected Profiles'!$C16:W16)>$E$1,SUM($D16:W16)=0),1,0) -> 0
B17: CLM | C17: 3 | D17: =IF(SUM('Corrected Profiles'!$C17:C17)>$E$1,1,0) -> 0 | E17: =IF(AND(SUM('Corrected Profiles'!$C17:D17)>$E$1,SUM($D17:D17)=0),1,0) -> 0 | F17: =IF(AND(SUM('Corrected Profiles'!$C17:E17)>$E$1,SUM($D17:E17)=0),1,0) -> 1 | G17: =IF(AND(SUM('Corrected Profiles'!$C17:F17)>$E$1,SUM($D17:F17)=0),1,0) -> 0 | H17: =IF(AND(SUM('Corrected Profiles'!$C17:G17)>$E$1,SUM($D17:G17)=0),1,0) -> 0 | I17: =IF(AND(SUM('Corrected Profiles'!$C17:H17)>$E$1,SUM($D17:H17)=0),1,0) -> 0 | J17: =IF(AND(SUM('Corrected Profiles'!$C17:I17)>$E$1,SUM($D17:I17)=0),1,0) -> 0 | K17: =IF(AND(SUM('Corrected Profiles'!$C17:J17)>$E$1,SUM($D17:J17)=0),1,0) -> 0 | L17: =IF(AND(SUM('Corrected Profiles'!$C17:K17)>$E$1,SUM($D17:K17)=0),1,0) -> 0 | M17: =IF(AND(SUM('Corrected Profiles'!$C17:L17)>$E$1,SUM($D17:L17)=0),1,0) -> 0 | N17: =IF(AND(SUM('Corrected Profiles'!$C17:M17)>$E$1,SUM($D17:M17)=0),1,0) -> 0 | O17: =IF(AND(SUM('Corrected Profiles'!$C17:N17)>$E$1,SUM($D17:N17)=0),1,0) -> 0 | P17: =IF(AND(SUM('Corrected Profiles'!$C17:O17)>$E$1,SUM($D17:O17)=0),1,0) -> 0 | Q17: =IF(AND(SUM('Corrected Profiles'!$C17:P17)>$E$1,SUM($D17:P17)=0),1,0) -> 0 | R17: =IF(AND(SUM('Corrected Profiles'!$C17:Q17)>$E$1,SUM($D17:Q17)=0),1,0) -> 0 | S17: =IF(AND(SUM('Corrected Profiles'!$C17:R17)>$E$1,SUM($D17:R17)=0),1,0) -> 0 | T17: =IF(AND(SUM('Corrected Profiles'!$C17:S17)>$E$1,SUM($D17:S17)=0),1,0) -> 0 | U17: =IF(AND(SUM('Corrected Profiles'!$C17:T17)>$E$1,SUM($D17:T17)=0),1,0) -> 0 | V17: =IF(AND(SUM('Corrected Profiles'!$C17:U17)>$E$1,SUM($D17:U17)=0),1,0) -> 0 | W17: =IF(AND(SUM('Corrected Profiles'!$C17:V17)>$E$1,SUM($D17:V17)=0),1,0) -> 0 | X17: =IF(AND(SUM('Corrected Profiles'!$C17:W17)>$E$1,SUM($D17:W17)=0),1,0) -> 0
B18: CLN | C18: 3 | D18: =IF(SUM('Corrected Profiles'!$C18:C18)>$E$1,1,0) -> 0 | E18: =IF(AND(SUM('Corrected Profiles'!$C18:D18)>$E$1,SUM($D18:D18)=0),1,0) -> 0 | F18: =IF(AND(SUM('Corrected Profiles'!$C18:E18)>$E$1,SUM($D18:E18)=0),1,0) -> 1 | G18: =IF(AND(SUM('Corrected Profiles'!$C18:F18)>$E$1,SUM($D18:F18)=0),1,0) -> 0 | H18: =IF(AND(SUM('Corrected Profiles'!$C18:G18)>$E$1,SUM($D18:G18)=0),1,0) -> 0 | I18: =IF(AND(SUM('Corrected Profiles'!$C18:H18)>$E$1,SUM($D18:H18)=0),1,0) -> 0 | J18: =IF(AND(SUM('Corrected Profiles'!$C18:I18)>$E$1,SUM($D18:I18)=0),1,0) -> 0 | K18: =IF(AND(SUM('Corrected Profiles'!$C18:J18)>$E$1,SUM($D18:J18)=0),1,0) -> 0 | L18: =IF(AND(SUM('Corrected Profiles'!$C18:K18)>$E$1,SUM($D18:K18)=0),1,0) -> 0 | M18: =IF(AND(SUM('Corrected Profiles'!$C18:L18)>$E$1,SUM($D18:L18)=0),1,0) -> 0 | N18: =IF(AND(SUM('Corrected Profiles'!$C18:M18)>$E$1,SUM($D18:M18)=0),1,0) -> 0 | O18: =IF(AND(SUM('Corrected Profiles'!$C18:N18)>$E$1,SUM($D18:N18)=0),1,0) -> 0 | P18: =IF(AND(SUM('Corrected Profiles'!$C18:O18)>$E$1,SUM($D18:O18)=0),1,0) -> 0 | Q18: =IF(AND(SUM('Corrected Profiles'!$C18:P18)>$E$1,SUM($D18:P18)=0),1,0) -> 0 | R18: =IF(AND(SUM('Corrected Profiles'!$C18:Q18)>$E$1,SUM($D18:Q18)=0),1,0) -> 0 | S18: =IF(AND(SUM('Corrected Profiles'!$C18:R18)>$E$1,SUM($D18:R18)=0),1,0) -> 0 | T18: =IF(AND(SUM('Corrected Profiles'!$C18:S18)>$E$1,SUM($D18:S18)=0),1,0) -> 0 | U18: =IF(AND(SUM('Corrected Profiles'!$C18:T18)>$E$1,SUM($D18:T18)=0),1,0) -> 0 | V18: =IF(AND(SUM('Corrected Profiles'!$C18:U18)>$E$1,SUM($D18:U18)=0),1,0) -> 0 | W18: =IF(AND(SUM('Corrected Profiles'!$C18:V18)>$E$1,SUM($D18:V18)=0),1,0) -> 0 | X18: =IF(AND(SUM('Corrected Profiles'!$C18:W18)>$E$1,SUM($D18:W18)=0),1,0) -> 0
B19: CLP | C19: 3 | D19: =IF(SUM('Corrected Profiles'!$C19:C19)>$E$1,1,0) -> 0 | E19: =IF(AND(SUM('Corrected Profiles'!$C19:D19)>$E$1,SUM($D19:D19)=0),1,0) -> 0 | F19: =IF(AND(SUM('Corrected Profiles'!$C19:E19)>$E$1,SUM($D19:E19)=0),1,0) -> 1 | G19: =IF(AND(SUM('Corrected Profiles'!$C19:F19)>$E$1,SUM($D19:F19)=0),1,0) -> 0 | H19: =IF(AND(SUM('Corrected Profiles'!$C19:G19)>$E$1,SUM($D19:G19)=0),1,0) -> 0 | I19: =IF(AND(SUM('Corrected Profiles'!$C19:H19)>$E$1,SUM($D19:H19)=0),1,0) -> 0 | J19: =IF(AND(SUM('Corrected Profiles'!$C19:I19)>$E$1,SUM($D19:I19)=0),1,0) -> 0 | K19: =IF(AND(SUM('Corrected Profiles'!$C19:J19)>$E$1,SUM($D19:J19)=0),1,0) -> 0 | L19: =IF(AND(SUM('Corrected Profiles'!$C19:K19)>$E$1,SUM($D19:K19)=0),1,0) -> 0 | M19: =IF(AND(SUM('Corrected Profiles'!$C19:L19)>$E$1,SUM($D19:L19)=0),1,0) -> 0 | N19: =IF(AND(SUM('Corrected Profiles'!$C19:M19)>$E$1,SUM($D19:M19)=0),1,0) -> 0 | O19: =IF(AND(SUM('Corrected Profiles'!$C19:N19)>$E$1,SUM($D19:N19)=0),1,0) -> 0 | P19: =IF(AND(SUM('Corrected Profiles'!$C19:O19)>$E$1,SUM($D19:O19)=0),1,0) -> 0 | Q19: =IF(AND(SUM('Corrected Profiles'!$C19:P19)>$E$1,SUM($D19:P19)=0),1,0) -> 0 | R19: =IF(AND(SUM('Corrected Profiles'!$C19:Q19)>$E$1,SUM($D19:Q19)=0),1,0) -> 0 | S19: =IF(AND(SUM('Corrected Profiles'!$C19:R19)>$E$1,SUM($D19:R19)=0),1,0) -> 0 | T19: =IF(AND(SUM('Corrected Profiles'!$C19:S19)>$E$1,SUM($D19:S19)=0),1,0) -> 0 | U19: =IF(AND(SUM('Corrected Profiles'!$C19:T19)>$E$1,SUM($D19:T19)=0),1,0) -> 0 | V19: =IF(AND(SUM('Corrected Profiles'!$C19:U19)>$E$1,SUM($D19:U19)=0),1,0) -> 0 | W19: =IF(AND(SUM('Corrected Profiles'!$C19:V19)>$E$1,SUM($D19:V19)=0),1,0) -> 0 | X19: =IF(AND(SUM('Corrected Profiles'!$C19:W19)>$E$1,SUM($D19:W19)=0),1,0) -> 0
B20: CLS | C20: 3 | D20: =IF(SUM('Corrected Profiles'!$C20:C20)>$E$1,1,0) -> 0 | E20: =IF(AND(SUM('Corrected Profiles'!$C20:D20)>$E$1,SUM($D20:D20)=0),1,0) -> 0 | F20: =IF(AND(SUM('Corrected Profiles'!$C20:E20)>$E$1,SUM($D20:E20)=0),1,0) -> 1 | G20: =IF(AND(SUM('Corrected Profiles'!$C20:F20)>$E$1,SUM($D20:F20)=0),1,0) -> 0 | H20: =IF(AND(SUM('Corrected Profiles'!$C20:G20)>$E$1,SUM($D20:G20)=0),1,0) -> 0 | I20: =IF(AND(SUM('Corrected Profiles'!$C20:H20)>$E$1,SUM($D20:H20)=0),1,0) -> 0 | J20: =IF(AND(SUM('Corrected Profiles'!$C20:I20)>$E$1,SUM($D20:I20)=0),1,0) -> 0 | K20: =IF(AND(SUM('Corrected Profiles'!$C20:J20)>$E$1,SUM($D20:J20)=0),1,0) -> 0 | L20: =IF(AND(SUM('Corrected Profiles'!$C20:K20)>$E$1,SUM($D20:K20)=0),1,0) -> 0 | M20: =IF(AND(SUM('Corrected Profiles'!$C20:L20)>$E$1,SUM($D20:L20)=0),1,0) -> 0 | N20: =IF(AND(SUM('Corrected Profiles'!$C20:M20)>$E$1,SUM($D20:M20)=0),1,0) -> 0 | O20: =IF(AND(SUM('Corrected Profiles'!$C20:N20)>$E$1,SUM($D20:N20)=0),1,0) -> 0 | P20: =IF(AND(SUM('Corrected Profiles'!$C20:O20)>$E$1,SUM($D20:O20)=0),1,0) -> 0 | Q20: =IF(AND(SUM('Corrected Profiles'!$C20:P20)>$E$1,SUM($D20:P20)=0),1,0) -> 0 | R20: =IF(AND(SUM('Corrected Profiles'!$C20:Q20)>$E$1,SUM($D20:Q20)=0),1,0) -> 0 | S20: =IF(AND(SUM('Corrected Profiles'!$C20:R20)>$E$1,SUM($D20:R20)=0),1,0) -> 0 | T20: =IF(AND(SUM('Corrected Profiles'!$C20:S20)>$E$1,SUM($D20:S20)=0),1,0) -> 0 | U20: =IF(AND(SUM('Corrected Profiles'!$C20:T20)>$E$1,SUM($D20:T20)=0),1,0) -> 0 | V20: =IF(AND(SUM('Corrected Profiles'!$C20:U20)>$E$1,SUM($D20:U20)=0),1,0) -> 0 | W20: =IF(AND(SUM('Corrected Profiles'!$C20:V20)>$E$1,SUM($D20:V20)=0),1,0) -> 0 | X20: =IF(AND(SUM('Corrected Profiles'!$C20:W20)>$E$1,SUM($D20:W20)=0),1,0) -> 0
B21: CRA | C21: 3 | D21: =IF(SUM('Corrected Profiles'!$C21:C21)>$E$1,1,0) -> 0 | E21: =IF(AND(SUM('Corrected Profiles'!$C21:D21)>$E$1,SUM($D21:D21)=0),1,0) -> 0 | F21: =IF(AND(SUM('Corrected Profiles'!$C21:E21)>$E$1,SUM($D21:E21)=0),1,0) -> 1 | G21: =IF(AND(SUM('Corrected Profiles'!$C21:F21)>$E$1,SUM($D21:F21)=0),1,0) -> 0 | H21: =IF(AND(SUM('Corrected Profiles'!$C21:G21)>$E$1,SUM($D21:G21)=0),1,0) -> 0 | I21: =IF(AND(SUM('Corrected Profiles'!$C21:H21)>$E$1,SUM($D21:H21)=0),1,0) -> 0 | J21: =IF(AND(SUM('Corrected Profiles'!$C21:I21)>$E$1,SUM($D21:I21)=0),1,0) -> 0 | K21: =IF(AND(SUM('Corrected Profiles'!$C21:J21)>$E$1,SUM($D21:J21)=0),1,0) -> 0 | L21: =IF(AND(SUM('Corrected Profiles'!$C21:K21)>$E$1,SUM($D21:K21)=0),1,0) -> 0 | M21: =IF(AND(SUM('Corrected Profiles'!$C21:L21)>$E$1,SUM($D21:L21)=0),1,0) -> 0 | N21: =IF(AND(SUM('Corrected Profiles'!$C21:M21)>$E$1,SUM($D21:M21)=0),1,0) -> 0 | O21: =IF(AND(SUM('Corrected Profiles'!$C21:N21)>$E$1,SUM($D21:N21)=0),1,0) -> 0 | P21: =IF(AND(SUM('Corrected Profiles'!$C21:O21)>$E$1,SUM($D21:O21)=0),1,0) -> 0 | Q21: =IF(AND(SUM('Corrected Profiles'!$C21:P21)>$E$1,SUM($D21:P21)=0),1,0) -> 0 | R21: =IF(AND(SUM('Corrected Profiles'!$C21:Q21)>$E$1,SUM($D21:Q21)=0),1,0) -> 0 | S21: =IF(AND(SUM('Corrected Profiles'!$C21:R21)>$E$1,SUM($D21:R21)=0),1,0) -> 0 | T21: =IF(AND(SUM('Corrected Profiles'!$C21:S21)>$E$1,SUM($D21:S21)=0),1,0) -> 0 | U21: =IF(AND(SUM('Corrected Profiles'!$C21:T21)>$E$1,SUM($D21:T21)=0),1,0) -> 0 | V21: =IF(AND(SUM('Corrected Profiles'!$C21:U21)>$E$1,SUM($D21:U21)=0),1,0) -> 0 | W21: =IF(AND(SUM('Corrected Profiles'!$C21:V21)>$E$1,SUM($D21:V21)=0),1,0) -> 0 | X21: =IF(AND(SUM('Corrected Profiles'!$C21:W21)>$E$1,SUM($D21:W21)=0),1,0) -> 0
B22: CRB | C22: 4 | D22: =IF(SUM('Corrected Profiles'!$C22:C22)>$E$1,1,0) -> 0 | E22: =IF(AND(SUM('Corrected Profiles'!$C22:D22)>$E$1,SUM($D22:D22)=0),1,0) -> 0 | F22: =IF(AND(SUM('Corrected Profiles'!$C22:E22)>$E$1,SUM($D22:E22)=0),1,0) -> 0 | G22: =IF(AND(SUM('Corrected Profiles'!$C22:F22)>$E$1,SUM($D22:F22)=0),1,0) -> 1 | H22: =IF(AND(SUM('Corrected Profiles'!$C22:G22)>$E$1,SUM($D22:G22)=0),1,0) -> 0 | I22: =IF(AND(SUM('Corrected Profiles'!$C22:H22)>$E$1,SUM($D22:H22)=0),1,0) -> 0 | J22: =IF(AND(SUM('Corrected Profiles'!$C22:I22)>$E$1,SUM($D22:I22)=0),1,0) -> 0 | K22: =IF(AND(SUM('Corrected Profiles'!$C22:J22)>$E$1,SUM($D22:J22)=0),1,0) -> 0 | L22: =IF(AND(SUM('Corrected Profiles'!$C22:K22)>$E$1,SUM($D22:K22)=0),1,0) -> 0 | M22: =IF(AND(SUM('Corrected Profiles'!$C22:L22)>$E$1,SUM($D22:L22)=0),1,0) -> 0 | N22: =IF(AND(SUM('Corrected Profiles'!$C22:M22)>$E$1,SUM($D22:M22)=0),1,0) -> 0 | O22: =IF(AND(SUM('Corrected Profiles'!$C22:N22)>$E$1,SUM($D22:N22)=0),1,0) -> 0 | P22: =IF(AND(SUM('Corrected Profiles'!$C22:O22)>$E$1,SUM($D22:O22)=0),1,0) -> 0 | Q22: =IF(AND(SUM('Corrected Profiles'!$C22:P22)>$E$1,SUM($D22:P22)=0),1,0) -> 0 | R22: =IF(AND(SUM('Corrected Profiles'!$C22:Q22)>$E$1,SUM($D22:Q22)=0),1,0) -> 0 | S22: =IF(AND(SUM('Corrected Profiles'!$C22:R22)>$E$1,SUM($D22:R22)=0),1,0) -> 0 | T22: =IF(AND(SUM('Corrected Profiles'!$C22:S22)>$E$1,SUM($D22:S22)=0),1,0) -> 0 | U22: =IF(AND(SUM('Corrected Profiles'!$C22:T22)>$E$1,SUM($D22:T22)=0),1,0) -> 0 | V22: =IF(AND(SUM('Corrected Profiles'!$C22:U22)>$E$1,SUM($D22:U22)=0),1,0) -> 0 | W22: =IF(AND(SUM('Corrected Profiles'!$C22:V22)>$E$1,SUM($D22:V22)=0),1,0) -> 0 | X22: =IF(AND(SUM('Corrected Profiles'!$C22:W22)>$E$1,SUM($D22:W22)=0),1,0) -> 0
B23: CRE | C23: 6 | D23: =IF(SUM('Corrected Profiles'!$C23:C23)>$E$1,1,0) -> 0 | E23: =IF(AND(SUM('Corrected Profiles'!$C23:D23)>$E$1,SUM($D23:D23)=0),1,0) -> 0 | F23: =IF(AND(SUM('Corrected Profiles'!$C23:E23)>$E$1,SUM($D23:E23)=0),1,0) -> 0 | G23: =IF(AND(SUM('Corrected Profiles'!$C23:F23)>$E$1,SUM($D23:F23)=0),1,0) -> 0 | H23: =IF(AND(SUM('Corrected Profiles'!$C23:G23)>$E$1,SUM($D23:G23)=0),1,0) -> 0 | I23: =IF(AND(SUM('Corrected Profiles'!$C23:H23)>$E$1,SUM($D23:H23)=0),1,0) -> 1 | J23: =IF(AND(SUM('Corrected Profiles'!$C23:I23)>$E$1,SUM($D23:I23)=0),1,0) -> 0 | K23: =IF(AND(SUM('Corrected Profiles'!$C23:J23)>$E$1,SUM($D23:J23)=0),1,0) -> 0 | L23: =IF(AND(SUM('Corrected Profiles'!$C23:K23)>$E$1,SUM($D23:K23)=0),1,0) -> 0 | M23: =IF(AND(SUM('Corrected Profiles'!$C23:L23)>$E$1,SUM($D23:L23)=0),1,0) -> 0 | N23: =IF(AND(SUM('Corrected Profiles'!$C23:M23)>$E$1,SUM($D23:M23)=0),1,0) -> 0 | O23: =IF(AND(SUM('Corrected Profiles'!$C23:N23)>$E$1,SUM($D23:N23)=0),1,0) -> 0 | P23: =IF(AND(SUM('Corrected Profiles'!$C23:O23)>$E$1,SUM($D23:O23)=0),1,0) -> 0 | Q23: =IF(AND(SUM('Corrected Profiles'!$C23:P23)>$E$1,SUM($D23:P23)=0),1,0) -> 0 | R23: =IF(AND(SUM('Corrected Profiles'!$C23:Q23)>$E$1,SUM($D23:Q23)=0),1,0) -> 0 | S23: =IF(AND(SUM('Corrected Profiles'!$C23:R23)>$E$1,SUM($D23:R23)=0),1,0) -> 0 | T23: =IF(AND(SUM('Corrected Profiles'!$C23:S23)>$E$1,SUM($D23:S23)=0),1,0) -> 0 | U23: =IF(AND(SUM('Corrected Profiles'!$C23:T23)>$E$1,SUM($D23:T23)=0),1,0) -> 0 | V23: =IF(AND(SUM('Corrected Profiles'!$C23:U23)>$E$1,SUM($D23:U23)=0),1,0) -> 0 | W23: =IF(AND(SUM('Corrected Profiles'!$C23:V23)>$E$1,SUM($D23:V23)=0),1,0) -> 0 | X23: =IF(AND(SUM('Corrected Profiles'!$C23:W23)>$E$1,SUM($D23:W23)=0),1,0) -> 0
B24: CRP | C24: 3 | D24: =IF(SUM('Corrected Profiles'!$C24:C24)>$E$1,1,0) -> 0 | E24: =IF(AND(SUM('Corrected Profiles'!$C24:D24)>$E$1,SUM($D24:D24)=0),1,0) -> 0 | F24: =IF(AND(SUM('Corrected Profiles'!$C24:E24)>$E$1,SUM($D24:E24)=0),1,0) -> 1 | G24: =IF(AND(SUM('Corrected Profiles'!$C24:F24)>$E$1,SUM($D24:F24)=0),1,0) -> 0 | H24: =IF(AND(SUM('Corrected Profiles'!$C24:G24)>$E$1,SUM($D24:G24)=0),1,0) -> 0 | I24: =IF(AND(SUM('Corrected Profiles'!$C24:H24)>$E$1,SUM($D24:H24)=0),1,0) -> 0 | J24: =IF(AND(SUM('Corrected Profiles'!$C24:I24)>$E$1,SUM($D24:I24)=0),1,0) -> 0 | K24: =IF(AND(SUM('Corrected Profiles'!$C24:J24)>$E$1,SUM($D24:J24)=0),1,0) -> 0 | L24: =IF(AND(SUM('Corrected Profiles'!$C24:K24)>$E$1,SUM($D24:K24)=0),1,0) -> 0 | M24: =IF(AND(SUM('Corrected Profiles'!$C24:L24)>$E$1,SUM($D24:L24)=0),1,0) -> 0 | N24: =IF(AND(SUM('Corrected Profiles'!$C24:M24)>$E$1,SUM($D24:M24)=0),1,0) -> 0 | O24: =IF(AND(SUM('Corrected Profiles'!$C24:N24)>$E$1,SUM($D24:N24)=0),1,0) -> 0 | P24: =IF(AND(SUM('Corrected Profiles'!$C24:O24)>$E$1,SUM($D24:O24)=0),1,0) -> 0 | Q24: =IF(AND(SUM('Corrected Profiles'!$C24:P24)>$E$1,SUM($D24:P24)=0),1,0) -> 0 | R24: =IF(AND(SUM('Corrected Profiles'!$C24:Q24)>$E$1,SUM($D24:Q24)=0),1,0) -> 0 | S24: =IF(AND(SUM('Corrected Profiles'!$C24:R24)>$E$1,SUM($D24:R24)=0),1,0) -> 0 | T24: =IF(AND(SUM('Corrected Profiles'!$C24:S24)>$E$1,SUM($D24:S24)=0),1,0) -> 0 | U24: =IF(AND(SUM('Corrected Profiles'!$C24:T24)>$E$1,SUM($D24:T24)=0),1,0) -> 0 | V24: =IF(AND(SUM('Corrected Profiles'!$C24:U24)>$E$1,SUM($D24:U24)=0),1,0) -> 0 | W24: =IF(AND(SUM('Corrected Profiles'!$C24:V24)>$E$1,SUM($D24:V24)=0),1,0) -> 0 | X24: =IF(AND(SUM('Corrected Profiles'!$C24:W24)>$E$1,SUM($D24:W24)=0),1,0) -> 0
B25: CRR | C25: 4 | D25: =IF(SUM('Corrected Profiles'!$C25:C25)>$E$1,1,0) -> 0 | E25: =IF(AND(SUM('Corrected Profiles'!$C25:D25)>$E$1,SUM($D25:D25)=0),1,0) -> 0 | F25: =IF(AND(SUM('Corrected Profiles'!$C25:E25)>$E$1,SUM($D25:E25)=0),1,0) -> 0 | G25: =IF(AND(SUM('Corrected Profiles'!$C25:F25)>$E$1,SUM($D25:F25)=0),1,0) -> 1 | H25: =IF(AND(SUM('Corrected Profiles'!$C25:G25)>$E$1,SUM($D25:G25)=0),1,0) -> 0 | I25: =IF(AND(SUM('Corrected Profiles'!$C25:H25)>$E$1,SUM($D25:H25)=0),1,0) -> 0 | J25: =IF(AND(SUM('Corrected Profiles'!$C25:I25)>$E$1,SUM($D25:I25)=0),1,0) -> 0 | K25: =IF(AND(SUM('Corrected Profiles'!$C25:J25)>$E$1,SUM($D25:J25)=0),1,0) -> 0 | L25: =IF(AND(SUM('Corrected Profiles'!$C25:K25)>$E$1,SUM($D25:K25)=0),1,0) -> 0 | M25: =IF(AND(SUM('Corrected Profiles'!$C25:L25)>$E$1,SUM($D25:L25)=0),1,0) -> 0 | N25: =IF(AND(SUM('Corrected Profiles'!$C25:M25)>$E$1,SUM($D25:M25)=0),1,0) -> 0 | O25: =IF(AND(SUM('Corrected Profiles'!$C25:N25)>$E$1,SUM($D25:N25)=0),1,0) -> 0 | P25: =IF(AND(SUM('Corrected Profiles'!$C25:O25)>$E$1,SUM($D25:O25)=0),1,0) -> 0 | Q25: =IF(AND(SUM('Corrected Profiles'!$C25:P25)>$E$1,SUM($D25:P25)=0),1,0) -> 0 | R25: =IF(AND(SUM('Corrected Profiles'!$C25:Q25)>$E$1,SUM($D25:Q25)=0),1,0) -> 0 | S25: =IF(AND(SUM('Corrected Profiles'!$C25:R25)>$E$1,SUM($D25:R25)=0),1,0) -> 0 | T25: =IF(AND(SUM('Corrected Profiles'!$C25:S25)>$E$1,SUM($D25:S25)=0),1,0) -> 0 | U25: =IF(AND(SUM('Corrected Profiles'!$C25:T25)>$E$1,SUM($D25:T25)=0),1,0) -> 0 | V25: =IF(AND(SUM('Corrected Profiles'!$C25:U25)>$E$1,SUM($D25:U25)=0),1,0) -> 0 | W25: =IF(AND(SUM('Corrected Profiles'!$C25:V25)>$E$1,SUM($D25:V25)=0),1,0) -> 0 | X25: =IF(AND(SUM('Corrected Profiles'!$C25:W25)>$E$1,SUM($D25:W25)=0),1,0) -> 0
B26: CRS | C26: 2 | D26: =IF(SUM('Corrected Profiles'!$C26:C26)>$E$1,1,0) -> 0 | E26: =IF(AND(SUM('Corrected Profiles'!$C26:D26)>$E$1,SUM($D26:D26)=0),1,0) -> 1 | F26: =IF(AND(SUM('Corrected Profiles'!$C26:E26)>$E$1,SUM($D26:E26)=0),1,0) -> 0 | G26: =IF(AND(SUM('Corrected Profiles'!$C26:F26)>$E$1,SUM($D26:F26)=0),1,0) -> 0 | H26: =IF(AND(SUM('Corrected Profiles'!$C26:G26)>$E$1,SUM($D26:G26)=0),1,0) -> 0 | I26: =IF(AND(SUM('Corrected Profiles'!$C26:H26)>$E$1,SUM($D26:H26)=0),1,0) -> 0 | J26: =IF(AND(SUM('Corrected Profiles'!$C26:I26)>$E$1,SUM($D26:I26)=0),1,0) -> 0 | K26: =IF(AND(SUM('Corrected Profiles'!$C26:J26)>$E$1,SUM($D26:J26)=0),1,0) -> 0 | L26: =IF(AND(SUM('Corrected Profiles'!$C26:K26)>$E$1,SUM($D26:K26)=0),1,0) -> 0 | M26: =IF(AND(SUM('Corrected Profiles'!$C26:L26)>$E$1,SUM($D26:L26)=0),1,0) -> 0 | N26: =IF(AND(SUM('Corrected Profiles'!$C26:M26)>$E$1,SUM($D26:M26)=0),1,0) -> 0 | O26: =IF(AND(SUM('Corrected Profiles'!$C26:N26)>$E$1,SUM($D26:N26)=0),1,0) -> 0 | P26: =IF(AND(SUM('Corrected Profiles'!$C26:O26)>$E$1,SUM($D26:O26)=0),1,0) -> 0 | Q26: =IF(AND(SUM('Corrected Profiles'!$C26:P26)>$E$1,SUM($D26:P26)=0),1,0) -> 0 | R26: =IF(AND(SUM('Corrected Profiles'!$C26:Q26)>$E$1,SUM($D26:Q26)=0),1,0) -> 0 | S26: =IF(AND(SUM('Corrected Profiles'!$C26:R26)>$E$1,SUM($D26:R26)=0),1,0) -> 0 | T26: =IF(AND(SUM('Corrected Profiles'!$C26:S26)>$E$1,SUM($D26:S26)=0),1,0) -> 0 | U26: =IF(AND(SUM('Corrected Profiles'!$C26:T26)>$E$1,SUM($D26:T26)=0),1,0) -> 0 | V26: =IF(AND(SUM('Corrected Profiles'!$C26:U26)>$E$1,SUM($D26:U26)=0),1,0) -> 0 | W26: =IF(AND(SUM('Corrected Profiles'!$C26:V26)>$E$1,SUM($D26:V26)=0),1,0) -> 0 | X26: =IF(AND(SUM('Corrected Profiles'!$C26:W26)>$E$1,SUM($D26:W26)=0),1,0) -> 0
B27: CRU | C27: =MATCH(1,D27:X27,0) -> 4 | D27: =IF(SUM('Corrected Profiles'!$C27:C27)>$E$1,1,0) -> 0 | E27: =IF(AND(SUM('Corrected Profiles'!$C27:D27)>$E$1,SUM($D27:D27)=0),1,0) -> 0 | F27: =IF(AND(SUM('Corrected Profiles'!$C27:E27)>$E$1,SUM($D27:E27)=0),1,0) -> 0 | G27: =IF(AND(SUM('Corrected Profiles'!$C27:F27)>$E$1,SUM($D27:F27)=0),1,0) -> 1 | H27: =IF(AND(SUM('Corrected Profiles'!$C27:G27)>$E$1,SUM($D27:G27)=0),1,0) -> 0 | I27: =IF(AND(SUM('Corrected Profiles'!$C27:H27)>$E$1,SUM($D27:H27)=0),1,0) -> 0 | J27: =IF(AND(SUM('Corrected Profiles'!$C27:I27)>$E$1,SUM($D27:I27)=0),1,0) -> 0 | K27: =IF(AND(SUM('Corrected Profiles'!$C27:J27)>$E$1,SUM($D27:J27)=0),1,0) -> 0 | L27: =IF(AND(SUM('Corrected Profiles'!$C27:K27)>$E$1,SUM($D27:K27)=0),1,0) -> 0 | M27: =IF(AND(SUM('Corrected Profiles'!$C27:L27)>$E$1,SUM($D27:L27)=0),1,0) -> 0 | N27: =IF(AND(SUM('Corrected Profiles'!$C27:M27)>$E$1,SUM($D27:M27)=0),1,0) -> 0 | O27: =IF(AND(SUM('Corrected Profiles'!$C27:N27)>$E$1,SUM($D27:N27)=0),1,0) -> 0 | P27: =IF(AND(SUM('Corrected Profiles'!$C27:O27)>$E$1,SUM($D27:O27)=0),1,0) -> 0 | Q27: =IF(AND(SUM('Corrected Profiles'!$C27:P27)>$E$1,SUM($D27:P27)=0),1,0) -> 0 | R27: =IF(AND(SUM('Corrected Profiles'!$C27:Q27)>$E$1,SUM($D27:Q27)=0),1,0) -> 0 | S27: =IF(AND(SUM('Corrected Profiles'!$C27:R27)>$E$1,SUM($D27:R27)=0),1,0) -> 0 | T27: =IF(AND(SUM('Corrected Profiles'!$C27:S27)>$E$1,SUM($D27:S27)=0),1,0) -> 0 | U27: =IF(AND(SUM('Corrected Profiles'!$C27:T27)>$E$1,SUM($D27:T27)=0),1,0) -> 0 | V27: =IF(AND(SUM('Corrected Profiles'!$C27:U27)>$E$1,SUM($D27:U27)=0),1,0) -> 0 | W27: =IF(AND(SUM('Corrected Profiles'!$C27:V27)>$E$1,SUM($D27:V27)=0),1,0) -> 0 | X27: =IF(AND(SUM('Corrected Profiles'!$C27:W27)>$E$1,SUM($D27:W27)=0),1,0) -> 0
B28: CRV | C28: 8 | D28: =IF(SUM('Corrected Profiles'!$C28:C28)>$E$1,1,0) -> 0 | E28: =IF(AND(SUM('Corrected Profiles'!$C28:D28)>$E$1,SUM($D28:D28)=0),1,0) -> 0 | F28: =IF(AND(SUM('Corrected Profiles'!$C28:E28)>$E$1,SUM($D28:E28)=0),1,0) -> 0 | G28: =IF(AND(SUM('Corrected Profiles'!$C28:F28)>$E$1,SUM($D28:F28)=0),1,0) -> 0 | H28: =IF(AND(SUM('Corrected Profiles'!$C28:G28)>$E$1,SUM($D28:G28)=0),1,0) -> 0 | I28: =IF(AND(SUM('Corrected Profiles'!$C28:H28)>$E$1,SUM($D28:H28)=0),1,0) -> 0 | J28: =IF(AND(SUM('Corrected Profiles'!$C28:I28)>$E$1,SUM($D28:I28)=0),1,0) -> 0 | K28: =IF(AND(SUM('Corrected Profiles'!$C28:J28)>$E$1,SUM($D28:J28)=0),1,0) -> 1 | L28: =IF(AND(SUM('Corrected Profiles'!$C28:K28)>$E$1,SUM($D28:K28)=0),1,0) -> 0 | M28: =IF(AND(SUM('Corrected Profiles'!$C28:L28)>$E$1,SUM($D28:L28)=0),1,0) -> 0 | N28: =IF(AND(SUM('Corrected Profiles'!$C28:M28)>$E$1,SUM($D28:M28)=0),1,0) -> 0 | O28: =IF(AND(SUM('Corrected Profiles'!$C28:N28)>$E$1,SUM($D28:N28)=0),1,0) -> 0 | P28: =IF(AND(SUM('Corrected Profiles'!$C28:O28)>$E$1,SUM($D28:O28)=0),1,0) -> 0 | Q28: =IF(AND(SUM('Corrected Profiles'!$C28:P28)>$E$1,SUM($D28:P28)=0),1,0) -> 0 | R28: =IF(AND(SUM('Corrected Profiles'!$C28:Q28)>$E$1,SUM($D28:Q28)=0),1,0) -> 0 | S28: =IF(AND(SUM('Corrected Profiles'!$C28:R28)>$E$1,SUM($D28:R28)=0),1,0) -> 0 | T28: =IF(AND(SUM('Corrected Profiles'!$C28:S28)>$E$1,SUM($D28:S28)=0),1,0) -> 0 | U28: =IF(AND(SUM('Corrected Profiles'!$C28:T28)>$E$1,SUM($D28:T28)=0),1,0) -> 0 | V28: =IF(AND(SUM('Corrected Profiles'!$C28:U28)>$E$1,SUM($D28:U28)=0),1,0) -> 0 | W28: =IF(AND(SUM('Corrected Profiles'!$C28:V28)>$E$1,SUM($D28:V28)=0),1,0) -> 0 | X28: =IF(AND(SUM('Corrected Profiles'!$C28:W28)>$E$1,SUM($D28:W28)=0),1,0) -> 0
B29: CSO | C29: 2 | D29: =IF(SUM('Corrected Profiles'!$C29:C29)>$E$1,1,0) -> 0 | E29: =IF(AND(SUM('Corrected Profiles'!$C29:D29)>$E$1,SUM($D29:D29)=0),1,0) -> 1 | F29: =IF(AND(SUM('Corrected Profiles'!$C29:E29)>$E$1,SUM($D29:E29)=0),1,0) -> 0 | G29: =IF(AND(SUM('Corrected Profiles'!$C29:F29)>$E$1,SUM($D29:F29)=0),1,0) -> 0 | H29: =IF(AND(SUM('Corrected Profiles'!$C29:G29)>$E$1,SUM($D29:G29)=0),1,0) -> 0 | I29: =IF(AND(SUM('Corrected Profiles'!$C29:H29)>$E$1,SUM($D29:H29)=0),1,0) -> 0 | J29: =IF(AND(SUM('Corrected Profiles'!$C29:I29)>$E$1,SUM($D29:I29)=0),1,0) -> 0 | K29: =IF(AND(SUM('Corrected Profiles'!$C29:J29)>$E$1,SUM($D29:J29)=0),1,0) -> 0 | L29: =IF(AND(SUM('Corrected Profiles'!$C29:K29)>$E$1,SUM($D29:K29)=0),1,0) -> 0 | M29: =IF(AND(SUM('Corrected Profiles'!$C29:L29)>$E$1,SUM($D29:L29)=0),1,0) -> 0 | N29: =IF(AND(SUM('Corrected Profiles'!$C29:M29)>$E$1,SUM($D29:M29)=0),1,0) -> 0 | O29: =IF(AND(SUM('Corrected Profiles'!$C29:N29)>$E$1,SUM($D29:N29)=0),1,0) -> 0 | P29: =IF(AND(SUM('Corrected Profiles'!$C29:O29)>$E$1,SUM($D29:O29)=0),1,0) -> 0 | Q29: =IF(AND(SUM('Corrected Profiles'!$C29:P29)>$E$1,SUM($D29:P29)=0),1,0) -> 0 | R29: =IF(AND(SUM('Corrected Profiles'!$C29:Q29)>$E$1,SUM($D29:Q29)=0),1,0) -> 0 | S29: =IF(AND(SUM('Corrected Profiles'!$C29:R29)>$E$1,SUM($D29:R29)=0),1,0) -> 0 | T29: =IF(AND(SUM('Corrected Profiles'!$C29:S29)>$E$1,SUM($D29:S29)=0),1,0) -> 0 | U29: =IF(AND(SUM('Corrected Profiles'!$C29:T29)>$E$1,SUM($D29:T29)=0),1,0) -> 0 | V29: =IF(AND(SUM('Corrected Profiles'!$C29:U29)>$E$1,SUM($D29:U29)=0),1,0) -> 0 | W29: =IF(AND(SUM('Corrected Profiles'!$C29:V29)>$E$1,SUM($D29:V29)=0),1,0) -> 0 | X29: =IF(AND(SUM('Corrected Profiles'!$C29:W29)>$E$1,SUM($D29:W29)=0),1,0) -> 0
B30: CSU | C30: 2 | D30: =IF(SUM('Corrected Profiles'!$C30:C30)>$E$1,1,0) -> 0 | E30: =IF(AND(SUM('Corrected Profiles'!$C30:D30)>$E$1,SUM($D30:D30)=0),1,0) -> 1 | F30: =IF(AND(SUM('Corrected Profiles'!$C30:E30)>$E$1,SUM($D30:E30)=0),1,0) -> 0 | G30: =IF(AND(SUM('Corrected Profiles'!$C30:F30)>$E$1,SUM($D30:F30)=0),1,0) -> 0 | H30: =IF(AND(SUM('Corrected Profiles'!$C30:G30)>$E$1,SUM($D30:G30)=0),1,0) -> 0 | I30: =IF(AND(SUM('Corrected Profiles'!$C30:H30)>$E$1,SUM($D30:H30)=0),1,0) -> 0 | J30: =IF(AND(SUM('Corrected Profiles'!$C30:I30)>$E$1,SUM($D30:I30)=0),1,0) -> 0 | K30: =IF(AND(SUM('Corrected Profiles'!$C30:J30)>$E$1,SUM($D30:J30)=0),1,0) -> 0 | L30: =IF(AND(SUM('Corrected Profiles'!$C30:K30)>$E$1,SUM($D30:K30)=0),1,0) -> 0 | M30: =IF(AND(SUM('Corrected Profiles'!$C30:L30)>$E$1,SUM($D30:L30)=0),1,0) -> 0 | N30: =IF(AND(SUM('Corrected Profiles'!$C30:M30)>$E$1,SUM($D30:M30)=0),1,0) -> 0 | O30: =IF(AND(SUM('Corrected Profiles'!$C30:N30)>$E$1,SUM($D30:N30)=0),1,0) -> 0 | P30: =IF(AND(SUM('Corrected Profiles'!$C30:O30)>$E$1,SUM($D30:O30)=0),1,0) -> 0 | Q30: =IF(AND(SUM('Corrected Profiles'!$C30:P30)>$E$1,SUM($D30:P30)=0),1,0) -> 0 | R30: =IF(AND(SUM('Corrected Profiles'!$C30:Q30)>$E$1,SUM($D30:Q30)=0),1,0) -> 0 | S30: =IF(AND(SUM('Corrected Profiles'!$C30:R30)>$E$1,SUM($D30:R30)=0),1,0) -> 0 | T30: =IF(AND(SUM('Corrected Profiles'!$C30:S30)>$E$1,SUM($D30:S30)=0),1,0) -> 0 | U30: =IF(AND(SUM('Corrected Profiles'!$C30:T30)>$E$1,SUM($D30:T30)=0),1,0) -> 0 | V30: =IF(AND(SUM('Corrected Profiles'!$C30:U30)>$E$1,SUM($D30:U30)=0),1,0) -> 0 | W30: =IF(AND(SUM('Corrected Profiles'!$C30:V30)>$E$1,SUM($D30:V30)=0),1,0) -> 0 | X30: =IF(AND(SUM('Corrected Profiles'!$C30:W30)>$E$1,SUM($D30:W30)=0),1,0) -> 0

Sheet Monthly Proj Profile
B1: What percentage of projects are initiated in each month of the year | N1: 0.2 | O1: Note: This percentage allows us to reduce the load in January/December. From experience the seasonalising has too much in these months
B2: 1 | C2: 2 | D2: 3 | E2: 4 | F2: 5 | G2: 6 | H2: 7 | I2: 8 | J2: 9 | K2: 10 | L2: 11 | M2: 12 | O2: Reduce | P2: Mult Factor | Q2: 1 | R2: 2 | S2: 3 | T2: 4 | U2: 5 | V2: 6 | W2: 7 | X2: 8 | Y2: 9 | Z2: 10 | AA2: 11 | AB2: 12
A3: CBE | B3: 0.04479495268 | C3: 0.07070688683 | D3: 0.07070688683 | E3: 0.1696965284 | F3: 0.07153873256 | G3: 0.06072473811 | H3: 0.08438243059 | I3: 0.06571581247 | J3: 0.05656550947 | K3: 0.1160258421 | L3: 0.06571581247 | M3: 0.128 | O3: =(B49+M49)*$N$1 -> 0.04319873817 | P3: =O3/SUM(C49:L49) -> 0.05478038243 | Q3: =B49*(1-$N$1) -> 0.04479495268 | R3: =C49*(1+$P3) -> 0.07070688683 | S3: 0.07070688683 | T3: 0.1696965284 | U3: 0.07153873256 | V3: 0.06072473811 | W3: 0.08438243059 | X3: 0.06571581247 | Y3: 0.05656550947 | Z3: 0.1160258421 | AA3: 0.06571581247 | AB3: =M49*(1-$N$1) -> 0.128
A4: CBG | B4: 0.04 | C4: 0.1102040816 | D4: 0.08448979592 | E4: 0.1873469388 | F4: 0.09551020408 | G4: 0.0587755102 | H4: 0.1175510204 | I4: 0.06612244898 | J4: 0.08448979592 | K4: 0.04775510204 | L4: 0.04775510204 | M4: 0.06 | O4: =(B50+M50)*$N$1 -> 0.025 | P4: =O4/SUM(C50:L50) -> 0.02857142857 | Q4: =B50*(1-$N$1) -> 0.04 | R4: 0.1102040816 | S4: 0.08448979592 | T4: 0.1873469388 | U4: 0.09551020408 | V4: 0.0587755102 | W4: 0.1175510204 | X4: 0.06612244898 | Y4: 0.08448979592 | Z4: 0.04775510204 | AA4: 0.04775510204 | AB4: =M50*(1-$N$1) -> 0.06
A5: CBH | B5: 0.06666666667 | C5: 0.08666666667 | D5: 0.08666666667 | E5: 0.08666666667 | F5: 0.08666666667 | G5: 0.08666666667 | H5: 0.08666666667 | I5: 0.08666666667 | J5: 0.08666666667 | K5: 0.08666666667 | L5: 0.08666666667 | M5: 0.06666666667 | O5: =(B53+M53)*$N$1 -> 0.03333333333 | P5: =O5/SUM(C53:L53) -> 0.04 | Q5: =B53*(1-$N$1) -> 0.06666666667 | R5: =C53*(1+$P5) -> 0.08666666667 | S5: 0.08666666667 | T5: 0.08666666667 | U5: 0.08666666667 | V5: 0.08666666667 | W5: 0.08666666667 | X5: 0.08666666667 | Y5: 0.08666666667 | Z5: 0.08666666667 | AA5: 0.08666666667 | AB5: =M53*(1-$N$1) -> 0.06666666667
A6: CBI | B6: 0.04885496183 | C6: 0.06804248772 | D6: 0.07851056276 | E6: 0.3009571572 | F6: 0.05757441269 | G6: 0.04448931889 | H6: 0.06804248772 | I6: 0.06542546896 | J6: 0.07065950648 | K6: 0.075893544 | L6: 0.07065950648 | M6: 0.05089058524 | O6: =(B56+M56)*$N$1 -> 0.02493638677 | P6: =O6/SUM(C56:L56) -> 0.02848837209 | Q6: =B56*(1-$N$1) -> 0.04885496183 | R6: =C56*(1+$P6) -> 0.06804248772 | S6: 0.07851056276 | T6: 0.3009571572 | U6: 0.05757441269 | V6: 0.04448931889 | W6: 0.06804248772 | X6: 0.06542546896 | Y6: 0.07065950648 | Z6: 0.075893544 | AA6: 0.07065950648 | AB6: =M56*(1-$N$1) -> 0.05089058524
A7: CBK | B7: 0.03466666667 | C7: 0.08575063613 | D7: 0.08575063613 | E7: 0.09604071247 | F7: 0.1063307888 | G7: 0.08575063613 | H7: 0.09604071247 | I7: 0.08575063613 | J7: 0.08575063613 | K7: 0.08575063613 | L7: 0.08575063613 | M7: 0.06666666667 | O7: =(B59+M59)*$N$1 -> 0.02533333333 | P7: =O7/SUM(C59:L59) -> 0.02900763359 | Q7: =B59*(1-$N$1) -> 0.03466666667 | R7: =C59*(1+$P7) -> 0.08575063613 | S7: 0.08575063613 | T7: 0.09604071247 | U7: 0.1063307888 | V7: 0.08575063613 | W7: 0.09604071247 | X7: 0.08575063613 | Y7: 0.08575063613 | Z7: 0.08575063613 | AA7: 0.08575063613 | AB7: =M59*(1-$N$1) -> 0.06666666667
A8: CBL | B8: 0.02302675003 | C8: 0.0801916603 | D8: 0.1167403402 | E8: 0.1962735506 | F8: 0.08652492242 | G8: 0.07155539377 | H8: 0.09385999146 | I8: 0.06810088716 | J8: 0.06464638054 | K8: 0.07673715368 | L8: 0.06810088716 | M8: 0.05424208261 | O8: =(B61+M61)*$N$1 -> 0.01931720816 | P8: =O8/SUM(C61:L61) -> 0.02138245481 | Q8: =B61*(1-$N$1) -> 0.02302675003 | R8: =C61*(1+$P8) -> 0.0801916603 | S8: 0.1167403402 | T8: 0.1962735506 | U8: 0.08652492242 | V8: 0.07155539377 | W8: 0.09385999146 | X8: 0.06810088716 | Y8: 0.06464638054 | Z8: 0.07673715368 | AA8: 0.06810088716 | AB8: =M61*(1-$N$1) -> 0.05424208261
A9: CBP | B9: 0.05062335737 | C9: 0.09746587697 | D9: 0.0997616471 | E9: 0.1545818548 | F9: 0.08751753978 | G9: 0.06532509527 | H9: 0.08522176966 | I9: 0.08675228307 | J9: 0.08063022942 | K9: 0.07068189222 | L9: 0.06073355503 | M9: 0.06070489925 | O9: =(B62+M62)*$N$1 -> 0.02783206416 | P9: =O9/SUM(C62:L62) -> 0.03233129795 | Q9: =B62*(1-$N$1) -> 0.05062335737 | R9: 0.09746587697 | S9: 0.0997616471 | T9: 0.1545818548 | U9: 0.08751753978 | V9: 0.06532509527 | W9: 0.08522176966 | X9: 0.08675228307 | Y9: 0.08063022942 | Z9: 0.07068189222 | AA9: 0.06073355503 | AB9: =M62*(1-$N$1) -> 0.06070489925
A10: CBS | B10: 0.02634965035 | C10: 0.1193586191 | D10: 0.1166611143 | E10: 0.2005224801 | F10: 0.09309972291 | G10: 0.05251779241 | H10: 0.06445365432 | I10: 0.07400234385 | J10: 0.07161517147 | K10: 0.0668408267 | L10: 0.05490496479 | M10: 0.05967365967 | O10: =(B65+M65)*$N$1 -> 0.02150582751 | P10: =O10/SUM(C65:L65) -> 0.02409695197 | Q10: =B65*(1-$N$1) -> 0.02634965035 | R10: =C65*(1+$P10) -> 0.1193586191 | S10: 0.1166611143 | T10: 0.2005224801 | U10: 0.09309972291 | V10: 0.05251779241 | W10: 0.06445365432 | X10: 0.07400234385 | Y10: 0.07161517147 | Z10: 0.0668408267 | AA10: 0.05490496479 | AB10: =M65*(1-$N$1) -> 0.05967365967
A11: CHH | B11: 0.04578833693 | C11: 0.07080067422 | D11: 0.09633534362 | E11: 0.1404406817 | F11: 0.07544334139 | G11: 0.06615800706 | H11: 0.05919400632 | I11: 0.07080067422 | J11: 0.07080067422 | K11: 0.05919400632 | L11: 0.07312200781 | M11: 0.1719222462 | O11: =(B69+M69)*$N$1 -> 0.05442764579 | P11: =O11/SUM(C69:L69) -> 0.07477744807 | Q11: =B69*(1-$N$1) -> 0.04578833693 | R11: =C69*(1+$P11) -> 0.07080067422 | S11: 0.09633534362 | T11: 0.1404406817 | U11: 0.07544334139 | V11: 0.06615800706 | W11: 0.05919400632 | X11: 0.07080067422 | Y11: 0.07080067422 | Z11: 0.05919400632 | AA11: 0.07312200781 | AB11: =M69*(1-$N$1) -> 0.1719222462
A12: CHL | B12: 0.05940028558 | C12: 0.0891954521 | D12: 0.098196828 | E12: 0.129619813 | F12: 0.07479325066 | G12: 0.09639655282 | H12: 0.07299297548 | I12: 0.08559490174 | J12: 0.08559490174 | K12: 0.08379462656 | L12: 0.07479325066 | M12: 0.04962716167 | O12: =(B71+M71)*$N$1 -> 0.02725686181 | P12: =O12/SUM(C71:L71) -> 0.03155767818 | Q12: =B71*(1-$N$1) -> 0.05940028558 | R12: =C71*(1+$P12) -> 0.0891954521 | S12: 0.098196828 | T12: 0.129619813 | U12: 0.07479325066 | V12: 0.09639655282 | W12: 0.07299297548 | X12: 0.08559490174 | Y12: 0.08559490174 | Z12: 0.08379462656 | AA12: 0.07479325066 | AB12: =M71*(1-$N$1) -> 0.04962716167
A13: CLA | B13: 0.025 | C13: 0.07307692308 | D13: 0.04871794872 | E13: 0.2314102564 | F13: 0.04871794872 | G13: 0.03653846154 | H13: 0.04871794872 | I13: 0.01217948718 | J13: 0.0608974359 | K13: 0.03653846154 | L13: 0.03653846154 | M13: 0.3416666667 | O13: =(B73+M73)*$N$1 -> 0.09166666667 | P13: =O13/SUM(C73:L73) -> 0.1692307692 | Q13: =B73*(1-$N$1) -> 0.025 | R13: =C73*(1+$P13) -> 0.07307692308 | S13: 0.04871794872 | T13: 0.2314102564 | U13: 0.04871794872 | V13: 0.03653846154 | W13: 0.04871794872 | X13: 0.01217948718 | Y13: 0.0608974359 | Z13: 0.03653846154 | AA13: 0.03653846154 | AB13: =M73*(1-$N$1) -> 0.3416666667
A14: CLC | B14: 0 | C14: 0.2781818182 | D14: 0 | E14: 0.5563636364 | F14: 0 | G14: 0 | H14: 0.09272727273 | I14: 0 | J14: 0 | K14: 0 | L14: 0 | M14: 0.07272727273 | O14: =(B75+M75)*$N$1 -> 0.01818181818 | P14: =O14/SUM(C75:L75) -> 0.02 | Q14: =B75*(1-$N$1) -> 0 | R14: =C75*(1+$P14) -> 0.2781818182 | S14: 0 | T14: 0.5563636364 | U14: 0 | V14: 0 | W14: 0.09272727273 | X14: 0 | Y14: 0 | Z14: 0 | AA14: 0 | AB14: =M75*(1-$N$1) -> 0.07272727273
A15: CLI | B15: 0.05 | C15: 0.07041420118 | D15: 0.03520710059 | E15: 0.3319526627 | F15: 0.07041420118 | G15: 0.07041420118 | H15: 0.06538461538 | I15: 0.07041420118 | J15: 0.04023668639 | K15: 0.06538461538 | L15: 0.03017751479 | M15: 0.1 | O15: =(B76+M76)*$N$1 -> 0.0375 | P15: =O15/SUM(C76:L76) -> 0.04615384615 | Q15: =B76*(1-$N$1) -> 0.05 | R15: 0.07041420118 | S15: 0.03520710059 | T15: 0.3319526627 | U15: 0.07041420118 | V15: 0.07041420118 | W15: 0.06538461538 | X15: 0.07041420118 | Y15: 0.04023668639 | Z15: 0.06538461538 | AA15: 0.03017751479 | AB15: =M76*(1-$N$1) -> 0.1
A16: CLJ | B16: 0.064 | C16: 0.063 | D16: 0 | E16: 0.357 | F16: 0.084 | G16: 0.105 | H16: 0.021 | I16: 0.063 | J16: 0.021 | K16: 0.084 | L16: 0.042 | M16: 0.096 | O16: =(B78+M78)*$N$1 -> 0.04 | P16: =O16/SUM(C78:L78) -> 0.05 | Q16: =B78*(1-$N$1) -> 0.064 | R16: =C78*(1+$P16) -> 0.063 | S16: 0 | T16: 0.357 | U16: 0.084 | V16: 0.105 | W16: 0.021 | X16: 0.063 | Y16: 0.021 | Z16: 0.084 | AA16: 0.042 | AB16: =M78*(1-$N$1) -> 0.096
A17: CLM | B17: 0.008888888889 | C17: 0.06761904762 | D17: 0.06761904762 | E17: 0.2366666667 | F17: 0.1352380952 | G17: 0.1126984127 | H17: 0.169047619 | I17: 0.04507936508 | J17: 0.06761904762 | K17: 0.03380952381 | L17: 0.01126984127 | M17: 0.04444444444 | O17: =(B80+M80)*$N$1 -> 0.01333333333 | P17: =O17/SUM(C80:L80) -> 0.01428571429 | Q17: =B80*(1-$N$1) -> 0.008888888889 | R17: =C80*(1+$P17) -> 0.06761904762 | S17: 0.06761904762 | T17: 0.2366666667 | U17: 0.1352380952 | V17: 0.1126984127 | W17: 0.169047619 | X17: 0.04507936508 | Y17: 0.06761904762 | Z17: 0.03380952381 | AA17: 0.01126984127 | AB17: =M80*(1-$N$1) -> 0.04444444444
A18: CLN | B18: 0.05863874346 | C18: 0.07647313836 | D18: 0.05462367026 | E18: 0.1638710108 | F18: 0.05462367026 | G18: 0.09832260646 | H18: 0.1638710108 | I18: 0.06008603728 | J18: 0.08193550539 | K18: 0.06008603728 | L18: 0.04369893621 | M18: 0.08376963351 | O18: =(B82+M82)*$N$1 -> 0.03560209424 | P18: =O18/SUM(C82:L82) -> 0.04331210191 | Q18: =B82*(1-$N$1) -> 0.05863874346 | R18: =C82*(1+$P18) -> 0.07647313836 | S18: 0.05462367026 | T18: 0.1638710108 | U18: 0.05462367026 | V18: 0.09832260646 | W18: 0.1638710108 | X18: 0.06008603728 | Y18: 0.08193550539 | Z18: 0.06008603728 | AA18: 0.04369893621 | AB18: =M82*(1-$N$1) -> 0.08376963351
A19: CLP | B19: 0.07441860465 | C19: 0.02401005657 | D19: 0 | E19: 0.1200502828 | F19: 0.09604022627 | G19: 0.168070396 | H19: 0.02401005657 | I19: 0.0720301697 | J19: 0.168070396 | K19: 0.0720301697 | L19: 0.1440603394 | M19: 0.03720930233 | O19: =(B84+M84)*$N$1 -> 0.02790697674 | P19: =O19/SUM(C84:L84) -> 0.03243243243 | Q19: =B84*(1-$N$1) -> 0.07441860465 | R19: =C84*(1+$P19) -> 0.02401005657 | S19: 0 | T19: 0.1200502828 | U19: 0.09604022627 | V19: 0.168070396 | W19: 0.02401005657 | X19: 0.0720301697 | Y19: 0.168070396 | Z19: 0.0720301697 | AA19: 0.1440603394 | AB19: =M84*(1-$N$1) -> 0.03720930233
A20: CLS | B20: 0.0578313253 | C20: 0.04936502768 | D20: 0.1110713123 | E20: 0.1974601107 | F20: 0.1110713123 | G20: 0.07404754152 | H20: 0.1727775969 | I20: 0.0617062846 | J20: 0.04936502768 | K20: 0.03702377076 | L20: 0.04936502768 | M20: 0.02891566265 | O20: =(B86+M86)*$N$1 -> 0.02168674699 | P20: =O20/SUM(C86:L86) -> 0.02432432432 | Q20: =B86*(1-$N$1) -> 0.0578313253 | R20: =C86*(1+$P20) -> 0.04936502768 | S20: 0.1110713123 | T20: 0.1974601107 | U20: 0.1110713123 | V20: 0.07404754152 | W20: 0.1727775969 | X20: 0.0617062846 | Y20: 0.04936502768 | Z20: 0.03702377076 | AA20: 0.04936502768 | AB20: =M86*(1-$N$1) -> 0.02891566265
A21: CRA | B21: 0.04385964912 | C21: 0.07079671009 | D21: 0.07566804335 | E21: 0.2510360408 | F21: 0.07566804335 | G21: 0.07859084331 | H21: 0.07014719898 | I21: 0.06625013237 | J21: 0.06657488792 | K21: 0.06235306576 | L21: 0.05910551025 | M21: 0.07994987469 | O21: =(B110+M110)*$N$1 -> 0.03095238095 | P21: =O21/SUM(C110:L110) -> 0.03661971831 | Q21: =B110*(1-$N$1) -> 0.04385964912 | R21: =C110*(1+$P21) -> 0.07079671009 | S21: 0.07566804335 | T21: 0.2510360408 | U21: 0.07566804335 | V21: 0.07859084331 | W21: 0.07014719898 | X21: 0.06625013237 | Y21: 0.06657488792 | Z21: 0.06235306576 | AA21: 0.05910551025 | AB21: =M110*(1-$N$1) -> 0.07994987469
A22: CRB | B22: 0.05714285714 | C22: 0 | D22: 0 | E22: 0.2901098901 | F22: 0.1450549451 | G22: 0.07252747253 | H22: 0.2175824176 | I22: 0 | J22: 0.07252747253 | K22: 0.07252747253 | L22: 0.07252747253 | M22: 0 | O22: =(B114+M114)*$N$1 -> 0.01428571429 | P22: =O22/SUM(C114:L114) -> 0.01538461538 | Q22: =B114*(1-$N$1) -> 0.05714285714 | R22: =C114*(1+$P22) -> 0 | S22: 0 | T22: 0.2901098901 | U22: 0.1450549451 | V22: 0.07252747253 | W22: 0.2175824176 | X22: 0 | Y22: 0.07252747253 | Z22: 0.07252747253 | AA22: 0.07252747253 | AB22: =M114*(1-$N$1) -> 0
A23: CRE | B23: 0.06666666667 | C23: 0.08666666667 | D23: 0.08666666667 | E23: 0.08666666667 | F23: 0.08666666667 | G23: 0.08666666667 | H23: 0.08666666667 | I23: 0.08666666667 | J23: 0.08666666667 | K23: 0.08666666667 | L23: 0.08666666667 | M23: 0.06666666667 | O23: =(B117+M117)*$N$1 -> 0.03333333333 | P23: =O23/SUM(C117:L117) -> 0.04 | Q23: =B117*(1-$N$1) -> 0.06666666667 | R23: =C117*(1+$P23) -> 0.08666666667 | S23: 0.08666666667 | T23: 0.08666666667 | U23: 0.08666666667 | V23: 0.08666666667 | W23: 0.08666666667 | X23: 0.08666666667 | Y23: 0.08666666667 | Z23: 0.08666666667 | AA23: 0.08666666667 | AB23: =M117*(1-$N$1) -> 0.06666666667
A24: CRP | B24: 0.04977852774 | C24: 0.08427417103 | D24: 0.09859101862 | E24: 0.139589264 | F24: 0.1105217249 | G24: 0.07353653534 | H24: 0.06637811155 | I24: 0.08427417103 | J24: 0.07711574724 | K24: 0.08069495913 | L24: 0.08546724166 | M24: 0.04977852774 | O24: =(B119+M119)*$N$1 -> 0.02488926387 | P24: =O24/SUM(C119:L119) -> 0.02842688509 | Q24: =B119*(1-$N$1) -> 0.04977852774 | R24: =C119*(1+$P24) -> 0.08427417103 | S24: 0.09859101862 | T24: 0.139589264 | U24: 0.1105217249 | V24: 0.07353653534 | W24: 0.06637811155 | X24: 0.08427417103 | Y24: 0.07711574724 | Z24: 0.08069495913 | AA24: 0.08546724166 | AB24: =M119*(1-$N$1) -> 0.04977852774
A25: CRR | B25: 0.03038383838 | C25: 0.1736890879 | D25: 0.09483260342 | E25: 0.2072799021 | F25: 0.07230217928 | G25: 0.04977175514 | H25: 0.08356739135 | I25: 0.04977175514 | J25: 0.08356739135 | K25: 0.06103696721 | L25: 0.07230217928 | M25: 0.02149494949 | O25: =(B121+M121)*$N$1 -> 0.01296969697 | P25: =O25/SUM(C121:L121) -> 0.0138690862 | Q25: =B121*(1-$N$1) -> 0.03038383838 | R25: =C121*(1+$P25) -> 0.1736890879 | S25: 0.09483260342 | T25: 0.2072799021 | U25: 0.07230217928 | V25: 0.04977175514 | W25: 0.08356739135 | X25: 0.04977175514 | Y25: 0.08356739135 | Z25: 0.06103696721 | AA25: 0.07230217928 | AB25: =M121*(1-$N$1) -> 0.02149494949
A26: CRS | B26: 0.03214756258 | C26: 0.05582327931 | D26: 0.05582327931 | E26: 0.1257705209 | F26: 0.1002128749 | G26: 0.05582327931 | H26: 0.1298059386 | I26: 0.05582327931 | J26: 0.1150094068 | K26: 0.1446024705 | L26: 0.08541634304 | M26: 0.04374176548 | O26: =(B122+M122)*$N$1 -> 0.01897233202 | P26: =O26/SUM(C122:L122) -> 0.02096069869 | Q26: =B122*(1-$N$1) -> 0.03214756258 | R26: 0.05582327931 | S26: 0.05582327931 | T26: 0.1257705209 | U26: 0.1002128749 | V26: 0.05582327931 | W26: 0.1298059386 | X26: 0.05582327931 | Y26: 0.1150094068 | Z26: 0.1446024705 | AA26: 0.08541634304 | AB26: =M122*(1-$N$1) -> 0.04374176548
A27: CRU | B27: 0.06349735891 | C27: 0.07315555326 | D27: 0.08271647705 | E27: 0.1736901156 | F27: 0.08909042625 | G27: 0.07315555326 | H27: 0.06996857866 | I27: 0.08271647705 | J27: 0.06678160406 | K27: 0.06996857866 | L27: 0.07952950245 | M27: 0.07572977481 | O27: =(B123+M123)*$N$1 -> 0.03480678343 | P27: =O27/SUM(C123:L123) -> 0.04214069337 | Q27: =B123*(1-$N$1) -> 0.06349735891 | R27: 0.07315555326 | S27: 0.08271647705 | T27: 0.1736901156 | U27: 0.08909042625 | V27: 0.07315555326 | W27: 0.06996857866 | X27: 0.08271647705 | Y27: 0.06678160406 | Z27: 0.06996857866 | AA27: 0.07952950245 | AB27: =M123*(1-$N$1) -> 0.07572977481
A28: CRV | B28: 0.0347826087 | C28: 0.04408493428 | D28: 0.02204246714 | E28: 0.5510616785 | F28: 0.02204246714 | G28: 0.08816986855 | H28: 0.02204246714 | I28: 0.04408493428 | J28: 0.06612740142 | K28: 0.06612740142 | L28: 0.02204246714 | M28: 0.01739130435 | O28: =(B125+M125)*$N$1 -> 0.01304347826 | P28: =O28/SUM(C125:L125) -> 0.01395348837 | Q28: =B125*(1-$N$1) -> 0.0347826087 | R28: =C125*(1+$P28) -> 0.04408493428 | S28: 0.02204246714 | T28: 0.5510616785 | U28: 0.02204246714 | V28: 0.08816986855 | W28: 0.02204246714 | X28: 0.04408493428 | Y28: 0.06612740142 | Z28: 0.06612740142 | AA28: 0.02204246714 | AB28: =M125*(1-$N$1) -> 0.01739130435
A29: CSO | B29: 0.06092715232 | C29: 0.0770815645 | D29: 0.0770815645 | E29: 0.1716816664 | F29: 0.09810380936 | G29: 0.07007414954 | H29: 0.05956302711 | I29: 0.08408897945 | J29: 0.05605931964 | K29: 0.08058527198 | L29: 0.0455481972 | M29: 0.119205298 | O29: =(B127+M127)*$N$1 -> 0.04503311258 | P29: =O29/SUM(C127:L127) -> 0.05811965812 | Q29: =B127*(1-$N$1) -> 0.06092715232 | R29: =C127*(1+$P29) -> 0.0770815645 | S29: 0.0770815645 | T29: 0.1716816664 | U29: 0.09810380936 | V29: 0.07007414954 | W29: 0.05956302711 | X29: 0.08408897945 | Y29: 0.05605931964 | Z29: 0.08058527198 | AA29: 0.0455481972 | AB29: =M127*(1-$N$1) -> 0.119205298
A30: CSU | B30: 0.05656565657 | C30: 0.1064491064 | D30: 0.08515928516 | E30: 0.149028749 | F30: 0.06386946387 | G30: 0.06386946387 | H30: 0.0958041958 | I30: 0.1064491064 | J30: 0.05322455322 | K30: 0.06386946387 | L30: 0.04257964258 | M30: 0.1131313131 | O30: =(B128+M128)*$N$1 -> 0.04242424242 | P30: =O30/SUM(C128:L128) -> 0.05384615385 | Q30: =B128*(1-$N$1) -> 0.05656565657 | R30: 0.1064491064 | S30: 0.08515928516 | T30: 0.149028749 | U30: 0.06386946387 | V30: 0.06386946387 | W30: 0.0958041958 | X30: 0.1064491064 | Y30: 0.05322455322 | Z30: 0.06386946387 | AA30: 0.04257964258 | AB30: =M128*(1-$N$1) -> 0.1131313131
A46: Backup OF Original Percentages
B47: What percentage of projects are initiated in each month of the year
B48: 1 | C48: 2 | D48: 3 | E48: 4 | F48: 5 | G48: 6 | H48: 7 | I48: 8 | J48: 9 | K48: 10 | L48: 11 | M48: 12
A49: CBE | B49: 0.05599369085 | C49: 0.06703470032 | D49: 0.06703470032 | E49: 0.1608832808 | F49: 0.06782334385 | G49: 0.05757097792 | H49: 0.08 | I49: 0.06230283912 | J49: 0.05362776025 | K49: 0.11 | L49: 0.06230283912 | M49: 0.16
A50: CBG | B50: 0.05 | C50: 0.1071428571 | D50: 0.08214285714 | E50: 0.1821428571 | F50: 0.09285714286 | G50: 0.05714285714 | H50: 0.1142857143 | I50: 0.06428571429 | J50: 0.08214285714 | K50: 0.04642857143 | L50: 0.04642857143 | M50: 0.075
A51: CBG-K | B51: 0.05 | C51: 0.1071428571 | D51: 0.08214285714 | E51: 0.1821428571 | F51: 0.09285714286 | G51: 0.05714285714 | H51: 0.1142857143 | I51: 0.06428571429 | J51: 0.08214285714 | K51: 0.04642857143 | L51: 0.04642857143 | M51: 0.075
A52: CBH-EE | B52: 0.03669724771 | C52: 0.04587155963 | D52: 0.09174311927 | E52: 0.3486238532 | F52: 0.06422018349 | G52: 0.1009174312 | H52: 0.03669724771 | I52: 0.05504587156 | J52: 0.09174311927 | K52: 0.03669724771 | L52: 0.04587155963 | M52: 0.04587155963
A53: CBH-L | B53: 0.08333333333 | C53: 0.08333333333 | D53: 0.08333333333 | E53: 0.08333333333 | F53: 0.08333333333 | G53: 0.08333333333 | H53: 0.08333333333 | I53: 0.08333333333 | J53: 0.08333333333 | K53: 0.08333333333 | L53: 0.08333333333 | M53: 0.08333333333
A54: CBH-S | B54: 0.03669724771 | C54: 0.04587155963 | D54: 0.09174311927 | E54: 0.3486238532 | F54: 0.06422018349 | G54: 0.1009174312 | H54: 0.03669724771 | I54: 0.05504587156 | J54: 0.09174311927 | K54: 0.03669724771 | L54: 0.04587155963 | M54: 0.04587155963
A55: CBI-K | B55: 0.08333333333 | C55: 0.08333333333 | D55: 0.08333333333 | E55: 0.08333333333 | F55: 0.08333333333 | G55: 0.08333333333 | H55: 0.08333333333 | I55: 0.08333333333 | J55: 0.08333333333 | K55: 0.08333333333 | L55: 0.08333333333 | M55: 0.08333333333
A56: CBI-L | B56: 0.06106870229 | C56: 0.06615776081 | D56: 0.07633587786 | E56: 0.2926208651 | F56: 0.05597964377 | G56: 0.04325699746 | H56: 0.06615776081 | I56: 0.06361323155 | J56: 0.06870229008 | K56: 0.0737913486 | L56: 0.06870229008 | M56: 0.06361323155
A57: CBI-S | B57: =6.90492713393477%-3% -> 0.03904927134 | C57: 0.07413832986 | D57: 0.08431644691 | E57: 0.2048346056 | F57: 0.06396021282 | G57: 0.0512375665 | H57: 0.07413832986 | I57: =7.15938006014342%+3% -> 0.1015938006 | J57: 0.07668285913 | K57: 0.08177191765 | L57: 0.07668285913 | M57: 0.0715938006
A58: CBK-K | B58: 0.08333333333 | C58: 0.08333333333 | D58: 0.08333333333 | E58: 0.08333333333 | F58: 0.08333333333 | G58: 0.08333333333 | H58: 0.08333333333 | I58: 0.08333333333 | J58: 0.08333333333 | K58: 0.08333333333 | L58: 0.08333333333 | M58: 0.08333333333
A59: CBK-L | B59: =8.33333333333333%-4% -> 0.04333333333 | C59: 0.08333333333 | D59: 0.08333333333 | E59: =8.33333333333333%+1% -> 0.09333333333 | F59: =8.33333333333333%+2% -> 0.1033333333 | G59: 0.08333333333 | H59: =8.33333333333333%+1% -> 0.09333333333 | I59: 0.08333333333 | J59: 0.08333333333 | K59: 0.08333333333 | L59: 0.08333333333 | M59: 0.08333333333
A60: CBK-S | B60: =6.95161845730027%-4% -> 0.02951618457 | C60: 0.07993285124 | D60: 0.102660124 | E60: =18.1344696969697%-8% -> 0.101344697 | F60: =7.70919421487603% -> 0.07709194215 | G60: 0.06572830579 | H60: =9.03495179063361%+4% -> 0.1303495179 | I60: =7.04631542699724%+4% -> 0.1104631543 | J60: 0.06383436639 | K60: =7.14101239669421%+2% -> 0.09141012397 | L60: =6.85692148760331%+2% -> 0.08856921488 | M60: 0.05909951791
A61: CBL | B61: =5.87834375320283%-3% -> 0.02878343753 | C61: 0.07851286256 | D61: =9.42964025827611%+2% -> 0.1142964026 | E61: 0.1921645998 | F61: 0.084713539 | G61: 0.07005739469 | H61: =8.1895049707902%+1% -> 0.09189504971 | I61: 0.06667520754 | J61: 0.0632930204 | K61: 0.07513067541 | L61: 0.06667520754 | M61: 0.06780260326
A62: CBP | B62: 0.06327919671 | C62: 0.09441337017 | D62: 0.09663723971 | E62: 0.1497405486 | F62: 0.0847766022 | G62: 0.06327919671 | H62: 0.08255273266 | I62: 0.08403531235 | J62: 0.0781049936 | K62: 0.06846822562 | L62: 0.05883145765 | M62: 0.07588112406
A63: CBP-EE | B63: 0.06327919671 | C63: 0.09441337017 | D63: 0.09663723971 | E63: 0.1497405486 | F63: 0.0847766022 | G63: 0.06327919671 | H63: 0.08255273266 | I63: 0.08403531235 | J63: 0.0781049936 | K63: 0.06846822562 | L63: 0.05883145765 | M63: 0.07588112406
A64: CBP-K | B64: 0.08333333333 | C64: 0.08333333333 | D64: 0.08333333333 | E64: 0.08333333333 | F64: 0.08333333333 | G64: 0.08333333333 | H64: 0.08333333333 | I64: 0.08333333333 | J64: 0.08333333333 | K64: 0.08333333333 | L64: 0.08333333333 | M64: 0.08333333333
A65: CBS | B65: =6.29370629370629%-3% -> 0.03293706294 | C65: 0.1165501166 | D65: =8.39160839160839%+3% -> 0.1139160839 | E65: 0.1958041958 | F65: 0.09090909091 | G65: 0.05128205128 | H65: 0.06293706294 | I65: 0.07226107226 | J65: 0.06993006993 | K65: 0.06526806527 | L65: 0.05361305361 | M65: 0.07459207459
A66: CDA | B66: 0.08160621762 | C66: 0.06865284974 | D66: 0.07772020725 | E66: 0.1696891192 | F66: 0.07124352332 | G66: 0.06606217617 | H66: 0.09844559585 | I66: 0.08031088083 | J66: 0.05958549223 | K66: 0.0829015544 | L66: 0.06088082902 | M66: 0.0829015544
A67: CDA-B | B67: 0.06577206577 | C67: 0.06048006048 | D67: 0.08259308259 | E67: 0.07371007371 | F67: 0.0927990928 | G67: 0.1024381024 | H67: 0.0807030807 | I67: 0.09128709129 | J67: 0.08202608203 | K67: 0.0807030807 | L67: 0.1082971083 | M67: 0.07919107919
A68: CHH-K | B68: 0.04535637149 | C68: 0.05399568035 | D68: 0.0777537797 | E68: 0.2613390929 | F68: 0.05831533477 | G68: 0.04967602592 | H68: 0.04319654428 | I68: 0.05399568035 | J68: 0.05399568035 | K68: 0.04319654428 | L68: 0.05615550756 | M68: 0.2030237581
A69: CHH-L | B69: 0.05723542117 | C69: 0.06587473002 | D69: 0.08963282937 | E69: 0.1306695464 | F69: 0.07019438445 | G69: 0.06155507559 | H69: 0.05507559395 | I69: 0.06587473002 | J69: 0.06587473002 | K69: 0.05507559395 | L69: 0.06803455724 | M69: 0.2149028078
A70: CHH-S | B70: 0.05723542117 | C70: 0.06587473002 | D70: 0.08963282937 | E70: 0.1306695464 | F70: 0.07019438445 | G70: 0.06155507559 | H70: 0.05507559395 | I70: 0.06587473002 | J70: 0.06587473002 | K70: 0.05507559395 | L70: 0.06803455724 | M70: 0.2149028078
A71: CHL | B71: 0.07425035697 | C71: 0.08646676186 | D71: 0.09519276535 | E71: 0.1256544503 | F71: 0.07250515627 | G71: 0.09344756465 | H71: 0.07075995558 | I71: 0.08297636046 | J71: 0.08297636046 | K71: 0.08123115977 | L71: 0.07250515627 | M71: 0.06203395209
A72: CHL-K | B72: 0.06282722513 | C72: 0.07504363002 | D72: 0.08376963351 | E72: 0.2513089005 | F72: 0.06108202443 | G72: 0.08202443281 | H72: 0.05933682373 | I72: 0.07155322862 | J72: 0.07155322862 | K72: 0.06980802792 | L72: 0.06108202443 | M72: 0.05061082024
A73: CLA | B73: 0.03125 | C73: 0.0625 | D73: 0.04166666667 | E73: 0.1979166667 | F73: 0.04166666667 | G73: 0.03125 | H73: 0.04166666667 | I73: 0.01041666667 | J73: 0.05208333333 | K73: 0.03125 | L73: 0.03125 | M73: 0.4270833333
A74: CLA-K | B74: 0.03125 | C74: 0.0625 | D74: 0.04166666667 | E74: 0.1979166667 | F74: 0.04166666667 | G74: 0.03125 | H74: 0.04166666667 | I74: 0.01041666667 | J74: 0.05208333333 | K74: 0.03125 | L74: 0.03125 | M74: 0.4270833333
A75: CLC | B75: 0 | C75: 0.2727272727 | D75: 0 | E75: 0.5454545455 | F75: 0 | G75: 0 | H75: 0.09090909091 | I75: 0 | J75: 0 | K75: 0 | L75: 0 | M75: 0.09090909091
A76: CLI | B76: 0.0625 | C76: 0.06730769231 | D76: 0.03365384615 | E76: 0.3173076923 | F76: 0.06730769231 | G76: 0.06730769231 | H76: 0.0625 | I76: 0.06730769231 | J76: 0.03846153846 | K76: 0.0625 | L76: 0.02884615385 | M76: 0.125
A77: CLI-K | B77: 0.0625 | C77: 0.06730769231 | D77: 0.03365384615 | E77: 0.3173076923 | F77: 0.06730769231 | G77: 0.06730769231 | H77: 0.0625 | I77: 0.06730769231 | J77: 0.03846153846 | K77: 0.0625 | L77: 0.02884615385 | M77: 0.125
A78: CLJ | B78: 0.08 | C78: 0.06 | D78: 0 | E78: 0.34 | F78: 0.08 | G78: 0.1 | H78: 0.02 | I78: 0.06 | J78: 0.02 | K78: 0.08 | L78: 0.04 | M78: 0.12
A79: CLJ-K | B79: 0.08 | C79: 0.06 | D79: 0 | E79: 0.34 | F79: 0.08 | G79: 0.1 | H79: 0.02 | I79: 0.06 | J79: 0.02 | K79: 0.08 | L79: 0.04 | M79: 0.12
A80: CLM | B80: 0.01111111111 | C80: 0.06666666667 | D80: 0.06666666667 | E80: 0.2333333333 | F80: 0.1333333333 | G80: 0.1111111111 | H80: 0.1666666667 | I80: 0.04444444444 | J80: 0.06666666667 | K80: 0.03333333333 | L80: 0.01111111111 | M80: 0.05555555556
A81: CLM-K | B81: 0.01111111111 | C81: 0.06666666667 | D81: 0.06666666667 | E81: 0.2333333333 | F81: 0.1333333333 | G81: 0.1111111111 | H81: 0.1666666667 | I81: 0.04444444444 | J81: 0.06666666667 | K81: 0.03333333333 | L81: 0.01111111111 | M81: 0.05555555556
A82: CLN | B82: 0.07329842932 | C82: 0.07329842932 | D82: 0.05235602094 | E82: 0.1570680628 | F82: 0.05235602094 | G82: 0.0942408377 | H82: 0.1570680628 | I82: 0.05759162304 | J82: 0.07853403141 | K82: 0.05759162304 | L82: 0.04188481675 | M82: 0.1047120419
A83: CLN-K | B83: 0.07329842932 | C83: 0.07329842932 | D83: 0.05235602094 | E83: 0.1570680628 | F83: 0.05235602094 | G83: 0.0942408377 | H83: 0.1570680628 | I83: 0.05759162304 | J83: 0.07853403141 | K83: 0.05759162304 | L83: 0.04188481675 | M83: 0.1047120419
A84: CLP | B84: 0.09302325581 | C84: 0.02325581395 | D84: 0 | E84: 0.1162790698 | F84: 0.09302325581 | G84: 0.1627906977 | H84: 0.02325581395 | I84: 0.06976744186 | J84: 0.1627906977 | K84: 0.06976744186 | L84: 0.1395348837 | M84: 0.04651162791
A85: CLP-K | B85: 0.09302325581 | C85: 0.02325581395 | D85: 0 | E85: 0.1162790698 | F85: 0.09302325581 | G85: 0.1627906977 | H85: 0.02325581395 | I85: 0.06976744186 | J85: 0.1627906977 | K85: 0.06976744186 | L85: 0.1395348837 | M85: 0.04651162791
A86: CLS | B86: 0.07228915663 | C86: 0.04819277108 | D86: 0.1084337349 | E86: 0.1927710843 | F86: 0.1084337349 | G86: 0.07228915663 | H86: 0.1686746988 | I86: 0.06024096386 | J86: 0.04819277108 | K86: 0.03614457831 | L86: 0.04819277108 | M86: 0.03614457831
A87: CLS-K | B87: 0.07228915663 | C87: 0.04819277108 | D87: 0.1084337349 | E87: 0.1927710843 | F87: 0.1084337349 | G87: 0.07228915663 | H87: 0.1686746988 | I87: 0.06024096386 | J87: 0.04819277108 | K87: 0.03614457831 | L87: 0.04819277108 | M87: 0.03614457831
A88: CMA | B88: 0.08333333333 | C88: 0.08333333333 | D88: 0.08333333333 | E88: 0.08333333333 | F88: 0.08333333333 | G88: 0.08333333333 | H88: 0.08333333333 | I88: 0.08333333333 | J88: 0.08333333333 | K88: 0.08333333333 | L88: 0.08333333333 | M88: 0.08333333333
A89: CMA-B | B89: 0.08333333333 | C89: 0.08333333333 | D89: 0.08333333333 | E89: 0.08333333333 | F89: 0.08333333333 | G89: 0.08333333333 | H89: 0.08333333333 | I89: 0.08333333333 | J89: 0.08333333333 | K89: 0.08333333333 | L89: 0.08333333333 | M89: 0.08333333333
A90: CMB-B | B90: 0.08333333333 | C90: 0.08333333333 | D90: 0.08333333333 | E90: 0.08333333333 | F90: 0.08333333333 | G90: 0.08333333333 | H90: 0.08333333333 | I90: 0.08333333333 | J90: 0.08333333333 | K90: 0.08333333333 | L90: 0.08333333333 | M90: 0.08333333333
A91: CMC | B91: 0.08333333333 | C91: 0.08333333333 | D91: 0.08333333333 | E91: 0.08333333333 | F91: 0.08333333333 | G91: 0.08333333333 | H91: 0.08333333333 | I91: 0.08333333333 | J91: 0.08333333333 | K91: 0.08333333333 | L91: 0.08333333333 | M91: 0.08333333333
A92: CMC-B | B92: 0.08333333333 | C92: 0.08333333333 | D92: 0.08333333333 | E92: 0.08333333333 | F92: 0.08333333333 | G92: 0.08333333333 | H92: 0.08333333333 | I92: 0.08333333333 | J92: 0.08333333333 | K92: 0.08333333333 | L92: 0.08333333333 | M92: 0.08333333333
A93: CMD-B | B93: 0.08333333333 | C93: 0.08333333333 | D93: 0.08333333333 | E93: 0.08333333333 | F93: 0.08333333333 | G93: 0.08333333333 | H93: 0.08333333333 | I93: 0.08333333333 | J93: 0.08333333333 | K93: 0.08333333333 | L93: 0.08333333333 | M93: 0.08333333333
A94: CMH | B94: 0.08333333333 | C94: 0.08333333333 | D94: 0.08333333333 | E94: 0.08333333333 | F94: 0.08333333333 | G94: 0.08333333333 | H94: 0.08333333333 | I94: 0.08333333333 | J94: 0.08333333333 | K94: 0.08333333333 | L94: 0.08333333333 | M94: 0.08333333333
A95: CMM | B95: 0 | C95: 0.08695652174 | D95: 0.1739130435 | E95: 0.2608695652 | F95: 0 | G95: 0.08695652174 | H95: 0.08695652174 | I95: 0.1739130435 | J95: 0.04347826087 | K95: 0.04347826087 | L95: 0.04347826087 | M95: 0
A96: CMM-B | B96: 0 | C96: 0.08695652174 | D96: 0.1739130435 | E96: 0.2608695652 | F96: 0 | G96: 0.08695652174 | H96: 0.08695652174 | I96: 0.1739130435 | J96: 0.04347826087 | K96: 0.04347826087 | L96: 0.04347826087 | M96: 0
A97: CMN | B97: 0.08333333333 | C97: 0.08333333333 | D97: 0.08333333333 | E97: 0.08333333333 | F97: 0.08333333333 | G97: 0.08333333333 | H97: 0.08333333333 | I97: 0.08333333333 | J97: 0.08333333333 | K97: 0.08333333333 | L97: 0.08333333333 | M97: 0.08333333333
A98: CMS | B98: 0.08970099668 | C98: 0.08637873754 | D98: 0.09966777409 | E98: 0.08970099668 | F98: 0.06644518272 | G98: 0.08637873754 | H98: 0.08305647841 | I98: 0.07973421927 | J98: 0.06976744186 | K98: 0.08305647841 | L98: 0.06976744186 | M98: 0.09634551495
A99: CMS-B | B99: 0.08970099668 | C99: 0.08637873754 | D99: 0.09966777409 | E99: 0.08970099668 | F99: 0.06644518272 | G99: 0.08637873754 | H99: 0.08305647841 | I99: 0.07973421927 | J99: 0.06976744186 | K99: 0.08305647841 | L99: 0.06976744186 | M99: 0.09634551495
A100: CMT-B | B100: 0.08333333333 | C100: 0.08333333333 | D100: 0.08333333333 | E100: 0.08333333333 | F100: 0.08333333333 | G100: 0.08333333333 | H100: 0.08333333333 | I100: 0.08333333333 | J100: 0.08333333333 | K100: 0.08333333333 | L100: 0.08333333333 | M100: 0.08333333333
A101: CMU | B101: 0.08333333333 | C101: 0.08333333333 | D101: 0.08333333333 | E101: 0.08333333333 | F101: 0.08333333333 | G101: 0.08333333333 | H101: 0.08333333333 | I101: 0.08333333333 | J101: 0.08333333333 | K101: 0.08333333333 | L101: 0.08333333333 | M101: 0.08333333333
A102: CMZ-B | B102: 0.08333333333 | C102: 0.08333333333 | D102: 0.08333333333 | E102: 0.08333333333 | F102: 0.08333333333 | G102: 0.08333333333 | H102: 0.08333333333 | I102: 0.08333333333 | J102: 0.08333333333 | K102: 0.08333333333 | L102: 0.08333333333 | M102: 0.08333333333
A103: CNA | B103: 0 | C103: 0 | D103: 0 | E103: 0.5 | F103: 0 | G103: 0.25 | H103: 0 | I103: 0.25 | J103: 0 | K103: 0 | L103: 0 | M103: 0
A104: CNJ | B104: 0.08333333333 | C104: 0.04166666667 | D104: 0.08333333333 | E104: 0.4166666667 | F104: 0.04166666667 | G104: 0.04166666667 | H104: 0 | I104: 0.1666666667 | J104: 0 | K104: 0.04166666667 | L104: 0.08333333333 | M104: 0
A105: CNJ-B | B105: 0.08333333333 | C105: 0.04166666667 | D105: 0.08333333333 | E105: 0.4166666667 | F105: 0.04166666667 | G105: 0.04166666667 | H105: 0 | I105: 0.1666666667 | J105: 0 | K105: 0.04166666667 | L105: 0.08333333333 | M105: 0
A106: CNM | B106: 0.1116389549 | C106: 0.06175771971 | D106: 0.04988123515 | E106: 0.1187648456 | F106: 0.06888361045 | G106: 0.08076009501 | H106: 0.08076009501 | I106: 0.09263657957 | J106: 0.06888361045 | K106: 0.1163895487 | L106: 0.06888361045 | M106: 0.08076009501
A107: CNM-B | B107: 0.1116389549 | C107: 0.06175771971 | D107: 0.04988123515 | E107: 0.1187648456 | F107: 0.06888361045 | G107: 0.08076009501 | H107: 0.08076009501 | I107: 0.09263657957 | J107: 0.06888361045 | K107: 0.1163895487 | L107: 0.06888361045 | M107: 0.08076009501
A108: CNW | B108: 0.08333333333 | C108: 0.08333333333 | D108: 0.08333333333 | E108: 0.08333333333 | F108: 0.08333333333 | G108: 0.08333333333 | H108: 0.08333333333 | I108: 0.08333333333 | J108: 0.08333333333 | K108: 0.08333333333 | L108: 0.08333333333 | M108: 0.08333333333
A109: CNW-B | B109: 0.08333333333 | C109: 0.08333333333 | D109: 0.08333333333 | E109: 0.08333333333 | F109: 0.08333333333 | G109: 0.08333333333 | H109: 0.08333333333 | I109: 0.08333333333 | J109: 0.08333333333 | K109: 0.08333333333 | L109: 0.08333333333 | M109: 0.08333333333
A110: CRA-S | B110: 0.0548245614 | C110: 0.06829573935 | D110: 0.07299498747 | E110: 0.2421679198 | F110: 0.07299498747 | G110: 0.07581453634 | H110: 0.06766917293 | I110: 0.06390977444 | J110: 0.06422305764 | K110: 0.06015037594 | L110: 0.05701754386 | M110: 0.09993734336
A111: CRA-L | B111: 0.0548245614 | C111: 0.06829573935 | D111: 0.07299498747 | E111: 0.2421679198 | F111: 0.07299498747 | G111: 0.07581453634 | H111: 0.06766917293 | I111: 0.06390977444 | J111: 0.06422305764 | K111: 0.06015037594 | L111: 0.05701754386 | M111: 0.09993734336
A112: CRA-EE | B112: 0.0548245614 | C112: 0.06829573935 | D112: 0.07299498747 | E112: 0.2421679198 | F112: 0.07299498747 | G112: 0.07581453634 | H112: 0.06766917293 | I112: 0.06390977444 | J112: 0.06422305764 | K112: 0.06015037594 | L112: 0.05701754386 | M112: 0.09993734336
A113: CRA-K | B113: 0.0548245614 | C113: 0.06829573935 | D113: 0.07299498747 | E113: 0.2421679198 | F113: 0.07299498747 | G113: 0.07581453634 | H113: 0.06766917293 | I113: 0.06390977444 | J113: 0.06422305764 | K113: 0.06015037594 | L113: 0.05701754386 | M113: 0.09993734336
A114: CRB | B114: 0.07142857143 | C114: 0 | D114: 0 | E114: 0.2857142857 | F114: 0.1428571429 | G114: 0.07142857143 | H114: 0.2142857143 | I114: 0 | J114: 0.07142857143 | K114: 0.07142857143 | L114: 0.07142857143 | M114: 0
A115: CRB-B | B115: 0.07142857143 | C115: 0 | D115: 0 | E115: 0.2857142857 | F115: 0.1428571429 | G115: 0.07142857143 | H115: 0.2142857143 | I115: 0 | J115: 0.07142857143 | K115: 0.07142857143 | L115: 0.07142857143 | M115: 0
A116: CRE-K | B116: 0.08333333333 | C116: 0.08333333333 | D116: 0.08333333333 | E116: 0.08333333333 | F116: 0.08333333333 | G116: 0.08333333333 | H116: 0.08333333333 | I116: 0.08333333333 | J116: 0.08333333333 | K116: 0.08333333333 | L116: 0.08333333333 | M116: 0.08333333333
A117: CRE-L | B117: 0.08333333333 | C117: 0.08333333333 | D117: 0.08333333333 | E117: 0.08333333333 | F117: 0.08333333333 | G117: 0.08333333333 | H117: 0.08333333333 | I117: 0.08333333333 | J117: 0.08333333333 | K117: 0.08333333333 | L117: 0.08333333333 | M117: 0.08333333333
A118: CRE-S | B118: 0.02857142857 | C118: 0.05714285714 | D118: 0.1142857143 | E118: 0.4 | F118: 0.05714285714 | G118: 0.02857142857 | H118: 0.05714285714 | I118: 0.02857142857 | J118: 0.05714285714 | K118: 0 | L118: 0.1142857143 | M118: 0.05714285714
A119: CRP | B119: 0.06222315967 | C119: 0.0819447374 | D119: 0.09586585109 | E119: 0.1357308585 | F119: 0.1074667792 | G119: 0.07150390213 | H119: 0.06454334529 | I119: 0.0819447374 | J119: 0.07498418055 | K119: 0.07846445897 | L119: 0.0831048302 | M119: 0.06222315967
A120: CRP-K | B120: 0.06222315967 | C120: 0.0819447374 | D120: 0.09586585109 | E120: 0.1357308585 | F120: 0.1074667792 | G120: 0.07150390213 | H120: 0.06454334529 | I120: 0.0819447374 | J120: 0.07498418055 | K120: 0.07846445897 | L120: 0.0831048302 | M120: 0.06222315967
A121: CRR | B121: 0.03797979798 | C121: 0.1713131313 | D121: 0.09353535354 | E121: 0.2044444444 | F121: 0.07131313131 | G121: 0.04909090909 | H121: 0.08242424242 | I121: 0.04909090909 | J121: 0.08242424242 | K121: 0.0602020202 | L121: 0.07131313131 | M121: 0.02686868687
A122: CRS | B122: 0.04018445323 | C122: 0.05467720685 | D122: 0.05467720685 | E122: 0.1231884058 | F122: 0.09815546772 | G122: 0.05467720685 | H122: 0.127140975 | I122: 0.05467720685 | J122: 0.1126482213 | K122: 0.1416337286 | L122: 0.0836627141 | M122: 0.05467720685
A123: CRU | B123: 0.07937169864 | C123: 0.07019738671 | D123: 0.07937169864 | E123: 0.1666666667 | F123: 0.08548790659 | G123: 0.07019738671 | H123: 0.06713928274 | I123: 0.07937169864 | J123: 0.06408117876 | K123: 0.06713928274 | L123: 0.07631359466 | M123: 0.09466221852
A124: CRU-K | B124: 0.08333333333 | C124: 0.08333333333 | D124: 0.08333333333 | E124: 0.08333333333 | F124: 0.08333333333 | G124: 0.08333333333 | H124: 0.08333333333 | I124: 0.08333333333 | J124: 0.08333333333 | K124: 0.08333333333 | L124: 0.08333333333 | M124: 0.08333333333
A125: CRV-L | B125: 0.04347826087 | C125: 0.04347826087 | D125: 0.02173913043 | E125: 0.5434782609 | F125: 0.02173913043 | G125: 0.08695652174 | H125: 0.02173913043 | I125: 0.04347826087 | J125: 0.0652173913 | K125: 0.0652173913 | L125: 0.02173913043 | M125: 0.02173913043
A126: CRV-S | B126: 0.04347826087 | C126: 0.04347826087 | D126: 0.02173913043 | E126: 0.5434782609 | F126: 0.02173913043 | G126: 0.08695652174 | H126: 0.02173913043 | I126: 0.04347826087 | J126: 0.0652173913 | K126: 0.0652173913 | L126: 0.02173913043 | M126: 0.02173913043
A127: CSO | B127: 0.0761589404 | C127: 0.07284768212 | D127: 0.07284768212 | E127: 0.1622516556 | F127: 0.09271523179 | G127: 0.06622516556 | H127: 0.05629139073 | I127: 0.07947019868 | J127: 0.05298013245 | K127: 0.0761589404 | L127: 0.04304635762 | M127: 0.1490066225
A128: CSU | B128: 0.07070707071 | C128: 0.101010101 | D128: 0.08080808081 | E128: 0.1414141414 | F128: 0.06060606061 | G128: 0.06060606061 | H128: 0.09090909091 | I128: 0.101010101 | J128: 0.05050505051 | K128: 0.06060606061 | L128: 0.0404040404 | M128: 0.1414141414

Sheet Monthly New Projects
A1: Number of project initiated per month in each year | AY1: =YEAR(AY2) -> 2011 | AZ1: =YEAR(AZ2) -> 2011 | BA1: 2011 | BB1: 2011 | BC1: 2011 | BD1: 2011 | BE1: 2012 | BF1: 2012 | BG1: 2012 | BH1: 2012 | BI1: 2012 | BJ1: 2012 | BK1: 2012 | BL1: 2012 | BM1: 2012 | BN1: 2012 | BO1: 2012 | BP1: 2012 | BQ1: 2013 | BR1: 2013 | BS1: 2013 | BT1: 2013 | BU1: 2013 | BV1: 2013 | BW1: =IF(MONTH(BW2)>6,YEAR(BW2)+1,YEAR(BW2)) -> 2014 | BX1: =IF(MONTH(BX2)>6,YEAR(BX2)+1,YEAR(BX2)) -> 2014 | BY1: 2014 | BZ1: 2014 | CA1: 2014 | CB1: 2014 | CC1: 2014 | CD1: 2014 | CE1: 2014 | CF1: 2014 | CG1: 2014 | CH1: 2014 | CI1: 2015 | CJ1: 2015 | CK1: 2015 | CL1: 2015 | CM1: 2015 | CN1: 2015 | CO1: 2015 | CP1: 2015 | CQ1: 2015 | CR1: 2015 | CS1: 2015 | CT1: 2015 | CU1: 2016 | CV1: 2016 | CW1: 2016 | CX1: 2016 | CY1: 2016 | CZ1: 2016 | DA1: 2016 | DB1: 2016 | DC1: 2016 | DD1: 2016 | DE1: 2016 | DF1: 2016 | DG1: 2017 | DH1: 2017 | DI1: 2017 | DJ1: 2017 | DK1: 2017 | DL1: 2017 | DM1: 2017 | DN1: 2017 | DO1: 2017 | DP1: 2017 | DQ1: 2017 | DR1: 2017 | DS1: 2018 | DT1: 2018 | DU1: 2018 | DV1: 2018 | DW1: 2018 | DX1: 2018 | DY1: 2018 | DZ1: 2018 | EA1: 2018 | EB1: 2018 | EC1: 2018 | ED1: 2018 | EE1: 2019 | EF1: 2019 | EG1: 2019 | EH1: 2019 | EI1: 2019 | EJ1: =IF(MONTH(EJ2)>6,YEAR(EJ2)+1,YEAR(EJ2)) -> 2019 | EK1: 2019 | EL1: 2019 | EM1: 2019 | EN1: 2019 | EO1: 2019 | EP1: 2019 | EQ1: 2020 | ER1: 2020 | ES1: 2020 | ET1: 2020 | EU1: 2020 | EV1: 2020 | EW1: 2020 | EX1: 2020 | EY1: 2020 | EZ1: 2020 | FA1: 2020 | FB1: 2020 | FC1: 2021 | FD1: 2021 | FE1: 2021 | FF1: 2021 | FG1: 2021 | FH1: 2021 | FI1: 2021 | FJ1: 2021 | FK1: 2021 | FL1: 2021 | FM1: 2021 | FN1: 2021 | FO1: 2022 | FP1: 2022 | FQ1: 2022 | FR1: 2022 | FS1: 2022 | FT1: 2022 | FU1: 2022 | FV1: 2022 | FW1: 2022 | FX1: 2022 | FY1: 2022 | FZ1: 2022 | GA1: 2023 | GB1: 2023 | GC1: 2023 | GD1: 2023 | GE1: 2023 | GF1: 2023 | GG1: 2023 | GH1: 2023 | GI1: 2023 | GJ1: 2023 | GK1: 2023 | GL1: 2023 | GM1: 2024 | GN1: 2024 | GO1: 2024 | GP1: 2024 | GQ1: 2024 | GR1: 2024 | GS1: 2024 | GT1: 2024 | GU1: 2024 | GV1: =IF(MONTH(GV2)>6,YEAR(GV2)+1,YEAR(GV2)) -> 2024 | GW1: 2024 | GX1: 2024 | GY1: 2025 | GZ1: 2025 | HA1: 2025 | HB1: 2025 | HC1: 2025 | HD1: 2025 | HE1: 2025 | HF1: 2025 | HG1: 2025 | HH1: 2025 | HI1: 2025 | HJ1: 2025 | HK1: =IF(MONTH(HK2)>6,YEAR(HK2)+1,YEAR(HK2)) -> 2026 | HL1: =IF(MONTH(HL2)>6,YEAR(HL2)+1,YEAR(HL2)) -> 2026 | HM1: =IF(MONTH(HM2)>6,YEAR(HM2)+1,YEAR(HM2)) -> 2026 | HN1: =IF(MONTH(HN2)>6,YEAR(HN2)+1,YEAR(HN2)) -> 2026 | HO1: =IF(MONTH(HO2)>6,YEAR(HO2)+1,YEAR(HO2)) -> 2026 | HP1: =IF(MONTH(HP2)>6,YEAR(HP2)+1,YEAR(HP2)) -> 2026 | HQ1: =IF(MONTH(HQ2)>6,YEAR(HQ2)+1,YEAR(HQ2)) -> 2026 | HR1: =IF(MONTH(HR2)>6,YEAR(HR2)+1,YEAR(HR2)) -> 2026 | HS1: =IF(MONTH(HS2)>6,YEAR(HS2)+1,YEAR(HS2)) -> 2026 | HT1: =IF(MONTH(HT2)>6,YEAR(HT2)+1,YEAR(HT2)) -> 2026 | HU1: =IF(MONTH(HU2)>6,YEAR(HU2)+1,YEAR(HU2)) -> 2026 | HV1: =IF(MONTH(HV2)>6,YEAR(HV2)+1,YEAR(HV2)) -> 2026 | HW1: 2027 | HX1: 2027 | HY1: 2027 | HZ1: 2027 | IA1: 2027 | IB1: 2027 | IC1: 2027 | ID1: 2027 | IE1: 2027 | IF1: 2027 | IG1: 2027 | IH1: 2027
C2: 2007-07-01 | D2: =EOMONTH(C2,1) -> 2007-08-31 | E2: =EOMONTH(D2,1) -> 2007-09-30 | F2: 2007-10-31 | G2: 2007-11-30 | H2: 2007-12-31 | I2: 2008-01-31 | J2: 2008-02-29 | K2: 2008-03-31 | L2: 2008-04-30 | M2: 2008-05-31 | N2: 2008-06-30 | O2: 2008-07-31 | P2: 2008-08-31 | Q2: 2008-09-30 | R2: 2008-10-31 | S2: 2008-11-30 | T2: 2008-12-31 | U2: 2009-01-31 | V2: 2009-02-28 | W2: 2009-03-31 | X2: 2009-04-30 | Y2: 2009-05-31 | Z2: 2009-06-30 | AA2: 2009-07-31 | AB2: 2009-08-31 | AC2: 2009-09-30 | AD2: =EOMONTH(AC2,1) -> 2009-10-31 | AE2: 2009-11-30 | AF2: 2009-12-31 | AG2: 2010-01-31 | AH2: 2010-02-28 | AI2: 2010-03-31 | AJ2: 2010-04-30 | AK2: 2010-05-31 | AL2: 2010-06-30 | AM2: 2010-07-31 | AN2: 2010-08-31 | AO2: 2010-09-30 | AP2: 2010-10-31 | AQ2: 2010-11-30 | AR2: 2010-12-31 | AS2: 2011-01-31 | AT2: 2011-02-28 | AU2: 2011-03-31 | AV2: 2011-04-30 | AW2: 2011-05-31 | AX2: 2011-06-30 | AY2: 2011-07-31 | AZ2: 2011-08-31 | BA2: 2011-09-30 | BB2: 2011-10-31 | BC2: 2011-11-30 | BD2: 2011-12-31 | BE2: 2012-01-31 | BF2: 2012-02-29 | BG2: 2012-03-31 | BH2: 2012-04-30 | BI2: 2012-05-31 | BJ2: =EOMONTH(BI2,1) -> 2012-06-30 | BK2: =EOMONTH(BJ2,1) -> 2012-07-31 | BL2: 2012-08-31 | BM2: 2012-09-30 | BN2: 2012-10-31 | BO2: 2012-11-30 | BP2: 2012-12-31 | BQ2: 2013-01-31 | BR2: 2013-02-28 | BS2: 2013-03-31 | BT2: 2013-04-30 | BU2: 2013-05-31 | BV2: 2013-06-30 | BW2: 2013-07-31 | BX2: 2013-08-31 | BY2: 2013-09-30 | BZ2: 2013-10-31 | CA2: 2013-11-30 | CB2: 2013-12-31 | CC2: 2014-01-31 | CD2: 2014-02-28 | CE2: 2014-03-31 | CF2: 2014-04-30 | CG2: 2014-05-31 | CH2: 2014-06-30 | CI2: 2014-07-31 | CJ2: 2014-08-31 | CK2: 2014-09-30 | CL2: 2014-10-31 | CM2: 2014-11-30 | CN2: 2014-12-31 | CO2: 2015-01-31 | CP2: =EOMONTH(CO2,1) -> 2015-02-28 | CQ2: 2015-03-31 | CR2: 2015-04-30 | CS2: 2015-05-31 | CT2: 2015-06-30 | CU2: 2015-07-31 | CV2: 2015-08-31 | CW2: 2015-09-30 | CX2: 2015-10-31 | CY2: 2015-11-30 | CZ2: 2015-12-31 | DA2: 2016-01-31 | DB2: 2016-02-29 | DC2: 2016-03-31 | DD2: 2016-04-30 | DE2: 2016-05-31 | DF2: 2016-06-30 | DG2: 2016-07-31 | DH2: 2016-08-31 | DI2: 2016-09-30 | DJ2: 2016-10-31 | DK2: 2016-11-30 | DL2: 2016-12-31 | DM2: 2017-01-31 | DN2: 2017-02-28 | DO2: 2017-03-31 | DP2: 2017-04-30 | DQ2: 2017-05-31 | DR2: 2017-06-30 | DS2: 2017-07-31 | DT2: 2017-08-31 | DU2: 2017-09-30 | DV2: =EOMONTH(DU2,1) -> 2017-10-31 | DW2: 2017-11-30 | DX2: 2017-12-31 | DY2: 2018-01-31 | DZ2: 2018-02-28 | EA2: 2018-03-31 | EB2: 2018-04-30 | EC2: 2018-05-31 | ED2: 2018-06-30 | EE2: 2018-07-31 | EF2: 2018-08-31 | EG2: 2018-09-30 | EH2: 2018-10-31 | EI2: 2018-11-30 | EJ2: 2018-12-31 | EK2: 2019-01-31 | EL2: 2019-02-28 | EM2: 2019-03-31 | EN2: 2019-04-30 | EO2: 2019-05-31 | EP2: 2019-06-30 | EQ2: 2019-07-31 | ER2: 2019-08-31 | ES2: 2019-09-30 | ET2: 2019-10-31 | EU2: 2019-11-30 | EV2: 2019-12-31 | EW2: 2020-01-31 | EX2: 2020-02-29 | EY2: 2020-03-31 | EZ2: 2020-04-30 | FA2: 2020-05-31 | FB2: =EOMONTH(FA2,1) -> 2020-06-30 | FC2: 2020-07-31 | FD2: 2020-08-31 | FE2: 2020-09-30 | FF2: 2020-10-31 | FG2: 2020-11-30 | FH2: 2020-12-31 | FI2: =EOMONTH(FH2,1) -> 2021-01-31 | FJ2: 2021-02-28 | FK2: 2021-03-31 | FL2: 2021-04-30 | FM2: 2021-05-31 | FN2: 2021-06-30 | FO2: 2021-07-31 | FP2: 2021-08-31 | FQ2: 2021-09-30 | FR2: 2021-10-31 | FS2: 2021-11-30 | FT2: 2021-12-31 | FU2: 2022-01-31 | FV2: 2022-02-28 | FW2: 2022-03-31 | FX2: 2022-04-30 | FY2: 2022-05-31 | FZ2: 2022-06-30 | GA2: 2022-07-31 | GB2: 2022-08-31 | GC2: 2022-09-30 | GD2: 2022-10-31 | GE2: 2022-11-30 | GF2: 2022-12-31 | GG2: 2023-01-31 | GH2: 2023-02-28 | GI2: 2023-03-31 | GJ2: 2023-04-30 | GK2: 2023-05-31 | GL2: 2023-06-30 | GM2: 2023-07-31 | GN2: 2023-08-31 | GO2: =EOMONTH(GN2,1) -> 2023-09-30 | GP2: 2023-10-31 | GQ2: 2023-11-30 | GR2: 2023-12-31 | GS2: 2024-01-31 | GT2: 2024-02-29 | GU2: 2024-03-31 | GV2: 2024-04-30 | GW2: 2024-05-31 | GX2: 2024-06-30 | GY2: 2024-07-31 | GZ2: 2024-08-31 | HA2: 2024-09-30 | HB2: 2024-10-31 | HC2: 2024-11-30 | HD2: 2024-12-31 | HE2: 2025-01-31 | HF2: 2025-02-28 | HG2: 2025-03-31 | HH2: 2025-04-30 | HI2: 2025-05-31 | HJ2: 2025-06-30 | HK2: =EOMONTH(HJ2,1) -> 2025-07-31 | HL2: =EOMONTH(HK2,1) -> 2025-08-31 | HM2: =EOMONTH(HL2,1) -> 2025-09-30 | HN2: =EOMONTH(HM2,1) -> 2025-10-31 | HO2: =EOMONTH(HN2,1) -> 2025-11-30 | HP2: =EOMONTH(HO2,1) -> 2025-12-31 | HQ2: =EOMONTH(HP2,1) -> 2026-01-31 | HR2: =EOMONTH(HQ2,1) -> 2026-02-28 | HS2: =EOMONTH(HR2,1) -> 2026-03-31 | HT2: =EOMONTH(HS2,1) -> 2026-04-30 | HU2: =EOMONTH(HT2,1) -> 2026-05-31 | HV2: =EOMONTH(HU2,1) -> 2026-06-30 | HW2: =EOMONTH(HV2,1) -> 2026-07-31 | HX2: =EOMONTH(HW2,1) -> 2026-08-31 | HY2: =EOMONTH(HX2,1) -> 2026-09-30 | HZ2: =EOMONTH(HY2,1) -> 2026-10-31 | IA2: =EOMONTH(HZ2,1) -> 2026-11-30 | IB2: =EOMONTH(IA2,1) -> 2026-12-31 | IC2: =EOMONTH(IB2,1) -> 2027-01-31 | ID2: =EOMONTH(IC2,1) -> 2027-02-28 | IE2: =EOMONTH(ID2,1) -> 2027-03-31 | IF2: =EOMONTH(IE2,1) -> 2027-04-30 | IG2: =EOMONTH(IF2,1) -> 2027-05-31 | IH2: =EOMONTH(IG2,1) -> 2027-06-30
A3: CB
A4: CBE | B4: Bus Sup Proj>10kVA-LV Extens'n | C4: =HLOOKUP(YEAR(C$2),'Forecast-Volume'!$C$2:$J$40,MATCH($A4,'Forecast-Volume'!$A$2:$A$40,FALSE),FALSE)*HLOOKUP(MONTH(C$2),'Monthly Proj Profile'!$B$2:$M$30,MATCH($A4,'Monthly Proj Profile'!$A$2:$A$30,FALSE)) ->  | D4: =HLOOKUP(YEAR(D$2),'Forecast-Volume'!$C$2:$J$40,MATCH($A4,'Forecast-Volume'!$A$2:$A$40,FALSE),FALSE)*HLOOKUP(MONTH(D$2),'Monthly Proj Profile'!$B$2:$M$30,MATCH($A4,'Monthly Proj Profile'!$A$2:$A$30,FALSE)) ->  | E4: =HLOOKUP(YEAR(E$2),'Forecast-Volume'!$C$2:$J$40,MATCH($A4,'Forecast-Volume'!$A$2:$A$40,FALSE),FALSE)*HLOOKUP(MONTH(E$2),'Monthly Proj Profile'!$B$2:$M$30,MATCH($A4,'Monthly Proj Profile'!$A$2:$A$30,FALSE)) ->  | F4: =HLOOKUP(YEAR(F$2),'Forecast-Volume'!$C$2:$J$40,MATCH($A4,'Forecast-Volume'!$A$2:$A$40,FALSE),FALSE)*HLOOKUP(MONTH(F$2),'Monthly Proj Profile'!$B$2:$M$30,MATCH($A4,'Monthly Proj Profile'!$A$2:$A$30,FALSE)) ->  | G4: =HLOOKUP(YEAR(G$2),'Forecast-Volume'!$C$2:$J$40,MATCH($A4,'Forecast-Volume'!$A$2:$A$40,FALSE),FALSE)*HLOOKUP(MONTH(G$2),'Monthly Proj Profile'!$B$2:$M$30,MATCH($A4,'Monthly Proj Profile'!$A$2:$A$30,FALSE)) ->  | H4: =HLOOKUP(YEAR(H$2),'Forecast-Volume'!$C$2:$J$40,MATCH($A4,'Forecast-Volume'!$A$2:$A$40,FALSE),FALSE)*HLOOKUP(MONTH(H$2),'Monthly Proj Profile'!$B$2:$M$30,MATCH($A4,'Monthly Proj Profile'!$A$2:$A$30,FALSE)) ->  | I4: =HLOOKUP(YEAR(I$2),'Forecast-Volume'!$C$2:$J$40,MATCH($A4,'Forecast-Volume'!$A$2:$A$40,FALSE),FALSE)*HLOOKUP(MONTH(I$2),'Monthly Proj Profile'!$B$2:$M$30,MATCH($A4,'Monthly Proj Profile'!$A$2:$A$30,FALSE)) ->  | J4: =HLOOKUP(YEAR(J$2),'Forecast-Volume'!$C$2:$J$40,MATCH($A4,'Forecast-Volume'!$A$2:$A$40,FALSE),FALSE)*HLOOKUP(MONTH(J$2),'Monthly Proj Profile'!$B$2:$M$30,MATCH($A4,'Monthly Proj Profile'!$A$2:$A$30,FALSE)) ->  | K4: =HLOOKUP(YEAR(K$2),'Forecast-Volume'!$C$2:$J$40,MATCH($A4,'Forecast-Volume'!$A$2:$A$40,FALSE),FALSE)*HLOOKUP(MONTH(K$2),'Monthly Proj Profile'!$B$2:$M$30,MATCH($A4,'Monthly Proj Profile'!$A$2:$A$30,FALSE)) ->  | L4: =HLOOKUP(YEAR(L$2),'Forecast-Volume'!$C$2:$J$40,MATCH($A4,'Forecast-Volume'!$A$2:$A$40,FALSE),FALSE)*HLOOKUP(MONTH(L$2),'Monthly Proj Profile'!$B$2:$M$30,MATCH($A4,'Monthly Proj Profile'!$A$2:$A$30,FALSE)) ->  | M4: =HLOOKUP(YEAR(M$2),'Forecast-Volume'!$C$2:$J$40,MATCH($A4,'Forecast-Volume'!$A$2:$A$40,FALSE),FALSE)*HLOOKUP(MONTH(M$2),'Monthly Proj Profile'!$B$2:$M$30,MATCH($A4,'Monthly Proj Profile'!$A$2:$A$30,FALSE)) ->  | N4: =HLOOKUP(YEAR(N$2),'Forecast-Volume'!$C$2:$J$40,MATCH($A4,'Forecast-Volume'!$A$2:$A$40,FALSE),FALSE)*HLOOKUP(MONTH(N$2),'Monthly Proj Profile'!$B$2:$M$30,MATCH($A4,'Monthly Proj Profile'!$A$2:$A$30,FALSE)) ->  | O4: =HLOOKUP(YEAR(O$2),'Forecast-Volume'!$C$2:$J$40,MATCH($A4,'Forecast-Volume'!$A$2:$A$40,FALSE),FALSE)*HLOOKUP(MONTH(O$2),'Monthly Proj Profile'!$B$2:$M$30,MATCH($A4,'Monthly Proj Profile'!$A$2:$A$30,FALSE)) ->  | P4: =HLOOKUP(YEAR(P$2),'Forecast-Volume'!$C$2:$J$40,MATCH($A4,'Forecast-Volume'!$A$2:$A$40,FALSE),FALSE)*HLOOKUP(MONTH(P$2),'Monthly Proj Profile'!$B$2:$M$30,MATCH($A4,'Monthly Proj Profile'!$A$2:$A$30,FALSE)) ->  | Q4: =HLOOKUP(YEAR(Q$2),'Forecast-Volume'!$C$2:$J$40,MATCH($A4,'Forecast-Volume'!$A$2:$A$40,FALSE),FALSE)*HLOOKUP(MONTH(Q$2),'Monthly Proj Profile'!$B$2:$M$30,MATCH($A4,'Monthly Proj Profile'!$A$2:$A$30,FALSE)) ->  | R4: =HLOOKUP(YEAR(R$2),'Forecast-Volume'!$C$2:$J$40,MATCH($A4,'Forecast-Volume'!$A$2:$A$40,FALSE),FALSE)*HLOOKUP(MONTH(R$2),'Monthly Proj Profile'!$B$2:$M$30,MATCH($A4,'Monthly Proj Profile'!$A$2:$A$30,FALSE)) ->  | S4: =HLOOKUP(YEAR(S$2),'Forecast-Volume'!$C$2:$J$40,MATCH($A4,'Forecast-Volume'!$A$2:$A$40,FALSE),FALSE)*HLOOKUP(MONTH(S$2),'Monthly Proj Profile'!$B$2:$M$30,MATCH($A4,'Monthly Proj Profile'!$A$2:$A$30,FALSE)) ->  | T4: =HLOOKUP(YEAR(T$2),'Forecast-Volume'!$C$2:$J$40,MATCH($A4,'Forecast-Volume'!$A$2:$A$40,FALSE),FALSE)*HLOOKUP(MONTH(T$2),'Monthly Proj Profile'!$B$2:$M$30,MATCH($A4,'Monthly Proj Profile'!$A$2:$A$30,FALSE)) ->  | U4: =HLOOKUP(YEAR(U$2),'Forecast-Volume'!$C$2:$J$40,MATCH($A4,'Forecast-Volume'!$A$2:$A$40,FALSE),FALSE)*HLOOKUP(MONTH(U$2),'Monthly Proj Profile'!$B$2:$M$30,MATCH($A4,'Monthly Proj Profile'!$A$2:$A$30,FALSE)) ->  | V4: =HLOOKUP(YEAR(V$2),'Forecast-Volume'!$C$2:$J$40,MATCH($A4,'Forecast-Volume'!$A$2:$A$40,FALSE),FALSE)*HLOOKUP(MONTH(V$2),'Monthly Proj Profile'!$B$2:$M$30,MATCH($A4,'Monthly Proj Profile'!$A$2:$A$30,FALSE)) ->  | W4: =HLOOKUP(YEAR(W$2),'Forecast-Volume'!$C$2:$J$40,MATCH($A4,'Forecast-Volume'!$A$2:$A$40,FALSE),FALSE)*HLOOKUP(MONTH(W$2),'Monthly Proj Profile'!$B$2:$M$30,MATCH($A4,'Monthly Proj Profile'!$A$2:$A$30,FALSE)) ->  | X4: =HLOOKUP(YEAR(X$2),'Forecast-Volume'!$C$2:$J$40,MATCH($A4,'Forecast-Volume'!$A$2:$A$40,FALSE),FALSE)*HLOOKUP(MONTH(X$2),'Monthly Proj Profile'!$B$2:$M$30,MATCH($A4,'Monthly Proj Profile'!$A$2:$A$30,FALSE)) ->  | Y4: =HLOOKUP(YEAR(Y$2),'Forecast-Volume'!$C$2:$J$40,MATCH($A4,'Forecast-Volume'!$A$2:$A$40,FALSE),FALSE)*HLOOKUP(MONTH(Y$2),'Monthly Proj Profile'!$B$2:$M$30,MATCH($A4,'Monthly Proj Profile'!$A$2:$A$30,FALSE)) ->  | Z4: =HLOOKUP(YEAR(Z$2),'Forecast-Volume'!$C$2:$J$40,MATCH($A4,'Forecast-Volume'!$A$2:$A$40,FALSE),FALSE)*HLOOKUP(MONTH(Z$2),'Monthly Proj Profile'!$B$2:$M$30,MATCH($A4,'Monthly Proj Profile'!$A$2:$A$30,FALSE)) ->  | AA4: =HLOOKUP(YEAR(AA$2),'Forecast-Volume'!$C$2:$J$40,MATCH($A4,'Forecast-Volume'!$A$2:$A$40,FALSE),FALSE)*HLOOKUP(MONTH(AA$2),'Monthly Proj Profile'!$B$2:$M$30,MATCH($A4,'Monthly Proj Profile'!$A$2:$A$30,FALSE)) ->  | AB4: =HLOOKUP(YEAR(AB$2),'Forecast-Volume'!$C$2:$J$40,MATCH($A4,'Forecast-Volume'!$A$2:$A$40,FALSE),FALSE)*HLOOKUP(MONTH(AB$2),'Monthly Proj Profile'!$B$2:$M$30,MATCH($A4,'Monthly Proj Profile'!$A$2:$A$30,FALSE)) ->  | AC4: =HLOOKUP(YEAR(AC$2),'Forecast-Volume'!$C$2:$J$40,MATCH($A4,'Forecast-Volume'!$A$2:$A$40,FALSE),FALSE)*HLOOKUP(MONTH(AC$2),'Monthly Proj Profile'!$B$2:$M$30,MATCH($A4,'Monthly Proj Profile'!$A$2:$A$30,FALSE)) ->  | AD4: =HLOOKUP(YEAR(AD$2),'Forecast-Volume'!$C$2:$J$40,MATCH($A4,'Forecast-Volume'!$A$2:$A$40,FALSE),FALSE)*HLOOKUP(MONTH(AD$2),'Monthly Proj Profile'!$B$2:$M$30,MATCH($A4,'Monthly Proj Profile'!$A$2:$A$30,FALSE)) ->  | AE4: =HLOOKUP(YEAR(AE$2),'Forecast-Volume'!$C$2:$J$40,MATCH($A4,'Forecast-Volume'!$A$2:$A$40,FALSE),FALSE)*HLOOKUP(MONTH(AE$2),'Monthly Proj Profile'!$B$2:$M$30,MATCH($A4,'Monthly Proj Profile'!$A$2:$A$30,FALSE)) ->  | AF4: =HLOOKUP(YEAR(AF$2),'Forecast-Volume'!$C$2:$J$40,MATCH($A4,'Forecast-Volume'!$A$2:$A$40,FALSE),FALSE)*HLOOKUP(MONTH(AF$2),'Monthly Proj Profile'!$B$2:$M$30,MATCH($A4,'Monthly Proj Profile'!$A$2:$A$30,FALSE)) ->  | AG4: =HLOOKUP(YEAR(AG$2),'Forecast-Volume'!$C$2:$J$40,MATCH($A4,'Forecast-Volume'!$A$2:$A$40,FALSE),FALSE)*HLOOKUP(MONTH(AG$2),'Monthly Proj Profile'!$B$2:$M$30,MATCH($A4,'Monthly Proj Profile'!$A$2:$A$30,FALSE)) ->  | AH4: =HLOOKUP(YEAR(AH$2),'Forecast-Volume'!$C$2:$J$40,MATCH($A4,'Forecast-Volume'!$A$2:$A$40,FALSE),FALSE)*HLOOKUP(MONTH(AH$2),'Monthly Proj Profile'!$B$2:$M$30,MATCH($A4,'Monthly Proj Profile'!$A$2:$A$30,FALSE)) ->  | AI4: =HLOOKUP(YEAR(AI$2),'Forecast-Volume'!$C$2:$J$40,MATCH($A4,'Forecast-Volume'!$A$2:$A$40,FALSE),FALSE)*HLOOKUP(MONTH(AI$2),'Monthly Proj Profile'!$B$2:$M$30,MATCH($A4,'Monthly Proj Profile'!$A$2:$A$30,FALSE)) ->  | AJ4: =HLOOKUP(YEAR(AJ$2),'Forecast-Volume'!$C$2:$J$40,MATCH($A4,'Forecast-Volume'!$A$2:$A$40,FALSE),FALSE)*HLOOKUP(MONTH(AJ$2),'Monthly Proj Profile'!$B$2:$M$30,MATCH($A4,'Monthly Proj Profile'!$A$2:$A$30,FALSE)) ->  | AK4: =HLOOKUP(YEAR(AK$2),'Forecast-Volume'!$C$2:$J$40,MATCH($A4,'Forecast-Volume'!$A$2:$A$40,FALSE),FALSE)*HLOOKUP(MONTH(AK$2),'Monthly Proj Profile'!$B$2:$M$30,MATCH($A4,'Monthly Proj Profile'!$A$2:$A$30,FALSE)) ->  | AL4: =HLOOKUP(YEAR(AL$2),'Forecast-Volume'!$C$2:$J$40,MATCH($A4,'Forecast-Volume'!$A$2:$A$40,FALSE),FALSE)*HLOOKUP(MONTH(AL$2),'Monthly Proj Profile'!$B$2:$M$30,MATCH($A4,'Monthly Proj Profile'!$A$2:$A$30,FALSE)) ->  | AM4: =HLOOKUP(YEAR(AM$2),'Forecast-Volume'!$C$2:$J$40,MATCH($A4,'Forecast-Volume'!$A$2:$A$40,FALSE),FALSE)*HLOOKUP(MONTH(AM$2),'Monthly Proj Profile'!$B$2:$M$30,MATCH($A4,'Monthly Proj Profile'!$A$2:$A$30,FALSE)) ->  | AN4: =HLOOKUP(YEAR(AN$2),'Forecast-Volume'!$C$2:$J$40,MATCH($A4,'Forecast-Volume'!$A$2:$A$40,FALSE),FALSE)*HLOOKUP(MONTH(AN$2),'Monthly Proj Profile'!$B$2:$M$30,MATCH($A4,'Monthly Proj Profile'!$A$2:$A$30,FALSE)) ->  | AO4: =HLOOKUP(YEAR(AO$2),'Forecast-Volume'!$C$2:$J$40,MATCH($A4,'Forecast-Volume'!$A$2:$A$40,FALSE),FALSE)*HLOOKUP(MONTH(AO$2),'Monthly Proj Profile'!$B$2:$M$30,MATCH($A4,'Monthly Proj Profile'!$A$2:$A$30,FALSE)) ->  | AP4: =HLOOKUP(YEAR(AP$2),'Forecast-Volume'!$C$2:$J$40,MATCH($A4,'Forecast-Volume'!$A$2:$A$40,FALSE),FALSE)*HLOOKUP(MONTH(AP$2),'Monthly Proj Profile'!$B$2:$M$30,MATCH($A4,'Monthly Proj Profile'!$A$2:$A$30,FALSE)) ->  | AQ4: =HLOOKUP(YEAR(AQ$2),'Forecast-Volume'!$C$2:$J$40,MATCH($A4,'Forecast-Volume'!$A$2:$A$40,FALSE),FALSE)*HLOOKUP(MONTH(AQ$2),'Monthly Proj Profile'!$B$2:$M$30,MATCH($A4,'Monthly Proj Profile'!$A$2:$A$30,FALSE)) ->  | AR4: =HLOOKUP(YEAR(AR$2),'Forecast-Volume'!$C$2:$J$40,MATCH($A4,'Forecast-Volume'!$A$2:$A$40,FALSE),FALSE)*HLOOKUP(MONTH(AR$2),'Monthly Proj Profile'!$B$2:$M$30,MATCH($A4,'Monthly Proj Profile'!$A$2:$A$30,FALSE)) ->  | AS4: =HLOOKUP(YEAR(AS$2),'Forecast-Volume'!$C$2:$J$40,MATCH($A4,'Forecast-Volume'!$A$2:$A$40,FALSE),FALSE)*HLOOKUP(MONTH(AS$2),'Monthly Proj Profile'!$B$2:$M$30,MATCH($A4,'Monthly Proj Profile'!$A$2:$A$30,FALSE)) ->  | AT4: =HLOOKUP(YEAR(AT$2),'Forecast-Volume'!$C$2:$J$40,MATCH($A4,'Forecast-Volume'!$A$2:$A$40,FALSE),FALSE)*HLOOKUP(MONTH(AT$2),'Monthly Proj Profile'!$B$2:$M$30,MATCH($A4,'Monthly Proj Profile'!$A$2:$A$30,FALSE)) ->  | AU4: =HLOOKUP(YEAR(AU$2),'Forecast-Volume'!$C$2:$J$40,MATCH($A4,'Forecast-Volume'!$A$2:$A$40,FALSE),FALSE)*HLOOKUP(MONTH(AU$2),'Monthly Proj Profile'!$B$2:$M$30,MATCH($A4,'Monthly Proj Profile'!$A$2:$A$30,FALSE)) ->  | AV4: =HLOOKUP(YEAR(AV$2),'Forecast-Volume'!$C$2:$J$40,MATCH($A4,'Forecast-Volume'!$A$2:$A$40,FALSE),FALSE)*HLOOKUP(MONTH(AV$2),'Monthly Proj Profile'!$B$2:$M$30,MATCH($A4,'Monthly Proj Profile'!$A$2:$A$30,FALSE)) ->  | AW4: =HLOOKUP(YEAR(AW$2),'Forecast-Volume'!$C$2:$J$40,MATCH($A4,'Forecast-Volume'!$A$2:$A$40,FALSE),FALSE)*HLOOKUP(MONTH(AW$2),'Monthly Proj Profile'!$B$2:$M$30,MATCH($A4,'Monthly Proj Profile'!$A$2:$A$30,FALSE)) ->  | AX4: =HLOOKUP(YEAR(AX$2),'Forecast-Volume'!$C$2:$J$40,MATCH($A4,'Forecast-Volume'!$A$2:$A$40,FALSE),FALSE)*HLOOKUP(MONTH(AX$2),'Monthly Proj Profile'!$B$2:$M$30,MATCH($A4,'Monthly Proj Profile'!$A$2:$A$30,FALSE)) ->  | AY4: =HLOOKUP(AY$1,'Forecast-Volume'!$C$2:$O$40,MATCH($A4,'Forecast-Volume'!$A$2:$A$40,FALSE),FALSE)*HLOOKUP(MONTH(AY$2),'Monthly Proj Profile'!$B$2:$M$30,MATCH($A4,'Monthly Proj Profile'!$A$2:$A$30,FALSE)) ->  | AZ4: =HLOOKUP(AZ$1,'Forecast-Volume'!$C$2:$O$40,MATCH($A4,'Forecast-Volume'!$A$2:$A$40,FALSE),FALSE)*HLOOKUP(MONTH(AZ$2),'Monthly Proj Profile'!$B$2:$M$30,MATCH($A4,'Monthly Proj Profile'!$A$2:$A$30,FALSE)) ->  | BA4: =HLOOKUP(BA$1,'Forecast-Volume'!$C$2:$O$40,MATCH($A4,'Forecast-Volume'!$A$2:$A$40,FALSE),FALSE)*HLOOKUP(MONTH(BA$2),'Monthly Proj Profile'!$B$2:$M$30,MATCH($A4,'Monthly Proj Profile'!$A$2:$A$30,FALSE)) ->  | BB4: =HLOOKUP(BB$1,'Forecast-Volume'!$C$2:$O$40,MATCH($A4,'Forecast-Volume'!$A$2:$A$40,FALSE),FALSE)*HLOOKUP(MONTH(BB$2),'Monthly Proj Profile'!$B$2:$M$30,MATCH($A4,'Monthly Proj Profile'!$A$2:$A$30,FALSE)) ->  | BC4: =HLOOKUP(BC$1,'Forecast-Volume'!$C$2:$O$40,MATCH($A4,'Forecast-Volume'!$A$2:$A$40,FALSE),FALSE)*HLOOKUP(MONTH(BC$2),'Monthly Proj Profile'!$B$2:$M$30,MATCH($A4,'Monthly Proj Profile'!$A$2:$A$30,FALSE)) ->  | BD4: =HLOOKUP(BD$1,'Forecast-Volume'!$C$2:$O$40,MATCH($A4,'Forecast-Volume'!$A$2:$A$40,FALSE),FALSE)*HLOOKUP(MONTH(BD$2),'Monthly Proj Profile'!$B$2:$M$30,MATCH($A4,'Monthly Proj Profile'!$A$2:$A$30,FALSE)) ->  | BE4: =HLOOKUP(BE$1,'Forecast-Volume'!$C$2:$O$40,MATCH($A4,'Forecast-Volume'!$A$2:$A$40,FALSE),FALSE)*HLOOKUP(MONTH(BE$2),'Monthly Proj Profile'!$B$2:$M$30,MATCH($A4,'Monthly Proj Profile'!$A$2:$A$30,FALSE)) ->  | BF4: =HLOOKUP(BF$1,'Forecast-Volume'!$C$2:$O$40,MATCH($A4,'Forecast-Volume'!$A$2:$A$40,FALSE),FALSE)*HLOOKUP(MONTH(BF$2),'Monthly Proj Profile'!$B$2:$M$30,MATCH($A4,'Monthly Proj Profile'!$A$2:$A$30,FALSE)) ->  | BG4: =HLOOKUP(BG$1,'Forecast-Volume'!$C$2:$O$40,MATCH($A4,'Forecast-Volume'!$A$2:$A$40,FALSE),FALSE)*HLOOKUP(MONTH(BG$2),'Monthly Proj Profile'!$B$2:$M$30,MATCH($A4,'Monthly Proj Profile'!$A$2:$A$30,FALSE)) ->  | BH4: =HLOOKUP(BH$1,'Forecast-Volume'!$C$2:$O$40,MATCH($A4,'Forecast-Volume'!$A$2:$A$40,FALSE),FALSE)*HLOOKUP(MONTH(BH$2),'Monthly Proj Profile'!$B$2:$M$30,MATCH($A4,'Monthly Proj Profile'!$A$2:$A$30,FALSE)) ->  | BI4: =HLOOKUP(BI$1,'Forecast-Volume'!$C$2:$O$40,MATCH($A4,'Forecast-Volume'!$A$2:$A$40,FALSE),FALSE)*HLOOKUP(MONTH(BI$2),'Monthly Proj Profile'!$B$2:$M$30,MATCH($A4,'Monthly Proj Profile'!$A$2:$A$30,FALSE)) ->  | BJ4: =HLOOKUP(BJ$1,'Forecast-Volume'!$C$2:$O$40,MATCH($A4,'Forecast-Volume'!$A$2:$A$40,FALSE),FALSE)*HLOOKUP(MONTH(BJ$2),'Monthly Proj Profile'!$B$2:$M$30,MATCH($A4,'Monthly Proj Profile'!$A$2:$A$30,FALSE)) ->  | BK4: =HLOOKUP(BK$1,'Forecast-Volume'!$C$2:$O$40,MATCH($A4,'Forecast-Volume'!$A$2:$A$40,FALSE),FALSE)*HLOOKUP(MONTH(BK$2),'Monthly Proj Profile'!$B$2:$M$30,MATCH($A4,'Monthly Proj Profile'!$A$2:$A$30,FALSE)) ->  | BL4: =HLOOKUP(BL$1,'Forecast-Volume'!$C$2:$O$40,MATCH($A4,'Forecast-Volume'!$A$2:$A$40,FALSE),FALSE)*HLOOKUP(MONTH(BL$2),'Monthly Proj Profile'!$B$2:$M$30,MATCH($A4,'Monthly Proj Profile'!$A$2:$A$30,FALSE)) ->  | BM4: =HLOOKUP(BM$1,'Forecast-Volume'!$C$2:$O$40,MATCH($A4,'Forecast-Volume'!$A$2:$A$40,FALSE),FALSE)*HLOOKUP(MONTH(BM$2),'Monthly Proj Profile'!$B$2:$M$30,MATCH($A4,'Monthly Proj Profile'!$A$2:$A$30,FALSE)) ->  | BN4: =HLOOKUP(BN$1,'Forecast-Volume'!$C$2:$O$40,MATCH($A4,'Forecast-Volume'!$A$2:$A$40,FALSE),FALSE)*HLOOKUP(MONTH(BN$2),'Monthly Proj Profile'!$B$2:$M$30,MATCH($A4,'Monthly Proj Profile'!$A$2:$A$30,FALSE)) ->  | BO4: =HLOOKUP(BO$1,'Forecast-Volume'!$C$2:$O$40,MATCH($A4,'Forecast-Volume'!$A$2:$A$40,FALSE),FALSE)*HLOOKUP(MONTH(BO$2),'Monthly Proj Profile'!$B$2:$M$30,MATCH($A4,'Monthly Proj Profile'!$A$2:$A$30,FALSE)) ->  | BP4: =HLOOKUP(BP$1,'Forecast-Volume'!$C$2:$O$40,MATCH($A4,'Forecast-Volume'!$A$2:$A$40,FALSE),FALSE)*HLOOKUP(MONTH(BP$2),'Monthly Proj Profile'!$B$2:$M$30,MATCH($A4,'Monthly Proj Profile'!$A$2:$A$30,FALSE)) ->  | BQ4: =HLOOKUP(BQ$1,'Forecast-Volume'!$C$2:$O$40,MATCH($A4,'Forecast-Volume'!$A$2:$A$40,FALSE),FALSE)*HLOOKUP(MONTH(BQ$2),'Monthly Proj Profile'!$B$2:$M$30,MATCH($A4,'Monthly Proj Profile'!$A$2:$A$30,FALSE)) -> 0.3583596215 | BR4: =HLOOKUP(BR$1,'Forecast-Volume'!$C$2:$O$40,MATCH($A4,'Forecast-Volume'!$A$2:$A$40,FALSE),FALSE)*HLOOKUP(MONTH(BR$2),'Monthly Proj Profile'!$B$2:$M$30,MATCH($A4,'Monthly Proj Profile'!$A$2:$A$30,FALSE)) -> 0.5656550947 | BS4: =HLOOKUP(BS$1,'Forecast-Volume'!$C$2:$O$40,MATCH($A4,'Forecast-Volume'!$A$2:$A$40,FALSE),FALSE)*HLOOKUP(MONTH(BS$2),'Monthly Proj Profile'!$B$2:$M$30,MATCH($A4,'Monthly Proj Profile'!$A$2:$A$30,FALSE)) -> 0.5656550947 | BT4: =HLOOKUP(BT$1,'Forecast-Volume'!$C$2:$O$40,MATCH($A4,'Forecast-Volume'!$A$2:$A$40,FALSE),FALSE)*HLOOKUP(MONTH(BT$2),'Monthly Proj Profile'!$B$2:$M$30,MATCH($A4,'Monthly Proj Profile'!$A$2:$A$30,FALSE)) -> 1.357572227 | BU4: =HLOOKUP(BU$1,'Forecast-Volume'!$C$2:$O$40,MATCH($A4,'Forecast-Volume'!$A$2:$A$40,FALSE),FALSE)*HLOOKUP(MONTH(BU$2),'Monthly Proj Profile'!$B$2:$M$30,MATCH($A4,'Monthly Proj Profile'!$A$2:$A$30,FALSE)) -> 0.5723098605 | BV4: =HLOOKUP(BV$1,'Forecast-Volume'!$C$2:$O$40,MATCH($A4,'Forecast-Volume'!$A$2:$A$40,FALSE),FALSE)*HLOOKUP(MONTH(BV$2),'Monthly Proj Profile'!$B$2:$M$30,MATCH($A4,'Monthly Proj Profile'!$A$2:$A$30,FALSE)) -> 0.4857979048 | BW4: =HLOOKUP(BW$1,'Forecast-Volume'!$C$2:$O$40,MATCH($A4,'Forecast-Volume'!$A$2:$A$40,FALSE),FALSE)*HLOOKUP(MONTH(BW$2),'Monthly Proj Profile'!$B$2:$M$30,MATCH($A4,'Monthly Proj Profile'!$A$2:$A$30,FALSE)) -> 5.822387711 | BX4: =HLOOKUP(BX$1,'Forecast-Volume'!$C$2:$O$40,MATCH($A4,'Forecast-Volume'!$A$2:$A$40,FALSE),FALSE)*HLOOKUP(MONTH(BX$2),'Monthly Proj Profile'!$B$2:$M$30,MATCH($A4,'Monthly Proj Profile'!$A$2:$A$30,FALSE)) -> 4.53439106 | BY4: =HLOOKUP(BY$1,'Forecast-Volume'!$C$2:$O$40,MATCH($A4,'Forecast-Volume'!$A$2:$A$40,FALSE),FALSE)*HLOOKUP(MONTH(BY$2),'Monthly Proj Profile'!$B$2:$M$30,MATCH($A4,'Monthly Proj Profile'!$A$2:$A$30,FALSE)) -> 3.903020153 | BZ4: =HLOOKUP(BZ$1,'Forecast-Volume'!$C$2:$O$40,MATCH($A4,'Forecast-Volume'!$A$2:$A$40,FALSE),FALSE)*HLOOKUP(MONTH(BZ$2),'Monthly Proj Profile'!$B$2:$M$30,MATCH($A4,'Monthly Proj Profile'!$A$2:$A$30,FALSE)) -> 8.005783103 | CA4: =HLOOKUP(CA$1,'Forecast-Volume'!$C$2:$O$40,MATCH($A4,'Forecast-Volume'!$A$2:$A$40,FALSE),FALSE)*HLOOKUP(MONTH(CA$2),'Monthly Proj Profile'!$B$2:$M$30,MATCH($A4,'Monthly Proj Profile'!$A$2:$A$30,FALSE)) -> 4.53439106 | CB4: =HLOOKUP(CB$1,'Forecast-Volume'!$C$2:$O$40,MATCH($A4,'Forecast-Volume'!$A$2:$A$40,FALSE),FALSE)*HLOOKUP(MONTH(CB$2),'Monthly Proj Profile'!$B$2:$M$30,MATCH($A4,'Monthly Proj Profile'!$A$2:$A$30,FALSE)) -> 8.832 | CC4: =HLOOKUP(CC$1,'Forecast-Volume'!$C$2:$O$40,MATCH($A4,'Forecast-Volume'!$A$2:$A$40,FALSE),FALSE)*HLOOKUP(MONTH(CC$2),'Monthly Proj Profile'!$B$2:$M$30,MATCH($A4,'Monthly Proj Profile'!$A$2:$A$30,FALSE)) -> 3.090851735 | CD4: =HLOOKUP(CD$1,'Forecast-Volume'!$C$2:$O$40,MATCH($A4,'Forecast-Volume'!$A$2:$A$40,FALSE),FALSE)*HLOOKUP(MONTH(CD$2),'Monthly Proj Profile'!$B$2:$M$30,MATCH($A4,'Monthly Proj Profile'!$A$2:$A$30,FALSE)) -> 4.878775192 | CE4: =HLOOKUP(CE$1,'Forecast-Volume'!$C$2:$O$40,MATCH($A4,'Forecast-Volume'!$A$2:$A$40,FALSE),FALSE)*HLOOKUP(MONTH(CE$2),'Monthly Proj Profile'!$B$2:$M$30,MATCH($A4,'Monthly Proj Profile'!$A$2:$A$30,FALSE)) -> 4.878775192 | CF4: =HLOOKUP(CF$1,'Forecast-Volume'!$C$2:$O$40,MATCH($A4,'Forecast-Volume'!$A$2:$A$40,FALSE),FALSE)*HLOOKUP(MONTH(CF$2),'Monthly Proj Profile'!$B$2:$M$30,MATCH($A4,'Monthly Proj Profile'!$A$2:$A$30,FALSE)) -> 11.70906046 | CG4: =HLOOKUP(CG$1,'Forecast-Volume'!$C$2:$O$40,MATCH($A4,'Forecast-Volume'!$A$2:$A$40,FALSE),FALSE)*HLOOKUP(MONTH(CG$2),'Monthly Proj Profile'!$B$2:$M$30,MATCH($A4,'Monthly Proj Profile'!$A$2:$A$30,FALSE)) -> 4.936172547 | CH4: =HLOOKUP(CH$1,'Forecast-Volume'!$C$2:$O$40,MATCH($A4,'Forecast-Volume'!$A$2:$A$40,FALSE),FALSE)*HLOOKUP(MONTH(CH$2),'Monthly Proj Profile'!$B$2:$M$30,MATCH($A4,'Monthly Proj Profile'!$A$2:$A$30,FALSE)) -> 4.190006929 | CI4: =HLOOKUP(CI$1,'Forecast-Volume'!$C$2:$O$40,MATCH($A4,'Forecast-Volume'!$A$2:$A$40,FALSE),FALSE)*HLOOKUP(MONTH(CI$2),'Monthly Proj Profile'!$B$2:$M$30,MATCH($A4,'Monthly Proj Profile'!$A$2:$A$30,FALSE)) -> 8.100713337 | CJ4: =HLOOKUP(CJ$1,'Forecast-Volume'!$C$2:$O$40,MATCH($A4,'Forecast-Volume'!$A$2:$A$40,FALSE),FALSE)*HLOOKUP(MONTH(CJ$2),'Monthly Proj Profile'!$B$2:$M$30,MATCH($A4,'Monthly Proj Profile'!$A$2:$A$30,FALSE)) -> 6.308717997 | CK4: =HLOOKUP(CK$1,'Forecast-Volume'!$C$2:$O$40,MATCH($A4,'Forecast-Volume'!$A$2:$A$40,FALSE),FALSE)*HLOOKUP(MONTH(CK$2),'Monthly Proj Profile'!$B$2:$M$30,MATCH($A4,'Monthly Proj Profile'!$A$2:$A$30,FALSE)) -> 5.430288909 | CL4: =HLOOKUP(CL$1,'Forecast-Volume'!$C$2:$O$40,MATCH($A4,'Forecast-Volume'!$A$2:$A$40,FALSE),FALSE)*HLOOKUP(MONTH(CL$2),'Monthly Proj Profile'!$B$2:$M$30,MATCH($A4,'Monthly Proj Profile'!$A$2:$A$30,FALSE)) -> 11.13848084 | CM4: =HLOOKUP(CM$1,'Forecast-Volume'!$C$2:$O$40,MATCH($A4,'Forecast-Volume'!$A$2:$A$40,FALSE),FALSE)*HLOOKUP(MONTH(CM$2),'Monthly Proj Profile'!$B$2:$M$30,MATCH($A4,'Monthly Proj Profile'!$A$2:$A$30,FALSE)) -> 6.308717997 | CN4: =HLOOKUP(CN$1,'Forecast-Volume'!$C$2:$O$40,MATCH($A4,'Forecast-Volume'!$A$2:$A$40,FALSE),FALSE)*HLOOKUP(MONTH(CN$2),'Monthly Proj Profile'!$B$2:$M$30,MATCH($A4,'Monthly Proj Profile'!$A$2:$A$30,FALSE)) -> 12.288 | CO4: =HLOOKUP(CO$1,'Forecast-Volume'!$C$2:$O$40,MATCH($A4,'Forecast-Volume'!$A$2:$A$40,FALSE),FALSE)*HLOOKUP(MONTH(CO$2),'Monthly Proj Profile'!$B$2:$M$30,MATCH($A4,'Monthly Proj Profile'!$A$2:$A$30,FALSE)) -> 4.300315457 | CP4: =HLOOKUP(CP$1,'Forecast-Volume'!$C$2:$O$40,MATCH($A4,'Forecast-Volume'!$A$2:$A$40,FALSE),FALSE)*HLOOKUP(MONTH(CP$2),'Monthly Proj Profile'!$B$2:$M$30,MATCH($A4,'Monthly Proj Profile'!$A$2:$A$30,FALSE)) -> 6.787861136 | CQ4: =HLOOKUP(CQ$1,'Forecast-Volume'!$C$2:$O$40,MATCH($A4,'Forecast-Volume'!$A$2:$A$40,FALSE),FALSE)*HLOOKUP(MONTH(CQ$2),'Monthly Proj Profile'!$B$2:$M$30,MATCH($A4,'Monthly Proj Profile'!$A$2:$A$30,FALSE)) -> 6.787861136 | CR4: =HLOOKUP(CR$1,'Forecast-Volume'!$C$2:$O$40,MATCH($A4,'Forecast-Volume'!$A$2:$A$40,FALSE),FALSE)*HLOOKUP(MONTH(CR$2),'Monthly Proj Profile'!$B$2:$M$30,MATCH($A4,'Monthly Proj Profile'!$A$2:$A$30,FALSE)) -> 16.29086673 | CS4: =HLOOKUP(CS$1,'Forecast-Volume'!$C$2:$O$40,MATCH($A4,'Forecast-Volume'!$A$2:$A$40,FALSE),FALSE)*HLOOKUP(MONTH(CS$2),'Monthly Proj Profile'!$B$2:$M$30,MATCH($A4,'Monthly Proj Profile'!$A$2:$A$30,FALSE)) -> 6.867718326 | CT4: =HLOOKUP(CT$1,'Forecast-Volume'!$C$2:$O$40,MATCH($A4,'Forecast-Volume'!$A$2:$A$40,FALSE),FALSE)*HLOOKUP(MONTH(CT$2),'Monthly Proj Profile'!$B$2:$M$30,MATCH($A4,'Monthly Proj Profile'!$A$2:$A$30,FALSE)) -> 5.829574858 | CU4: =HLOOKUP(CU$1,'Forecast-Volume'!$C$2:$O$40,MATCH($A4,'Forecast-Volume'!$A$2:$A$40,FALSE),FALSE)*HLOOKUP(MONTH(CU$2),'Monthly Proj Profile'!$B$2:$M$30,MATCH($A4,'Monthly Proj Profile'!$A$2:$A$30,FALSE)) -> 8.241368009 | CV4: =HLOOKUP(CV$1,'Forecast-Volume'!$C$2:$O$40,MATCH($A4,'Forecast-Volume'!$A$2:$A$40,FALSE),FALSE)*HLOOKUP(MONTH(CV$2),'Monthly Proj Profile'!$B$2:$M$30,MATCH($A4,'Monthly Proj Profile'!$A$2:$A$30,FALSE)) -> 6.418257815 | CW4: =HLOOKUP(CW$1,'Forecast-Volume'!$C$2:$O$40,MATCH($A4,'Forecast-Volume'!$A$2:$A$40,FALSE),FALSE)*HLOOKUP(MONTH(CW$2),'Monthly Proj Profile'!$B$2:$M$30,MATCH($A4,'Monthly Proj Profile'!$A$2:$A$30,FALSE)) -> 5.524576347 | CX4: =HLOOKUP(CX$1,'Forecast-Volume'!$C$2:$O$40,MATCH($A4,'Forecast-Volume'!$A$2:$A$40,FALSE),FALSE)*HLOOKUP(MONTH(CX$2),'Monthly Proj Profile'!$B$2:$M$30,MATCH($A4,'Monthly Proj Profile'!$A$2:$A$30,FALSE)) -> 11.33188101 | CY4: =HLOOKUP(CY$1,'Forecast-Volume'!$C$2:$O$40,MATCH($A4,'Forecast-Volume'!$A$2:$A$40,FALSE),FALSE)*HLOOKUP(MONTH(CY$2),'Monthly Proj Profile'!$B$2:$M$30,MATCH($A4,'Monthly Proj Profile'!$A$2:$A$30,FALSE)) -> 6.418257815 | CZ4: =HLOOKUP(CZ$1,'Forecast-Volume'!$C$2:$O$40,MATCH($A4,'Forecast-Volume'!$A$2:$A$40,FALSE),FALSE)*HLOOKUP(MONTH(CZ$2),'Monthly Proj Profile'!$B$2:$M$30,MATCH($A4,'Monthly Proj Profile'!$A$2:$A$30,FALSE)) -> 12.50135956 | DA4: =HLOOKUP(DA$1,'Forecast-Volume'!$C$2:$O$40,MATCH($A4,'Forecast-Volume'!$A$2:$A$40,FALSE),FALSE)*HLOOKUP(MONTH(DA$2),'Monthly Proj Profile'!$B$2:$M$30,MATCH($A4,'Monthly Proj Profile'!$A$2:$A$30,FALSE)) -> 4.374982889 | DB4: =HLOOKUP(DB$1,'Forecast-Volume'!$C$2:$O$40,MATCH($A4,'Forecast-Volume'!$A$2:$A$40,FALSE),FALSE)*HLOOKUP(MONTH(DB$2),'Monthly Proj Profile'!$B$2:$M$30,MATCH($A4,'Monthly Proj Profile'!$A$2:$A$30,FALSE)) -> 6.905720434 | DC4: =HLOOKUP(DC$1,'Forecast-Volume'!$C$2:$O$40,MATCH($A4,'Forecast-Volume'!$A$2:$A$40,FALSE),FALSE)*HLOOKUP(MONTH(DC$2),'Monthly Proj Profile'!$B$2:$M$30,MATCH($A4,'Monthly Proj Profile'!$A$2:$A$30,FALSE)) -> 6.905720434 | DD4: =HLOOKUP(DD$1,'Forecast-Volume'!$C$2:$O$40,MATCH($A4,'Forecast-Volume'!$A$2:$A$40,FALSE),FALSE)*HLOOKUP(MONTH(DD$2),'Monthly Proj Profile'!$B$2:$M$30,MATCH($A4,'Monthly Proj Profile'!$A$2:$A$30,FALSE)) -> 16.57372904 | DE4: =HLOOKUP(DE$1,'Forecast-Volume'!$C$2:$O$40,MATCH($A4,'Forecast-Volume'!$A$2:$A$40,FALSE),FALSE)*HLOOKUP(MONTH(DE$2),'Monthly Proj Profile'!$B$2:$M$30,MATCH($A4,'Monthly Proj Profile'!$A$2:$A$30,FALSE)) -> 6.986964203 | DF4: =HLOOKUP(DF$1,'Forecast-Volume'!$C$2:$O$40,MATCH($A4,'Forecast-Volume'!$A$2:$A$40,FALSE),FALSE)*HLOOKUP(MONTH(DF$2),'Monthly Proj Profile'!$B$2:$M$30,MATCH($A4,'Monthly Proj Profile'!$A$2:$A$30,FALSE)) -> 5.930795196 | DG4: =HLOOKUP(DG$1,'Forecast-Volume'!$C$2:$O$40,MATCH($A4,'Forecast-Volume'!$A$2:$A$40,FALSE),FALSE)*HLOOKUP(MONTH(DG$2),'Monthly Proj Profile'!$B$2:$M$30,MATCH($A4,'Monthly Proj Profile'!$A$2:$A$30,FALSE)) -> 8.313562443 | DH4: =HLOOKUP(DH$1,'Forecast-Volume'!$C$2:$O$40,MATCH($A4,'Forecast-Volume'!$A$2:$A$40,FALSE),FALSE)*HLOOKUP(MONTH(DH$2),'Monthly Proj Profile'!$B$2:$M$30,MATCH($A4,'Monthly Proj Profile'!$A$2:$A$30,FALSE)) -> 6.474481792 | DI4: =HLOOKUP(DI$1,'Forecast-Volume'!$C$2:$O$40,MATCH($A4,'Forecast-Volume'!$A$2:$A$40,FALSE),FALSE)*HLOOKUP(MONTH(DI$2),'Monthly Proj Profile'!$B$2:$M$30,MATCH($A4,'Monthly Proj Profile'!$A$2:$A$30,FALSE)) -> 5.572971669 | DJ4: =HLOOKUP(DJ$1,'Forecast-Volume'!$C$2:$O$40,MATCH($A4,'Forecast-Volume'!$A$2:$A$40,FALSE),FALSE)*HLOOKUP(MONTH(DJ$2),'Monthly Proj Profile'!$B$2:$M$30,MATCH($A4,'Monthly Proj Profile'!$A$2:$A$30,FALSE)) -> 11.43114836 | DK4: =HLOOKUP(DK$1,'Forecast-Volume'!$C$2:$O$40,MATCH($A4,'Forecast-Volume'!$A$2:$A$40,FALSE),FALSE)*HLOOKUP(MONTH(DK$2),'Monthly Proj Profile'!$B$2:$M$30,MATCH($A4,'Monthly Proj Profile'!$A$2:$A$30,FALSE)) -> 6.474481792 | DL4: =HLOOKUP(DL$1,'Forecast-Volume'!$C$2:$O$40,MATCH($A4,'Forecast-Volume'!$A$2:$A$40,FALSE),FALSE)*HLOOKUP(MONTH(DL$2),'Monthly Proj Profile'!$B$2:$M$30,MATCH($A4,'Monthly Proj Profile'!$A$2:$A$30,FALSE)) -> 12.61087154 | DM4: =HLOOKUP(DM$1,'Forecast-Volume'!$C$2:$O$40,MATCH($A4,'Forecast-Volume'!$A$2:$A$40,FALSE),FALSE)*HLOOKUP(MONTH(DM$2),'Monthly Proj Profile'!$B$2:$M$30,MATCH($A4,'Monthly Proj Profile'!$A$2:$A$30,FALSE)) -> 4.413307766 | DN4: =HLOOKUP(DN$1,'Forecast-Volume'!$C$2:$O$40,MATCH($A4,'Forecast-Volume'!$A$2:$A$40,FALSE),FALSE)*HLOOKUP(MONTH(DN$2),'Monthly Proj Profile'!$B$2:$M$30,MATCH($A4,'Monthly Proj Profile'!$A$2:$A$30,FALSE)) -> 6.966214586 | DO4: =HLOOKUP(DO$1,'Forecast-Volume'!$C$2:$O$40,MATCH($A4,'Forecast-Volume'!$A$2:$A$40,FALSE),FALSE)*HLOOKUP(MONTH(DO$2),'Monthly Proj Profile'!$B$2:$M$30,MATCH($A4,'Monthly Proj Profile'!$A$2:$A$30,FALSE)) -> 6.966214586 | DP4: =HLOOKUP(DP$1,'Forecast-Volume'!$C$2:$O$40,MATCH($A4,'Forecast-Volume'!$A$2:$A$40,FALSE),FALSE)*HLOOKUP(MONTH(DP$2),'Monthly Proj Profile'!$B$2:$M$30,MATCH($A4,'Monthly Proj Profile'!$A$2:$A$30,FALSE)) -> 16.71891501 | DQ4: =HLOOKUP(DQ$1,'Forecast-Volume'!$C$2:$O$40,MATCH($A4,'Forecast-Volume'!$A$2:$A$40,FALSE),FALSE)*HLOOKUP(MONTH(DQ$2),'Monthly Proj Profile'!$B$2:$M$30,MATCH($A4,'Monthly Proj Profile'!$A$2:$A$30,FALSE)) -> 7.048170052 | DR4: =HLOOKUP(DR$1,'Forecast-Volume'!$C$2:$O$40,MATCH($A4,'Forecast-Volume'!$A$2:$A$40,FALSE),FALSE)*HLOOKUP(MONTH(DR$2),'Monthly Proj Profile'!$B$2:$M$30,MATCH($A4,'Monthly Proj Profile'!$A$2:$A$30,FALSE)) -> 5.982748998 | DS4: =HLOOKUP(DS$1,'Forecast-Volume'!$C$2:$O$40,MATCH($A4,'Forecast-Volume'!$A$2:$A$40,FALSE),FALSE)*HLOOKUP(MONTH(DS$2),'Monthly Proj Profile'!$B$2:$M$30,MATCH($A4,'Monthly Proj Profile'!$A$2:$A$30,FALSE)) -> 8.247591667 | DT4: =HLOOKUP(DT$1,'Forecast-Volume'!$C$2:$O$40,MATCH($A4,'Forecast-Volume'!$A$2:$A$40,FALSE),FALSE)*HLOOKUP(MONTH(DT$2),'Monthly Proj Profile'!$B$2:$M$30,MATCH($A4,'Monthly Proj Profile'!$A$2:$A$30,FALSE)) -> 6.423104709 | DU4: =HLOOKUP(DU$1,'Forecast-Volume'!$C$2:$O$40,MATCH($A4,'Forecast-Volume'!$A$2:$A$40,FALSE),FALSE)*HLOOKUP(MONTH(DU$2),'Monthly Proj Profile'!$B$2:$M$30,MATCH($A4,'Monthly Proj Profile'!$A$2:$A$30,FALSE)) -> 5.528748357 | DV4: =HLOOKUP(DV$1,'Forecast-Volume'!$C$2:$O$40,MATCH($A4,'Forecast-Volume'!$A$2:$A$40,FALSE),FALSE)*HLOOKUP(MONTH(DV$2),'Monthly Proj Profile'!$B$2:$M$30,MATCH($A4,'Monthly Proj Profile'!$A$2:$A$30,FALSE)) -> 11.34043854 | DW4: =HLOOKUP(DW$1,'Forecast-Volume'!$C$2:$O$40,MATCH($A4,'Forecast-Volume'!$A$2:$A$40,FALSE),FALSE)*HLOOKUP(MONTH(DW$2),'Monthly Proj Profile'!$B$2:$M$30,MATCH($A4,'Monthly Proj Profile'!$A$2:$A$30,FALSE)) -> 6.423104709 | DX4: =HLOOKUP(DX$1,'Forecast-Volume'!$C$2:$O$40,MATCH($A4,'Forecast-Volume'!$A$2:$A$40,FALSE),FALSE)*HLOOKUP(MONTH(DX$2),'Monthly Proj Profile'!$B$2:$M$30,MATCH($A4,'Monthly Proj Profile'!$A$2:$A$30,FALSE)) -> 12.51080025 | DY4: =HLOOKUP(DY$1,'Forecast-Volume'!$C$2:$O$40,MATCH($A4,'Forecast-Volume'!$A$2:$A$40,FALSE),FALSE)*HLOOKUP(MONTH(DY$2),'Monthly Proj Profile'!$B$2:$M$30,MATCH($A4,'Monthly Proj Profile'!$A$2:$A$30,FALSE)) -> 4.378286758 | DZ4: =HLOOKUP(DZ$1,'Forecast-Volume'!$C$2:$O$40,MATCH($A4,'Forecast-Volume'!$A$2:$A$40,FALSE),FALSE)*HLOOKUP(MONTH(DZ$2),'Monthly Proj Profile'!$B$2:$M$30,MATCH($A4,'Monthly Proj Profile'!$A$2:$A$30,FALSE)) -> 6.910935447 | EA4: =HLOOKUP(EA$1,'Forecast-Volume'!$C$2:$O$40,MATCH($A4,'Forecast-Volume'!$A$2:$A$40,FALSE),FALSE)*HLOOKUP(MONTH(EA$2),'Monthly Proj Profile'!$B$2:$M$30,MATCH($A4,'Monthly Proj Profile'!$A$2:$A$30,FALSE)) -> 6.910935447 | EB4: =HLOOKUP(EB$1,'Forecast-Volume'!$C$2:$O$40,MATCH($A4,'Forecast-Volume'!$A$2:$A$40,FALSE),FALSE)*HLOOKUP(MONTH(EB$2),'Monthly Proj Profile'!$B$2:$M$30,MATCH($A4,'Monthly Proj Profile'!$A$2:$A$30,FALSE)) -> 16.58624507 | EC4: =HLOOKUP(EC$1,'Forecast-Volume'!$C$2:$O$40,MATCH($A4,'Forecast-Volume'!$A$2:$A$40,FALSE),FALSE)*HLOOKUP(MONTH(EC$2),'Monthly Proj Profile'!$B$2:$M$30,MATCH($A4,'Monthly Proj Profile'!$A$2:$A$30,FALSE)) -> 6.99224057 | ED4: =HLOOKUP(ED$1,'Forecast-Volume'!$C$2:$O$40,MATCH($A4,'Forecast-Volume'!$A$2:$A$40,FALSE),FALSE)*HLOOKUP(MONTH(ED$2),'Monthly Proj Profile'!$B$2:$M$30,MATCH($A4,'Monthly Proj Profile'!$A$2:$A$30,FALSE)) -> 5.935273972 | EE4: =HLOOKUP(EE$1,'Forecast-Volume'!$C$2:$O$40,MATCH($A4,'Forecast-Volume'!$A$2:$A$40,FALSE),FALSE)*HLOOKUP(MONTH(EE$2),'Monthly Proj Profile'!$B$2:$M$30,MATCH($A4,'Monthly Proj Profile'!$A$2:$A$30,FALSE)) -> 8.262528447 | EF4: =HLOOKUP(EF$1,'Forecast-Volume'!$C$2:$O$40,MATCH($A4,'Forecast-Volume'!$A$2:$A$40,FALSE),FALSE)*HLOOKUP(MONTH(EF$2),'Monthly Proj Profile'!$B$2:$M$30,MATCH($A4,'Monthly Proj Profile'!$A$2:$A$30,FALSE)) -> 6.434737256 | EG4: =HLOOKUP(EG$1,'Forecast-Volume'!$C$2:$O$40,MATCH($A4,'Forecast-Volume'!$A$2:$A$40,FALSE),FALSE)*HLOOKUP(MONTH(EG$2),'Monthly Proj Profile'!$B$2:$M$30,MATCH($A4,'Monthly Proj Profile'!$A$2:$A$30,FALSE)) -> 5.538761183 | EH4: =HLOOKUP(EH$1,'Forecast-Volume'!$C$2:$O$40,MATCH($A4,'Forecast-Volume'!$A$2:$A$40,FALSE),FALSE)*HLOOKUP(MONTH(EH$2),'Monthly Proj Profile'!$B$2:$M$30,MATCH($A4,'Monthly Proj Profile'!$A$2:$A$30,FALSE)) -> 11.36097661 | EI4: =HLOOKUP(EI$1,'Forecast-Volume'!$C$2:$O$40,MATCH($A4,'Forecast-Volume'!$A$2:$A$40,FALSE),FALSE)*HLOOKUP(MONTH(EI$2),'Monthly Proj Profile'!$B$2:$M$30,MATCH($A4,'Monthly Proj Profile'!$A$2:$A$30,FALSE)) -> 6.434737256 | EJ4: =HLOOKUP(EJ$1,'Forecast-Volume'!$C$2:$O$40,MATCH($A4,'Forecast-Volume'!$A$2:$A$40,FALSE),FALSE)*HLOOKUP(MONTH(EJ$2),'Monthly Proj Profile'!$B$2:$M$30,MATCH($A4,'Monthly Proj Profile'!$A$2:$A$30,FALSE)) -> 12.5334579 | EK4: =HLOOKUP(EK$1,'Forecast-Volume'!$C$2:$O$40,MATCH($A4,'Forecast-Volume'!$A$2:$A$40,FALSE),FALSE)*HLOOKUP(MONTH(EK$2),'Monthly Proj Profile'!$B$2:$M$30,MATCH($A4,'Monthly Proj Profile'!$A$2:$A$30,FALSE)) -> 4.386216043 | EL4: =HLOOKUP(EL$1,'Forecast-Volume'!$C$2:$O$40,MATCH($A4,'Forecast-Volume'!$A$2:$A$40,FALSE),FALSE)*HLOOKUP(MONTH(EL$2),'Monthly Proj Profile'!$B$2:$M$30,MATCH($A4,'Monthly Proj Profile'!$A$2:$A$30,FALSE)) -> 6.923451478 | EM4: =HLOOKUP(EM$1,'Forecast-Volume'!$C$2:$O$40,MATCH($A4,'Forecast-Volume'!$A$2:$A$40,FALSE),FALSE)*HLOOKUP(MONTH(EM$2),'Monthly Proj Profile'!$B$2:$M$30,MATCH($A4,'Monthly Proj Profile'!$A$2:$A$30,FALSE)) -> 6.923451478 | EN4: =HLOOKUP(EN$1,'Forecast-Volume'!$C$2:$O$40,MATCH($A4,'Forecast-Volume'!$A$2:$A$40,FALSE),FALSE)*HLOOKUP(MONTH(EN$2),'Monthly Proj Profile'!$B$2:$M$30,MATCH($A4,'Monthly Proj Profile'!$A$2:$A$30,FALSE)) -> 16.61628355 | EO4: =HLOOKUP(EO$1,'Forecast-Volume'!$C$2:$O$40,MATCH($A4,'Forecast-Volume'!$A$2:$A$40,FALSE),FALSE)*HLOOKUP(MONTH(EO$2),'Monthly Proj Profile'!$B$2:$M$30,MATCH($A4,'Monthly Proj Profile'!$A$2:$A$30,FALSE)) -> 7.004903849 | EP4: =HLOOKUP(EP$1,'Forecast-Volume'!$C$2:$O$40,MATCH($A4,'Forecast-Volume'!$A$2:$A$40,FALSE),FALSE)*HLOOKUP(MONTH(EP$2),'Monthly Proj Profile'!$B$2:$M$30,MATCH($A4,'Monthly Proj Profile'!$A$2:$A$30,FALSE)) -> 5.946023034 | EQ4: =HLOOKUP(EQ$1,'Forecast-Volume'!$C$2:$O$40,MATCH($A4,'Forecast-Volume'!$A$2:$A$40,FALSE),FALSE)*HLOOKUP(MONTH(EQ$2),'Monthly Proj Profile'!$B$2:$M$30,MATCH($A4,'Monthly Proj Profile'!$A$2:$A$30,FALSE)) -> 8.389491071 | ER4: =HLOOKUP(ER$1,'Forecast-Volume'!$C$2:$O$40,MATCH($A4,'Forecast-Volume'!$A$2:$A$40,FALSE),FALSE)*HLOOKUP(MONTH(ER$2),'Monthly Proj Profile'!$B$2:$M$30,MATCH($A4,'Monthly Proj Profile'!$A$2:$A$30,FALSE)) -> 6.533613906 | ES4: =HLOOKUP(ES$1,'Forecast-Volume'!$C$2:$O$40,MATCH($A4,'Forecast-Volume'!$A$2:$A$40,FALSE),FALSE)*HLOOKUP(MONTH(ES$2),'Monthly Proj Profile'!$B$2:$M$30,MATCH($A4,'Monthly Proj Profile'!$A$2:$A$30,FALSE)) -> 5.623870198 | ET4: =HLOOKUP(ET$1,'Forecast-Volume'!$C$2:$O$40,MATCH($A4,'Forecast-Volume'!$A$2:$A$40,FALSE),FALSE)*HLOOKUP(MONTH(ET$2),'Monthly Proj Profile'!$B$2:$M$30,MATCH($A4,'Monthly Proj Profile'!$A$2:$A$30,FALSE)) -> 11.53555022 | EU4: =HLOOKUP(EU$1,'Forecast-Volume'!$C$2:$O$40,MATCH($A4,'Forecast-Volume'!$A$2:$A$40,FALSE),FALSE)*HLOOKUP(MONTH(EU$2),'Monthly Proj Profile'!$B$2:$M$30,MATCH($A4,'Monthly Proj Profile'!$A$2:$A$30,FALSE)) -> 6.533613906 | EV4: =HLOOKUP(EV$1,'Forecast-Volume'!$C$2:$O$40,MATCH($A4,'Forecast-Volume'!$A$2:$A$40,FALSE),FALSE)*HLOOKUP(MONTH(EV$2),'Monthly Proj Profile'!$B$2:$M$30,MATCH($A4,'Monthly Proj Profile'!$A$2:$A$30,FALSE)) -> 12.72604794 | EW4: =HLOOKUP(EW$1,'Forecast-Volume'!$C$2:$O$40,MATCH($A4,'Forecast-Volume'!$A$2:$A$40,FALSE),FALSE)*HLOOKUP(MONTH(EW$2),'Monthly Proj Profile'!$B$2:$M$30,MATCH($A4,'Monthly Proj Profile'!$A$2:$A$30,FALSE)) -> 4.453614964 | EX4: =HLOOKUP(EX$1,'Forecast-Volume'!$C$2:$O$40,MATCH($A4,'Forecast-Volume'!$A$2:$A$40,FALSE),FALSE)*HLOOKUP(MONTH(EX$2),'Monthly Proj Profile'!$B$2:$M$30,MATCH($A4,'Monthly Proj Profile'!$A$2:$A$30,FALSE)) -> 7.029837747 | EY4: =HLOOKUP(EY$1,'Forecast-Volume'!$C$2:$O$40,MATCH($A4,'Forecast-Volume'!$A$2:$A$40,FALSE),FALSE)*HLOOKUP(MONTH(EY$2),'Monthly Proj Profile'!$B$2:$M$30,MATCH($A4,'Monthly Proj Profile'!$A$2:$A$30,FALSE)) -> 7.029837747 | EZ4: =HLOOKUP(EZ$1,'Forecast-Volume'!$C$2:$O$40,MATCH($A4,'Forecast-Volume'!$A$2:$A$40,FALSE),FALSE)*HLOOKUP(MONTH(EZ$2),'Monthly Proj Profile'!$B$2:$M$30,MATCH($A4,'Monthly Proj Profile'!$A$2:$A$30,FALSE)) -> 16.87161059 | FA4: =HLOOKUP(FA$1,'Forecast-Volume'!$C$2:$O$40,MATCH($A4,'Forecast-Volume'!$A$2:$A$40,FALSE),FALSE)*HLOOKUP(MONTH(FA$2),'Monthly Proj Profile'!$B$2:$M$30,MATCH($A4,'Monthly Proj Profile'!$A$2:$A$30,FALSE)) -> 7.112541721 | FB4: =HLOOKUP(FB$1,'Forecast-Volume'!$C$2:$O$40,MATCH($A4,'Forecast-Volume'!$A$2:$A$40,FALSE),FALSE)*HLOOKUP(MONTH(FB$2),'Monthly Proj Profile'!$B$2:$M$30,MATCH($A4,'Monthly Proj Profile'!$A$2:$A$30,FALSE)) -> 6.037390065 | FC4: =HLOOKUP(FC$1,'Forecast-Volume'!$C$2:$O$40,MATCH($A4,'Forecast-Volume'!$A$2:$A$40,FALSE),FALSE)*HLOOKUP(MONTH(FC$2),'Monthly Proj Profile'!$B$2:$M$30,MATCH($A4,'Monthly Proj Profile'!$A$2:$A$30,FALSE)) -> 8.594871787 | FD4: =HLOOKUP(FD$1,'Forecast-Volume'!$C$2:$O$40,MATCH($A4,'Forecast-Volume'!$A$2:$A$40,FALSE),FALSE)*HLOOKUP(MONTH(FD$2),'Monthly Proj Profile'!$B$2:$M$30,MATCH($A4,'Monthly Proj Profile'!$A$2:$A$30,FALSE)) -> 6.693561427 | FE4: =HLOOKUP(FE$1,'Forecast-Volume'!$C$2:$O$40,MATCH($A4,'Forecast-Volume'!$A$2:$A$40,FALSE),FALSE)*HLOOKUP(MONTH(FE$2),'Monthly Proj Profile'!$B$2:$M$30,MATCH($A4,'Monthly Proj Profile'!$A$2:$A$30,FALSE)) -> 5.761546545 | FF4: =HLOOKUP(FF$1,'Forecast-Volume'!$C$2:$O$40,MATCH($A4,'Forecast-Volume'!$A$2:$A$40,FALSE),FALSE)*HLOOKUP(MONTH(FF$2),'Monthly Proj Profile'!$B$2:$M$30,MATCH($A4,'Monthly Proj Profile'!$A$2:$A$30,FALSE)) -> 11.81794871 | FG4: =HLOOKUP(FG$1,'Forecast-Volume'!$C$2:$O$40,MATCH($A4,'Forecast-Volume'!$A$2:$A$40,FALSE),FALSE)*HLOOKUP(MONTH(FG$2),'Monthly Proj Profile'!$B$2:$M$30,MATCH($A4,'Monthly Proj Profile'!$A$2:$A$30,FALSE)) -> 6.693561427 | FH4: =HLOOKUP(FH$1,'Forecast-Volume'!$C$2:$O$40,MATCH($A4,'Forecast-Volume'!$A$2:$A$40,FALSE),FALSE)*HLOOKUP(MONTH(FH$2),'Monthly Proj Profile'!$B$2:$M$30,MATCH($A4,'Monthly Proj Profile'!$A$2:$A$30,FALSE)) -> 13.03759066 | FI4: =HLOOKUP(FI$1,'Forecast-Volume'!$C$2:$O$40,MATCH($A4,'Forecast-Volume'!$A$2:$A$40,FALSE),FALSE)*HLOOKUP(MONTH(FI$2),'Monthly Proj Profile'!$B$2:$M$30,MATCH($A4,'Monthly Proj Profile'!$A$2:$A$30,FALSE)) -> 4.56264263 | FJ4: =HLOOKUP(FJ$1,'Forecast-Volume'!$C$2:$O$40,MATCH($A4,'Forecast-Volume'!$A$2:$A$40,FALSE),FALSE)*HLOOKUP(MONTH(FJ$2),'Monthly Proj Profile'!$B$2:$M$30,MATCH($A4,'Monthly Proj Profile'!$A$2:$A$30,FALSE)) -> 7.201933181 | FK4: =HLOOKUP(FK$1,'Forecast-Volume'!$C$2:$O$40,MATCH($A4,'Forecast-Volume'!$A$2:$A$40,FALSE),FALSE)*HLOOKUP(MONTH(FK$2),'Monthly Proj Profile'!$B$2:$M$30,MATCH($A4,'Monthly Proj Profile'!$A$2:$A$30,FALSE)) -> 7.201933181 | FL4: =HLOOKUP(FL$1,'Forecast-Volume'!$C$2:$O$40,MATCH($A4,'Forecast-Volume'!$A$2:$A$40,FALSE),FALSE)*HLOOKUP(MONTH(FL$2),'Monthly Proj Profile'!$B$2:$M$30,MATCH($A4,'Monthly Proj Profile'!$A$2:$A$30,FALSE)) -> 17.28463964 | FM4: =HLOOKUP(FM$1,'Forecast-Volume'!$C$2:$O$40,MATCH($A4,'Forecast-Volume'!$A$2:$A$40,FALSE),FALSE)*HLOOKUP(MONTH(FM$2),'Monthly Proj Profile'!$B$2:$M$30,MATCH($A4,'Monthly Proj Profile'!$A$2:$A$30,FALSE)) -> 7.286661807 | FN4: =HLOOKUP(FN$1,'Forecast-Volume'!$C$2:$O$40,MATCH($A4,'Forecast-Volume'!$A$2:$A$40,FALSE),FALSE)*HLOOKUP(MONTH(FN$2),'Monthly Proj Profile'!$B$2:$M$30,MATCH($A4,'Monthly Proj Profile'!$A$2:$A$30,FALSE)) -> 6.185189674 | FO4: =HLOOKUP(FO$1,'Forecast-Volume'!$C$2:$O$40,MATCH($A4,'Forecast-Volume'!$A$2:$A$40,FALSE),FALSE)*HLOOKUP(MONTH(FO$2),'Monthly Proj Profile'!$B$2:$M$30,MATCH($A4,'Monthly Proj Profile'!$A$2:$A$30,FALSE)) -> 8.777847335 | FP4: =HLOOKUP(FP$1,'Forecast-Volume'!$C$2:$O$40,MATCH($A4,'Forecast-Volume'!$A$2:$A$40,FALSE),FALSE)*HLOOKUP(MONTH(FP$2),'Monthly Proj Profile'!$B$2:$M$30,MATCH($A4,'Monthly Proj Profile'!$A$2:$A$30,FALSE)) -> 6.836060128 | FQ4: =HLOOKUP(FQ$1,'Forecast-Volume'!$C$2:$O$40,MATCH($A4,'Forecast-Volume'!$A$2:$A$40,FALSE),FALSE)*HLOOKUP(MONTH(FQ$2),'Monthly Proj Profile'!$B$2:$M$30,MATCH($A4,'Monthly Proj Profile'!$A$2:$A$30,FALSE)) -> 5.884203655 | FR4: =HLOOKUP(FR$1,'Forecast-Volume'!$C$2:$O$40,MATCH($A4,'Forecast-Volume'!$A$2:$A$40,FALSE),FALSE)*HLOOKUP(MONTH(FR$2),'Monthly Proj Profile'!$B$2:$M$30,MATCH($A4,'Monthly Proj Profile'!$A$2:$A$30,FALSE)) -> 12.06954008 | FS4: =HLOOKUP(FS$1,'Forecast-Volume'!$C$2:$O$40,MATCH($A4,'Forecast-Volume'!$A$2:$A$40,FALSE),FALSE)*HLOOKUP(MONTH(FS$2),'Monthly Proj Profile'!$B$2:$M$30,MATCH($A4,'Monthly Proj Profile'!$A$2:$A$30,FALSE)) -> 6.836060128 | FT4: =HLOOKUP(FT$1,'Forecast-Volume'!$C$2:$O$40,MATCH($A4,'Forecast-Volume'!$A$2:$A$40,FALSE),FALSE)*HLOOKUP(MONTH(FT$2),'Monthly Proj Profile'!$B$2:$M$30,MATCH($A4,'Monthly Proj Profile'!$A$2:$A$30,FALSE)) -> 13.3151469 | FU4: =HLOOKUP(FU$1,'Forecast-Volume'!$C$2:$O$40,MATCH($A4,'Forecast-Volume'!$A$2:$A$40,FALSE),FALSE)*HLOOKUP(MONTH(FU$2),'Monthly Proj Profile'!$B$2:$M$30,MATCH($A4,'Monthly Proj Profile'!$A$2:$A$30,FALSE)) -> 4.659776368 | FV4: =HLOOKUP(FV$1,'Forecast-Volume'!$C$2:$O$40,MATCH($A4,'Forecast-Volume'!$A$2:$A$40,FALSE),FALSE)*HLOOKUP(MONTH(FV$2),'Monthly Proj Profile'!$B$2:$M$30,MATCH($A4,'Monthly Proj Profile'!$A$2:$A$30,FALSE)) -> 7.355254569 | FW4: =HLOOKUP(FW$1,'Forecast-Volume'!$C$2:$O$40,MATCH($A4,'Forecast-Volume'!$A$2:$A$40,FALSE),FALSE)*HLOOKUP(MONTH(FW$2),'Monthly Proj Profile'!$B$2:$M$30,MATCH($A4,'Monthly Proj Profile'!$A$2:$A$30,FALSE)) -> 7.355254569 | FX4: =HLOOKUP(FX$1,'Forecast-Volume'!$C$2:$O$40,MATCH($A4,'Forecast-Volume'!$A$2:$A$40,FALSE),FALSE)*HLOOKUP(MONTH(FX$2),'Monthly Proj Profile'!$B$2:$M$30,MATCH($A4,'Monthly Proj Profile'!$A$2:$A$30,FALSE)) -> 17.65261096 | FY4: =HLOOKUP(FY$1,'Forecast-Volume'!$C$2:$O$40,MATCH($A4,'Forecast-Volume'!$A$2:$A$40,FALSE),FALSE)*HLOOKUP(MONTH(FY$2),'Monthly Proj Profile'!$B$2:$M$30,MATCH($A4,'Monthly Proj Profile'!$A$2:$A$30,FALSE)) -> 7.441786975 | FZ4: =HLOOKUP(FZ$1,'Forecast-Volume'!$C$2:$O$40,MATCH($A4,'Forecast-Volume'!$A$2:$A$40,FALSE),FALSE)*HLOOKUP(MONTH(FZ$2),'Monthly Proj Profile'!$B$2:$M$30,MATCH($A4,'Monthly Proj Profile'!$A$2:$A$30,FALSE)) -> 6.316865688 | GA4: =HLOOKUP(GA$1,'Forecast-Volume'!$C$2:$O$40,MATCH($A4,'Forecast-Volume'!$A$2:$A$40,FALSE),FALSE)*HLOOKUP(MONTH(GA$2),'Monthly Proj Profile'!$B$2:$M$30,MATCH($A4,'Monthly Proj Profile'!$A$2:$A$30,FALSE)) -> 8.979493856 | GB4: =HLOOKUP(GB$1,'Forecast-Volume'!$C$2:$O$40,MATCH($A4,'Forecast-Volume'!$A$2:$A$40,FALSE),FALSE)*HLOOKUP(MONTH(GB$2),'Monthly Proj Profile'!$B$2:$M$30,MATCH($A4,'Monthly Proj Profile'!$A$2:$A$30,FALSE)) -> 6.993099513 | GC4: =HLOOKUP(GC$1,'Forecast-Volume'!$C$2:$O$40,MATCH($A4,'Forecast-Volume'!$A$2:$A$40,FALSE),FALSE)*HLOOKUP(MONTH(GC$2),'Monthly Proj Profile'!$B$2:$M$30,MATCH($A4,'Monthly Proj Profile'!$A$2:$A$30,FALSE)) -> 6.019376796 | GD4: =HLOOKUP(GD$1,'Forecast-Volume'!$C$2:$O$40,MATCH($A4,'Forecast-Volume'!$A$2:$A$40,FALSE),FALSE)*HLOOKUP(MONTH(GD$2),'Monthly Proj Profile'!$B$2:$M$30,MATCH($A4,'Monthly Proj Profile'!$A$2:$A$30,FALSE)) -> 12.34680405 | GE4: =HLOOKUP(GE$1,'Forecast-Volume'!$C$2:$O$40,MATCH($A4,'Forecast-Volume'!$A$2:$A$40,FALSE),FALSE)*HLOOKUP(MONTH(GE$2),'Monthly Proj Profile'!$B$2:$M$30,MATCH($A4,'Monthly Proj Profile'!$A$2:$A$30,FALSE)) -> 6.993099513 | GF4: =HLOOKUP(GF$1,'Forecast-Volume'!$C$2:$O$40,MATCH($A4,'Forecast-Volume'!$A$2:$A$40,FALSE),FALSE)*HLOOKUP(MONTH(GF$2),'Monthly Proj Profile'!$B$2:$M$30,MATCH($A4,'Monthly Proj Profile'!$A$2:$A$30,FALSE)) -> 13.6210252 | GG4: =HLOOKUP(GG$1,'Forecast-Volume'!$C$2:$O$40,MATCH($A4,'Forecast-Volume'!$A$2:$A$40,FALSE),FALSE)*HLOOKUP(MONTH(GG$2),'Monthly Proj Profile'!$B$2:$M$30,MATCH($A4,'Monthly Proj Profile'!$A$2:$A$30,FALSE)) -> 4.766821713 | GH4: =HLOOKUP(GH$1,'Forecast-Volume'!$C$2:$O$40,MATCH($A4,'Forecast-Volume'!$A$2:$A$40,FALSE),FALSE)*HLOOKUP(MONTH(GH$2),'Monthly Proj Profile'!$B$2:$M$30,MATCH($A4,'Monthly Proj Profile'!$A$2:$A$30,FALSE)) -> 7.524220995 | GI4: =HLOOKUP(GI$1,'Forecast-Volume'!$C$2:$O$40,MATCH($A4,'Forecast-Volume'!$A$2:$A$40,FALSE),FALSE)*HLOOKUP(MONTH(GI$2),'Monthly Proj Profile'!$B$2:$M$30,MATCH($A4,'Monthly Proj Profile'!$A$2:$A$30,FALSE)) -> 7.524220995 | GJ4: =HLOOKUP(GJ$1,'Forecast-Volume'!$C$2:$O$40,MATCH($A4,'Forecast-Volume'!$A$2:$A$40,FALSE),FALSE)*HLOOKUP(MONTH(GJ$2),'Monthly Proj Profile'!$B$2:$M$30,MATCH($A4,'Monthly Proj Profile'!$A$2:$A$30,FALSE)) -> 18.05813039 | GK4: =HLOOKUP(GK$1,'Forecast-Volume'!$C$2:$O$40,MATCH($A4,'Forecast-Volume'!$A$2:$A$40,FALSE),FALSE)*HLOOKUP(MONTH(GK$2),'Monthly Proj Profile'!$B$2:$M$30,MATCH($A4,'Monthly Proj Profile'!$A$2:$A$30,FALSE)) -> 7.612741242 | GL4: =HLOOKUP(GL$1,'Forecast-Volume'!$C$2:$O$40,MATCH($A4,'Forecast-Volume'!$A$2:$A$40,FALSE),FALSE)*HLOOKUP(MONTH(GL$2),'Monthly Proj Profile'!$B$2:$M$30,MATCH($A4,'Monthly Proj Profile'!$A$2:$A$30,FALSE)) -> 6.461978031 | GM4: =HLOOKUP(GM$1,'Forecast-Volume'!$C$2:$O$40,MATCH($A4,'Forecast-Volume'!$A$2:$A$40,FALSE),FALSE)*HLOOKUP(MONTH(GM$2),'Monthly Proj Profile'!$B$2:$M$30,MATCH($A4,'Monthly Proj Profile'!$A$2:$A$30,FALSE)) -> 9.16830548 | GN4: =HLOOKUP(GN$1,'Forecast-Volume'!$C$2:$O$40,MATCH($A4,'Forecast-Volume'!$A$2:$A$40,FALSE),FALSE)*HLOOKUP(MONTH(GN$2),'Monthly Proj Profile'!$B$2:$M$30,MATCH($A4,'Monthly Proj Profile'!$A$2:$A$30,FALSE)) -> 7.140143266 | GO4: =HLOOKUP(GO$1,'Forecast-Volume'!$C$2:$O$40,MATCH($A4,'Forecast-Volume'!$A$2:$A$40,FALSE),FALSE)*HLOOKUP(MONTH(GO$2),'Monthly Proj Profile'!$B$2:$M$30,MATCH($A4,'Monthly Proj Profile'!$A$2:$A$30,FALSE)) -> 6.145946102 | GP4: =HLOOKUP(GP$1,'Forecast-Volume'!$C$2:$O$40,MATCH($A4,'Forecast-Volume'!$A$2:$A$40,FALSE),FALSE)*HLOOKUP(MONTH(GP$2),'Monthly Proj Profile'!$B$2:$M$30,MATCH($A4,'Monthly Proj Profile'!$A$2:$A$30,FALSE)) -> 12.60642003 | GQ4: =HLOOKUP(GQ$1,'Forecast-Volume'!$C$2:$O$40,MATCH($A4,'Forecast-Volume'!$A$2:$A$40,FALSE),FALSE)*HLOOKUP(MONTH(GQ$2),'Monthly Proj Profile'!$B$2:$M$30,MATCH($A4,'Monthly Proj Profile'!$A$2:$A$30,FALSE)) -> 7.140143266 | GR4: =HLOOKUP(GR$1,'Forecast-Volume'!$C$2:$O$40,MATCH($A4,'Forecast-Volume'!$A$2:$A$40,FALSE),FALSE)*HLOOKUP(MONTH(GR$2),'Monthly Proj Profile'!$B$2:$M$30,MATCH($A4,'Monthly Proj Profile'!$A$2:$A$30,FALSE)) -> 13.9074342 | GS4: =HLOOKUP(GS$1,'Forecast-Volume'!$C$2:$O$40,MATCH($A4,'Forecast-Volume'!$A$2:$A$40,FALSE),FALSE)*HLOOKUP(MONTH(GS$2),'Monthly Proj Profile'!$B$2:$M$30,MATCH($A4,'Monthly Proj Profile'!$A$2:$A$30,FALSE)) -> 4.867053571 | GT4: =HLOOKUP(GT$1,'Forecast-Volume'!$C$2:$O$40,MATCH($A4,'Forecast-Volume'!$A$2:$A$40,FALSE),FALSE)*HLOOKUP(MONTH(GT$2),'Monthly Proj Profile'!$B$2:$M$30,MATCH($A4,'Monthly Proj Profile'!$A$2:$A$30,FALSE)) -> 7.682432628 | GU4: =HLOOKUP(GU$1,'Forecast-Volume'!$C$2:$O$40,MATCH($A4,'Forecast-Volume'!$A$2:$A$40,FALSE),FALSE)*HLOOKUP(MONTH(GU$2),'Monthly Proj Profile'!$B$2:$M$30,MATCH($A4,'Monthly Proj Profile'!$A$2:$A$30,FALSE)) -> 7.682432628 | GV4: =HLOOKUP(GV$1,'Forecast-Volume'!$C$2:$O$40,MATCH($A4,'Forecast-Volume'!$A$2:$A$40,FALSE),FALSE)*HLOOKUP(MONTH(GV$2),'Monthly Proj Profile'!$B$2:$M$30,MATCH($A4,'Monthly Proj Profile'!$A$2:$A$30,FALSE)) -> 18.43783831 | GW4: =HLOOKUP(GW$1,'Forecast-Volume'!$C$2:$O$40,MATCH($A4,'Forecast-Volume'!$A$2:$A$40,FALSE),FALSE)*HLOOKUP(MONTH(GW$2),'Monthly Proj Profile'!$B$2:$M$30,MATCH($A4,'Monthly Proj Profile'!$A$2:$A$30,FALSE)) -> 7.772814188 | GX4: =HLOOKUP(GX$1,'Forecast-Volume'!$C$2:$O$40,MATCH($A4,'Forecast-Volume'!$A$2:$A$40,FALSE),FALSE)*HLOOKUP(MONTH(GX$2),'Monthly Proj Profile'!$B$2:$M$30,MATCH($A4,'Monthly Proj Profile'!$A$2:$A$30,FALSE)) -> 6.597853904 | GY4: =HLOOKUP(GY$1,'Forecast-Volume'!$C$2:$O$40,MATCH($A4,'Forecast-Volume'!$A$2:$A$40,FALSE),FALSE)*HLOOKUP(MONTH(GY$2),'Monthly Proj Profile'!$B$2:$M$30,MATCH($A4,'Monthly Proj Profile'!$A$2:$A$30,FALSE)) -> 9.374062467 | GZ4: =HLOOKUP(GZ$1,'Forecast-Volume'!$C$2:$O$40,MATCH($A4,'Forecast-Volume'!$A$2:$A$40,FALSE),FALSE)*HLOOKUP(MONTH(GZ$2),'Monthly Proj Profile'!$B$2:$M$30,MATCH($A4,'Monthly Proj Profile'!$A$2:$A$30,FALSE)) -> 7.300383822 | HA4: =HLOOKUP(HA$1,'Forecast-Volume'!$C$2:$O$40,MATCH($A4,'Forecast-Volume'!$A$2:$A$40,FALSE),FALSE)*HLOOKUP(MONTH(HA$2),'Monthly Proj Profile'!$B$2:$M$30,MATCH($A4,'Monthly Proj Profile'!$A$2:$A$30,FALSE)) -> 6.283874682 | HB4: =HLOOKUP(HB$1,'Forecast-Volume'!$C$2:$O$40,MATCH($A4,'Forecast-Volume'!$A$2:$A$40,FALSE),FALSE)*HLOOKUP(MONTH(HB$2),'Monthly Proj Profile'!$B$2:$M$30,MATCH($A4,'Monthly Proj Profile'!$A$2:$A$30,FALSE)) -> 12.88933589 | HC4: =HLOOKUP(HC$1,'Forecast-Volume'!$C$2:$O$40,MATCH($A4,'Forecast-Volume'!$A$2:$A$40,FALSE),FALSE)*HLOOKUP(MONTH(HC$2),'Monthly Proj Profile'!$B$2:$M$30,MATCH($A4,'Monthly Proj Profile'!$A$2:$A$30,FALSE)) -> 7.300383822 | HD4: =HLOOKUP(HD$1,'Forecast-Volume'!$C$2:$O$40,MATCH($A4,'Forecast-Volume'!$A$2:$A$40,FALSE),FALSE)*HLOOKUP(MONTH(HD$2),'Monthly Proj Profile'!$B$2:$M$30,MATCH($A4,'Monthly Proj Profile'!$A$2:$A$30,FALSE)) -> 14.21954769 | HE4: =HLOOKUP(HE$1,'Forecast-Volume'!$C$2:$O$40,MATCH($A4,'Forecast-Volume'!$A$2:$A$40,FALSE),FALSE)*HLOOKUP(MONTH(HE$2),'Monthly Proj Profile'!$B$2:$M$30,MATCH($A4,'Monthly Proj Profile'!$A$2:$A$30,FALSE)) -> 4.976280982 | HF4: =HLOOKUP(HF$1,'Forecast-Volume'!$C$2:$O$40,MATCH($A4,'Forecast-Volume'!$A$2:$A$40,FALSE),FALSE)*HLOOKUP(MONTH(HF$2),'Monthly Proj Profile'!$B$2:$M$30,MATCH($A4,'Monthly Proj Profile'!$A$2:$A$30,FALSE)) -> 7.854843352 | HG4: =HLOOKUP(HG$1,'Forecast-Volume'!$C$2:$O$40,MATCH($A4,'Forecast-Volume'!$A$2:$A$40,FALSE),FALSE)*HLOOKUP(MONTH(HG$2),'Monthly Proj Profile'!$B$2:$M$30,MATCH($A4,'Monthly Proj Profile'!$A$2:$A$30,FALSE)) -> 7.854843352 | HH4: =HLOOKUP(HH$1,'Forecast-Volume'!$C$2:$O$40,MATCH($A4,'Forecast-Volume'!$A$2:$A$40,FALSE),FALSE)*HLOOKUP(MONTH(HH$2),'Monthly Proj Profile'!$B$2:$M$30,MATCH($A4,'Monthly Proj Profile'!$A$2:$A$30,FALSE)) -> 18.85162405 | HI4: =HLOOKUP(HI$1,'Forecast-Volume'!$C$2:$O$40,MATCH($A4,'Forecast-Volume'!$A$2:$A$40,FALSE),FALSE)*HLOOKUP(MONTH(HI$2),'Monthly Proj Profile'!$B$2:$M$30,MATCH($A4,'Monthly Proj Profile'!$A$2:$A$30,FALSE)) -> 7.947253274 | HJ4: =HLOOKUP(HJ$1,'Forecast-Volume'!$C$2:$O$40,MATCH($A4,'Forecast-Volume'!$A$2:$A$40,FALSE),FALSE)*HLOOKUP(MONTH(HJ$2),'Monthly Proj Profile'!$B$2:$M$30,MATCH($A4,'Monthly Proj Profile'!$A$2:$A$30,FALSE)) -> 6.745924291 | HK4: =HLOOKUP(HK$1,'Forecast-Volume'!$C$2:$P$40,MATCH($A4,'Forecast-Volume'!$A$2:$A$40,FALSE),FALSE)*HLOOKUP(MONTH(HK$2),'Monthly Proj Profile'!$B$2:$M$30,MATCH($A4,'Monthly Proj Profile'!$A$2:$A$30,FALSE)) -> 9.579659819 | HL4: =HLOOKUP(HL$1,'Forecast-Volume'!$C$2:$P$40,MATCH($A4,'Forecast-Volume'!$A$2:$A$40,FALSE),FALSE)*HLOOKUP(MONTH(HL$2),'Monthly Proj Profile'!$B$2:$M$30,MATCH($A4,'Monthly Proj Profile'!$A$2:$A$30,FALSE)) -> 7.460500056 | HM4: =HLOOKUP(HM$1,'Forecast-Volume'!$C$2:$P$40,MATCH($A4,'Forecast-Volume'!$A$2:$A$40,FALSE),FALSE)*HLOOKUP(MONTH(HM$2),'Monthly Proj Profile'!$B$2:$M$30,MATCH($A4,'Monthly Proj Profile'!$A$2:$A$30,FALSE)) -> 6.421696251 | HN4: =HLOOKUP(HN$1,'Forecast-Volume'!$C$2:$P$40,MATCH($A4,'Forecast-Volume'!$A$2:$A$40,FALSE),FALSE)*HLOOKUP(MONTH(HN$2),'Monthly Proj Profile'!$B$2:$M$30,MATCH($A4,'Monthly Proj Profile'!$A$2:$A$30,FALSE)) -> 13.17203225 | HO4: =HLOOKUP(HO$1,'Forecast-Volume'!$C$2:$P$40,MATCH($A4,'Forecast-Volume'!$A$2:$A$40,FALSE),FALSE)*HLOOKUP(MONTH(HO$2),'Monthly Proj Profile'!$B$2:$M$30,MATCH($A4,'Monthly Proj Profile'!$A$2:$A$30,FALSE)) -> 7.460500056 | HP4: =HLOOKUP(HP$1,'Forecast-Volume'!$C$2:$P$40,MATCH($A4,'Forecast-Volume'!$A$2:$A$40,FALSE),FALSE)*HLOOKUP(MONTH(HP$2),'Monthly Proj Profile'!$B$2:$M$30,MATCH($A4,'Monthly Proj Profile'!$A$2:$A$30,FALSE)) -> 14.53141902 | HQ4: =HLOOKUP(HQ$1,'Forecast-Volume'!$C$2:$P$40,MATCH($A4,'Forecast-Volume'!$A$2:$A$40,FALSE),FALSE)*HLOOKUP(MONTH(HQ$2),'Monthly Proj Profile'!$B$2:$M$30,MATCH($A4,'Monthly Proj Profile'!$A$2:$A$30,FALSE)) -> 5.085423651 | HR4: =HLOOKUP(HR$1,'Forecast-Volume'!$C$2:$P$40,MATCH($A4,'Forecast-Volume'!$A$2:$A$40,FALSE),FALSE)*HLOOKUP(MONTH(HR$2),'Monthly Proj Profile'!$B$2:$M$30,MATCH($A4,'Monthly Proj Profile'!$A$2:$A$30,FALSE)) -> 8.027120314 | HS4: =HLOOKUP(HS$1,'Forecast-Volume'!$C$2:$P$40,MATCH($A4,'Forecast-Volume'!$A$2:$A$40,FALSE),FALSE)*HLOOKUP(MONTH(HS$2),'Monthly Proj Profile'!$B$2:$M$30,MATCH($A4,'Monthly Proj Profile'!$A$2:$A$30,FALSE)) -> 8.027120314 | HT4: =HLOOKUP(HT$1,'Forecast-Volume'!$C$2:$P$40,MATCH($A4,'Forecast-Volume'!$A$2:$A$40,FALSE),FALSE)*HLOOKUP(MONTH(HT$2),'Monthly Proj Profile'!$B$2:$M$30,MATCH($A4,'Monthly Proj Profile'!$A$2:$A$30,FALSE)) -> 19.26508875 | HU4: =HLOOKUP(HU$1,'Forecast-Volume'!$C$2:$P$40,MATCH($A4,'Forecast-Volume'!$A$2:$A$40,FALSE),FALSE)*HLOOKUP(MONTH(HU$2),'Monthly Proj Profile'!$B$2:$M$30,MATCH($A4,'Monthly Proj Profile'!$A$2:$A$30,FALSE)) -> 8.121557023 | HV4: =HLOOKUP(HV$1,'Forecast-Volume'!$C$2:$X$40,MATCH($A4,'Forecast-Volume'!$A$2:$A$40,FALSE),FALSE)*HLOOKUP(MONTH(HV$2),'Monthly Proj Profile'!$B$2:$M$30,MATCH($A4,'Monthly Proj Profile'!$A$2:$A$30,FALSE)) -> 6.893879799 | HW4: =HLOOKUP(HW$1,'Forecast-Volume'!$C$2:$X$40,MATCH($A4,'Forecast-Volume'!$A$2:$A$40,FALSE),FALSE)*HLOOKUP(MONTH(HW$2),'Monthly Proj Profile'!$B$2:$M$30,MATCH($A4,'Monthly Proj Profile'!$A$2:$A$30,FALSE)) -> 9.791307955 | HX4: =HLOOKUP(HX$1,'Forecast-Volume'!$C$2:$X$40,MATCH($A4,'Forecast-Volume'!$A$2:$A$40,FALSE),FALSE)*HLOOKUP(MONTH(HX$2),'Monthly Proj Profile'!$B$2:$M$30,MATCH($A4,'Monthly Proj Profile'!$A$2:$A$30,FALSE)) -> 7.625328553 | HY4: =HLOOKUP(HY$1,'Forecast-Volume'!$C$2:$X$40,MATCH($A4,'Forecast-Volume'!$A$2:$A$40,FALSE),FALSE)*HLOOKUP(MONTH(HY$2),'Monthly Proj Profile'!$B$2:$M$30,MATCH($A4,'Monthly Proj Profile'!$A$2:$A$30,FALSE)) -> 6.563573944 | HZ4: =HLOOKUP(HZ$1,'Forecast-Volume'!$C$2:$X$40,MATCH($A4,'Forecast-Volume'!$A$2:$A$40,FALSE),FALSE)*HLOOKUP(MONTH(HZ$2),'Monthly Proj Profile'!$B$2:$M$30,MATCH($A4,'Monthly Proj Profile'!$A$2:$A$30,FALSE)) -> 13.46304844 | IA4: =HLOOKUP(IA$1,'Forecast-Volume'!$C$2:$X$40,MATCH($A4,'Forecast-Volume'!$A$2:$A$40,FALSE),FALSE)*HLOOKUP(MONTH(IA$2),'Monthly Proj Profile'!$B$2:$M$30,MATCH($A4,'Monthly Proj Profile'!$A$2:$A$30,FALSE)) -> 7.625328553 | IB4: =HLOOKUP(IB$1,'Forecast-Volume'!$C$2:$X$40,MATCH($A4,'Forecast-Volume'!$A$2:$A$40,FALSE),FALSE)*HLOOKUP(MONTH(IB$2),'Monthly Proj Profile'!$B$2:$M$30,MATCH($A4,'Monthly Proj Profile'!$A$2:$A$30,FALSE)) -> 14.85246881 | IC4: =HLOOKUP(IC$1,'Forecast-Volume'!$C$2:$X$40,MATCH($A4,'Forecast-Volume'!$A$2:$A$40,FALSE),FALSE)*HLOOKUP(MONTH(IC$2),'Monthly Proj Profile'!$B$2:$M$30,MATCH($A4,'Monthly Proj Profile'!$A$2:$A$30,FALSE)) -> 5.197778417 | ID4: =HLOOKUP(ID$1,'Forecast-Volume'!$C$2:$X$40,MATCH($A4,'Forecast-Volume'!$A$2:$A$40,FALSE),FALSE)*HLOOKUP(MONTH(ID$2),'Monthly Proj Profile'!$B$2:$M$30,MATCH($A4,'Monthly Proj Profile'!$A$2:$A$30,FALSE)) -> 8.204467431 | IE4: =HLOOKUP(IE$1,'Forecast-Volume'!$C$2:$X$40,MATCH($A4,'Forecast-Volume'!$A$2:$A$40,FALSE),FALSE)*HLOOKUP(MONTH(IE$2),'Monthly Proj Profile'!$B$2:$M$30,MATCH($A4,'Monthly Proj Profile'!$A$2:$A$30,FALSE)) -> 8.204467431 | IF4: =HLOOKUP(IF$1,'Forecast-Volume'!$C$2:$X$40,MATCH($A4,'Forecast-Volume'!$A$2:$A$40,FALSE),FALSE)*HLOOKUP(MONTH(IF$2),'Monthly Proj Profile'!$B$2:$M$30,MATCH($A4,'Monthly Proj Profile'!$A$2:$A$30,FALSE)) -> 19.69072183 | IG4: =HLOOKUP(IG$1,'Forecast-Volume'!$C$2:$X$40,MATCH($A4,'Forecast-Volume'!$A$2:$A$40,FALSE),FALSE)*HLOOKUP(MONTH(IG$2),'Monthly Proj Profile'!$B$2:$M$30,MATCH($A4,'Monthly Proj Profile'!$A$2:$A$30,FALSE)) -> 8.300990577 | IH4: =HLOOKUP(IH$1,'Forecast-Volume'!$C$2:$X$40,MATCH($A4,'Forecast-Volume'!$A$2:$A$40,FALSE),FALSE)*HLOOKUP(MONTH(IH$2),'Monthly Proj Profile'!$B$2:$M$30,MATCH($A4,'Monthly Proj Profile'!$A$2:$A$30,FALSE)) -> 7.046189676
